Workbook

Sheet Carátula
B6: GERENCIA DE REGULACIÓN Y ESTUDIOS ECONÓMICOS
B9: MODELO DE LAS TARIFAS DE LOS SERVICIOS DE NAVEGACIÓN AÉREA BRINDADOS POR CORPAC S.A.
B13: 2025

Sheet Índice
B2: Contenido
B4: Tarifas aprobadas por el Ositrán
B6: I. Flujos de Caja
B7: Modelo 1: SNAR y Sobrevuelo
B8: Modelo 2: Aproximación
B10: II. Ingresos de los servicios de aeronavegación
B11: a. Proyección de demanda
B12: SNAR Nacional
B13: SNAR Internacional
B14: Aproximación
B15: Sobrevuelo
B16: Tasas de crecimiento de la demanda
B17: b. Tarifas de los servicios de aeronavegación
B18: c. Ingresos proyectados (usuarios atribuibles)
B20: III. Egresos de los servicios de aeronavegación
B21: a. Costos operativos - OPEX (usuarios atribuibles)
B22: Gastos de Personal 2025
B23: OPEX incremental
B24: b. Gastos de Capital - CAPEX
B25: Base de activos existentes
B26: BD Activos de aeronavegación al 2021
B27: Inversiones 2022-2024
B28: Inversiones ejecutadas (2022 - 2024)
B29: Inversiones programadas
B30: Consumo de capital fijo no ejecutado - SNAR-SV
B31: Consumo de capital fijo no ejecutado - Aprox
B33: IV. Otros Ingresos y Egresos
B34: Pago de contribuciones
B35: Ingresos y Costos por usuarios no atribuibles
B36: Transferencias del AIJCh
B38: V. Tasa de descuento
B39: Costo Promedio Ponderado del Capital (WACC) al 2024
B41: VI. Información complementaria
B42: Variables macroeconómicas y supuestos generales
B43: BD Variables macroeconómicas

Sheet Tarifas aprobadas
B1: Servicios Regulados de Aeronavegación de CORPAC | F1: Índice
B2: Revisión tarifaria 2025
B4: Servicio / Peso Máximo de Despegue (PMD) | C4: Unidad de cobro | D4: Tarifa 30/9/2024 | E4: Tarifa aprobada | F4: Var%
B5: A. SNAR Nacional
B6: (En soles)
B7: - Por rango de PMD:
B8: Hasta 5,7TM | C8: Por kilómetro recorrido | D8: =+'2.Tarifas'!F9 -> 0.14 | E8: =+'2.Tarifas'!N9 -> 0.1054196223 | F8: =+E8/D8-1 -> -0.2470026979
B9: Más de 5,7TM a 10TM | C9: Por kilómetro recorrido | D9: =+'2.Tarifas'!F10 -> 0.27 | E9: =+'2.Tarifas'!N10 -> 0.2033092716 | F9: -0.2470026979
B10: Más de 10TM a 35TM | C10: Por kilómetro recorrido | D10: =+'2.Tarifas'!F11 -> 0.31 | E10: =+'2.Tarifas'!N11 -> 0.2334291637 | F10: -0.2470026979
B11: Más de 35TM a 70TM | C11: Por kilómetro recorrido | D11: =+'2.Tarifas'!F12 -> 0.4 | E11: =+'2.Tarifas'!N12 -> 0.3011989208 | F11: -0.2470026979
B12: Más de 70TM a 105TM | C12: Por kilómetro recorrido | D12: =+'2.Tarifas'!F13 -> 0.6 | E12: =+'2.Tarifas'!N13 -> 0.4517983813 | F12: -0.2470026979
B13: Más de 105TM | C13: Por kilómetro recorrido | D13: =+'2.Tarifas'!F14 -> 0.79 | E13: =+'2.Tarifas'!N14 -> 0.5948678687 | F13: -0.2470026979
B14: - Cargo mínimo: | C14: Por operación | D14: =+'2.Tarifas'!F15 -> 13.14 | E14: =+'2.Tarifas'!N15 -> 9.89438455 | F14: -0.2470026979
B16: B. SNAR Internacional
B17: (En dólares)
B18: - Por rango de PMD:
B19: Hasta 5,7TM | C19: Por kilómetro recorrido | D19: =+'2.Tarifas'!F20 -> 0.05 | E19: =+'2.Tarifas'!N20 -> 0.03728210524 | F19: =+E19/D19-1 -> -0.2543578951
B20: Más de 5,7TM a 10TM | C20: Por kilómetro recorrido | D20: =+'2.Tarifas'!F21 -> 0.11 | E20: =+'2.Tarifas'!N21 -> 0.08202063153 | F20: -0.2543578951
B21: Más de 10TM a 35TM | C21: Por kilómetro recorrido | D21: =+'2.Tarifas'!F22 -> 0.12 | E21: =+'2.Tarifas'!N22 -> 0.08947705258 | F21: -0.2543578951
B22: Más de 35TM a 70TM | C22: Por kilómetro recorrido | D22: =+'2.Tarifas'!F23 -> 0.17 | E22: =+'2.Tarifas'!N23 -> 0.1267591578 | F22: -0.2543578951
B23: Más de 70TM a 105TM | C23: Por kilómetro recorrido | D23: =+'2.Tarifas'!F24 -> 0.26 | E23: =+'2.Tarifas'!N24 -> 0.1938669473 | F23: -0.2543578951
B24: Más de 105TM | C24: Por kilómetro recorrido | D24: =+'2.Tarifas'!F25 -> 0.36 | E24: =+'2.Tarifas'!N25 -> 0.2684311577 | F24: -0.2543578951
B25: - Cargo mínimo: | C25: Por operación | D25: =+'2.Tarifas'!F26 -> 6.19 | E25: =+'2.Tarifas'!N26 -> 4.615524629 | F25: -0.2543578951
B27: C. Aproximación
B28: (En soles)
B29: - Por rango de PMD:
B30: Hasta 10TM | C30: Por Tonelada (PMD) | D30: =+'2.Tarifas'!F31 -> 4.51 | E30: =+'2.Tarifas'!N31 -> 4.679351094 | F30: =+E30/D30-1 -> 0.03755013179
B31: Más de 10TM a 35TM | C31: Por Tonelada (PMD) | D31: =+'2.Tarifas'!F32 -> 5.04 | E31: =+'2.Tarifas'!N32 -> 5.229252664 | F31: 0.03755013179
B32: Más de 35TM a 70TM | C32: Por Tonelada (PMD) | D32: =+'2.Tarifas'!F33 -> 5.61 | E32: =+'2.Tarifas'!N33 -> 5.820656239 | F32: 0.03755013179
B33: Más de 70TM a 105TM | C33: Por Tonelada (PMD) | D33: =+'2.Tarifas'!F34 -> 6.17 | E33: =+'2.Tarifas'!N34 -> 6.401684313 | F33: 0.03755013179
B34: Más de 105TM | C34: Por Tonelada (PMD) | D34: =+'2.Tarifas'!F35 -> 6.76 | E34: =+'2.Tarifas'!N35 -> 7.013838891 | F34: 0.03755013179
B35: - Cargo mínimo: | C35: Por operación | D35: =+'2.Tarifas'!F36 -> 11.25 | E35: =+'2.Tarifas'!N36 -> 11.67243898 | F35: 0.03755013179
B37: D. Sobrevuelo
B38: (En dólares)
B39: - Por rango de PMD:
B40: Hasta 55TM | C40: Por kilómetro recorrido | D40: =+'2.Tarifas'!F41 -> 0.16 | E40: =+'2.Tarifas'!N41 -> 0.1193027368 | F40: =+E40/D40-1 -> -0.2543578951
B41: Más de 55TM a 115TM | C41: Por kilómetro recorrido | D41: =+'2.Tarifas'!F42 -> 0.26 | E41: =+'2.Tarifas'!N42 -> 0.1938669473 | F41: =+E41/D41-1 -> -0.2543578951
B42: Más de 115TM a 200TM | C42: Por kilómetro recorrido | D42: =+'2.Tarifas'!F43 -> 0.5 | E42: =+'2.Tarifas'!N43 -> 0.3728210524 | F42: =+E42/D42-1 -> -0.2543578951
B43: Más de 200TM | C43: Por kilómetro recorrido | D43: =+'2.Tarifas'!F44 -> 0.75 | E43: =+'2.Tarifas'!N44 -> 0.5592315786 | F43: =+E43/D43-1 -> -0.2543578951

Sheet 0.FC_SNAR-SV
B1: 0. Flujo de caja: Servicio de SNAR (Nacional e Internacional) y Sobrevuelo | J1: Índice
B2: Montos expresados en miles de Soles
B3: Año | E3: 2024 | F3: =+E3+1 -> 2025 | G3: 2026 | H3: =+G3+1 -> 2027 | I3: =+H3+1 -> 2028 | J3: =+I3+1 -> 2029
B5: Ingresos por prestación del servicio | F5: =+('3. Ingresos'!C8+'3. Ingresos'!C21+'3. Ingresos'!C46)/1000 -> 175171.7587 | G5: =+('3. Ingresos'!D8+'3. Ingresos'!D21+'3. Ingresos'!D46)/1000 -> 187433.7818 | H5: =+('3. Ingresos'!E8+'3. Ingresos'!E21+'3. Ingresos'!E46)/1000 -> 200554.1465 | I5: =+('3. Ingresos'!F8+'3. Ingresos'!F21+'3. Ingresos'!F46)/1000 -> 214592.9368 | J5: =+('3. Ingresos'!G8+'3. Ingresos'!G21+'3. Ingresos'!G46)/1000 -> 229614.4424
B7: Ingresos por Usuarios no atribuibles | F7: =('7. No atribuibles'!F59+'7. No atribuibles'!F60+'7. No atribuibles'!F62)/1000 -> 60.02707441 | G7: =('7. No atribuibles'!G59+'7. No atribuibles'!G60+'7. No atribuibles'!G62)/1000 -> 64.22896961 | H7: =('7. No atribuibles'!H59+'7. No atribuibles'!H60+'7. No atribuibles'!H62)/1000 -> 68.72499749 | I7: =('7. No atribuibles'!I59+'7. No atribuibles'!I60+'7. No atribuibles'!I62)/1000 -> 73.53574731 | J7: =('7. No atribuibles'!J59+'7. No atribuibles'!J60+'7. No atribuibles'!J62)/1000 -> 78.68324962
B8: Transferencias del AIJCh | F8: =+'8.Transferencias'!C106/1000 -> 26173.92372 | G8: =+'8.Transferencias'!D106/1000 -> 28341.69951 | H8: =+'8.Transferencias'!E106/1000 -> 30583.94909 | I8: =+'8.Transferencias'!F106/1000 -> 32983.15615 | J8: =+'8.Transferencias'!G106/1000 -> 35550.3077
B10: Ingreso Bruto total | F10: =F5+SUM(F7:F8) -> 201405.7095 | G10: =G5+SUM(G7:G8) -> 215839.7103 | H10: 231206.8206 | I10: 247649.6287 | J10: =J5+SUM(J7:J8) -> 265243.4333
B12: Pago al MTC | C12: 0.1 | F12: =-'6. Contribuciones'!D34/1000 -> -11931.98931 | G12: =-'6. Contribuciones'!E34/1000 -> -12800.78868 | H12: =-'6. Contribuciones'!F34/1000 -> -13722.67695 | I12: =-'6. Contribuciones'!G34/1000 -> -14709.0974 | J12: =-'6. Contribuciones'!H34/1000 -> -15764.56728
B13: Aporte por Regulación | C13: 0.01 | F13: =-SUM('6. Contribuciones'!D39,'6. Contribuciones'!D40,'6. Contribuciones'!D42)/1000 -> -2014.057095 | G13: =-SUM('6. Contribuciones'!E39,'6. Contribuciones'!E40,'6. Contribuciones'!E42)/1000 -> -2158.397103 | H13: =-SUM('6. Contribuciones'!F39,'6. Contribuciones'!F40,'6. Contribuciones'!F42)/1000 -> -2312.068206 | I13: =-SUM('6. Contribuciones'!G39,'6. Contribuciones'!G40,'6. Contribuciones'!G42)/1000 -> -2476.496287 | J13: =-SUM('6. Contribuciones'!H39,'6. Contribuciones'!H40,'6. Contribuciones'!H42)/1000 -> -2652.434333
B14: Contribuciones | F14: =SUM(F12:F13) -> -13946.04641 | G14: -14959.18578 | H14: -16034.74516 | I14: -17185.59368 | J14: -18417.00161
B16: Ingresos Netos | F16: =F10+F14 -> 187459.6631 | G16: 200880.5245 | H16: 215172.0755 | I16: 230464.035 | J16: 246826.4317
B18: Suministros y Materiales | F18: =-('4. OPEX'!E56+'4. OPEX'!E66+'4. OPEX'!E86)/1000 -> -5022.257198 | G18: =-('4. OPEX'!F56+'4. OPEX'!F66+'4. OPEX'!F86)/1000 -> -5122.702342 | H18: =-('4. OPEX'!G56+'4. OPEX'!G66+'4. OPEX'!G86)/1000 -> -5225.156389 | I18: =-('4. OPEX'!H56+'4. OPEX'!H66+'4. OPEX'!H86)/1000 -> -5329.659516 | J18: =-('4. OPEX'!I56+'4. OPEX'!I66+'4. OPEX'!I86)/1000 -> -5436.252707
B19: Gastos de Personal | F19: =-('4. OPEX'!E57+'4. OPEX'!E67+'4. OPEX'!E87)/1000 -> -122120.338 | G19: =-('4. OPEX'!F57+'4. OPEX'!F67+'4. OPEX'!F87)/1000 -> -124562.7448 | H19: =-('4. OPEX'!G57+'4. OPEX'!G67+'4. OPEX'!G87)/1000 -> -127053.9997 | I19: =-('4. OPEX'!H57+'4. OPEX'!H67+'4. OPEX'!H87)/1000 -> -129595.0797 | J19: =-('4. OPEX'!I57+'4. OPEX'!I67+'4. OPEX'!I87)/1000 -> -132186.9813
B20: Participación de los trabajadores | F20: =-F50 -> 0 | G20: -371.0996272 | H20: -974.9604643 | I20: -1631.289338 | J20: -2249.562372
B21: Servicios prestados por terceros | F21: =-('4. OPEX'!E58+'4. OPEX'!E68+'4. OPEX'!E88)/1000 -> -26453.16105 | G21: =-('4. OPEX'!F58+'4. OPEX'!F68+'4. OPEX'!F88)/1000 -> -26453.16105 | H21: =-('4. OPEX'!G58+'4. OPEX'!G68+'4. OPEX'!G88)/1000 -> -26453.16105 | I21: =-('4. OPEX'!H58+'4. OPEX'!H68+'4. OPEX'!H88)/1000 -> -26453.16105 | J21: =-('4. OPEX'!I58+'4. OPEX'!I68+'4. OPEX'!I88)/1000 -> -26453.16105
B22: Mantenimiento | F22: =-('4. OPEX'!E59+'4. OPEX'!E69+'4. OPEX'!E89)/1000 -> -4458.766735 | G22: =-('4. OPEX'!F59+'4. OPEX'!F69+'4. OPEX'!F89)/1000 -> -4547.94207 | H22: =-('4. OPEX'!G59+'4. OPEX'!G69+'4. OPEX'!G89)/1000 -> -4638.900911 | I22: =-('4. OPEX'!H59+'4. OPEX'!H69+'4. OPEX'!H89)/1000 -> -4731.678929 | J22: =-('4. OPEX'!I59+'4. OPEX'!I69+'4. OPEX'!I89)/1000 -> -4826.312508
B23: Seguros y tributos | F23: =-('4. OPEX'!E60+'4. OPEX'!E70+'4. OPEX'!E90)/1000 -> -5195.770079 | G23: =-('4. OPEX'!F60+'4. OPEX'!F70+'4. OPEX'!F90)/1000 -> -5299.685481 | H23: =-('4. OPEX'!G60+'4. OPEX'!G70+'4. OPEX'!G90)/1000 -> -5405.67919 | I23: =-('4. OPEX'!H60+'4. OPEX'!H70+'4. OPEX'!H90)/1000 -> -5513.792774 | J23: =-('4. OPEX'!I60+'4. OPEX'!I70+'4. OPEX'!I90)/1000 -> -5624.06863
B24: Otros Costos | F24: =-('4. OPEX'!E61+'4. OPEX'!E71+'4. OPEX'!E91)/1000 -> -4211.77061 | G24: =-('4. OPEX'!F61+'4. OPEX'!F71+'4. OPEX'!F91)/1000 -> -4296.006022 | H24: =-('4. OPEX'!G61+'4. OPEX'!G71+'4. OPEX'!G91)/1000 -> -4381.926143 | I24: =-('4. OPEX'!H61+'4. OPEX'!H71+'4. OPEX'!H91)/1000 -> -4469.564666 | J24: =-('4. OPEX'!I61+'4. OPEX'!I71+'4. OPEX'!I91)/1000 -> -4558.955959
B25: Costos incrementales | F25: =-('4. OPEX'!E62+'4. OPEX'!E72+'4. OPEX'!E92)/1000 -> -1104.942771 | G25: =-('4. OPEX'!F62+'4. OPEX'!F72+'4. OPEX'!F92)/1000 -> -1185.570085 | H25: =-('4. OPEX'!G62+'4. OPEX'!G72+'4. OPEX'!G92)/1000 -> -1185.633649 | I25: =-('4. OPEX'!H62+'4. OPEX'!H72+'4. OPEX'!H92)/1000 -> -1655.900826 | J25: =-('4. OPEX'!I62+'4. OPEX'!I72+'4. OPEX'!I92)/1000 -> -1761.431881
B26: Costo de operación (Usuarios no atribuibles) | F26: =-('7. No atribuibles'!E77+'7. No atribuibles'!E78+'7. No atribuibles'!E80)/1000 -> -155.7166659 | G26: =-('7. No atribuibles'!F77+'7. No atribuibles'!F78+'7. No atribuibles'!F80)/1000 -> -158.3171486 | H26: =-('7. No atribuibles'!G77+'7. No atribuibles'!G78+'7. No atribuibles'!G80)/1000 -> -160.8864602 | I26: =-('7. No atribuibles'!H77+'7. No atribuibles'!H78+'7. No atribuibles'!H80)/1000 -> -163.9831059 | J26: =-('7. No atribuibles'!I77+'7. No atribuibles'!I78+'7. No atribuibles'!I80)/1000 -> -166.762971
B27: Total Costos de Operación | F27: =SUM(F18:F26) -> -168722.7231 | G27: =SUM(G18:G26) -> -171997.2286 | H27: =SUM(H18:H26) -> -175480.3039 | I27: =SUM(I18:I26) -> -179544.1099 | J27: =SUM(J18:J26) -> -183263.4893
B29: Pago de IR | F29: =-F51 -> 0 | G29: -2080.01341 | H29: -5464.653402 | I29: -9143.376738 | J29: -12608.79709
B31: Flujo de Caja Operativo | E31: =E16+E27+E29 -> 0 | F31: 18736.93995 | G31: 26803.28248 | H31: 34227.11813 | I31: 41776.54839 | J31: 50954.14527
B33: Valor inicial de los activos | E33: =-SUM('5. CAPEX'!D58+'5. CAPEX'!D75+'5. CAPEX'!D109)+'5.6 CKF_SNAR_SV'!G246/1000 -> -183990.518
B34: Inversiones | F34: =-SUM('5. CAPEX'!E59+'5. CAPEX'!E76+'5. CAPEX'!E110) -> -14606.80206 | G34: =-SUM('5. CAPEX'!F59+'5. CAPEX'!F76+'5. CAPEX'!F110) -> -24460.24782 | H34: =-SUM('5. CAPEX'!G59+'5. CAPEX'!G76+'5. CAPEX'!G110) -> -30610.54528 | I34: =-SUM('5. CAPEX'!H59+'5. CAPEX'!H76+'5. CAPEX'!H110) -> -48909.55235 | J34: =-SUM('5. CAPEX'!I59+'5. CAPEX'!I76+'5. CAPEX'!I110) -> -35661.62896
B35: Recuperación de la inversión | J35: =+'5. CAPEX'!I60+'5. CAPEX'!I77+'5. CAPEX'!I111 -> 237435.0604
B37: Flujo de Caja Económico | E37: =SUM(E31,E33:E35) -> -183990.518 | F37: =SUM(F31,F33:F35) -> 4130.13789 | G37: =SUM(G31,G33:G35) -> 2343.034663 | H37: =SUM(H31,H33:H35) -> 3616.572847 | I37: -7133.003965 | J37: 252727.5767
B39: WACC | C39: =+'9. WACC'!C18 -> 0.06954398755
B40: VAN | C40: =NPV(C39,F37:J37)+E37 -> 0
B42: EGyP | F42: 2025 | G42: =+F42+1 -> 2026 | H42: =+G42+1 -> 2027 | I42: =+H42+1 -> 2028 | J42: =+I42+1 -> 2029
B43: Ingresos Brutos | F43: =F10 -> 201405.7095 | G43: =G10 -> 215839.7103 | H43: =H10 -> 231206.8206 | I43: =I10 -> 247649.6287 | J43: =J10 -> 265243.4333
B44: Contribuciones | F44: =F14 -> -13946.04641 | G44: =G14 -> -14959.18578 | H44: =H14 -> -16034.74516 | I44: =I14 -> -17185.59368 | J44: =J14 -> -18417.00161
B45: Costos de operación, neto de participaciones | F45: =SUM(F18:F19,F21:F26) -> -168722.7231 | G45: =SUM(G18:G19,G21:G26) -> -171626.129 | H45: =SUM(H18:H19,H21:H26) -> -174505.3435 | I45: =SUM(I18:I19,I21:I26) -> -177912.8205 | J45: =SUM(J18:J19,J21:J26) -> -181013.927
B46: Depreciación y Amortización | F46: =-SUM('5. CAPEX'!E28+'5. CAPEX'!E29+'5. CAPEX'!E31+'5. CAPEX'!E37+'5. CAPEX'!E38+'5. CAPEX'!E40) -> -20788.50592 | G46: =-SUM('5. CAPEX'!F28+'5. CAPEX'!F29+'5. CAPEX'!F31+'5. CAPEX'!F37+'5. CAPEX'!F38+'5. CAPEX'!F40) -> -21832.40297 | H46: =-SUM('5. CAPEX'!G28+'5. CAPEX'!G29+'5. CAPEX'!G31+'5. CAPEX'!G37+'5. CAPEX'!G38+'5. CAPEX'!G40) -> -21167.52271 | I46: =-SUM('5. CAPEX'!H28+'5. CAPEX'!H29+'5. CAPEX'!H31+'5. CAPEX'!H37+'5. CAPEX'!H38+'5. CAPEX'!H40) -> -19925.42771 | J46: =-SUM('5. CAPEX'!I28+'5. CAPEX'!I29+'5. CAPEX'!I31+'5. CAPEX'!I37+'5. CAPEX'!I38+'5. CAPEX'!I40) -> -20821.2573
B47: Utilidad Operativa | F47: =SUM(F43:F46) -> -2051.565973 | G47: 7421.992544 | H47: 19499.20929 | I47: 32625.78675 | J47: 44991.24743
B49: Pago de IR y Participación de los trabajadores
B50: Participación de los trabajadores | F50: =+'10. Var-Sup-Gen'!L15*IF(F47<0,0,F47) -> 0 | G50: =+'10. Var-Sup-Gen'!M15*IF(G47<0,0,G47) -> 371.0996272 | H50: =+'10. Var-Sup-Gen'!N15*IF(H47<0,0,H47) -> 974.9604643 | I50: =+'10. Var-Sup-Gen'!O15*IF(I47<0,0,I47) -> 1631.289338 | J50: =+'10. Var-Sup-Gen'!P15*IF(J47<0,0,J47) -> 2249.562372
B51: Impuesto a la renta | F51: ='10. Var-Sup-Gen'!L14*IF(F47-F50<0,0,F47-F50) -> 0 | G51: ='10. Var-Sup-Gen'!M14*IF(G47-G50<0,0,G47-G50) -> 2080.01341 | H51: ='10. Var-Sup-Gen'!N14*IF(H47-H50<0,0,H47-H50) -> 5464.653402 | I51: ='10. Var-Sup-Gen'!O14*IF(I47-I50<0,0,I47-I50) -> 9143.376738 | J51: ='10. Var-Sup-Gen'!P14*IF(J47-J50<0,0,J47-J50) -> 12608.79709

Sheet 0.FC_Aprox
B1: 0. Flujo de caja: Servicio de Aproximación | J1: Índice
B2: Montos expresados en miles de soles
B3: Año | E3: 2024 | F3: 2025 | G3: 2026 | H3: 2027 | I3: 2028 | J3: 2029
B5: Ingresos por prestación del servicio | F5: =+'3. Ingresos'!C34/1000 -> 28231.35381 | G5: =+'3. Ingresos'!D34/1000 -> 30207.54858 | H5: =+'3. Ingresos'!E34/1000 -> 32322.07698 | I5: =+'3. Ingresos'!F34/1000 -> 34584.62237 | J5: =+'3. Ingresos'!G34/1000 -> 37005.54594
B7: Ingresos por Usuarios no atribuibles | F7: =+'7. No atribuibles'!F61/1000 -> 22.50816124 | G7: =+'7. No atribuibles'!G61/1000 -> 24.08373253 | H7: =+'7. No atribuibles'!H61/1000 -> 25.76959381 | I7: =+'7. No atribuibles'!I61/1000 -> 27.57346537 | J7: =+'7. No atribuibles'!J61/1000 -> 29.50360795
B8: Transferencias del AIJCh | F8: =+'8.Transferencias'!C108/1000 -> 68554.17242 | G8: =+'8.Transferencias'!D108/1000 -> 74231.96367 | H8: =+'8.Transferencias'!E108/1000 -> 80104.81508 | I8: =+'8.Transferencias'!F108/1000 -> 86388.76608 | J8: =+'8.Transferencias'!G108/1000 -> 93112.59365
B10: Ingreso Bruto total | F10: =F5+SUM(F7:F8) -> 96808.0344 | G10: 104463.596 | H10: 112452.6617 | I10: 121000.9619 | J10: 130147.6432
B12: Aporte por Regulación | C12: 0.01 | F12: =-'6. Contribuciones'!D41/1000 -> -968.080344 | G12: =-'6. Contribuciones'!E41/1000 -> -1044.63596 | H12: =-'6. Contribuciones'!F41/1000 -> -1124.526617 | I12: =-'6. Contribuciones'!G41/1000 -> -1210.009619 | J12: =-'6. Contribuciones'!H41/1000 -> -1301.476432
B13: Contribuciones | F13: =SUM(F12:F12) -> -968.080344 | G13: -1044.63596 | H13: -1124.526617 | I13: -1210.009619 | J13: -1301.476432
B15: Ingresos Netos | F15: =F10+F13 -> 95839.95405 | G15: 103418.96 | H15: 111328.135 | I15: 119790.9523 | J15: 128846.1668
B17: Suministros y Materiales | F17: =-'4. OPEX'!E76/1000 -> -2310.229768 | G17: =-'4. OPEX'!F76/1000 -> -2356.434364 | H17: =-'4. OPEX'!G76/1000 -> -2403.563051 | I17: =-'4. OPEX'!H76/1000 -> -2451.634312 | J17: =-'4. OPEX'!I76/1000 -> -2500.666998
B18: Gastos de Personal | F18: =-'4. OPEX'!E77/1000 -> -52727.23945 | G18: =-'4. OPEX'!F77/1000 -> -53781.78424 | H18: =-'4. OPEX'!G77/1000 -> -54857.41992 | I18: =-'4. OPEX'!H77/1000 -> -55954.56832 | J18: =-'4. OPEX'!I77/1000 -> -57073.65969
B19: Participación de los trabajadores | F19: =-F49 -> -252.4882488 | G19: -335.2268498 | H19: -678.0209989 | I19: -1037.674302 | J19: -1350.311322
B20: Servicios prestados por terceros | F20: =-'4. OPEX'!E78/1000 -> -13982.44936 | G20: =-'4. OPEX'!F78/1000 -> -13982.44936 | H20: =-'4. OPEX'!G78/1000 -> -13982.44936 | I20: =-'4. OPEX'!H78/1000 -> -13982.44936 | J20: =-'4. OPEX'!I78/1000 -> -13982.44936
B21: Mantenimiento | F21: =-'4. OPEX'!E79/1000 -> -2119.639467 | G21: =-'4. OPEX'!F79/1000 -> -2162.032256 | H21: =-'4. OPEX'!G79/1000 -> -2205.272901 | I21: =-'4. OPEX'!H79/1000 -> -2249.378359 | J21: =-'4. OPEX'!I79/1000 -> -2294.365926
B22: Seguros y tributos | F22: =-'4. OPEX'!E80/1000 -> -2448.37725 | G22: =-'4. OPEX'!F80/1000 -> -2497.344795 | H22: =-'4. OPEX'!G80/1000 -> -2547.291691 | I22: =-'4. OPEX'!H80/1000 -> -2598.237524 | J22: =-'4. OPEX'!I80/1000 -> -2650.202275
B23: Otros Costos | F23: =-'4. OPEX'!E81/1000 -> -2153.456709 | G23: =-'4. OPEX'!F81/1000 -> -2196.525843 | H23: =-'4. OPEX'!G81/1000 -> -2240.45636 | I23: =-'4. OPEX'!H81/1000 -> -2285.265487 | J23: =-'4. OPEX'!I81/1000 -> -2330.970797
B24: Costos incrementales | F24: =-'4. OPEX'!E82/1000 -> -2208.730665 | G24: =-'4. OPEX'!F82/1000 -> -2250.362698 | H24: =-'4. OPEX'!G82/1000 -> -2250.571166 | I24: =-'4. OPEX'!H82/1000 -> -2492.556626 | J24: =-'4. OPEX'!I82/1000 -> -2546.999582
B25: Costo de operación (Usuarios no atribuibles) | F25: =-'7. No atribuibles'!E79/1000 -> -109.9785095 | G25: =-'7. No atribuibles'!F79/1000 -> -111.7799404 | H25: =-'7. No atribuibles'!G79/1000 -> -113.5577814 | I25: =-'7. No atribuibles'!H79/1000 -> -115.7122923 | J25: =-'7. No atribuibles'!I79/1000 -> -117.6384646
B26: Total Costos de Operación | F26: =SUM(F17:F25) -> -78312.58942 | G26: =SUM(G17:G25) -> -79673.94034 | H26: =SUM(H17:H25) -> -81278.60323 | I26: =SUM(I17:I25) -> -83167.47658 | J26: =SUM(J17:J25) -> -84847.26441
B28: Pago de IR | F28: =-F50 -> -1415.196635 | G28: -1878.946493 | H28: -3800.307699 | I28: -5816.164461 | J28: -7568.494958
B30: Flujo de Caja Operativo | E30: =E15+E26+E28 -> 0 | F30: 16112.168 | G30: 21866.07319 | H30: 26249.22411 | I30: 30807.31126 | J30: 36430.4074
B32: Valor inicial de los activos | E32: =-'5. CAPEX'!D92+'5.7.CKF_Aprox'!G183/1000 -> -110509.1194
B33: Inversiones | F33: =-SUM('5. CAPEX'!E93) -> -49008.73602 | G33: =-SUM('5. CAPEX'!F93) -> -16921.23966 | H33: =-SUM('5. CAPEX'!G93) -> -23699.39847 | I33: =-SUM('5. CAPEX'!H93) -> -38739.65118 | J33: =-SUM('5. CAPEX'!I93) -> -27413.04858
B34: Recuperación de la inversión | J34: =+'5. CAPEX'!I94 -> 188211.9162
B36: Flujo de Caja Económico | E36: =SUM(E30,E32:E34) -> -110509.1194 | F36: -32896.56803 | G36: 4944.83353 | H36: 2549.825643 | I36: -7932.339922 | J36: =SUM(J30,J32:J34) -> 197229.275
B38: WACC | C38: =+'9. WACC'!C18 -> 0.06954398755
B39: VAN | C39: =NPV(C38,F36:J36)+E36 -> 0
B41: EGyP | F41: 2025 | G41: 2026 | H41: 2027 | I41: 2028 | J41: 2029
B42: Ingresos Brutos | F42: =F10 -> 96808.0344 | G42: =G10 -> 104463.596 | H42: =H10 -> 112452.6617 | I42: =I10 -> 121000.9619 | J42: =J10 -> 130147.6432
B43: Contribuciones | F43: =F13 -> -968.080344 | G43: =G13 -> -1044.63596 | H43: =H13 -> -1124.526617 | I43: =I13 -> -1210.009619 | J43: =J13 -> -1301.476432
B44: Costos de operación, neto de participaciones | F44: =SUM(F17:F18,F20:F25) -> -78060.10117 | G44: =SUM(G17:G18,G20:G25) -> -79338.71349 | H44: =SUM(H17:H18,H20:H25) -> -80600.58223 | I44: =SUM(I17:I18,I20:I25) -> -82129.80228 | J44: =SUM(J17:J18,J20:J25) -> -83496.95309
B45: Depreciación y Amortización | F45: =-SUM('5. CAPEX'!E30+'5. CAPEX'!E39) -> -12730.0879 | G45: =-SUM('5. CAPEX'!F30+'5. CAPEX'!F39) -> -17375.70954 | H45: =-SUM('5. CAPEX'!G30+'5. CAPEX'!G39) -> -17167.13283 | I45: =-SUM('5. CAPEX'!H30+'5. CAPEX'!H39) -> -16907.66399 | J45: =-SUM('5. CAPEX'!I30+'5. CAPEX'!I39) -> -18342.98725
B46: Utilidad Operativa | F46: =SUM(F42:F45) -> 5049.764976 | G46: 6704.536996 | H46: 13560.41998 | I46: 20753.48603 | J46: 27006.22643
B48: Pago de IR y Participación de los trabajadores
B49: Participación de los trabajadores | F49: ='10. Var-Sup-Gen'!L15*IF(F46<0,0,F46) -> 252.4882488 | G49: ='10. Var-Sup-Gen'!M15*IF(G46<0,0,G46) -> 335.2268498 | H49: ='10. Var-Sup-Gen'!N15*IF(H46<0,0,H46) -> 678.0209989 | I49: ='10. Var-Sup-Gen'!O15*IF(I46<0,0,I46) -> 1037.674302 | J49: ='10. Var-Sup-Gen'!P15*IF(J46<0,0,J46) -> 1350.311322
B50: Impuesto a la renta | F50: ='10. Var-Sup-Gen'!L14*IF(F46-F49<0,0,F46-F49) -> 1415.196635 | G50: ='10. Var-Sup-Gen'!M14*IF(G46-G49<0,0,G46-G49) -> 1878.946493 | H50: ='10. Var-Sup-Gen'!N14*IF(H46-H49<0,0,H46-H49) -> 3800.307699 | I50: ='10. Var-Sup-Gen'!O14*IF(I46-I49<0,0,I46-I49) -> 5816.164461 | J50: ='10. Var-Sup-Gen'!P14*IF(J46-J49<0,0,J46-J49) -> 7568.494958

Sheet 1.Demanda
B1: 1. Proyecciones de demanda | O1: Índice
B3: Servicio / Peso Máximo de Despegue (PMD) | K3: Proyecciones
C4: 2017 | D4: =+C4+1 -> 2018 | E4: 2019 | F4: 2020 | G4: 2021 | H4: 2022 | I4: 2023 | J4: 2024 | K4: =+J4+1 -> 2025 | L4: =+K4+1 -> 2026 | M4: =+L4+1 -> 2027 | N4: =+M4+1 -> 2028 | O4: =+N4+1 -> 2029
B5: A. SNAR Nacional
B6: En Kilómetros recorridos
B8: Usuarios atribuibles | C8: =C10+C19 -> 75128319.21 | D8: 80835290.16 | E8: 86859755.46 | F8: 32977805.86 | G8: 52195747.65 | H8: 72343248.66 | I8: 77546915.46 | J8: =J10+J19 -> 85283448.87 | K8: 91253290.29 | L8: 97641020.61 | M8: 104475892.1 | N8: 111789204.5 | O8: 119614448.8
B10: 1. Por rango de PMD: | C10: =SUM(C11:C16) -> 74998878.17 | D10: 80473216.4 | E10: 86849565.34 | F10: 32856368.28 | G10: 51958127.61 | H10: 71955661.38 | I10: =SUM(I11:I16) -> 77284661.26 | J10: =SUM(J11:J16) -> 85017691.95 | K10: 90952041.05 | L10: 97318683.93 | M10: 104130991.8 | N10: 111420161.2 | O10: 119219572.5
B11: Hasta 5,7TM | C11: =+'1.1.SnarNac'!C8 -> 6939199.39 | D11: =+'1.1.SnarNac'!D8 -> 8508094.66 | E11: =+'1.1.SnarNac'!E8 -> 8030860.25 | F11: =+'1.1.SnarNac'!F8 -> 3764264.61 | G11: =+'1.1.SnarNac'!G8 -> 5206134.57 | H11: =+'1.1.SnarNac'!H8 -> 6433018.06 | I11: =+'1.1.SnarNac'!I8 -> 6097346.33 | J11: =+'1.1.SnarNac'!K8 -> 7256831.651 | K11: =+'1.1.SnarNac'!C50 -> 8630333.086 | L11: =+'1.1.SnarNac'!D50 -> 9234456.402 | M11: =+'1.1.SnarNac'!E50 -> 9880868.35 | N11: =+'1.1.SnarNac'!F50 -> 10572529.13 | O11: =+'1.1.SnarNac'!G50 -> 11312606.17
B12: Más de 5,7TM a 10TM | C12: =+'1.1.SnarNac'!C9 -> 1245673.92 | D12: =+'1.1.SnarNac'!D9 -> 1831020.14 | E12: =+'1.1.SnarNac'!E9 -> 2926524.77 | F12: =+'1.1.SnarNac'!F9 -> 1969449.46 | G12: =+'1.1.SnarNac'!G9 -> 2200070.67 | H12: =+'1.1.SnarNac'!H9 -> 1854168.69 | I12: =+'1.1.SnarNac'!I9 -> 2194309.3 | J12: =+'1.1.SnarNac'!K9 -> 2739203.967 | K12: =+'1.1.SnarNac'!C51 -> 2975322 | L12: =+'1.1.SnarNac'!D51 -> 3183594.54 | M12: =+'1.1.SnarNac'!E51 -> 3406446.158 | N12: =+'1.1.SnarNac'!F51 -> 3644897.389 | O12: =+'1.1.SnarNac'!G51 -> 3900040.206
B13: Más de 10TM a 35TM | C13: =+'1.1.SnarNac'!C10 -> 3715496.84 | D13: =+'1.1.SnarNac'!D10 -> 3337703.41 | E13: =+'1.1.SnarNac'!E10 -> 3403595.85 | F13: =+'1.1.SnarNac'!F10 -> 960343.17 | G13: =+'1.1.SnarNac'!G10 -> 2035358.31 | H13: =+'1.1.SnarNac'!H10 -> 2692476.45 | I13: =+'1.1.SnarNac'!I10 -> 2631699.27 | J13: =+'1.1.SnarNac'!K10 -> 2637633.578 | K13: =+'1.1.SnarNac'!C52 -> 3423468.429 | L13: =+'1.1.SnarNac'!D52 -> 3663111.219 | M13: =+'1.1.SnarNac'!E52 -> 3919529.004 | N13: =+'1.1.SnarNac'!F52 -> 4193896.034 | O13: =+'1.1.SnarNac'!G52 -> 4487468.756
B14: Más de 35TM a 70TM | C14: =+'1.1.SnarNac'!C11 -> 26323247.19 | D14: =+'1.1.SnarNac'!D11 -> 25384535.14 | E14: =+'1.1.SnarNac'!E11 -> 21563981.99 | F14: =+'1.1.SnarNac'!F11 -> 5441464.51 | G14: =+'1.1.SnarNac'!G11 -> 7394673.77 | H14: =+'1.1.SnarNac'!H11 -> 9313681.52 | I14: =+'1.1.SnarNac'!I11 -> 14618650.34 | J14: =+'1.1.SnarNac'!K11 -> 18454372.55 | K14: =+'1.1.SnarNac'!C53 -> 19995741.86 | L14: =+'1.1.SnarNac'!D53 -> 21395443.79 | M14: =+'1.1.SnarNac'!E53 -> 22893124.85 | N14: =+'1.1.SnarNac'!F53 -> 24495643.59 | O14: =+'1.1.SnarNac'!G53 -> 26210338.64
B15: Más de 70TM a 105TM | C15: =+'1.1.SnarNac'!C12 -> 36774553.35 | D15: =+'1.1.SnarNac'!D12 -> 41410605.13 | E15: =+'1.1.SnarNac'!E12 -> 50920249.78 | F15: =+'1.1.SnarNac'!F12 -> 20718475.22 | G15: =+'1.1.SnarNac'!G12 -> 35119196.68 | H15: =+'1.1.SnarNac'!H12 -> 51657841 | I15: =+'1.1.SnarNac'!I12 -> 51737824.25 | J15: =+'1.1.SnarNac'!K12 -> 53923654.34 | K15: =+'1.1.SnarNac'!C54 -> 55922691.93 | L15: =+'1.1.SnarNac'!D54 -> 59837280.36 | M15: =+'1.1.SnarNac'!E54 -> 64025889.99 | N15: =+'1.1.SnarNac'!F54 -> 68507702.29 | O15: =+'1.1.SnarNac'!G54 -> 73303241.45
B16: Más de 105TM | C16: =+'1.1.SnarNac'!C13 -> 707.48 | D16: =+'1.1.SnarNac'!D13 -> 1257.92 | E16: =+'1.1.SnarNac'!E13 -> 4352.7 | F16: =+'1.1.SnarNac'!F13 -> 2371.31 | G16: =+'1.1.SnarNac'!G13 -> 2693.61 | H16: =+'1.1.SnarNac'!H13 -> 4475.66 | I16: =+'1.1.SnarNac'!I13 -> 4831.77 | J16: =+'1.1.SnarNac'!K13 -> 5995.865455 | K16: =+'1.1.SnarNac'!C55 -> 4483.756758 | L16: =+'1.1.SnarNac'!D55 -> 4797.619731 | M16: =+'1.1.SnarNac'!E55 -> 5133.453112 | N16: =+'1.1.SnarNac'!F55 -> 5492.79483 | O16: =+'1.1.SnarNac'!G55 -> 5877.290468
B18: 2. Cargo mínimo:
B19: Kilómetros recorridos | C19: =+'1.1.SnarNac'!C14 -> 129441.04 | D19: =+'1.1.SnarNac'!D14 -> 362073.76 | E19: =+'1.1.SnarNac'!E14 -> 10190.12 | F19: =+'1.1.SnarNac'!F14 -> 121437.58 | G19: =+'1.1.SnarNac'!G14 -> 237620.04 | H19: =+'1.1.SnarNac'!H14 -> 387587.28 | I19: =+'1.1.SnarNac'!I14 -> 262254.2 | J19: =+'1.1.SnarNac'!K14 -> 265756.92 | K19: =+'1.1.SnarNac'!C56 -> 301249.2397 | L19: =+'1.1.SnarNac'!D56 -> 322336.6864 | M19: =+'1.1.SnarNac'!E56 -> 344900.2545 | N19: =+'1.1.SnarNac'!F56 -> 369043.2723 | O19: =+'1.1.SnarNac'!G56 -> 394876.3014
B20: N° Operaciones | C20: =+'1.1.SnarNac'!C39 -> 1177 | D20: =+'1.1.SnarNac'!D39 -> 3729 | E20: =+'1.1.SnarNac'!E39 -> 164 | F20: =+'1.1.SnarNac'!F39 -> 2030 | G20: =+'1.1.SnarNac'!G39 -> 3825 | H20: =+'1.1.SnarNac'!H39 -> 5293 | I20: =+'1.1.SnarNac'!I39 -> 3645 | J20: =+'1.1.SnarNac'!K39 -> 3692.727273 | K20: =IFERROR(J20*(K19/J19),0) -> 4185.897711 | L20: =IFERROR(K20*(L19/K19),0) -> 4478.910551 | M20: =IFERROR(L20*(M19/L19),0) -> 4792.43429 | N20: =IFERROR(M20*(N19/M19),0) -> 5127.90469 | O20: =IFERROR(N20*(O19/N19),0) -> 5486.858018
B22: B. SNAR Internacional
B23: En Kilómetros recorridos
B25: Usuarios atribuibles (KM) | C25: =C27+C36 -> 76765499.64 | D25: 80424520.97 | E25: 80707610.26 | F25: 24869238.11 | G25: 29618643.68 | H25: 52614327.15 | I25: 62714981.93 | J25: =J27+J36 -> 71175049.24 | K25: =K27+K36 -> 76157302.69 | L25: =L27+L36 -> 81488313.88 | M25: 87192495.85 | N25: 93295970.56 | O25: 99826688.5
B27: 1. Por rango de PMD: | C27: =SUM(C28:C33) -> 76737612.83 | D27: 80357152.08 | E27: 80617724.71 | F27: 24791413.34 | G27: 29547601.2 | H27: 52561087.65 | I27: 62707921.52 | J27: =SUM(J28:J33) -> 71079806.48 | K27: =SUM(K28:K33) -> 76059200.67 | L27: =SUM(L28:L33) -> 81383344.72 | M27: 87080178.85 | N27: 93175791.37 | O27: 99698096.77
B28: Hasta 5,7TM | C28: =+'1.2.SnarInter'!C8 -> 485407.28 | D28: =+'1.2.SnarInter'!D8 -> 378017.84 | E28: =+'1.2.SnarInter'!E8 -> 370572.65 | F28: =+'1.2.SnarInter'!F8 -> 230598.49 | G28: =+'1.2.SnarInter'!G8 -> 309126.13 | H28: =+'1.2.SnarInter'!H8 -> 399469.13 | I28: =+'1.2.SnarInter'!I8 -> 209421.22 | J28: =+'1.2.SnarInter'!K8 -> 237295.1782 | K28: =+'1.2.SnarInter'!C50 -> 472080.184 | L28: =+'1.2.SnarInter'!D50 -> 505125.7969 | M28: =+'1.2.SnarInter'!E50 -> 540484.6027 | N28: =+'1.2.SnarInter'!F50 -> 578318.5249 | O28: =+'1.2.SnarInter'!G50 -> 618800.8217
B29: Más de 5,7TM a 10TM | C29: =+'1.2.SnarInter'!C9 -> 615817.42 | D29: =+'1.2.SnarInter'!D9 -> 618794.82 | E29: =+'1.2.SnarInter'!E9 -> 689532.75 | F29: =+'1.2.SnarInter'!F9 -> 340332.44 | G29: =+'1.2.SnarInter'!G9 -> 691237.92 | H29: =+'1.2.SnarInter'!H9 -> 559189.05 | I29: =+'1.2.SnarInter'!I9 -> 520420.74 | J29: =+'1.2.SnarInter'!K9 -> 562808.2691 | K29: =+'1.2.SnarInter'!C51 -> 838836.6182 | L29: =+'1.2.SnarInter'!D51 -> 897555.1814 | M29: =+'1.2.SnarInter'!E51 -> 960384.0441 | N29: =+'1.2.SnarInter'!F51 -> 1027610.927 | O29: =+'1.2.SnarInter'!G51 -> 1099543.692
B30: Más de 10TM a 35TM | C30: =+'1.2.SnarInter'!C10 -> 1116701.69 | D30: =+'1.2.SnarInter'!D10 -> 1153058.11 | E30: =+'1.2.SnarInter'!E10 -> 1203435.4 | F30: =+'1.2.SnarInter'!F10 -> 371663.46 | G30: =+'1.2.SnarInter'!G10 -> 526865.73 | H30: =+'1.2.SnarInter'!H10 -> 762825.72 | I30: =+'1.2.SnarInter'!I10 -> 718937.41 | J30: =+'1.2.SnarInter'!K10 -> 697602.8182 | K30: =+'1.2.SnarInter'!C52 -> 1068976.033 | L30: =+'1.2.SnarInter'!D52 -> 1143804.355 | M30: =+'1.2.SnarInter'!E52 -> 1223870.66 | N30: =+'1.2.SnarInter'!F52 -> 1309541.606 | O30: =+'1.2.SnarInter'!G52 -> 1401209.519
B31: Más de 35TM a 70TM | C31: =+'1.2.SnarInter'!C11 -> 9122469.82 | D31: =+'1.2.SnarInter'!D11 -> 6029414.03 | E31: =+'1.2.SnarInter'!E11 -> 5793638.12 | F31: =+'1.2.SnarInter'!F11 -> 1885698.23 | G31: =+'1.2.SnarInter'!G11 -> 2912792.67 | H31: =+'1.2.SnarInter'!H11 -> 2758327.07 | I31: =+'1.2.SnarInter'!I11 -> 4876842.8 | J31: =+'1.2.SnarInter'!K11 -> 7439899.8 | K31: =+'1.2.SnarInter'!C53 -> 6420780.944 | L31: =+'1.2.SnarInter'!D53 -> 6870235.61 | M31: =+'1.2.SnarInter'!E53 -> 7351152.103 | N31: =+'1.2.SnarInter'!F53 -> 7865732.75 | O31: =+'1.2.SnarInter'!G53 -> 8416334.043
B32: Más de 70TM a 105TM | C32: =+'1.2.SnarInter'!C12 -> 42803624.45 | D32: =+'1.2.SnarInter'!D12 -> 49903206.61 | E32: =+'1.2.SnarInter'!E12 -> 50457353.21 | F32: =+'1.2.SnarInter'!F12 -> 12254787.1 | G32: =+'1.2.SnarInter'!G12 -> 13724697.82 | H32: =+'1.2.SnarInter'!H12 -> 35222887.96 | I32: =+'1.2.SnarInter'!I12 -> 41415712.81 | J32: =+'1.2.SnarInter'!K12 -> 47080369.61 | K32: =+'1.2.SnarInter'!C54 -> 45225349.82 | L32: =+'1.2.SnarInter'!D54 -> 48391124.3 | M32: =+'1.2.SnarInter'!E54 -> 51778503 | N32: =+'1.2.SnarInter'!F54 -> 55402998.21 | O32: =+'1.2.SnarInter'!G54 -> 59281208.09
B33: Más de 105TM | C33: =+'1.2.SnarInter'!C13 -> 22593592.17 | D33: =+'1.2.SnarInter'!D13 -> 22274660.67 | E33: =+'1.2.SnarInter'!E13 -> 22103192.58 | F33: =+'1.2.SnarInter'!F13 -> 9708333.62 | G33: =+'1.2.SnarInter'!G13 -> 11382880.93 | H33: =+'1.2.SnarInter'!H13 -> 12858388.72 | I33: =+'1.2.SnarInter'!I13 -> 14966586.54 | J33: =+'1.2.SnarInter'!K13 -> 15061830.8 | K33: =+'1.2.SnarInter'!C55 -> 22033177.08 | L33: =+'1.2.SnarInter'!D55 -> 23575499.47 | M33: =+'1.2.SnarInter'!E55 -> 25225784.44 | N33: =+'1.2.SnarInter'!F55 -> 26991589.35 | O33: =+'1.2.SnarInter'!G55 -> 28881000.6
B35: 2. Cargo mínimo:
B36: Kilómetros recorridos | C36: =+'1.2.SnarInter'!C14 -> 27886.81 | D36: =+'1.2.SnarInter'!D14 -> 67368.89 | E36: =+'1.2.SnarInter'!E14 -> 89885.55 | F36: =+'1.2.SnarInter'!F14 -> 77824.77 | G36: =+'1.2.SnarInter'!G14 -> 71042.48 | H36: =+'1.2.SnarInter'!H14 -> 53239.5 | I36: =+'1.2.SnarInter'!I14 -> 7060.41 | J36: =+'1.2.SnarInter'!K14 -> 95242.76727 | K36: =+'1.2.SnarInter'!C56 -> 98102.01747 | L36: =+'1.2.SnarInter'!D56 -> 104969.1587 | M36: =+'1.2.SnarInter'!E56 -> 112316.9998 | N36: =+'1.2.SnarInter'!F56 -> 120179.1898 | O36: =+'1.2.SnarInter'!G56 -> 128591.7331
B37: N° Operaciones | C37: =+'1.2.SnarInter'!C39 -> 474 | D37: =+'1.2.SnarInter'!D39 -> 956 | E37: =+'1.2.SnarInter'!E39 -> 1348 | F37: =+'1.2.SnarInter'!F39 -> 1051 | G37: =+'1.2.SnarInter'!G39 -> 1191 | H37: =+'1.2.SnarInter'!H39 -> 992 | I37: =+'1.2.SnarInter'!I39 -> 295 | J37: =+'1.2.SnarInter'!K39 -> 1102.909091 | K37: =IFERROR(J37*(K36/J36),0) -> 1136.019144 | L37: =IFERROR(K37*(L36/K36),0) -> 1215.540484 | M37: =IFERROR(L37*(M36/L36),0) -> 1300.628317 | N37: =IFERROR(M37*(N36/M36),0) -> 1391.6723 | O37: =IFERROR(N37*(O36/N36),0) -> 1489.089361
B39: C. Aproximación
B40: En Toneladas (PMD)
B42: Usuarios atribuibles (TM): | C42: =C44+C52 -> 3651843.52 | D42: 3965713.13 | E42: 4220184.13 | F42: 1538493.82 | G42: 2464258.42 | H42: 3523486.85 | I42: 3825343.02 | J42: =J44+J52 -> 4253163.251 | K42: =K44+K52 -> 4550884.678 | L42: =L44+L52 -> 4869446.606 | M42: 5210307.868 | N42: 5575029.419 | O42: 5965281.479
B44: 1. Por rango de PMD: | C44: =SUM(C45:C49) -> 3647244.13 | D44: 3959311.65 | E44: 4212495.73 | F44: 1533036.51 | G44: 2457841.78 | H44: 3518966.67 | I44: 3820199.05 | J44: =SUM(J45:J49) -> 4248211.756 | K44: =SUM(K45:K49) -> 4542557.513 | L44: =SUM(L45:L49) -> 4860536.539 | M44: 5200774.097 | N44: 5564828.283 | O44: 5954366.263
B45: Hasta 10TM | C45: =+'1.3.Aproximación'!C8 -> 66306.96 | D45: =+'1.3.Aproximación'!D8 -> 65464.57 | E45: =+'1.3.Aproximación'!E8 -> 64816.56 | F45: =+'1.3.Aproximación'!F8 -> 48547.29 | G45: =+'1.3.Aproximación'!G8 -> 69705.41 | H45: =+'1.3.Aproximación'!H8 -> 70666.76 | I45: =+'1.3.Aproximación'!I8 -> 62703.85 | J45: =+'1.3.Aproximación'!K8 -> 73284.86182 | K45: =+'1.3.Aproximación'!C47 -> 93033.38906 | L45: =+'1.3.Aproximación'!D47 -> 99545.72629 | M45: =+'1.3.Aproximación'!E47 -> 106513.9271 | N45: =+'1.3.Aproximación'!F47 -> 113969.902 | O45: =+'1.3.Aproximación'!G47 -> 121947.7952
B46: Más de 10TM a 35TM | C46: =+'1.3.Aproximación'!C9 -> 81510.94 | D46: =+'1.3.Aproximación'!D9 -> 74015.19 | E46: =+'1.3.Aproximación'!E9 -> 49962.25 | F46: =+'1.3.Aproximación'!F9 -> 14328.59 | G46: =+'1.3.Aproximación'!G9 -> 37157.66 | H46: =+'1.3.Aproximación'!H9 -> 58963.18 | I46: =+'1.3.Aproximación'!I9 -> 54960.65 | J46: =+'1.3.Aproximación'!K9 -> 50683.08 | K46: =+'1.3.Aproximación'!C48 -> 68396.13938 | L46: =+'1.3.Aproximación'!D48 -> 73183.86914 | M46: =+'1.3.Aproximación'!E48 -> 78306.73998 | N46: =+'1.3.Aproximación'!F48 -> 83788.21178 | O46: =+'1.3.Aproximación'!G48 -> 89653.3866
B47: Más de 35TM a 70TM | C47: =+'1.3.Aproximación'!C10 -> 1394281.98 | D47: =+'1.3.Aproximación'!D10 -> 1396165.82 | E47: =+'1.3.Aproximación'!E10 -> 1198967.94 | F47: =+'1.3.Aproximación'!F10 -> 334333.06 | G47: =+'1.3.Aproximación'!G10 -> 440702.69 | H47: =+'1.3.Aproximación'!H10 -> 563148.07 | I47: =+'1.3.Aproximación'!I10 -> 835786.94 | J47: =+'1.3.Aproximación'!K10 -> 1026842.825 | K47: =+'1.3.Aproximación'!C49 -> 1156981.963 | L47: =+'1.3.Aproximación'!D49 -> 1237970.7 | M47: =+'1.3.Aproximación'!E49 -> 1324628.649 | N47: =+'1.3.Aproximación'!F49 -> 1417352.655 | O47: =+'1.3.Aproximación'!G49 -> 1516567.341
B48: Más de 70TM a 105TM | C48: =+'1.3.Aproximación'!C11 -> 2103748.95 | D48: =+'1.3.Aproximación'!D11 -> 2420836.48 | E48: =+'1.3.Aproximación'!E11 -> 2897645.34 | F48: =+'1.3.Aproximación'!F11 -> 1135596.67 | G48: =+'1.3.Aproximación'!G11 -> 1909436.6 | H48: =+'1.3.Aproximación'!H11 -> 2825221.6 | I48: =+'1.3.Aproximación'!I11 -> 2860146.64 | J48: =+'1.3.Aproximación'!K11 -> 3094016.575 | K48: =+'1.3.Aproximación'!C50 -> 3221504.449 | L48: =+'1.3.Aproximación'!D50 -> 3447009.761 | M48: =+'1.3.Aproximación'!E50 -> 3688300.444 | N48: =+'1.3.Aproximación'!F50 -> 3946481.475 | O48: =+'1.3.Aproximación'!G50 -> 4222735.178
B49: Más de 105TM | C49: =+'1.3.Aproximación'!C12 -> 1395.3 | D49: =+'1.3.Aproximación'!D12 -> 2829.59 | E49: =+'1.3.Aproximación'!E12 -> 1103.64 | F49: =+'1.3.Aproximación'!F12 -> 230.9 | G49: =+'1.3.Aproximación'!G12 -> 839.42 | H49: =+'1.3.Aproximación'!H12 -> 967.06 | I49: =+'1.3.Aproximación'!I12 -> 6600.97 | J49: =+'1.3.Aproximación'!K12 -> 3384.414545 | K49: =+'1.3.Aproximación'!C51 -> 2641.572219 | L49: =+'1.3.Aproximación'!D51 -> 2826.482275 | M49: =+'1.3.Aproximación'!E51 -> 3024.336034 | N49: =+'1.3.Aproximación'!F51 -> 3236.039556 | O49: =+'1.3.Aproximación'!G51 -> 3462.562325
B51: 2. Cargo mínimo:
B52: Toneladas (PMD) | C52: =+'1.3.Aproximación'!C13 -> 4599.39 | D52: =+'1.3.Aproximación'!D13 -> 6401.48 | E52: =+'1.3.Aproximación'!E13 -> 7688.4 | F52: =+'1.3.Aproximación'!F13 -> 5457.31 | G52: =+'1.3.Aproximación'!G13 -> 6416.64 | H52: =+'1.3.Aproximación'!H13 -> 4520.18 | I52: =+'1.3.Aproximación'!I13 -> 5143.97 | J52: =+'1.3.Aproximación'!K13 -> 4951.494545 | K52: =+'1.3.Aproximación'!C52 -> 8327.165423 | L52: =+'1.3.Aproximación'!D52 -> 8910.067003 | M52: =+'1.3.Aproximación'!E52 -> 9533.771693 | N52: =+'1.3.Aproximación'!F52 -> 10201.13571 | O52: =+'1.3.Aproximación'!G52 -> 10915.21521
B53: N° Operaciones | C53: =+'1.3.Aproximación'!C36 -> 2891 | D53: =+'1.3.Aproximación'!D36 -> 4034 | E53: =+'1.3.Aproximación'!E36 -> 4778 | F53: =+'1.3.Aproximación'!F36 -> 3423 | G53: =+'1.3.Aproximación'!G36 -> 4058 | H53: =+'1.3.Aproximación'!H36 -> 2914 | I53: =+'1.3.Aproximación'!I36 -> 3238 | J53: =+'1.3.Aproximación'!K36 -> 3177.818182 | K53: =IFERROR(J53*(K52/J52),0) -> 5344.28897 | L53: =IFERROR(K53*(L52/K52),0) -> 5718.389198 | M53: =IFERROR(L53*(M52/L52),0) -> 6118.676442 | N53: =IFERROR(M53*(N52/M52),0) -> 6546.983793 | O53: =IFERROR(N53*(O52/N52),0) -> 7005.272658
B55: D. Sobrevuelo
B56: En Kilómetros recorridos
B58: Usuarios atribuibles (KM): | C58: =C60 -> 44112792.8 | D58: 45840674.03 | E58: 45342728.73 | F58: 23258811.94 | G58: 28747071.59 | H58: 45949073.68 | I58: 48077097.17 | J58: =J60 -> 51535469.61 | K58: =K60 -> 55142952.48 | L58: =L60 -> 59002959.15 | M58: 63133166.29 | N58: 67552487.93 | O58: 72281162.09
B60: 1. Por rango de PMD: | C60: =SUM(C61:C64) -> 44112792.8 | D60: 45840674.03 | E60: 45342728.73 | F60: 23258811.94 | G60: 28747071.59 | H60: 45949073.68 | I60: 48077097.17 | J60: =SUM(J61:J64) -> 51535469.61 | K60: =SUM(K61:K64) -> 55142952.48 | L60: =SUM(L61:L64) -> 59002959.15 | M60: 63133166.29 | N60: 67552487.93 | O60: 72281162.09
B61: Hasta 55TM | C61: =+'1.4.Sobrevuelo'!C8 -> 1760455.98 | D61: =+'1.4.Sobrevuelo'!D8 -> 1911435.67 | E61: =+'1.4.Sobrevuelo'!E8 -> 1720224.35 | F61: =+'1.4.Sobrevuelo'!F8 -> 1198678.62 | G61: =+'1.4.Sobrevuelo'!G8 -> 1877258.96 | H61: =+'1.4.Sobrevuelo'!H8 -> 2042073.56 | I61: =+'1.4.Sobrevuelo'!I8 -> 2013341.47 | J61: =+'1.4.Sobrevuelo'!K8 -> 1951904.771 | K61: =+'1.4.Sobrevuelo'!C41 -> 2485411.987 | L61: =+'1.4.Sobrevuelo'!D41 -> 2659390.826 | M61: =+'1.4.Sobrevuelo'!E41 -> 2845548.184 | N61: =+'1.4.Sobrevuelo'!F41 -> 3044736.557 | O61: =+'1.4.Sobrevuelo'!G41 -> 3257868.116
B62: Más de 55TM a 115TM | C62: =+'1.4.Sobrevuelo'!C9 -> 15802264.12 | D62: =+'1.4.Sobrevuelo'!D9 -> 16906620.63 | E62: =+'1.4.Sobrevuelo'!E9 -> 15901396.1 | F62: =+'1.4.Sobrevuelo'!F9 -> 5252411.84 | G62: =+'1.4.Sobrevuelo'!G9 -> 7073044.82 | H62: =+'1.4.Sobrevuelo'!H9 -> 19029202.13 | I62: =+'1.4.Sobrevuelo'!I9 -> 19892484.38 | J62: =+'1.4.Sobrevuelo'!K9 -> 22929408.22 | K62: =+'1.4.Sobrevuelo'!C42 -> 19454588.77 | L62: =+'1.4.Sobrevuelo'!D42 -> 20816409.99 | M62: =+'1.4.Sobrevuelo'!E42 -> 22273558.68 | N62: =+'1.4.Sobrevuelo'!F42 -> 23832707.79 | O62: =+'1.4.Sobrevuelo'!G42 -> 25500997.34
B63: Más de 115TM a 200TM | C63: =+'1.4.Sobrevuelo'!C10 -> 3938980.86 | D63: =+'1.4.Sobrevuelo'!D10 -> 4527278.58 | E63: =+'1.4.Sobrevuelo'!E10 -> 4167078.07 | F63: =+'1.4.Sobrevuelo'!F10 -> 2400663.64 | G63: =+'1.4.Sobrevuelo'!G10 -> 3334285.46 | H63: =+'1.4.Sobrevuelo'!H10 -> 4463542.1 | I63: =+'1.4.Sobrevuelo'!I10 -> 4204315.91 | J63: =+'1.4.Sobrevuelo'!K10 -> 4308219.305 | K63: =+'1.4.Sobrevuelo'!C43 -> 5289217.124 | L63: =+'1.4.Sobrevuelo'!D43 -> 5659462.322 | M63: =+'1.4.Sobrevuelo'!E43 -> 6055624.685 | N63: =+'1.4.Sobrevuelo'!F43 -> 6479518.413 | O63: =+'1.4.Sobrevuelo'!G43 -> 6933084.702
B64: Más de 200TM | C64: =+'1.4.Sobrevuelo'!C11 -> 22611091.84 | D64: =+'1.4.Sobrevuelo'!D11 -> 22495339.15 | E64: =+'1.4.Sobrevuelo'!E11 -> 23554030.21 | F64: =+'1.4.Sobrevuelo'!F11 -> 14407057.84 | G64: =+'1.4.Sobrevuelo'!G11 -> 16462482.35 | H64: =+'1.4.Sobrevuelo'!H11 -> 20414255.89 | I64: =+'1.4.Sobrevuelo'!I11 -> 21966955.41 | J64: =+'1.4.Sobrevuelo'!K11 -> 22345937.31 | K64: =+'1.4.Sobrevuelo'!C44 -> 27913734.6 | L64: =+'1.4.Sobrevuelo'!D44 -> 29867696.02 | M64: =+'1.4.Sobrevuelo'!E44 -> 31958434.74 | N64: =+'1.4.Sobrevuelo'!F44 -> 34195525.17 | O64: =+'1.4.Sobrevuelo'!G44 -> 36589211.94

Sheet 1.1.SnarNac
B1: 1.1 SNAR NACIONAL - Información de demanda | K1: Índice
B3: 1. Información histórica: Expresada en kilómetros recorridos facturados (Fuente: CORPAC S.A.)
B5: 1.1 Por tipo de usuario / Rango de PMD:
C6: 2017 | D6: 2018 | E6: 2019 | F6: 2020 | G6: 2021 | H6: 2022 | I6: 2023 | J6: A Nov-2024 | K6: 2024*
B7: A. Usuarios atribuibles: | C7: =SUM(C8:C14) -> 75128319.21 | D7: 80835290.16 | E7: 86859755.46 | F7: 32977805.86 | G7: 52195747.65 | H7: 72343248.66 | I7: 77546915.46 | J7: 78176494.8 | K7: =SUM(K8:K14) -> 85283448.87
B8: (>0-5,7) | C8: 6939199.39 | D8: 8508094.66 | E8: 8030860.25 | F8: 3764264.61 | G8: 5206134.57 | H8: 6433018.06 | I8: 6097346.33 | J8: 6652095.68 | K8: =+J8/11*12 -> 7256831.651
B9: (>5,7-10) | C9: 1245673.92 | D9: 1831020.14 | E9: 2926524.77 | F9: 1969449.46 | G9: 2200070.67 | H9: 1854168.69 | I9: 2194309.3 | J9: 2510936.97 | K9: =+J9/11*12 -> 2739203.967
B10: (>10-35) | C10: 3715496.84 | D10: 3337703.41 | E10: 3403595.85 | F10: 960343.17 | G10: 2035358.31 | H10: 2692476.45 | I10: 2631699.27 | J10: 2417830.78 | K10: 2637633.578
B11: (>35-70) | C11: 26323247.19 | D11: 25384535.14 | E11: 21563981.99 | F11: 5441464.51 | G11: 7394673.77 | H11: 9313681.52 | I11: 14618650.34 | J11: 16916508.17 | K11: 18454372.55
B12: (>70-105) | C12: 36774553.35 | D12: 41410605.13 | E12: 50920249.78 | F12: 20718475.22 | G12: 35119196.68 | H12: 51657841 | I12: 51737824.25 | J12: 49430016.48 | K12: 53923654.34
B13: (>105) | C13: 707.48 | D13: 1257.92 | E13: 4352.7 | F13: 2371.31 | G13: 2693.61 | H13: 4475.66 | I13: 4831.77 | J13: 5496.21 | K13: 5995.865455
B14: Cargo mínimo | C14: 129441.04 | D14: 362073.76 | E14: 10190.12 | F14: 121437.58 | G14: 237620.04 | H14: 387587.28 | I14: 262254.2 | J14: 243610.51 | K14: 265756.92
B15: B. Otros usuarios: | C15: =SUM(C16) -> 4637591.19 | D15: 3887712.14 | E15: 787330.93 | F15: 5722267 | G15: 4266231.23 | H15: 4043404.08 | I15: 2797222.41 | J15: 1865661.97 | K15: 2035267.604
B16: Tarifa de USD 1 | C16: 4637591.19 | D16: 3887712.14 | E16: 787330.93 | F16: 5722267 | G16: 4266231.23 | H16: 4043404.08 | I16: 2797222.41 | J16: 1865661.97 | K16: 2035267.604
B17: Total | C17: =C7+C15 -> 79765910.4 | D17: 84723002.3 | E17: 87647086.39 | F17: 38700072.86 | G17: 56461978.88 | H17: 76386652.74 | I17: 80344137.87 | J17: 80042156.77 | K17: =K7+K15 -> 87318716.48
B19: Participación % | C19: 2017 | D19: 2018 | E19: 2019 | F19: 2020 | G19: 2021 | H19: 2022 | I19: 2023 | J19: 2024* | K19: Prom 2017-2024
B20: A. Atribuibles: | C20: =C7/C$17 -> 0.9418599855 | D20: 0.9541126727 | E20: 0.9910170325 | F20: 0.852138082 | G20: 0.9244406357 | H20: =H7/H$17 -> 0.9470666152 | I20: 0.9651844866 | J20: =K7/K$17 -> 0.976691508 | K20: =AVERAGE(C20:J20) -> 0.9440638773
B21: (>0-5,7) | C21: =C8/C$7 -> 0.09236462978 | D21: 0.1052522313 | E21: 0.09245778102 | F21: 0.114145393 | G21: 0.09974250402 | H21: =H8/H$7 -> 0.08892354406 | I21: 0.07862783831 | J21: =K8/K$7 -> 0.08509073855 | K21: =AVERAGE(C21:J21) -> 0.09457558251
B22: (>5,7-10) | C22: 0.01658061744 | D22: 0.0226512472 | E22: 0.03369252831 | F22: 0.05972045164 | G22: 0.04215038138 | H22: =H9/H$7 -> 0.02563015519 | I22: 0.02829653877 | J22: =K9/K$7 -> 0.03211882263 | K22: 0.03260509282
B23: (>10-35) | C23: 0.04945534359 | D23: 0.04129017665 | E23: 0.03918495777 | F23: 0.02912089343 | G23: 0.03899471512 | H23: =H10/H$7 -> 0.03721807494 | I23: 0.03393686589 | J23: 0.0309278484 | K23: 0.03751610947
B24: (>35-70) | C24: 0.3503771609 | D24: 0.3140278842 | E24: 0.2482620619 | F24: 0.1650038372 | G24: 0.141671958 | H24: =H11/H$7 -> 0.1287429262 | I24: 0.1885136276 | J24: 0.2163886756 | K24: 0.2191235165
B25: (>70-105) | C25: 0.4894898986 | D25: 0.5122837445 | E25: 0.5862352422 | F25: 0.6282551152 | G25: 0.6728363566 | H25: =H12/H$7 -> 0.7140658176 | I25: 0.6671809439 | J25: 0.6322874491 | K25: 0.612829321
B26: (>105) | C26: 9.416954984e-06 | D26: 1.556152019e-05 | E26: 5.011181504e-05 | F26: 7.190623931e-05 | G26: 5.160592809e-05 | H26: =H13/H$7 -> 6.186700325e-05 | I26: 6.230770072e-05 | J26: 7.030514753e-05 | K26: 4.913528864e-05
B27: Cargo mínimo | C27: 0.001722932728 | D27: 0.004479154578 | E27: 0.0001173169317 | F27: 0.003682403266 | G27: 0.004552478903 | H27: =H14/H$7 -> 0.005357615081 | I27: 0.003381877905 | J27: =K14/K$7 -> 0.003116160562 | K27: 0.003301242494
B28: B. Otros usuarios: | C28: =C15/C$17 -> 0.05814001453 | D28: 0.04588732734 | E28: 0.008982967517 | F28: 0.147861918 | G28: 0.07555936428 | H28: =H15/H$17 -> 0.05293338476 | I28: 0.03481551342 | J28: =K15/K$17 -> 0.02330849199 | K28: 0.05593612273
B30: 1.2 Por tipo de cobro / Rango de PMD: Expresado en número de operaciones (Fuente: CORPAC S.A.)
C31: 2017 | D31: 2018 | E31: 2019 | F31: 2020 | G31: 2021 | H31: 2022 | I31: 2023 | J31: A Nov-2024 | K31: 2024*
B32: A. Usuarios atribuibles: | C32: =SUM(C33:C39) -> 149952 | D32: 155992 | E32: 172462 | F32: 63562 | G32: 99723 | H32: 135758 | I32: 139521 | J32: =SUM(J33:J39) -> 144865 | K32: 158034.5455
B33: (>0-5,7) | C33: 40323 | D33: 37755 | E33: 45551 | F33: 16499 | G33: 24035 | H33: 31760 | I33: 27862 | J33: 32538 | K33: =+J33/11*12 -> 35496
B34: (>5,7-10) | C34: 3720 | D34: 5422 | E34: 8268 | F34: 5345 | G34: 6463 | H34: 5099 | I34: 6060 | J34: 6843 | K34: =+J34/11*12 -> 7465.090909
B35: (>10-35) | C35: 9333 | D35: 7945 | E35: 10474 | F35: 2097 | G35: 4609 | H35: 6808 | I35: 6579 | J35: 5607 | K35: 6116.727273
B36: (>35-70) | C36: 42855 | D36: 41425 | E36: 34592 | F36: 8846 | G36: 11814 | H36: 15045 | I36: 22933 | J36: 25563 | K36: 27886.90909
B37: (>70-105) | C37: 52543 | D37: 59714 | E37: 73409 | F37: 28741 | G37: 48974 | H37: 71746 | I37: 72430 | J37: 70920 | K37: 77367.27273
B38: (>105) | C38: 1 | D38: 2 | E38: 4 | F38: 4 | G38: 3 | H38: 7 | I38: 12 | J38: 9 | K38: 9.818181818
B39: Cargo mínimo | C39: 1177 | D39: 3729 | E39: 164 | F39: 2030 | G39: 3825 | H39: 5293 | I39: 3645 | J39: 3385 | K39: 3692.727273
B40: B. Otros usuarios: | C40: =SUM(C41) -> 15839 | D40: 16074 | E40: 3885 | F40: 21676 | G40: 18295 | H40: 16073 | I40: 6338 | J40: 5131 | K40: 5597.454545
B41: Tarifa de USD 1 | C41: 15839 | D41: 16074 | E41: 3885 | F41: 21676 | G41: 18295 | H41: 16073 | I41: 6338 | J41: 5131 | K41: 5597.454545
B42: Total | C42: =C32+C40 -> 165791 | D42: 172066 | E42: 176347 | F42: 85238 | G42: 118018 | H42: =H32+H40 -> 151831 | I42: =I32+I40 -> 145859 | J42: =J32+J40 -> 149996 | K42: 163632
B44: 2. Proyección de demanda para SNAR Nacional
B45: (Expresada en kilómetros recorridos)
B47: 2.1 Por tipo de usuario / Rango de PMD:
C49: 2025 | D49: =+C49+1 -> 2026 | E49: =+D49+1 -> 2027 | F49: 2028 | G49: 2029
B50: Hasta 5,7TM | C50: =+C$57*$K21 -> 8630333.086 | D50: 9234456.402 | E50: 9880868.35 | F50: 10572529.13 | G50: 11312606.17
B51: Más de 5,7TM a 10TM | C51: 2975322 | D51: 3183594.54 | E51: 3406446.158 | F51: 3644897.389 | G51: 3900040.206
B52: Más de 10TM a 35TM | C52: 3423468.429 | D52: 3663111.219 | E52: 3919529.004 | F52: 4193896.034 | G52: 4487468.756
B53: Más de 35TM a 70TM | C53: 19995741.86 | D53: 21395443.79 | E53: 22893124.85 | F53: 24495643.59 | G53: 26210338.64
B54: Más de 70TM a 105TM | C54: 55922691.93 | D54: 59837280.36 | E54: 64025889.99 | F54: 68507702.29 | G54: 73303241.45
B55: Más de 105TM | C55: 4483.756758 | D55: 4797.619731 | E55: 5133.453112 | F55: 5492.79483 | G55: 5877.290468
B56: Cargo mínimo | C56: 301249.2397 | D56: 322336.6864 | E56: 344900.2545 | F56: 369043.2723 | G56: 394876.3014
B57: Total Usuarios atribuibles | C57: =+K7*(1+'1.5.Tasas'!C4) -> 91253290.29 | D57: =+C57*(1+'1.5.Tasas'!D4) -> 97641020.61 | E57: =+D57*(1+'1.5.Tasas'!E4) -> 104475892.1 | F57: =+E57*(1+'1.5.Tasas'!F4) -> 111789204.5 | G57: =+F57*(1+'1.5.Tasas'!G4) -> 119614448.8

Sheet 1.2.SnarInter
B1: 1.2 SNAR INTERNACIONAL - Información de demanda | K1: Índice
B3: 1. Información histórica: Expresada en kilómetros recorridos facturados (Fuente: CORPAC S.A.)
B5: 1.1 Por tipo de usuario / Rango de PMD:
C6: 2017 | D6: 2018 | E6: 2019 | F6: 2020 | G6: 2021 | H6: 2022 | I6: 2023 | J6: A Nov-2024 | K6: 2024*
B7: A. Usuarios atribuibles: | C7: =SUM(C8:C14) -> 76765499.64 | D7: 80424520.97 | E7: 80707610.26 | F7: 24869238.11 | G7: 29618643.68 | H7: 52614327.15 | I7: 62714981.93 | J7: =SUM(J8:J14) -> 65243795.14 | K7: 71175049.24
B8: (>0-5,7) | C8: 485407.28 | D8: 378017.84 | E8: 370572.65 | F8: 230598.49 | G8: 309126.13 | H8: 399469.13 | I8: 209421.22 | J8: 217520.58 | K8: =+J8/11*12 -> 237295.1782
B9: (>5,7-10) | C9: 615817.42 | D9: 618794.82 | E9: 689532.75 | F9: 340332.44 | G9: 691237.92 | H9: 559189.05 | I9: 520420.74 | J9: 515907.58 | K9: =+J9/11*12 -> 562808.2691
B10: (>10-35) | C10: 1116701.69 | D10: 1153058.11 | E10: 1203435.4 | F10: 371663.46 | G10: 526865.73 | H10: 762825.72 | I10: 718937.41 | J10: 639469.25 | K10: 697602.8182
B11: (>35-70) | C11: 9122469.82 | D11: 6029414.03 | E11: 5793638.12 | F11: 1885698.23 | G11: 2912792.67 | H11: 2758327.07 | I11: 4876842.8 | J11: 6819908.15 | K11: 7439899.8
B12: (>70-105) | C12: 42803624.45 | D12: 49903206.61 | E12: 50457353.21 | F12: 12254787.1 | G12: 13724697.82 | H12: 35222887.96 | I12: 41415712.81 | J12: 43157005.48 | K12: 47080369.61
B13: (>105) | C13: 22593592.17 | D13: 22274660.67 | E13: 22103192.58 | F13: 9708333.62 | G13: 11382880.93 | H13: 12858388.72 | I13: 14966586.54 | J13: 13806678.23 | K13: 15061830.8
B14: Cargo mínimo | C14: 27886.81 | D14: 67368.89 | E14: 89885.55 | F14: 77824.77 | G14: 71042.48 | H14: 53239.5 | I14: 7060.41 | J14: 87305.87 | K14: 95242.76727
B15: B. Otros usuarios: | C15: =SUM(C16) -> 146303.54 | D15: 131091.61 | E15: 107600.64 | F15: 788671.45 | G15: 29103.2 | H15: 30723.45 | I15: 61936.1 | J15: 30073.13 | K15: 32807.05091
B16: Tarifa de USD 1 | C16: 146303.54 | D16: 131091.61 | E16: 107600.64 | F16: 788671.45 | G16: 29103.2 | H16: 30723.45 | I16: 61936.1 | J16: 30073.13 | K16: 32807.05091
B17: Total | C17: =C7+C15 -> 76911803.18 | D17: 80555612.58 | E17: 80815210.9 | F17: 25657909.56 | G17: 29647746.88 | H17: 52645050.6 | I17: 62776918.03 | J17: 65273868.27 | K17: 71207856.29
B19: Participación % | C19: 2017 | D19: 2018 | E19: 2019 | F19: 2020 | G19: 2021 | H19: 2022 | I19: 2023 | J19: 2024 | K19: Prom 2017-2024
B20: A. Atribuibles: | C20: =C7/C$17 -> 0.9980977752 | D20: 0.998372657 | E20: 0.9986685596 | F20: 0.9692620536 | G20: 0.9990183672 | H20: =H7/H$17 -> 0.9994164038 | I20: 0.9990133937 | J20: =K7/K$17 -> 0.9995392776 | K20: =AVERAGE(C20:J20) -> 0.995173561
B21: (>0-5,7) | C21: =C8/C$7 -> 0.006323247843 | D21: 0.004700280902 | E21: 0.004591545318 | F21: 0.009272438865 | G21: 0.01043687663 | H21: =H8/H$7 -> 0.007592402139 | I21: 0.003339253454 | J21: =K8/K$7 -> 0.003333965775 | K21: =AVERAGE(C21:J21) -> 0.006198751366
B22: (>5,7-10) | C22: 0.008022059687 | D22: 0.007694106381 | E22: 0.008543590224 | F22: 0.01368487601 | G22: 0.02333793294 | H22: =H9/H$7 -> 0.01062807566 | I22: 0.008298188471 | J22: =K9/K$7 -> 0.00790738152 | K22: 0.01101452636
B23: (>10-35) | C23: 0.01454692141 | D23: 0.01433714614 | E23: 0.01491105233 | F23: 0.01494470632 | G23: 0.01778831386 | H23: =H10/H$7 -> 0.01449844104 | I23: 0.0114635672 | J23: 0.009801227054 | K23: 0.01403642192
B24: (>35-70) | C24: 0.1188355428 | D24: 0.07496984697 | E24: 0.07178552433 | F24: 0.07582452754 | G24: 0.0983432159 | H24: =H11/H$7 -> 0.05242539854 | I24: 0.07776200598 | J24: 0.1045296052 | K24: 0.08430945842
B25: (>70-105) | C25: 0.5575893422 | D25: 0.6204974056 | E25: 0.6251870554 | F25: 0.4927688997 | G25: 0.4633803616 | H25: =H12/H$7 -> 0.6694543078 | I25: 0.6603798891 | J25: 0.6614729475 | K25: 0.5938412761
B26: (>105) | C26: 0.2943196133 | D26: 0.2769635479 | E26: 0.273867514 | F26: 0.3903751927 | G26: 0.384314726 | H26: =H13/H$7 -> 0.2443894927 | I26: 0.2386445165 | J26: 0.2116167246 | K26: 0.289311416
B27: Cargo mínimo | C27: 0.0003632726958 | D27: 0.00083766604 | E27: 0.001113718393 | F27: 0.003129358835 | G27: 0.002398573033 | H27: =H14/H$7 -> 0.001011882179 | I27: 0.0001125793197 | J27: =K14/K$7 -> 0.001338148246 | K27: 0.001288149843
B28: B. Otros usuarios: | C28: =C15/C$17 -> 0.001902224808 | D28: 0.001627342972 | E28: 0.001331440441 | F28: 0.03073794645 | G28: 0.0009816327736 | H28: =H15/H$17 -> 0.0005835961719 | I28: 0.000986606255 | J28: =K15/K$17 -> 0.0004607223503 | K28: =AVERAGE(C28:J28) -> 0.004826439027
B30: 1.2 Por tipo de cobro / Rango de PMD: Expresado en número de operaciones (Fuente: CORPAC S.A.)
C31: 2017 | D31: 2018 | E31: 2019 | F31: 2020 | G31: 2021 | H31: 2022 | I31: 2023 | J31: A Nov-2024 | K31: 2024*
B32: A. Usuarios atribuibles: | C32: =SUM(C33:C39) -> 83565 | D32: 87406 | E32: 89512 | F32: 28555 | G32: 33232 | H32: 56583 | I32: 65578 | J32: 69497 | K32: 75814.90909
B33: (>0-5,7) | C33: 2106 | D33: 1340 | E33: 1539 | F33: 1099 | G33: 1232 | H33: 1275 | I33: 313 | J33: 506 | K33: =+J33/11*12 -> 552
B34: (>5,7-10) | C34: 1021 | D34: 924 | E34: 1067 | F34: 500 | G34: 1019 | H34: 769 | I34: 756 | J34: 714 | K34: =+J34/11*12 -> 778.9090909
B35: (>10-35) | C35: 1369 | D35: 1429 | E35: 1848 | F35: 419 | G35: 598 | H35: 856 | I35: 758 | J35: 707 | K35: 771.2727273
B36: (>35-70) | C36: 9877 | D36: 6687 | E36: 6248 | F36: 2161 | G36: 2966 | H36: 2949 | I36: 4796 | J36: 7006 | K36: 7642.909091
B37: (>70-105) | C37: 44350 | D37: 52219 | E37: 53386 | F37: 12995 | G37: 14330 | H37: 36058 | I37: 43076 | J37: 44985 | K37: 49074.54545
B38: (>105) | C38: 24368 | D38: 23851 | E38: 24076 | F38: 10330 | G38: 11896 | H38: 13684 | I38: 15584 | J38: 14568 | K38: 15892.36364
B39: Cargo mínimo | C39: 474 | D39: 956 | E39: 1348 | F39: 1051 | G39: 1191 | H39: 992 | I39: 295 | J39: 1011 | K39: 1102.909091
B40: B. Otros usuarios: | C40: =SUM(C41) -> 200 | D40: 157 | E40: 130 | F40: 885 | G40: 46 | H40: 40 | I40: 102 | J40: 51 | K40: 55.63636364
B41: Tarifa de USD 1 | C41: 200 | D41: 157 | E41: 130 | F41: 885 | G41: 46 | H41: 40 | I41: 102 | J41: 51 | K41: 55.63636364
B42: Total | C42: =C32+C40 -> 83765 | D42: 87563 | E42: 89642 | F42: 29440 | G42: 33278 | H42: 56623 | I42: 65680 | J42: 69548 | K42: 75870.54545
B44: 2. Proyección de demanda para SNAR Internacional
B45: (Expresada en kilómetros recorridos)
B47: 2.1 Por tipo de usuario / Rango de PMD:
C49: 2025 | D49: =+C49+1 -> 2026 | E49: =+D49+1 -> 2027 | F49: 2028 | G49: 2029
B50: Hasta 5,7TM | C50: =+C$57*$K21 -> 472080.184 | D50: 505125.7969 | E50: 540484.6027 | F50: 578318.5249 | G50: 618800.8217
B51: Más de 5,7TM a 10TM | C51: 838836.6182 | D51: 897555.1814 | E51: 960384.0441 | F51: 1027610.927 | G51: 1099543.692
B52: Más de 10TM a 35TM | C52: 1068976.033 | D52: 1143804.355 | E52: 1223870.66 | F52: 1309541.606 | G52: 1401209.519
B53: Más de 35TM a 70TM | C53: 6420780.944 | D53: 6870235.61 | E53: 7351152.103 | F53: 7865732.75 | G53: 8416334.043
B54: Más de 70TM a 105TM | C54: 45225349.82 | D54: 48391124.3 | E54: 51778503 | F54: 55402998.21 | G54: 59281208.09
B55: Más de 105TM | C55: 22033177.08 | D55: 23575499.47 | E55: 25225784.44 | F55: 26991589.35 | G55: 28881000.6
B56: Cargo mínimo | C56: 98102.01747 | D56: 104969.1587 | E56: 112316.9998 | F56: 120179.1898 | G56: 128591.7331
B57: Total Usuarios atribuibles | C57: =+K7*(1+'1.5.Tasas'!C$5) -> 76157302.69 | D57: =+C57*(1+'1.5.Tasas'!D$5) -> 81488313.88 | E57: =+D57*(1+'1.5.Tasas'!E$5) -> 87192495.85 | F57: =+E57*(1+'1.5.Tasas'!F$5) -> 93295970.56 | G57: =+F57*(1+'1.5.Tasas'!G$5) -> 99826688.5

Sheet 1.3.Aproximación
B1: 1.3 APROXIMACIÓN - Información de demanda | K1: Índice
B3: 1. Información histórica: Expresada en toneladas/PMD facturados (Fuente: CORPAC S.A.)
B5: 1.1 Por tipo de usuario / Rango de PMD:
C6: 2017 | D6: 2018 | E6: 2019 | F6: 2020 | G6: 2021 | H6: 2022 | I6: 2023 | J6: A Nov-2024 | K6: 2024*
B7: A. Usuarios atribuibles: | C7: =SUM(C8:C13) -> 3651843.52 | D7: 3965713.13 | E7: 4220184.13 | F7: 1538493.82 | G7: 2464258.42 | H7: 3523486.85 | I7: 3825343.02 | J7: 3898732.98 | K7: 4253163.251
B8: (>0-10) | C8: 66306.96 | D8: 65464.57 | E8: 64816.56 | F8: 48547.29 | G8: 69705.41 | H8: 70666.76 | I8: 62703.85 | J8: 67177.79 | K8: =+J8/11*12 -> 73284.86182
B9: (>10-35) | C9: 81510.94 | D9: 74015.19 | E9: 49962.25 | F9: 14328.59 | G9: 37157.66 | H9: 58963.18 | I9: 54960.65 | J9: 46459.49 | K9: =+J9/11*12 -> 50683.08
B10: (>35-70) | C10: 1394281.98 | D10: 1396165.82 | E10: 1198967.94 | F10: 334333.06 | G10: 440702.69 | H10: 563148.07 | I10: 835786.94 | J10: 941272.59 | K10: 1026842.825
B11: (>70-105) | C11: 2103748.95 | D11: 2420836.48 | E11: 2897645.34 | F11: 1135596.67 | G11: 1909436.6 | H11: 2825221.6 | I11: 2860146.64 | J11: 2836181.86 | K11: 3094016.575
B12: (>105) | C12: 1395.3 | D12: 2829.59 | E12: 1103.64 | F12: 230.9 | G12: 839.42 | H12: 967.06 | I12: 6600.97 | J12: 3102.38 | K12: 3384.414545
B13: Cargo mínimo | C13: 4599.39 | D13: 6401.48 | E13: 7688.4 | F13: 5457.31 | G13: 6416.64 | H13: 4520.18 | I13: 5143.97 | J13: 4538.87 | K13: 4951.494545
B14: B. Otros usuarios: | C14: =SUM(C15) -> 116430.21 | D14: 93347.33 | E14: 108165.82 | F14: 138188.05 | G14: 109054.48 | H14: 90989.53 | I14: 61210.89 | J14: 43705.61 | K14: 47678.84727
B15: Tarifa de USD1 | C15: 116430.21 | D15: 93347.33 | E15: 108165.82 | F15: 138188.05 | G15: 109054.48 | H15: 90989.53 | I15: 61210.89 | J15: 43705.61 | K15: 47678.84727
B16: Total | C16: =C7+C14 -> 3768273.73 | D16: 4059060.46 | E16: 4328349.95 | F16: 1676681.87 | G16: 2573312.9 | H16: 3614476.38 | I16: 3886553.91 | J16: 3942438.59 | K16: 4300842.098
B18: Participación % | C18: 2017 | D18: 2018 | E18: 2019 | F18: 2020 | G18: 2021 | H18: 2022 | I18: 2023 | J18: 2024 | K18: Prom 2017-2024
B19: A. Atribuibles: | C19: =C7/C$16 -> 0.9691025073 | D19: 0.9770027249 | E19: 0.975009918 | F19: 0.9175824272 | G19: 0.9576209796 | H19: =H7/H$16 -> 0.9748263592 | I19: 0.9842506006 | J19: =K7/K$16 -> 0.988914067 | K19: =AVERAGE(C19:J19) -> 0.968038698
B20: (>0-10) | C20: =C8/C$7 -> 0.01815711972 | D20: 0.01650764134 | E20: 0.01535870427 | F20: 0.03155507638 | G20: 0.02828656663 | H20: =H8/H$7 -> 0.02005591705 | I20: 0.01639169342 | J20: =K8/K$7 -> 0.01723067221 | K20: =AVERAGE(C20:J20) -> 0.02044292388
B21: (>10-35) | C21: 0.02232049088 | D21: 0.01866377813 | E21: 0.01183887917 | F21: 0.009313388077 | G21: 0.01507863773 | H21: =H9/H$7 -> 0.01673432668 | I21: 0.01436750893 | J21: =K9/K$7 -> 0.01191656116 | K21: 0.01502919635
B22: (>35-70) | C22: 0.3818022246 | D22: 0.3520592071 | E22: 0.2841032294 | F22: 0.2173119291 | G22: 0.178837855 | H22: =H10/H$7 -> 0.1598269254 | I22: 0.218486796 | J22: 0.2414303813 | K22: 0.2542323185
B23: (>70-105) | C23: 0.576078613 | D23: 0.6104416534 | E23: 0.6866158563 | F23: 0.7381223475 | G23: 0.7748524199 | H23: =H11/H$7 -> 0.8018254985 | I23: 0.7476837045 | J23: 0.7274624537 | K23: 0.7078853183
B24: (>105) | C24: 0.0003820809934 | D24: 0.0007135135365 | E24: 0.0002615146558 | F24: 0.0001500818508 | G24: 0.0003406379758 | H24: =H12/H$7 -> 0.0002744610782 | I24: 0.001725589043 | J24: 0.000795740569 | K24: 0.0005804524628
B25: Cargo mínimo | C25: 0.001259470723 | D25: 0.001614206522 | E25: 0.001821816244 | F25: 0.00354717707 | G25: 0.002603882753 | H25: =H13/H$7 -> 0.001282871256 | I25: 0.001344708167 | J25: 0.001164191039 | K25: 0.001829790472
B26: B. Otros usuarios: | C26: =C14/C$16 -> 0.03089749268 | D26: 0.02299727509 | E26: 0.02499008196 | F26: 0.08241757275 | G26: 0.04237902044 | H26: =H14/H$16 -> 0.02517364078 | I26: 0.01574939945 | J26: =K14/K$16 -> 0.01108593298 | K26: 0.03196130202
B28: 1.2 Por tipo de cobro / Rango de PMD: Expresado en número de operaciones (Fuente: CORPAC S.A.)
C29: 2017 | D29: 2018 | E29: 2019 | F29: 2020 | G29: 2021 | H29: 2022 | I29: 2023 | J29: A Nov-2024 | K29: 2024*
B30: A. Usuarios atribuibles: | C30: =SUM(C31:C36) -> 72346 | D30: 76014 | E30: 77068 | F30: 33263 | G30: 51149 | H30: 66638 | I30: 68305 | J30: 69341 | K30: 75644.72727
B31: (>0-10) | C31: 13993 | D31: 13287 | E31: 12762 | F31: 9168 | G31: 13682 | H31: 15172 | I31: 12530 | J31: 13354 | K31: =+J31/11*12 -> 14568
B32: (>10-35) | C32: 3578 | D32: 3167 | E32: 2753 | F32: 713 | G32: 1783 | H32: 3093 | I32: 2751 | J32: 2081 | K32: =+J32/11*12 -> 2270.181818
B33: (>35-70) | C33: 24360 | D33: 23816 | E33: 18726 | F33: 5041 | G33: 6629 | H33: 8516 | I33: 12420 | J33: 13974 | K33: 15244.36364
B34: (>70-105) | C34: 27520 | D34: 31697 | E34: 38044 | F34: 14917 | G34: 24992 | H34: 36938 | I34: 37335 | J34: 37003 | K34: 40366.90909
B35: (>105) | C35: 4 | D35: 13 | E35: 5 | F35: 1 | G35: 5 | H35: 5 | I35: 31 | J35: 16 | K35: 17.45454545
B36: Cargo mínimo | C36: 2891 | D36: 4034 | E36: 4778 | F36: 3423 | G36: 4058 | H36: 2914 | I36: 3238 | J36: 2913 | K36: 3177.818182
B37: B. Otros usuarios: | C37: =SUM(C38) -> 6559 | D37: 6078 | E37: 7497 | F37: 11450 | G37: 11924 | H37: 8422 | I37: 2416 | J37: 2114 | K37: 2306.181818
B38: Tarifa de USD 1 | C38: 6559 | D38: 6078 | E38: 7497 | F38: 11450 | G38: 11924 | H38: 8422 | I38: 2416 | J38: 2114 | K38: 2306.181818
B39: Total | C39: =C30+C37 -> 78905 | D39: 82092 | E39: 84565 | F39: 44713 | G39: 63073 | H39: 75060 | I39: 70721 | J39: 71455 | K39: 77950.90909
B41: 2. Proyección de demanda para Aproximación
B42: (Expresada en toneladas/PMD facturados)
B44: 2.1 Por tipo de usuario / Rango de PMD:
C46: 2025 | D46: 2026 | E46: 2027 | F46: 2028 | G46: 2029
B47: Hasta 10TM | C47: =+C$53*$K20 -> 93033.38906 | D47: 99545.72629 | E47: 106513.9271 | F47: 113969.902 | G47: 121947.7952
B48: Más de 10TM a 35TM | C48: 68396.13938 | D48: 73183.86914 | E48: 78306.73998 | F48: 83788.21178 | G48: 89653.3866
B49: Más de 35TM a 70TM | C49: 1156981.963 | D49: 1237970.7 | E49: 1324628.649 | F49: 1417352.655 | G49: 1516567.341
B50: Más de 70TM a 105TM | C50: 3221504.449 | D50: 3447009.761 | E50: 3688300.444 | F50: 3946481.475 | G50: 4222735.178
B51: Más de 105TM | C51: 2641.572219 | D51: 2826.482275 | E51: 3024.336034 | F51: 3236.039556 | G51: 3462.562325
B52: Cargo mínimo | C52: 8327.165423 | D52: 8910.067003 | E52: 9533.771693 | F52: 10201.13571 | G52: 10915.21521
B53: Total Usuarios atribuibles | C53: =+K7*(1+'1.5.Tasas'!C6) -> 4550884.678 | D53: =+C53*(1+'1.5.Tasas'!D6) -> 4869446.606 | E53: =+D53*(1+'1.5.Tasas'!E6) -> 5210307.868 | F53: =+E53*(1+'1.5.Tasas'!F6) -> 5575029.419 | G53: =+F53*(1+'1.5.Tasas'!G6) -> 5965281.479

Sheet 1.4.Sobrevuelo
B1: 1.4 SOBREVUELO - Información de demanda | K1: Índice
B3: 1. Información histórica: Expresada en kilómetros recorridos facturados (Fuente: CORPAC S.A.)
B5: 1.1 Por tipo de usuario / Rango de PMD:
C6: 2017 | D6: 2018 | E6: 2019 | F6: 2020 | G6: 2021 | H6: 2022 | I6: 2023 | J6: A Nov-2024 | K6: 2024*
B7: A. Usuarios atribuibles: | C7: =SUM(C8:C11) -> 44112792.8 | D7: 45840674.03 | E7: 45342728.73 | F7: 23258811.94 | G7: 28747071.59 | H7: 45949073.68 | I7: 48077097.17 | J7: 47240847.14 | K7: 51535469.61
B8: (>0-55) | C8: 1760455.98 | D8: 1911435.67 | E8: 1720224.35 | F8: 1198678.62 | G8: 1877258.96 | H8: 2042073.56 | I8: 2013341.47 | J8: 1789246.04 | K8: =+J8/11*12 -> 1951904.771
B9: (>55-115) | C9: 15802264.12 | D9: 16906620.63 | E9: 15901396.1 | F9: 5252411.84 | G9: 7073044.82 | H9: 19029202.13 | I9: 19892484.38 | J9: 21018624.2 | K9: =+J9/11*12 -> 22929408.22
B10: (>115-200) | C10: 3938980.86 | D10: 4527278.58 | E10: 4167078.07 | F10: 2400663.64 | G10: 3334285.46 | H10: 4463542.1 | I10: 4204315.91 | J10: 3949201.03 | K10: 4308219.305
B11: (>200) | C11: 22611091.84 | D11: 22495339.15 | E11: 23554030.21 | F11: 14407057.84 | G11: 16462482.35 | H11: 20414255.89 | I11: 21966955.41 | J11: 20483775.87 | K11: 22345937.31
B12: B. Otros usuarios: | C12: =SUM(C13) -> 119173.05 | D12: 121701.84 | E12: 129442.92 | F12: 59094.3 | G12: 56762.9 | H12: 58528.36 | I12: 87944.86 | J12: 47493.17 | K12: 51810.73091
B13: Tarifa de USD 1 | C13: 119173.05 | D13: 121701.84 | E13: 129442.92 | F13: 59094.3 | G13: 56762.9 | H13: 58528.36 | I13: 87944.86 | J13: 47493.17 | K13: 51810.73091
B14: Total | C14: =C7+C12 -> 44231965.85 | D14: 45962375.87 | E14: 45472171.65 | F14: 23317906.24 | G14: 28803834.49 | H14: 46007602.04 | I14: 48165042.03 | J14: 47288340.31 | K14: 51587280.34
B16: Participación % | C16: 2017 | D16: 2018 | E16: 2019 | F16: 2020 | G16: 2021 | H16: 2022 | I16: 2023 | J16: 2024 | K16: Prom 2017-2024
B17: A. Atribuibles: | C17: =C7/C$14 -> 0.9973057257 | D17: 0.9973521421 | E17: 0.9971533596 | F17: 0.9974657116 | G17: 0.9980293284 | H17: =H7/H$14 -> 0.9987278546 | I17: 0.9981740936 | J17: =K7/K$14 -> 0.9989956685 | K17: =AVERAGE(C17:J17) -> 0.9979004855
B18: (>0-55) | C18: =C8/C$7 -> 0.03990805996 | D18: 0.0416973727 | E18: 0.03793826261 | F18: 0.05153653691 | G18: 0.0653026154 | H18: =H8/H$7 -> 0.04444210506 | I18: 0.04187735093 | J18: =K8/K$7 -> 0.03787497787 | K18: =AVERAGE(C18:J18) -> 0.04507216018
B19: (>55-115) | C19: 0.3582240687 | D19: 0.3688126536 | E19: 0.3506934087 | F19: 0.2258245973 | G19: 0.2460440117 | H19: =H9/H$7 -> 0.4141367955 | I19: 0.4137621768 | J19: =K9/K$7 -> 0.4449247944 | K19: 0.3528028133
B20: (>115-200) | C20: 0.0892933911 | D20: 0.09876116955 | E20: 0.091901793 | F20: 0.1032152307 | G20: 0.1159869606 | H20: =H10/H$7 -> 0.0971410682 | I20: 0.08744945426 | J20: 0.0835971679 | K20: 0.09591827941
B21: (>200) | C21: 0.5125744802 | D21: 0.4907288042 | E21: 0.5194665356 | F21: 0.6194236351 | G21: 0.5726664122 | H21: =H11/H$7 -> 0.4442800312 | I21: 0.456911018 | J21: 0.4336030599 | K21: 0.5062067471
B22: B. Otros usuarios: | C22: =C12/C$14 -> 0.002694274326 | D22: 0.002647857899 | E22: 0.00284664038 | F22: 0.00253428843 | G22: 0.001970671649 | H22: =H12/H$14 -> 0.001272145415 | I22: 0.001825906431 | J22: =K12/K$14 -> 0.001004331505 | K22: 0.002099514505
B24: 1.2 Por tipo de cobro / Rango de PMD: Expresado en número de operaciones (Fuente: CORPAC S.A.)
C25: 2017 | D25: 2018 | E25: 2019 | F25: 2020 | G25: 2021 | H25: 2022 | I25: 2023 | J25: A Nov-2024 | K25: 2024*
B26: A. Usuarios atribuibles: | C26: =SUM(C27:C30) -> 34572 | D26: 36287 | E26: 35821 | F26: 16852 | G26: 21426 | H26: 34609 | I26: 37404 | J26: 36542 | K26: 39864
B27: (>0-55) | C27: 1153 | D27: 1224 | E27: 1110 | F27: 750 | G27: 1152 | H27: 1283 | I27: 1286 | J27: 1152 | K27: =+J27/11*12 -> 1256.727273
B28: (>55-115) | C28: 15181 | D28: 16695 | E28: 15861 | F28: 4867 | G28: 7307 | H28: 17114 | I28: 18804 | J28: 18631 | K28: 20324.72727
B29: (>115-200) | C29: 3577 | D29: 3636 | E29: 3658 | F29: 1989 | G29: 2576 | H29: 3367 | I29: 3199 | J29: 3081 | K29: 3361.090909
B30: (>200) | C30: 14661 | D30: 14732 | E30: 15192 | F30: 9246 | G30: 10391 | H30: 12845 | I30: 14115 | J30: 13678 | K30: 14921.45455
B31: B. Otros usuarios: | C31: =SUM(C32) -> 81 | D31: 72 | E31: 83 | F31: 34 | G31: 41 | H31: 40 | I31: 56 | J31: 30 | K31: 32.72727273
B32: Tarifa de USD 1 | C32: 81 | D32: 72 | E32: 83 | F32: 34 | G32: 41 | H32: 40 | I32: 56 | J32: 30 | K32: =+J32/11*12 -> 32.72727273
B33: Total | C33: =C26+C31 -> 34653 | D33: 36359 | E33: 35904 | F33: 16886 | G33: 21467 | H33: 34649 | I33: 37460 | J33: 36572 | K33: 39896.72727
B35: 2. Proyección de demanda para Sobrevuelo
B36: (Expresada en kilómetros recorridos)
B38: 2.2 Por tipo de usuario / Rango de PMD:
C40: 2025 | D40: 2026 | E40: 2027 | F40: 2028 | G40: 2029
B41: Hasta 55TM | C41: =+C$45*$K18 -> 2485411.987 | D41: 2659390.826 | E41: 2845548.184 | F41: 3044736.557 | G41: 3257868.116
B42: Más de 55TM a 115TM | C42: 19454588.77 | D42: 20816409.99 | E42: 22273558.68 | F42: 23832707.79 | G42: 25500997.34
B43: Más de 115TM a 200TM | C43: 5289217.124 | D43: 5659462.322 | E43: 6055624.685 | F43: 6479518.413 | G43: 6933084.702
B44: Más de 200TM | C44: 27913734.6 | D44: 29867696.02 | E44: 31958434.74 | F44: 34195525.17 | G44: 36589211.94
B45: Total Usuarios atribuibles | C45: =+K7*(1+'1.5.Tasas'!C7) -> 55142952.48 | D45: =+C45*(1+'1.5.Tasas'!D7) -> 59002959.15 | E45: =+D45*(1+'1.5.Tasas'!E7) -> 63133166.29 | F45: =+E45*(1+'1.5.Tasas'!F7) -> 67552487.93 | G45: =+F45*(1+'1.5.Tasas'!G7) -> 72281162.09

Sheet 1.5.Tasas
B1: 1.5 Tasas de crecimiento esperado de demanda | G1: Índice
C3: 2025 | D3: 2026 | E3: 2027 | F3: 2028 | G3: 2029
B4: SNAR Nacional | C4: 0.07 | D4: 0.07 | E4: 0.07 | F4: 0.07 | G4: 0.07
B5: SNAR Internacional | C5: 0.07 | D5: 0.07 | E5: 0.07 | F5: 0.07 | G5: 0.07
B6: Aproximación | C6: 0.07 | D6: 0.07 | E6: 0.07 | F6: 0.07 | G6: 0.07
B7: Sobrevuelo | C7: 0.07 | D7: 0.07 | E7: 0.07 | F7: 0.07 | G7: 0.07

Sheet 2.Tarifas
B1: 2. Tarifas reguladas | O1: Índice
B3: Servicio / Peso Máximo de Despegue (PMD) | C3: Unidad de cobro | D3: Tarifas vigentes (según moneda) | H3: Tarifas vigentes (en Soles) | L3: Tarifa revisada (en Soles) | N3: Tarifa revisada (según moneda) | O3: Var% sobre Tarifa vigente
D4: 2022-09-30 | E4: 2023-09-30 | F4: 2024-09-30 | H4: 2022-09-30 | I4: 2023-09-30 | J4: 2024-09-30
B6: A. SNAR Nacional | L6: -0.2470026979
B7: (En soles)
B8: - Por rango de PMD:
B9: Hasta 5,7TM | C9: Por kilómetro recorrido | D9: 0.13 | E9: 0.14 | F9: 0.14 | H9: =D9 -> 0.13 | I9: 0.14 | J9: 0.14 | L9: =J9*(1+$L$6) -> 0.1054196223 | N9: =L9 -> 0.1054196223 | O9: =N9/F9-1 -> -0.2470026979
B10: Más de 5,7TM a 10TM | C10: Por kilómetro recorrido | D10: 0.25 | E10: 0.26 | F10: 0.27 | H10: 0.25 | I10: 0.26 | J10: 0.27 | L10: 0.2033092716 | N10: 0.2033092716 | O10: -0.2470026979
B11: Más de 10TM a 35TM | C11: Por kilómetro recorrido | D11: 0.28 | E11: 0.3 | F11: 0.31 | H11: 0.28 | I11: 0.3 | J11: 0.31 | L11: 0.2334291637 | N11: 0.2334291637 | O11: -0.2470026979
B12: Más de 35TM a 70TM | C12: Por kilómetro recorrido | D12: 0.37 | E12: 0.39 | F12: 0.4 | H12: 0.37 | I12: 0.39 | J12: 0.4 | L12: 0.3011989208 | N12: 0.3011989208 | O12: -0.2470026979
B13: Más de 70TM a 105TM | C13: Por kilómetro recorrido | D13: 0.56 | E13: 0.59 | F13: 0.6 | H13: 0.56 | I13: 0.59 | J13: 0.6 | L13: 0.4517983813 | N13: 0.4517983813 | O13: -0.2470026979
B14: Más de 105TM | C14: Por kilómetro recorrido | D14: 0.73 | E14: 0.77 | F14: 0.79 | H14: 0.73 | I14: 0.77 | J14: 0.79 | L14: 0.5948678687 | N14: 0.5948678687 | O14: -0.2470026979
B15: - Cargo mínimo: | C15: Por operación | D15: 12.2 | E15: 12.88 | F15: 13.14 | H15: 12.2 | I15: 12.88 | J15: 13.14 | L15: 9.89438455 | N15: 9.89438455 | O15: -0.2470026979
B17: B. SNAR Internacional | L17: =+L6 -> -0.2470026979
B18: (En dólares)
B19: - Por rango de PMD:
B20: Hasta 5,7TM | C20: Por kilómetro recorrido | D20: 0.05 | E20: 0.05 | F20: 0.05 | H20: =+D20*'10. Var-Sup-Gen'!I$11 -> 0.1917467131 | I20: =+E20*'10. Var-Sup-Gen'!J$11 -> 0.1872053 | J20: =+F20*'10. Var-Sup-Gen'!K$11 -> 0.1876902439 | L20: =J20*(1+$L$17) -> 0.1413302473 | N20: =+L20/'10. Var-Sup-Gen'!$L$11 -> 0.03728210524 | O20: =N20/F20-1 -> -0.2543578951
B21: Más de 5,7TM a 10TM | C21: Por kilómetro recorrido | D21: 0.11 | E21: 0.11 | F21: 0.11 | H21: =+D21*'10. Var-Sup-Gen'!I$11 -> 0.4218427689 | I21: =+E21*'10. Var-Sup-Gen'!J$11 -> 0.41185166 | J21: =+F21*'10. Var-Sup-Gen'!K$11 -> 0.4129185366 | L21: =J21*(1+$L$17) -> 0.310926544 | N21: =+L21/'10. Var-Sup-Gen'!$L$11 -> 0.08202063153 | O21: -0.2543578951
B22: Más de 10TM a 35TM | C22: Por kilómetro recorrido | D22: 0.12 | E22: 0.12 | F22: 0.12 | H22: =+D22*'10. Var-Sup-Gen'!I$11 -> 0.4601921116 | I22: =+E22*'10. Var-Sup-Gen'!J$11 -> 0.44929272 | J22: =+F22*'10. Var-Sup-Gen'!K$11 -> 0.4504565854 | L22: 0.3391925935 | N22: =+L22/'10. Var-Sup-Gen'!$L$11 -> 0.08947705258 | O22: -0.2543578951
B23: Más de 35TM a 70TM | C23: Por kilómetro recorrido | D23: 0.16 | E23: 0.17 | F23: 0.17 | H23: =+D23*'10. Var-Sup-Gen'!I$11 -> 0.6135894821 | I23: =+E23*'10. Var-Sup-Gen'!J$11 -> 0.63649802 | J23: =+F23*'10. Var-Sup-Gen'!K$11 -> 0.6381468293 | L23: 0.4805228408 | N23: =+L23/'10. Var-Sup-Gen'!$L$11 -> 0.1267591578 | O23: -0.2543578951
B24: Más de 70TM a 105TM | C24: Por kilómetro recorrido | D24: 0.24 | E24: 0.25 | F24: 0.26 | H24: =+D24*'10. Var-Sup-Gen'!I$11 -> 0.9203842231 | I24: =+E24*'10. Var-Sup-Gen'!J$11 -> 0.9360265 | J24: =+F24*'10. Var-Sup-Gen'!K$11 -> 0.9759892683 | L24: 0.7349172859 | N24: =+L24/'10. Var-Sup-Gen'!$L$11 -> 0.1938669473 | O24: -0.2543578951
B25: Más de 105TM | C25: Por kilómetro recorrido | D25: 0.34 | E25: 0.35 | F25: 0.36 | H25: =+D25*'10. Var-Sup-Gen'!I$11 -> 1.303877649 | I25: =+E25*'10. Var-Sup-Gen'!J$11 -> 1.3104371 | J25: =+F25*'10. Var-Sup-Gen'!K$11 -> 1.351369756 | L25: 1.017577781 | N25: =+L25/'10. Var-Sup-Gen'!$L$11 -> 0.2684311577 | O25: -0.2543578951
B26: - Cargo mínimo: | C26: Por operación | D26: 5.83 | E26: 6.04 | F26: 6.19 | H26: =+D26*'10. Var-Sup-Gen'!I$11 -> 22.35766675 | I26: =+E26*'10. Var-Sup-Gen'!J$11 -> 22.61440024 | J26: =+F26*'10. Var-Sup-Gen'!K$11 -> 23.2360522 | L26: 17.49668461 | N26: =+L26/'10. Var-Sup-Gen'!$L$11 -> 4.615524629 | O26: -0.2543578951
B28: C. Aproximación | L28: 0.03755013179
B29: (En soles)
B30: - Por rango de PMD:
B31: Hasta 10TM | C31: Por Tonelada (PMD) | D31: 4.19 | E31: 4.42 | F31: 4.51 | H31: =D31 -> 4.19 | I31: 4.42 | J31: 4.51 | L31: =J31*(1+$L$28) -> 4.679351094 | N31: =L31 -> 4.679351094 | O31: =N31/F31-1 -> 0.03755013179
B32: Más de 10TM a 35TM | C32: Por Tonelada (PMD) | D32: 4.68 | E32: 4.94 | F32: 5.04 | H32: 4.68 | I32: 4.94 | J32: 5.04 | L32: 5.229252664 | N32: 5.229252664 | O32: 0.03755013179
B33: Más de 35TM a 70TM | C33: Por Tonelada (PMD) | D33: 5.21 | E33: 5.5 | F33: 5.61 | H33: 5.21 | I33: 5.5 | J33: 5.61 | L33: 5.820656239 | N33: 5.820656239 | O33: 0.03755013179
B34: Más de 70TM a 105TM | C34: Por Tonelada (PMD) | D34: 5.73 | E34: 6.05 | F34: 6.17 | H34: 5.73 | I34: 6.05 | J34: 6.17 | L34: 6.401684313 | N34: 6.401684313 | O34: 0.03755013179
B35: Más de 105TM | C35: Por Tonelada (PMD) | D35: 6.28 | E35: 6.63 | F35: 6.76 | H35: 6.28 | I35: 6.63 | J35: 6.76 | L35: 7.013838891 | N35: 7.013838891 | O35: 0.03755013179
B36: - Cargo mínimo: | C36: Por operación | D36: 10.45 | E36: 11.03 | F36: 11.25 | H36: 10.45 | I36: 11.03 | J36: 11.25 | L36: 11.67243898 | N36: 11.67243898 | O36: 0.03755013179
B38: D. Sobrevuelo | L38: =+L6 -> -0.2470026979
B39: (En dólares)
B40: - Por rango de PMD:
B41: Hasta 55TM | C41: Por kilómetro recorrido | D41: 0.15 | E41: 0.16 | F41: 0.16 | H41: =+D41*'10. Var-Sup-Gen'!I$11 -> 0.5752401394 | I41: =+E41*'10. Var-Sup-Gen'!J$11 -> 0.59905696 | J41: =+F41*'10. Var-Sup-Gen'!K$11 -> 0.6006087805 | L41: =J41*(1+$L$38) -> 0.4522567913 | N41: =L41/'10. Var-Sup-Gen'!$L$11 -> 0.1193027368 | O41: =N41/F41-1 -> -0.2543578951
B42: Más de 55TM a 115TM | C42: Por kilómetro recorrido | D42: 0.24 | E42: 0.25 | F42: 0.26 | H42: =+D42*'10. Var-Sup-Gen'!I$11 -> 0.9203842231 | I42: =+E42*'10. Var-Sup-Gen'!J$11 -> 0.9360265 | J42: =+F42*'10. Var-Sup-Gen'!K$11 -> 0.9759892683 | L42: =J42*(1+$L$38) -> 0.7349172859 | N42: =L42/'10. Var-Sup-Gen'!$L$11 -> 0.1938669473 | O42: =N42/F42-1 -> -0.2543578951
B43: Más de 115TM a 200TM | C43: Por kilómetro recorrido | D43: 0.47 | E43: 0.49 | F43: 0.5 | H43: =+D43*'10. Var-Sup-Gen'!I$11 -> 1.802419104 | I43: =+E43*'10. Var-Sup-Gen'!J$11 -> 1.83461194 | J43: =+F43*'10. Var-Sup-Gen'!K$11 -> 1.876902439 | L43: 1.413302473 | N43: =L43/'10. Var-Sup-Gen'!$L$11 -> 0.3728210524 | O43: =N43/F43-1 -> -0.2543578951
B44: Más de 200TM | C44: Por kilómetro recorrido | D44: 0.7 | E44: 0.73 | F44: 0.75 | H44: =+D44*'10. Var-Sup-Gen'!I$11 -> 2.684453984 | I44: =+E44*'10. Var-Sup-Gen'!J$11 -> 2.73319738 | J44: =+F44*'10. Var-Sup-Gen'!K$11 -> 2.815353659 | L44: 2.119953709 | N44: =L44/'10. Var-Sup-Gen'!$L$11 -> 0.5592315786 | O44: =N44/F44-1 -> -0.2543578951

Sheet 3. Ingresos
B1: 3. Ingresos totales (Usuarios atribuibles) | G1: Índice
B3: Servicio / Peso Máximo de Despegue (PMD) | C3: Proyecciones
C4: 2025 | D4: =C4+1 -> 2026 | E4: =D4+1 -> 2027 | F4: =E4+1 -> 2028 | G4: 2029
B6: A. SNAR Nacional
B7: (En soles)
B8: Ingresos totales | C8: =SUM(C11:C16,C17) -> 33646416.06 | D8: =SUM(D11:D16,D17) -> 36001665.18 | E8: =SUM(E11:E16,E17) -> 38521781.74 | F8: =SUM(F11:F16,F17) -> 41218306.47 | G8: 44103587.92
B10: - Por rango de PMD:
B11: Hasta 5,7TM | C11: =+'2.Tarifas'!$L9*'1.Demanda'!K11 -> 909806.4542 | D11: =+'2.Tarifas'!$L9*'1.Demanda'!L11 -> 973492.906 | E11: =+'2.Tarifas'!$L9*'1.Demanda'!M11 -> 1041637.409 | F11: =+'2.Tarifas'!$L9*'1.Demanda'!N11 -> 1114552.028 | G11: =+'2.Tarifas'!$L9*'1.Demanda'!O11 -> 1192570.67
B12: Más de 5,7TM a 10TM | C12: =+'2.Tarifas'!$L10*'1.Demanda'!K12 -> 604910.5486 | D12: =+'2.Tarifas'!$L10*'1.Demanda'!L12 -> 647254.287 | E12: =+'2.Tarifas'!$L10*'1.Demanda'!M12 -> 692562.087 | F12: =+'2.Tarifas'!$L10*'1.Demanda'!N12 -> 741041.4331 | G12: =+'2.Tarifas'!$L10*'1.Demanda'!O12 -> 792914.3334
B13: Más de 10TM a 35TM | C13: =+'2.Tarifas'!$L11*'1.Demanda'!K13 -> 799137.3721 | D13: =+'2.Tarifas'!$L11*'1.Demanda'!L13 -> 855076.9881 | E13: =+'2.Tarifas'!$L11*'1.Demanda'!M13 -> 914932.3773 | F13: =+'2.Tarifas'!$L11*'1.Demanda'!N13 -> 978977.6437 | G13: =+'2.Tarifas'!$L11*'1.Demanda'!O13 -> 1047506.079
B14: Más de 35TM a 70TM | C14: =+'2.Tarifas'!$L12*'1.Demanda'!K14 -> 6022695.869 | D14: =+'2.Tarifas'!$L12*'1.Demanda'!L14 -> 6444284.58 | E14: =+'2.Tarifas'!$L12*'1.Demanda'!M14 -> 6895384.5 | F14: =+'2.Tarifas'!$L12*'1.Demanda'!N14 -> 7378061.415 | G14: =+'2.Tarifas'!$L12*'1.Demanda'!O14 -> 7894525.714
B15: Más de 70TM a 105TM | C15: =+'2.Tarifas'!$L13*'1.Demanda'!K15 -> 25265781.69 | D15: =+'2.Tarifas'!$L13*'1.Demanda'!L15 -> 27034386.41 | E15: =+'2.Tarifas'!$L13*'1.Demanda'!M15 -> 28926793.45 | F15: =+'2.Tarifas'!$L13*'1.Demanda'!N15 -> 30951669 | G15: =+'2.Tarifas'!$L13*'1.Demanda'!O15 -> 33118285.83
B16: Más de 105TM | C16: =+'2.Tarifas'!$L14*'1.Demanda'!K16 -> 2667.242826 | D16: =+'2.Tarifas'!$L14*'1.Demanda'!L16 -> 2853.949824 | E16: =+'2.Tarifas'!$L14*'1.Demanda'!M16 -> 3053.726312 | F16: =+'2.Tarifas'!$L14*'1.Demanda'!N16 -> 3267.487153 | G16: =+'2.Tarifas'!$L14*'1.Demanda'!O16 -> 3496.211254
B17: - Cargo mínimo: | C17: =+'2.Tarifas'!$L15*'1.Demanda'!K20 -> 41416.88164 | D17: =+'2.Tarifas'!$L15*'1.Demanda'!L20 -> 44316.06336 | E17: =+'2.Tarifas'!$L15*'1.Demanda'!M20 -> 47418.18779 | F17: =+'2.Tarifas'!$L15*'1.Demanda'!N20 -> 50737.46094 | G17: =+'2.Tarifas'!$L15*'1.Demanda'!O20 -> 54289.0832
B19: B. SNAR Internacional
B20: (En soles)
B21: Ingresos totales | C21: =SUM(C24:C29,C30) -> 59452695.77 | D21: =SUM(D24:D29,D30) -> 63614384.47 | E21: =SUM(E24:E29,E30) -> 68067391.39 | F21: =SUM(F24:F29,F30) -> 72832108.78 | G21: 77930356.4
B23: - Por rango de PMD:
B24: Hasta 5,7TM | C24: =+'2.Tarifas'!$L20*'1.Demanda'!K28 -> 66719.20915 | D24: =+'2.Tarifas'!$L20*'1.Demanda'!L28 -> 71389.55379 | E24: =+'2.Tarifas'!$L20*'1.Demanda'!M28 -> 76386.82256 | F24: =+'2.Tarifas'!$L20*'1.Demanda'!N28 -> 81733.90014 | G24: =+'2.Tarifas'!$L20*'1.Demanda'!O28 -> 87455.27315
B25: Más de 5,7TM a 10TM | C25: =+'2.Tarifas'!$L21*'1.Demanda'!K29 -> 260816.5707 | D25: =+'2.Tarifas'!$L21*'1.Demanda'!L29 -> 279073.7307 | E25: =+'2.Tarifas'!$L21*'1.Demanda'!M29 -> 298608.8918 | F25: =+'2.Tarifas'!$L21*'1.Demanda'!N29 -> 319511.5142 | G25: =+'2.Tarifas'!$L21*'1.Demanda'!O29 -> 341877.3202
B26: Más de 10TM a 35TM | C26: =+'2.Tarifas'!$L22*'1.Demanda'!K30 -> 362588.753 | D26: =+'2.Tarifas'!$L22*'1.Demanda'!L30 -> 387969.9657 | E26: =+'2.Tarifas'!$L22*'1.Demanda'!M30 -> 415127.8633 | F26: =+'2.Tarifas'!$L22*'1.Demanda'!N30 -> 444186.8137 | G26: =+'2.Tarifas'!$L22*'1.Demanda'!O30 -> 475279.8906
B27: Más de 35TM a 70TM | C27: =+'2.Tarifas'!$L23*'1.Demanda'!K31 -> 3085331.899 | D27: =+'2.Tarifas'!$L23*'1.Demanda'!L31 -> 3301305.132 | E27: =+'2.Tarifas'!$L23*'1.Demanda'!M31 -> 3532396.492 | F27: =+'2.Tarifas'!$L23*'1.Demanda'!N31 -> 3779664.246 | G27: =+'2.Tarifas'!$L23*'1.Demanda'!O31 -> 4044240.743
B28: Más de 70TM a 105TM | C28: =+'2.Tarifas'!$L24*'1.Demanda'!K32 -> 33236891.34 | D28: =+'2.Tarifas'!$L24*'1.Demanda'!L32 -> 35563473.74 | E28: =+'2.Tarifas'!$L24*'1.Demanda'!M32 -> 38052916.9 | F28: =+'2.Tarifas'!$L24*'1.Demanda'!N32 -> 40716621.08 | G28: =+'2.Tarifas'!$L24*'1.Demanda'!O32 -> 43566784.56
B29: Más de 105TM | C29: =+'2.Tarifas'!$L25*'1.Demanda'!K33 -> 22420471.43 | D29: =+'2.Tarifas'!$L25*'1.Demanda'!L33 -> 23989904.43 | E29: =+'2.Tarifas'!$L25*'1.Demanda'!M33 -> 25669197.74 | F29: =+'2.Tarifas'!$L25*'1.Demanda'!N33 -> 27466041.58 | G29: =+'2.Tarifas'!$L25*'1.Demanda'!O33 -> 29388664.49
B30: - Cargo mínimo: | C30: ='2.Tarifas'!$L26*'1.Demanda'!K37 -> 19876.56867 | D30: ='2.Tarifas'!$L26*'1.Demanda'!L37 -> 21267.92848 | E30: ='2.Tarifas'!$L26*'1.Demanda'!M37 -> 22756.68347 | F30: ='2.Tarifas'!$L26*'1.Demanda'!N37 -> 24349.65131 | G30: ='2.Tarifas'!$L26*'1.Demanda'!O37 -> 26054.12691
B32: C. Aproximación
B33: (En soles)
B34: Ingresos totales | C34: =SUM(C37:C41,C42) -> 28231353.81 | D34: =SUM(D37:D41,D42) -> 30207548.58 | E34: =SUM(E37:E41,E42) -> 32322076.98 | F34: =SUM(F37:F41,F42) -> 34584622.37 | G34: 37005545.94
B36: - Por rango de PMD:
B37: Hasta 10TM | C37: =+'2.Tarifas'!$L31*'1.Demanda'!K45 -> 435335.8909 | D37: =+'2.Tarifas'!$L31*'1.Demanda'!L45 -> 465809.4033 | E37: =+'2.Tarifas'!$L31*'1.Demanda'!M45 -> 498416.0615 | F37: =+'2.Tarifas'!$L31*'1.Demanda'!N45 -> 533305.1858 | G37: =+'2.Tarifas'!$L31*'1.Demanda'!O45 -> 570636.5488
B38: Más de 10TM a 35TM | C38: =+'2.Tarifas'!$L32*'1.Demanda'!K46 -> 357660.6941 | D38: =+'2.Tarifas'!$L32*'1.Demanda'!L46 -> 382696.9427 | E38: =+'2.Tarifas'!$L32*'1.Demanda'!M46 -> 409485.7287 | F38: =+'2.Tarifas'!$L32*'1.Demanda'!N46 -> 438149.7297 | G38: =+'2.Tarifas'!$L32*'1.Demanda'!O46 -> 468820.2107
B39: Más de 35TM a 70TM | C39: =+'2.Tarifas'!$L33*'1.Demanda'!K47 -> 6734394.282 | D39: =+'2.Tarifas'!$L33*'1.Demanda'!L47 -> 7205801.882 | E39: =+'2.Tarifas'!$L33*'1.Demanda'!M47 -> 7710208.013 | F39: =+'2.Tarifas'!$L33*'1.Demanda'!N47 -> 8249922.574 | G39: =+'2.Tarifas'!$L33*'1.Demanda'!O47 -> 8827417.154
B40: Más de 70TM a 105TM | C40: =+'2.Tarifas'!$L34*'1.Demanda'!K48 -> 20623054.5 | D40: =+'2.Tarifas'!$L34*'1.Demanda'!L48 -> 22066668.31 | E40: =+'2.Tarifas'!$L34*'1.Demanda'!M48 -> 23611335.09 | F40: =+'2.Tarifas'!$L34*'1.Demanda'!N48 -> 25264128.55 | G40: =+'2.Tarifas'!$L34*'1.Demanda'!O48 -> 27032617.55
B41: Más de 105TM | C41: =+'2.Tarifas'!$L35*'1.Demanda'!K49 -> 18527.56197 | D41: =+'2.Tarifas'!$L35*'1.Demanda'!L49 -> 19824.4913 | E41: =+'2.Tarifas'!$L35*'1.Demanda'!M49 -> 21212.20569 | F41: =+'2.Tarifas'!$L35*'1.Demanda'!N49 -> 22697.06009 | G41: =+'2.Tarifas'!$L35*'1.Demanda'!O49 -> 24285.8543
B42: - Cargo mínimo: | C42: ='2.Tarifas'!$L$36*'1.Demanda'!K53 -> 62380.88691 | D42: ='2.Tarifas'!$L$36*'1.Demanda'!L53 -> 66747.54899 | E42: ='2.Tarifas'!$L$36*'1.Demanda'!M53 -> 71419.87742 | F42: ='2.Tarifas'!$L$36*'1.Demanda'!N53 -> 76419.26884 | G42: ='2.Tarifas'!$L$36*'1.Demanda'!O53 -> 81768.61766
B44: D. Sobrevuelo
B45: (En soles)
B46: Ingresos totales | C46: =SUM(C49:C52) -> 82072646.87 | D46: =SUM(D49:D52) -> 87817732.15 | E46: =SUM(E49:E52) -> 93964973.4 | F46: =SUM(F49:F52) -> 100542521.5 | G46: 107580498.1
B48: - Por rango de PMD:
B49: Hasta 55TM | C49: =+'2.Tarifas'!$L41*'1.Demanda'!K61 -> 1124044.45 | D49: =+'2.Tarifas'!$L41*'1.Demanda'!L61 -> 1202727.562 | E49: =+'2.Tarifas'!$L41*'1.Demanda'!M61 -> 1286918.491 | F49: =+'2.Tarifas'!$L41*'1.Demanda'!N61 -> 1377002.786 | G49: =+'2.Tarifas'!$L41*'1.Demanda'!O61 -> 1473392.981
B50: Más de 55TM a 115TM | C50: =+'2.Tarifas'!$L42*'1.Demanda'!K62 -> 14297513.58 | D50: =+'2.Tarifas'!$L42*'1.Demanda'!L62 -> 15298339.53 | E50: =+'2.Tarifas'!$L42*'1.Demanda'!M62 -> 16369223.3 | F50: =+'2.Tarifas'!$L42*'1.Demanda'!N62 -> 17515068.93 | G50: =+'2.Tarifas'!$L42*'1.Demanda'!O62 -> 18741123.75
B51: Más de 115TM a 200TM | C51: =+'2.Tarifas'!$L43*'1.Demanda'!K63 -> 7475263.641 | D51: =+'2.Tarifas'!$L43*'1.Demanda'!L63 -> 7998532.095 | E51: =+'2.Tarifas'!$L43*'1.Demanda'!M63 -> 8558429.342 | F51: =+'2.Tarifas'!$L43*'1.Demanda'!N63 -> 9157519.396 | G51: =+'2.Tarifas'!$L43*'1.Demanda'!O63 -> 9798545.754
B52: Más de 200TM | C52: =+'2.Tarifas'!$L44*'1.Demanda'!K64 -> 59175825.2 | D52: =+'2.Tarifas'!$L44*'1.Demanda'!L64 -> 63318132.97 | E52: =+'2.Tarifas'!$L44*'1.Demanda'!M64 -> 67750402.28 | F52: =+'2.Tarifas'!$L44*'1.Demanda'!N64 -> 72492930.43 | G52: =+'2.Tarifas'!$L44*'1.Demanda'!O64 -> 77567435.57

Sheet 4. OPEX
B1: 4. Costos de operación - OPEX (Usuarios atribuibles) | L1: Índice
B3: I. Información histórica
B4: (Expresado en soles. Fuente: Contabilidad regulatoria de CORPAC S.A.)
B5: Servicio / Partida de Costo | E5: 2017 | F5: =+E5+1 -> 2018 | G5: =+F5+1 -> 2019 | H5: =+G5+1 -> 2020 | I5: =+H5+1 -> 2021 | J5: 2022 | K5: 2023 | L5: Promedio 2017-2023
B7: A. SNAR Nacional
B8: Suministros y Materiales | E8: 3289056.576 | F8: 1577965.411 | G8: 1155468.467 | H8: 2340184.393 | I8: 7185955.799 | J8: 1685978.891 | K8: 1649509.305 | L8: =+AVERAGE(E8:K8) -> 2697731.263
B9: Gastos de Personal | E9: 44982994.65 | F9: 43469412.72 | G9: 47572068.82 | H9: 33033225.59 | I9: 37503597.09 | J9: 45447725.89 | K9: 50229056.74 | L9: =+AVERAGE(E9:K9) -> 43176868.78
B10: Servicios prestados por terceros | E10: 15668345.12 | F10: 16381705.98 | G10: 17445248 | H10: 15552886.46 | I10: 18281068.59 | J10: 20098788.24 | K10: 20484689.04 | L10: 17701818.78
B11: Mantenimiento | E11: 3333235.414 | F11: 1675655.664 | G11: 1591671.761 | H11: 1968143.27 | I11: 2475459.882 | J11: 2212567.724 | K11: 3094820.769 | L11: 2335936.355
B12: Depreciación de activos | E12: 6835035.443 | F12: 12487023.9 | G12: 11029813.9 | H12: 12408747.99 | I12: 11822902.36 | J12: 11287123.72 | K12: 14828984.63 | L12: 11528518.85
B13: Amortización de Intangibles | E13: 294736.5731 | F13: 458227.3593 | G13: 454393.872 | H13: 399791.7453 | I13: 454781.6462 | J13: 403256.5809 | K13: 303596.1853 | L13: 395540.566
B14: Seguros y tributos | E14: 1906831.882 | F14: 1567839.956 | G14: 1628183.945 | H14: 1935379.45 | I14: 2940098.973 | J14: 3464699.214 | K14: 4514079.804 | L14: 2565301.889
B15: Otros Costos | E15: 2850954.959 | F15: 2606800.097 | G15: 2393711.066 | H15: 985951.8093 | I15: 1466212.233 | J15: 1273508.503 | K15: 2535806.204 | L15: 2016134.982
B16: Costos totales | E16: =SUM(E8:E15) -> 79161190.62 | F16: =SUM(F8:F15) -> 80224631.09 | G16: =SUM(G8:G15) -> 83270559.82 | H16: =SUM(H8:H15) -> 68624310.71 | I16: =SUM(I8:I15) -> 82130076.57 | J16: 85873648.77 | K16: 97640542.67 | L16: 82417851.46
B18: B. SNAR Internacional
B19: Suministros y Materiales | E19: 697692.9185 | F19: 726028.5137 | G19: 398910.3457 | H19: 1533497.356 | I19: 1925586.999 | J19: 472447.485 | K19: 511469.2058 | L19: =+AVERAGE(E19:K19) -> 895090.4035
B20: Gastos de Personal | E20: 28616588.65 | F20: 22559704.08 | G20: 24415540.2 | H20: 13855129.54 | I20: 13779767.21 | J20: 18791706.63 | K20: 21878332.07 | L20: =+AVERAGE(E20:K20) -> 20556681.2
B21: Servicios prestados por terceros | E21: 4771371.041 | F21: 4218914.586 | G21: 4338777.859 | H21: 2862225.183 | I21: 2909420.602 | J21: 4146523.058 | K21: 5676615.187 | L21: 4131978.216
B22: Mantenimiento | E22: 932230.9842 | F22: 551253.9388 | G22: 679078.0808 | H22: 730018.8934 | I22: 610815.5538 | J22: 1205779.158 | K22: 1222554.444 | L22: 847390.1503
B23: Depreciación de activos | E23: 2260837.732 | F23: 3539683.968 | G23: 3878310.05 | H23: 3458358.388 | I23: 1998854.813 | J23: 1876797.197 | K23: 2568374.933 | L23: 2797316.726
B24: Amortización de Intangibles | E24: 191180.7705 | F24: 247952.6883 | G24: 240045.9216 | H24: 167390.0481 | I24: 154593.3243 | J24: 159612.9289 | K24: 127591.7566 | L24: 184052.4912
B25: Seguros y tributos | E25: 1350909.092 | F25: 1092669.096 | G25: 1214508.321 | H25: 1143183.153 | I25: 820295.1747 | J25: 685831.9051 | K25: 1255304.514 | L25: 1080385.894
B26: Otros Costos | E26: 1782922.451 | F26: 1285526.757 | G26: 1212083.631 | H26: 405411.1431 | I26: 467346.3771 | J26: 469122.8134 | K26: 964201.8398 | L26: 940945.0018
B27: Costos totales | E27: =SUM(E19:E26) -> 40603733.63 | F27: =SUM(F19:F26) -> 34221733.62 | G27: =SUM(G19:G26) -> 36377254.4 | H27: =SUM(H19:H26) -> 24155213.71 | I27: =SUM(I19:I26) -> 22666680.05 | J27: 27807821.17 | K27: 34204443.95 | L27: 31433840.08
B29: C. Aproximación
B30: Suministros y Materiales | E30: 2104704.063 | F30: 1554098.939 | G30: 2591206.703 | H30: 1187833.793 | I30: 4502673.639 | J30: 1727406.677 | K30: 1875721.303 | L30: =+AVERAGE(E30:K30) -> 2220520.731
B31: Gastos de Personal | E31: 40193356.01 | F31: 40666721.61 | G31: 43319229.27 | H31: 29692596.61 | I31: 30710125.83 | J31: 39500455.16 | K31: 45640882.72 | L31: =+AVERAGE(E31:K31) -> 38531909.6
B32: Servicios prestados por terceros | E32: 12913170.55 | F32: 13440364.98 | G32: 13250307.05 | H32: 11228710.84 | I32: 13285946.32 | J32: 15478543.16 | K32: 18280102.6 | L32: 13982449.36
B33: Mantenimiento | E33: 2584395.357 | F33: 1601774.357 | G33: 1436201.778 | H33: 2410679.39 | I33: 2290692.605 | J33: 1542044.055 | K33: 2395531.438 | L33: 2037331.283
B34: Depreciación de activos | E34: 7015121.353 | F34: 11539124.6 | G34: 10391075.27 | H34: 13021985.23 | I34: 10770665.48 | J34: 10516976.8 | K34: 14879735.33 | L34: 11162097.72
B35: Amortización de Intangibles | E35: 336569.1653 | F35: 610725.3533 | G35: 555408.4373 | H35: 471860.538 | I35: 487919.5054 | J35: 524007.0191 | K35: 413431.7881 | L35: 485703.1152
B36: Seguros y tributos | E36: 1690828.444 | F36: 1622683.591 | G36: 1489054.951 | H36: 1760215.381 | I36: 2333374.337 | J36: 3127485.272 | K36: 4449484.462 | L36: 2353303.777
B37: Otros Costos | E37: 2820258.301 | F37: 2898779.389 | G37: 3163480.538 | H37: 917789.4116 | I37: 1241302.205 | J37: 1271353.727 | K37: 2175883.95 | L37: 2069835.36
B38: Costos totales | E38: =SUM(E30:E37) -> 69658403.25 | F38: =SUM(F30:F37) -> 73934272.81 | G38: =SUM(G30:G37) -> 76195964 | H38: =SUM(H30:H37) -> 60691671.2 | I38: =SUM(I30:I37) -> 65622699.92 | J38: 73688271.87 | K38: 90110773.58 | L38: 72843150.95
B40: D. Sobrevuelo
B41: Suministros y Materiales | E41: 564375.0402 | F41: 752948.593 | G41: 410242.3799 | H41: 2435395.427 | I41: 3207705.212 | J41: 647161.904 | K41: 623077.5866 | L41: =+AVERAGE(E41:K41) -> 1234415.163
B42: Gastos de Personal | E42: 27644886.08 | F42: 23813240.98 | G42: 26394622.14 | H42: 20906579.2 | I42: 23131281.49 | J42: 27910897.77 | K42: 28214962.07 | L42: =+AVERAGE(E42:K42) -> 25430924.25
B43: Servicios prestados por terceros | E43: 4171236.129 | F43: 3934712.005 | G43: 4024961.75 | H43: 3701216.39 | I43: 4186183.107 | J43: 5375520.805 | K43: 6941718.203 | L43: 4619364.055
B44: Mantenimiento | E44: 850310.3331 | F44: 551161.9197 | G44: 705166.8236 | H44: 1101715.655 | I44: 991655.9266 | J44: 1900772.262 | K44: 1615323.263 | L44: 1102300.883
B45: Depreciación de activos | E45: 2530012.859 | F45: 4502331.029 | G45: 4688213.838 | H45: 5831606.592 | I45: 3562932.536 | J45: 2728702.684 | K45: 3330311.32 | L45: 3882015.837
B46: Amortización de Intangibles | E46: 184950.7558 | F46: 271424.5159 | G46: 257873.6802 | H46: 256979.5646 | I46: 259793.9452 | J46: 237527.0095 | K46: 167095.1653 | L46: 233663.5195
B47: Seguros y tributos | E47: 1339964.301 | F47: 1125307.993 | G47: 1253040.834 | H47: 1686822.111 | I47: 1334620.791 | J47: 1004989.339 | K47: 1693524.113 | L47: 1348324.212
B48: Otros Costos | E48: 1719967.172 | F48: 1356158.505 | G48: 1294505.091 | H48: 610677.5857 | I48: 787686.7733 | J48: 626278.5391 | K48: 1242723.42 | L48: 1091142.441
B49: Costos totales | E49: =SUM(E41:E48) -> 39005702.67 | F49: =SUM(F41:F48) -> 36307285.54 | G49: =SUM(G41:G48) -> 39028626.54 | H49: =SUM(H41:H48) -> 36530992.53 | I49: =SUM(I41:I48) -> 37461859.78 | J49: 40431850.31 | K49: 43828735.14 | L49: 38942150.36
B51: II. Proyección de costos de operación, por servicio de aeronavegación
B52: (Expresado en soles)
D53: 2024 | E53: =D53+1 -> 2025 | F53: =E53+1 -> 2026 | G53: =F53+1 -> 2027 | H53: =G53+1 -> 2028 | I53: 2029
B55: A. SNAR Nacional
B56: Suministros y Materiales | D56: =+VLOOKUP(B56,$B$8:$L$16,11,FALSE)*'10. Var-Sup-Gen'!K19 -> 2751685.888 | E56: =+D56*'10. Var-Sup-Gen'!L19 -> 2806719.606 | F56: =+E56*'10. Var-Sup-Gen'!M19 -> 2862853.998 | G56: =+F56*'10. Var-Sup-Gen'!N19 -> 2920111.078 | H56: =+G56*'10. Var-Sup-Gen'!O19 -> 2978513.3 | I56: =+H56*'10. Var-Sup-Gen'!P19 -> 3038083.566
B57: Gastos de Personal | E57: =+'4.1.Opex personal 2025'!D126 -> 59242918.71 | F57: =+E57*'10. Var-Sup-Gen'!M20 -> 60427777.09 | G57: =+F57*'10. Var-Sup-Gen'!N20 -> 61636332.63 | H57: =+G57*'10. Var-Sup-Gen'!O20 -> 62869059.28 | I57: =+H57*'10. Var-Sup-Gen'!P20 -> 64126440.47
B58: Servicios prestados por terceros | D58: =+VLOOKUP(B58,$B$8:$L$16,11,FALSE)*'10. Var-Sup-Gen'!K21 -> 17701818.78 | E58: =+D58*'10. Var-Sup-Gen'!L21 -> 17701818.78 | F58: =+E58*'10. Var-Sup-Gen'!M21 -> 17701818.78 | G58: =+F58*'10. Var-Sup-Gen'!N21 -> 17701818.78 | H58: =+G58*'10. Var-Sup-Gen'!O21 -> 17701818.78 | I58: =+H58*'10. Var-Sup-Gen'!P21 -> 17701818.78
B59: Mantenimiento | D59: =+VLOOKUP(B59,$B$8:$L$16,11,FALSE)*'10. Var-Sup-Gen'!K22 -> 2382655.082 | E59: =+D59*'10. Var-Sup-Gen'!L22 -> 2430308.184 | F59: =+E59*'10. Var-Sup-Gen'!M22 -> 2478914.347 | G59: =+F59*'10. Var-Sup-Gen'!N22 -> 2528492.634 | H59: =+G59*'10. Var-Sup-Gen'!O22 -> 2579062.487 | I59: =+H59*'10. Var-Sup-Gen'!P22 -> 2630643.737
B60: Seguros y tributos | D60: =+VLOOKUP(B60,$B$8:$L$16,11,FALSE)*'10. Var-Sup-Gen'!K23 -> 2616607.927 | E60: =+D60*'10. Var-Sup-Gen'!L23 -> 2668940.085 | F60: =+E60*'10. Var-Sup-Gen'!M23 -> 2722318.887 | G60: =+F60*'10. Var-Sup-Gen'!N23 -> 2776765.265 | H60: =+G60*'10. Var-Sup-Gen'!O23 -> 2832300.57 | I60: =+H60*'10. Var-Sup-Gen'!P23 -> 2888946.582
B61: Otros Costos | D61: =+VLOOKUP(B61,$B$8:$L$16,11,FALSE)*'10. Var-Sup-Gen'!K24 -> 2056457.681 | E61: =+D61*'10. Var-Sup-Gen'!L24 -> 2097586.835 | F61: =+E61*'10. Var-Sup-Gen'!M24 -> 2139538.572 | G61: =+F61*'10. Var-Sup-Gen'!N24 -> 2182329.343 | H61: =+G61*'10. Var-Sup-Gen'!O24 -> 2225975.93 | I61: =+H61*'10. Var-Sup-Gen'!P24 -> 2270495.449
B62: Costos incrementales | E62: =+'4.2. Opex Incremental'!E208 -> 904416.1017 | F62: =+'4.2. Opex Incremental'!F208 -> 953471.9461 | G62: =+'4.2. Opex Incremental'!G208 -> 953535.51 | H62: =+'4.2. Opex Incremental'!H208 -> 1239540.108 | I62: =+'4.2. Opex Incremental'!I208 -> 1303741.239
B63: Costo total | E63: =SUM(E56:E62) -> 87852708.3 | F63: 89286693.61 | G63: 90699385.24 | H63: 92426270.45 | I63: 93960169.82
B65: B. SNAR Internacional
B66: Suministros y Materiales | D66: =+VLOOKUP(B66,$B$19:$L$26,11,FALSE)*'10. Var-Sup-Gen'!K19 -> 912992.2115 | E66: =+D66*'10. Var-Sup-Gen'!L19 -> 931252.0558 | F66: =+E66*'10. Var-Sup-Gen'!M19 -> 949877.0969 | G66: =+F66*'10. Var-Sup-Gen'!N19 -> 968874.6388 | H66: =+G66*'10. Var-Sup-Gen'!O19 -> 988252.1316 | I66: =+H66*'10. Var-Sup-Gen'!P19 -> 1008017.174
B67: Gastos de Personal | E67: =+'4.1.Opex personal 2025'!D127 -> 27808127.89 | F67: =+E67*'10. Var-Sup-Gen'!M20 -> 28364290.44 | G67: =+F67*'10. Var-Sup-Gen'!N20 -> 28931576.25 | H67: =+G67*'10. Var-Sup-Gen'!O20 -> 29510207.78 | I67: =+H67*'10. Var-Sup-Gen'!P20 -> 30100411.93
B68: Servicios prestados por terceros | D68: =+VLOOKUP(B68,$B$19:$L$26,11,FALSE)*'10. Var-Sup-Gen'!K21 -> 4131978.216 | E68: =+D68*'10. Var-Sup-Gen'!L21 -> 4131978.216 | F68: =+E68*'10. Var-Sup-Gen'!M21 -> 4131978.216 | G68: =+F68*'10. Var-Sup-Gen'!N21 -> 4131978.216 | H68: =+G68*'10. Var-Sup-Gen'!O21 -> 4131978.216 | I68: =+H68*'10. Var-Sup-Gen'!P21 -> 4131978.216
B69: Mantenimiento | D69: =+VLOOKUP(B69,$B$19:$L$26,11,FALSE)*'10. Var-Sup-Gen'!K22 -> 864337.9534 | E69: =+D69*'10. Var-Sup-Gen'!L22 -> 881624.7124 | F69: =+E69*'10. Var-Sup-Gen'!M22 -> 899257.2067 | G69: =+F69*'10. Var-Sup-Gen'!N22 -> 917242.3508 | H69: =+G69*'10. Var-Sup-Gen'!O22 -> 935587.1978 | I69: =+H69*'10. Var-Sup-Gen'!P22 -> 954298.9418
B70: Seguros y tributos | D70: =+VLOOKUP(B70,$B$19:$L$26,11,FALSE)*'10. Var-Sup-Gen'!K23 -> 1101993.612 | E70: =+D70*'10. Var-Sup-Gen'!L23 -> 1124033.484 | F70: =+E70*'10. Var-Sup-Gen'!M23 -> 1146514.154 | G70: =+F70*'10. Var-Sup-Gen'!N23 -> 1169444.437 | H70: =+G70*'10. Var-Sup-Gen'!O23 -> 1192833.325 | I70: =+H70*'10. Var-Sup-Gen'!P23 -> 1216689.992
B71: Otros Costos | D71: =+VLOOKUP(B71,$B$19:$L$26,11,FALSE)*'10. Var-Sup-Gen'!K24 -> 959763.9018 | E71: =+D71*'10. Var-Sup-Gen'!L24 -> 978959.1799 | F71: =+E71*'10. Var-Sup-Gen'!M24 -> 998538.3635 | G71: =+F71*'10. Var-Sup-Gen'!N24 -> 1018509.131 | H71: =+G71*'10. Var-Sup-Gen'!O24 -> 1038879.313 | I71: =+H71*'10. Var-Sup-Gen'!P24 -> 1059656.9
B72: Costos incrementales | E72: =+'4.2. Opex Incremental'!E218 -> 90728.76669 | F72: =+'4.2. Opex Incremental'!F218 -> 105013.3531 | G72: =+'4.2. Opex Incremental'!G218 -> 105013.3531 | H72: =+'4.2. Opex Incremental'!H218 -> 188383.3934 | I72: =+'4.2. Opex Incremental'!I218 -> 207083.2156
B73: Costo total | E73: =SUM(E66:E72) -> 35946704.3 | F73: 36595468.83 | G73: 37242638.38 | H73: 37986121.36 | I73: 38678136.37
B75: C. Aproximación
B76: Suministros y Materiales | D76: =+VLOOKUP(B76,$B$30:$L$37,11,FALSE)*'10. Var-Sup-Gen'!K19 -> 2264931.146 | E76: =+D76*'10. Var-Sup-Gen'!L19 -> 2310229.768 | F76: =+E76*'10. Var-Sup-Gen'!M19 -> 2356434.364 | G76: =+F76*'10. Var-Sup-Gen'!N19 -> 2403563.051 | H76: =+G76*'10. Var-Sup-Gen'!O19 -> 2451634.312 | I76: =+H76*'10. Var-Sup-Gen'!P19 -> 2500666.998
B77: Gastos de Personal | E77: =+'4.1.Opex personal 2025'!D128 -> 52727239.45 | F77: =+E77*'10. Var-Sup-Gen'!M20 -> 53781784.24 | G77: =+F77*'10. Var-Sup-Gen'!N20 -> 54857419.92 | H77: =+G77*'10. Var-Sup-Gen'!O20 -> 55954568.32 | I77: =+H77*'10. Var-Sup-Gen'!P20 -> 57073659.69
B78: Servicios prestados por terceros | D78: =+VLOOKUP(B78,$B$30:$L$37,11,FALSE)*'10. Var-Sup-Gen'!K21 -> 13982449.36 | E78: =+D78*'10. Var-Sup-Gen'!L21 -> 13982449.36 | F78: =+E78*'10. Var-Sup-Gen'!M21 -> 13982449.36 | G78: =+F78*'10. Var-Sup-Gen'!N21 -> 13982449.36 | H78: =+G78*'10. Var-Sup-Gen'!O21 -> 13982449.36 | I78: =+H78*'10. Var-Sup-Gen'!P21 -> 13982449.36
B79: Mantenimiento | D79: =+VLOOKUP(B79,$B$30:$L$37,11,FALSE)*'10. Var-Sup-Gen'!K22 -> 2078077.908 | E79: =+D79*'10. Var-Sup-Gen'!L22 -> 2119639.467 | F79: =+E79*'10. Var-Sup-Gen'!M22 -> 2162032.256 | G79: =+F79*'10. Var-Sup-Gen'!N22 -> 2205272.901 | H79: =+G79*'10. Var-Sup-Gen'!O22 -> 2249378.359 | I79: =+H79*'10. Var-Sup-Gen'!P22 -> 2294365.926
B80: Seguros y tributos | D80: =+VLOOKUP(B80,$B$30:$L$37,11,FALSE)*'10. Var-Sup-Gen'!K23 -> 2400369.853 | E80: =+D80*'10. Var-Sup-Gen'!L23 -> 2448377.25 | F80: =+E80*'10. Var-Sup-Gen'!M23 -> 2497344.795 | G80: =+F80*'10. Var-Sup-Gen'!N23 -> 2547291.691 | H80: =+G80*'10. Var-Sup-Gen'!O23 -> 2598237.524 | I80: =+H80*'10. Var-Sup-Gen'!P23 -> 2650202.275
B81: Otros Costos | D81: =+VLOOKUP(B81,$B$30:$L$37,11,FALSE)*'10. Var-Sup-Gen'!K24 -> 2111232.067 | E81: =+D81*'10. Var-Sup-Gen'!L24 -> 2153456.709 | F81: =+E81*'10. Var-Sup-Gen'!M24 -> 2196525.843 | G81: =+F81*'10. Var-Sup-Gen'!N24 -> 2240456.36 | H81: =+G81*'10. Var-Sup-Gen'!O24 -> 2285265.487 | I81: =+H81*'10. Var-Sup-Gen'!P24 -> 2330970.797
B82: Costos incrementales | E82: =+'4.2. Opex Incremental'!E228 -> 2208730.665 | F82: =+'4.2. Opex Incremental'!F228 -> 2250362.698 | G82: =+'4.2. Opex Incremental'!G228 -> 2250571.166 | H82: =+'4.2. Opex Incremental'!H228 -> 2492556.626 | I82: =+'4.2. Opex Incremental'!I228 -> 2546999.582
B83: Costo total | E83: =SUM(E76:E82) -> 77950122.66 | F83: 79226933.55 | G83: 80487024.45 | H83: 82014089.99 | I83: 83379314.62
B85: D. Sobrevuelo
B86: Suministros y Materiales | D86: =+VLOOKUP(B86,$B$41:$L$48,11,FALSE)*'10. Var-Sup-Gen'!K19 -> 1259103.466 | E86: =+D86*'10. Var-Sup-Gen'!L19 -> 1284285.536 | F86: =+E86*'10. Var-Sup-Gen'!M19 -> 1309971.246 | G86: =+F86*'10. Var-Sup-Gen'!N19 -> 1336170.671 | H86: =+G86*'10. Var-Sup-Gen'!O19 -> 1362894.085 | I86: =+H86*'10. Var-Sup-Gen'!P19 -> 1390151.967
B87: Gastos de Personal | E87: =+'4.1.Opex personal 2025'!D129 -> 35069291.43 | F87: =+E87*'10. Var-Sup-Gen'!M20 -> 35770677.26 | G87: =+F87*'10. Var-Sup-Gen'!N20 -> 36486090.8 | H87: =+G87*'10. Var-Sup-Gen'!O20 -> 37215812.62 | I87: =+H87*'10. Var-Sup-Gen'!P20 -> 37960128.87
B88: Servicios prestados por terceros | D88: =+VLOOKUP(B88,$B$41:$L$48,11,FALSE)*'10. Var-Sup-Gen'!K21 -> 4619364.055 | E88: =+D88*'10. Var-Sup-Gen'!L21 -> 4619364.055 | F88: =+E88*'10. Var-Sup-Gen'!M21 -> 4619364.055 | G88: =+F88*'10. Var-Sup-Gen'!N21 -> 4619364.055 | H88: =+G88*'10. Var-Sup-Gen'!O21 -> 4619364.055 | I88: =+H88*'10. Var-Sup-Gen'!P21 -> 4619364.055
B89: Mantenimiento | D89: =+VLOOKUP(B89,$B$41:$L$48,11,FALSE)*'10. Var-Sup-Gen'!K22 -> 1124346.901 | E89: =+D89*'10. Var-Sup-Gen'!L22 -> 1146833.839 | F89: =+E89*'10. Var-Sup-Gen'!M22 -> 1169770.516 | G89: =+F89*'10. Var-Sup-Gen'!N22 -> 1193165.926 | H89: =+G89*'10. Var-Sup-Gen'!O22 -> 1217029.245 | I89: =+H89*'10. Var-Sup-Gen'!P22 -> 1241369.829
B90: Seguros y tributos | D90: =+VLOOKUP(B90,$B$41:$L$48,11,FALSE)*'10. Var-Sup-Gen'!K23 -> 1375290.696 | E90: =+D90*'10. Var-Sup-Gen'!L23 -> 1402796.51 | F90: =+E90*'10. Var-Sup-Gen'!M23 -> 1430852.44 | G90: =+F90*'10. Var-Sup-Gen'!N23 -> 1459469.489 | H90: =+G90*'10. Var-Sup-Gen'!O23 -> 1488658.879 | I90: =+H90*'10. Var-Sup-Gen'!P23 -> 1518432.056
B91: Otros Costos | D91: =+VLOOKUP(B91,$B$41:$L$48,11,FALSE)*'10. Var-Sup-Gen'!K24 -> 1112965.29 | E91: =+D91*'10. Var-Sup-Gen'!L24 -> 1135224.595 | F91: =+E91*'10. Var-Sup-Gen'!M24 -> 1157929.087 | G91: =+F91*'10. Var-Sup-Gen'!N24 -> 1181087.669 | H91: =+G91*'10. Var-Sup-Gen'!O24 -> 1204709.422 | I91: =+H91*'10. Var-Sup-Gen'!P24 -> 1228803.611
B92: Costos incrementales | E92: =+'4.2. Opex Incremental'!E238 -> 109797.9028 | F92: =+'4.2. Opex Incremental'!F238 -> 127084.7863 | G92: =+'4.2. Opex Incremental'!G238 -> 127084.7863 | H92: =+'4.2. Opex Incremental'!H238 -> 227977.3248 | I92: =+'4.2. Opex Incremental'!I238 -> 250607.4269
B93: Costo total | E93: =SUM(E86:E92) -> 44767593.86 | F93: 45585649.39 | G93: 46402433.4 | H93: 47336445.63 | I93: 48208857.81

Sheet 4.1.Opex personal 2025
B1: 4.1 Costos de operación (OPEX) - Gasto de Personal, Año 2025 | K1: Índice
B3: I. Información histórica
B4: (Expresado en Soles. Fuente: Contabilidad regulatoria de CORPAC S.A.)
D5: 2017 | E5: =+D5+1 -> 2018 | F5: =+E5+1 -> 2019 | G5: =+F5+1 -> 2020 | H5: =+G5+1 -> 2021 | I5: =+H5+1 -> 2022 | J5: 2023
B6: SNAR Nacional | D6: =+'4. OPEX'!E9 -> 44982994.65 | E6: =+'4. OPEX'!F9 -> 43469412.72 | F6: =+'4. OPEX'!G9 -> 47572068.82 | G6: =+'4. OPEX'!H9 -> 33033225.59 | H6: =+'4. OPEX'!I9 -> 37503597.09 | I6: =+'4. OPEX'!J9 -> 45447725.89 | J6: =+'4. OPEX'!K9 -> 50229056.74
B7: SNAR Internacional | D7: =+'4. OPEX'!E20 -> 28616588.65 | E7: =+'4. OPEX'!F20 -> 22559704.08 | F7: =+'4. OPEX'!G20 -> 24415540.2 | G7: =+'4. OPEX'!H20 -> 13855129.54 | H7: =+'4. OPEX'!I20 -> 13779767.21 | I7: =+'4. OPEX'!J20 -> 18791706.63 | J7: =+'4. OPEX'!K20 -> 21878332.07
B8: Aproximación | D8: =+'4. OPEX'!E31 -> 40193356.01 | E8: =+'4. OPEX'!F31 -> 40666721.61 | F8: =+'4. OPEX'!G31 -> 43319229.27 | G8: =+'4. OPEX'!H31 -> 29692596.61 | H8: =+'4. OPEX'!I31 -> 30710125.83 | I8: =+'4. OPEX'!J31 -> 39500455.16 | J8: =+'4. OPEX'!K31 -> 45640882.72
B9: Sobrevuelo | D9: =+'4. OPEX'!E42 -> 27644886.08 | E9: =+'4. OPEX'!F42 -> 23813240.98 | F9: =+'4. OPEX'!G42 -> 26394622.14 | G9: =+'4. OPEX'!H42 -> 20906579.2 | H9: =+'4. OPEX'!I42 -> 23131281.49 | I9: =+'4. OPEX'!J42 -> 27910897.77 | J9: =+'4. OPEX'!K42 -> 28214962.07
B10: Servicios No Regulados de Navegación Aérea | D10: 183890.4403 | E10: 131117.9886 | F10: 140704.0742 | G10: 85654.83398 | H10: 89961.75357 | I10: 112036.9001 | J10: 105391.02
B11: Total de Gastos de Personal - Aeronavegación | D11: =SUM(D6:D10) -> 141621715.8 | E11: =SUM(E6:E10) -> 130640197.4 | F11: =SUM(F6:F10) -> 141842164.5 | G11: =SUM(G6:G10) -> 97573185.78 | H11: =SUM(H6:H10) -> 105214733.4 | I11: =SUM(I6:I10) -> 131762822.3 | J11: =SUM(J6:J10) -> 146068624.6
B12: Total de Gastos de Personal - Total CORPAC | D12: 176172657.2 | E12: 170820430.2 | F12: 187290311.6 | G12: 130141214.7 | H12: 138280657 | I12: 173047225.9 | J12: 190714732.8
B13: % aeronavegación respecto Total CORPAC | D13: =D11/D$12 -> 0.8038802278 | E13: =E11/E$12 -> 0.7647808708 | F13: =F11/F$12 -> 0.7573385045 | G13: =G11/G$12 -> 0.7497485406 | H13: =H11/H$12 -> 0.7608781707 | I13: =I11/I$12 -> 0.7614269554 | J13: =J11/J$12 -> 0.7659011053
B15: * Participación del gasto de personal - Aeronavegación:
B16: (Fuente: CORPAC S.A.)
B17: Servicio | D17: 2017 | E17: =+D17+1 -> 2018 | F17: =+E17+1 -> 2019 | G17: =+F17+1 -> 2020 | H17: =+G17+1 -> 2021 | I17: =+H17+1 -> 2022 | J17: 2023 | K17: Promedio
B18: SNAR Nacional | D18: =+D6/D$11 -> 0.3176278044 | E18: 0.3327414808 | F18: 0.3353873581 | G18: 0.3385481915 | H18: 0.3564481502 | I18: =+I6/I$11 -> 0.3449207074 | J18: 0.343873004 | K18: =AVERAGE(D18:J18) -> 0.3385066709
B19: SNAR Internacional | D19: =+D7/D$11 -> 0.202063564 | E19: 0.1726857777 | F19: 0.1721317514 | G19: 0.1419973063 | H19: 0.1309680381 | I19: =+I7/I$11 -> 0.1426176693 | J19: 0.1497811876 | K19: =AVERAGE(D19:J19) -> 0.1588921849
B20: Aproximación | D20: =+D8/D$11 -> 0.2838078594 | E20: 0.3112879682 | F20: 0.3054044573 | G20: 0.3043110295 | H20: 0.29188047 | I20: =+I8/I$11 -> 0.2997845254 | J20: 0.3124619187 | K20: 0.3012768898
B21: Sobrevuelo | D21: =+D9/D$11 -> 0.19520231 | E21: 0.1822811161 | F21: 0.1860844569 | G21: 0.2142656206 | H21: 0.2198483117 | I21: =+I9/I$11 -> 0.2118268057 | J21: 0.1931623724 | K21: =AVERAGE(D21:J21) -> 0.2003815705
B22: Servicios No Regulados de Navegación Aérea | D22: 0.001298462169 | E22: 0.001003657306 | F22: 0.0009919763615 | G22: 0.0008778521813 | H22: 0.0008550300009 | I22: =+I10/I$11 -> 0.0008502922001 | J22: 0.0007215171655 | K22: 0.000942683912
B23: Total de Gastos de Personal - Aeronavegación | D23: =SUM(D18:D22) -> 1 | E23: 1 | F23: 1 | G23: 1 | H23: 1 | I23: =SUM(I18:I22) -> 1 | J23: 1 | K23: =SUM(K18:K22) -> 1
B25: II. Proyecciones por servicio de aeronavegación
B27: a. Gastos de Personal Total, Año 2025 - Aprobación de FONAFE
B28: Nota: La información del año 2025 corresponde al monto aprobado por FONAFE, mediante Oficio N° 0484-2024-GPC-FONAFE.
B29: (Expresado en Soles. Fuente: CORPAC S.A.)
B30: Tipo de gasto de personal | C30: Subdivisión | D30: Rubros | E30: ¿Se incluye en tarifa? | F30: 2025
F31: Total | G31: Aeronavegación | H31: Aeroportuario | I31: Mixto
B32: Sueldos y salarios | C32: Básica | D32: Sueldo Básico | E32: Sí | F32: =SUM(G32:I32) -> 78361827 | G32: 49367949 | H32: 12537897 | I32: 16455981
B33: Sueldos y salarios | C33: Básica | D33: Sueldo Vacacional | E33: Sí | F33: =SUM(G33:I33) -> 7110541 | G33: 4479641 | H33: 1137687 | I33: 1493213
B34: Sueldos y salarios | C34: Básica | D34: Ejercicios Anteriores Basico | E34: Sí | F34: 1638978 | G34: 1032556 | H34: 262236 | I34: 344186
B35: Sueldos y salarios | C35: Bonificaciones | D35: Bonificacion por Retorno Vacacional | E35: Sí | F35: 7110541 | G35: 4479641 | H35: 1137687 | I35: 1493213
B36: Sueldos y salarios | C36: Bonificaciones | D36: Quinquenio (Remuneracion por Tiempo de Servicio) | E36: Sí | F36: 10781374 | G36: 6792265 | H36: 1725020 | I36: 2264089
B37: Sueldos y salarios | C37: Bonificaciones | D37: Bonificacion por Antigüedad 30% | E37: Sí | F37: 0 | G37: 0 | H37: 0 | I37: 0
B38: Sueldos y salarios | C38: Bonificaciones | D38: Bonificacion Consolidada (Incremento 10.23 Remun) | E38: Sí | F38: 280903 | G38: 176969 | H38: 44944 | I38: 58990
B39: Sueldos y salarios | C39: Bonificaciones | D39: Otras Bonificaciones (Bolsa de cierre y otro similares) | E39: No | F39: 8430000 | G39: 5310900 | H39: 1348800 | I39: 1770300
B40: Sueldos y salarios | C40: Bonificaciones | D40: Bonificacion unica por productividad (por Norma Legal). | E40: Sí | F40: 0 | G40: 0 | H40: 0 | I40: 0
B41: Sueldos y salarios | C41: Bonificaciones | D41: Bonificación Extraordinaria (Ley 29714) | E41: Sí | F41: 1939195 | G41: 1221693 | H41: 310271 | I41: 407231
B42: Sueldos y salarios | C42: Bonificaciones | D42: Ejercicios Anteriores Bonificaciones | E42: Sí | F42: 415128 | G42: 261531 | H42: 66420 | I42: 87177
B43: Sueldos y salarios | C43: Gratificaciones | D43: Gratificaciones Ordinarias (1er y 2do semestre) | E43: Sí | F43: 21546615 | G43: 13574367 | H43: 3447459 | I43: 4524789
B44: Sueldos y salarios | C44: Gratificaciones | D44: Gratificacion Extraordinario por Antigüedad (Tiempo de Ss.) | E44: Sí | F44: 434726 | G44: 273877 | H44: 69557 | I44: 91292
B45: Sueldos y salarios | C45: Gratificaciones | D45: Gratificacion por Balance | E45: Sí | F45: 189156 | G45: 119168 | H45: 30265 | I45: 39723
B46: Sueldos y salarios | C46: Gratificaciones | D46: Ejercicios Anteriores Gratificaciones | E46: Sí | F46: 242312 | G46: 152657 | H46: 38770 | I46: 50885
B47: Sueldos y salarios | C47: Asignaciones | D47: Asignacion Familiar | E47: Sí | F47: 1429996 | G47: 900897 | H47: 228800 | I47: 300299
B48: Sueldos y salarios | C48: Asignaciones | D48: Asignacion Escolar | E48: Sí | F48: 3886100 | G48: 2448243 | H48: 621776 | I48: 816081
B49: Sueldos y salarios | C49: Asignaciones | D49: Asignación por Diferencia Remunerativa (Encargaturas) | E49: Sí | F49: 1680000 | G49: 1058400 | H49: 268800 | I49: 352800
B50: Sueldos y salarios | C50: Asignaciones | D50: Asignacion Sepelio y Luto | E50: Sí | F50: 262175 | G50: 165170 | H50: 41948 | I50: 55057
B51: Sueldos y salarios | C51: Asignaciones | D51: Asignación por Día 31 trabajado para Grupo CTA | E51: Sí | F51: 560691 | G51: 353235 | H51: 89711 | I51: 117745
B52: Sueldos y salarios | C52: Asignaciones | D52: Años Anteriores Asignaciones | E52: Sí | F52: 27528 | G52: 17343 | H52: 4404 | I52: 5781
B53: Sueldos y salarios | C53: Horas extras | D53: Horas Extraordinarias (25% -35%) | E53: Sí | F53: 4761668 | G53: 2999851 | H53: 761867 | I53: 999950
B54: Sueldos y salarios | C54: Horas extras | D54: Feriados Trabajados | E54: Sí | F54: 1592780 | G54: 1003451 | H54: 254845 | I54: 334484
B55: Sueldos y salarios | C55: Horas extras | D55: Horas Libres Laborados | E55: Sí | F55: 15184743 | G55: 9566388 | H55: 2429559 | I55: 3188796
B56: Sueldos y salarios | C56: Horas extras | D56: Ejercicios Anteriores Horas Extras | E56: Sí | F56: 235780 | G56: 148541 | H56: 37725 | I56: 49514
B57: CTS | C57: CTS | D57: Compensacion Tiempo Servicio Empleado Depositado | E57: Sí | F57: 13123120 | G57: 8267565 | H57: 2099700 | I57: 2755855
B58: CTS | C58: CTS | D58: Ejercicios Anteriores CTS | E58: Sí | F58: 157297 | G58: 99097 | H58: 25168 | I58: 33032
B59: Seguridad y previsión social | C59: Seguridad y previsión social | D59: Essalud - Seguro Social | E59: Sí | F59: 14032687 | G59: 8840592 | H59: 2245231 | I59: 2946864
B60: Seguridad y previsión social | C60: Seguridad y previsión social | D60: Seguro de Vida Ley DL 688 | E60: Sí | F60: 948078 | G60: 597289 | H60: 151693 | I60: 199096
B61: Seguridad y previsión social | C61: Seguridad y previsión social | D61: Seguro Accidente Personal (Seguro Accidente de Viaje) | E61: Sí | F61: 82658 | G61: 52075 | H61: 13225 | I61: 17358
B62: Seguridad y previsión social | C62: Seguridad y previsión social | D62: Ejercicios Anteriores Seguridad y Prevision Social | E62: Sí | F62: 87456 | G62: 55097 | H62: 13993 | I62: 18366
B63: Dietas del directorio | C63: Dietas del directorio | D63: Dietas del Directorio (Asignacion por Sesion) | E63: Sí | F63: 285000 | G63: 179550 | H63: 45600 | I63: 59850
B64: Capacitación | C64: Capacitación | D64: Capacitacion Empleados (Personal Administrativo | E64: Sí | F64: 736000 | G64: 463680 | H64: 117760 | I64: 154560
B65: Capacitación | C65: Capacitación | D65: Curso Basico Formacion C.T.A. | E65: Sí | F65: 6332566 | G65: 3989516 | H65: 1013211 | I65: 1329839
B66: Capacitación | C66: Capacitación | D66: Capacitacion Personal Tecnico | E66: Sí | F66: 3524150 | G66: 2220214 | H66: 563865 | I66: 740071
B67: Capacitación | C67: Capacitación | D67: Curso de Formación y Entrenamiento para Personal DGAC | E67: Sí | F67: 286470 | G67: 180476 | H67: 45835 | I67: 60159
B68: Capacitación | C68: Capacitación | D68: Ejercicios Anteriores Capacitacion | E68: Sí | F68: 78760 | G68: 49619 | H68: 12601 | I68: 16540
B69: Jubilaciones y pensiones | C69: Jubilaciones y pensiones | D69: Pension y Jubilacion | E69: Sí | F69: 0 | G69: 0 | H69: 0 | I69: 0
B70: Laudos que aplican a SITE-SITPRUCOPR y SUCTA | C70: Laudo | D70: Laudo | E70: Sí | F70: 0 | G70: 0 | H70: 0 | I70: 0
B71: Otros gastos de personal | C71: Refrigerio | D71: Alimentos por Vales | E71: No | F71: 45000 | G71: 28350 | H71: 7200 | I71: 9450
B72: Otros gastos de personal | C72: UNIFORMES (compensación económica) | D72: Asignacion Vestuarios y Otros Implementos | E72: Sí | F72: 4033600 | G72: 2541168 | H72: 645376 | I72: 847056
B73: Otros gastos de personal | C73: UNIFORMES (compensación económica) | D73: Ejercicios Anteriores Uniforme | E73: Sí | F73: 6780 | G73: 4271 | H73: 1085 | I73: 1424
B74: Otros gastos de personal | C74: Asistencia médica | D74: (Auto) Seguro de Asistencia Medica Trabajadores | E74: Sí | F74: 13483240 | G74: 8494441 | H74: 2157319 | I74: 2831480
B75: Otros gastos de personal | C75: Asistencia médica | D75: Seguro Medico Practicante | E75: Sí | F75: 369929 | G75: 233055 | H75: 59189 | I75: 77685
B76: Otros gastos de personal | C76: Asistencia médica | D76: Servicio Médico Personal Aeronáutico | E76: Sí | F76: 668600 | G76: 421218 | H76: 106976 | I76: 140406
B77: Otros gastos de personal | C77: Asistencia médica | D77: Habilitación y Renovacion Licencia Personal Aeronáutico | E77: Sí | F77: 54000 | G77: 34020 | H77: 8640 | I77: 11340
B78: Otros gastos de personal | C78: Asistencia médica | D78: Examenes Médicos Ocupacionales Ley Nº 29783 | E78: Sí | F78: 367000 | G78: 231210 | H78: 58720 | I78: 77070
B79: Otros gastos de personal | C79: Asistencia médica | D79: Programa Médico Oncologico (titulares) | E79: Sí | F79: 0 | G79: 0 | H79: 0 | I79: 0
B80: Otros gastos de personal | C80: Asistencia médica | D80: Ejercicios Anteriores Asistencia Medica | E80: Sí | F80: 75000 | G80: 47250 | H80: 12000 | I80: 15750
B81: Otros gastos de personal | C81: Asistencia médica | D81: Cobertura Seguro PIRV 2017 | E81: Sí | F81: 600000 | G81: 378000 | H81: 96000 | I81: 126000
B82: Otros gastos de personal | C82: Seguro complementario de trabajo de riesgo | D82: Seguro Complementario de Trabajo de Alto Riesgo | E82: Sí | F82: 507763 | G82: 319891 | H82: 81242 | I82: 106630
B83: Otros gastos de personal | C83: Seguro complementario de trabajo de riesgo | D83: Ejercicios Anteriores SCTR | E83: Sí | F83: 9980 | G83: 6287 | H83: 1597 | I83: 2096
B84: Otros gastos de personal | C84: Pago de indemnización por cese de relación laboral | D84: Indemnizacion Especial según D.L. 728 | E84: No | F84: 0 | G84: 0 | H84: 0 | I84: 0
B85: Otros gastos de personal | C85: Incentivos por retiro voluntario (GIP) | D85: Programa Retiro Voluntario con Incentivo | E85: Sí | F85: 13100000 | G85: 8253000 | H85: 2096000 | I85: 2751000
B86: Otros gastos de personal | C86: Celebraciones | D86: Celebracion | E86: No | F86: 0 | G86: 0 | H86: 0 | I86: 0
B87: Otros gastos de personal | C87: Bonos de productividad (Convenio de Gestión) | D87: Bono de Productividad | E87: Sí | F87: 0 | G87: 0 | H87: 0 | I87: 0
B88: Otros gastos de personal | C88: Participación de trabajadores | D88: Participacion de Trabajadores | E88: No | F88: 700000 | G88: 441000 | H88: 112000 | I88: 147000
B89: Otros (GIP) | C89: Otros (GIP) | D89: Gastos Rehabilitacion y Becas Hijos Trabajadores | E89: Sí | F89: 71186 | G89: 44847 | H89: 11390 | I89: 14949
B90: Otros (GIP) | C90: Otros (GIP) | D90: Indemnizacion Vacaciones No Disfrutadas | E90: Sí | F90: 0 | G90: 0 | H90: 0 | I90: 0
B91: Otros (GIP) | C91: Otros (GIP) | D91: Reduccion Periodo Vacacional | E91: Sí | F91: 120000 | G91: 75600 | H91: 19200 | I91: 25200
B92: Otros (GIP) | C92: Otros (GIP) | D92: Programa de Asistencia Social | E92: Sí | F92: 1040136 | G92: 655286 | H92: 166422 | I92: 218428
B93: Otros (GIP) | C93: Otros (GIP) | D93: Practicas Pro y Pre Profesionales | E93: Sí | F93: 1598025 | G93: 1006756 | H93: 255684 | I93: 335585
B94: Otros (GIP) | C94: Otros (GIP) | D94: Canasta Navideña | E94: Sí | F94: 2635100 | G94: 1660113 | H94: 421616 | I94: 553371
B95: Otros (GIP) | C95: Otros (GIP) | D95: Ejercicios Anteriores Otros | E95: Sí | F95: 25000 | G95: 15750 | H95: 4000 | I95: 5250
B96: Otros (GIP) | C96: Otros (GIP) | D96: Vales de Prestación Alimentaria | E96: No | F96: 8636000 | G96: 5440680 | H96: 1381760 | I96: 1813560
B97: Total | F97: =SUM(F32:F96) -> 255923338 | G97: =SUM(G32:G96) -> 161231696 | H97: 40947746 | I97: 53743896
B99: * Resumen de Gastos de personal:
D100: 2025
B101: Aeronavegación | D101: =+G97 -> 161231696
B102: Aeroportuario | D102: =+H97 -> 40947746
B103: Mixto | D103: =+I97 -> 53743896
B104: Total | D104: =SUM(D101:D103) -> 255923338
B106: b. Gastos de Personal a incluirse en las tarifas
B107: (Expresado en Soles)
D108: 2025
B109: Aeronavegación | D109: =SUMIF($E$32:$E$96,"Sí",G$32:G$96) -> 150010766
B110: Aeroportuario | D110: =SUMIF($E$32:$E$96,"Sí",H$32:H$96) -> 38097986
B111: Mixto | D111: =SUMIF($E$32:$E$96,"Sí",I$32:I$96) -> 50003586
B112: Total | D112: =SUM(D109:D111) -> 238112338
B114: c. Asignación de Gastos de personal a Aeronavegación
B115: (Expresado en Soles)
D116: 2025
B117: Aeronavegación | D117: =+D109 -> 150010766
B118: Mixto | D118: =+D111*'10. Var-Sup-Gen'!K26 -> 25001793
B119: Total | D119: =SUM(D117:D118) -> 175012559
B120: Nota: Se considera el 100% de los gastos de personal asignados a aeronavegación y el 50% de los considerados como mixtos.
B122: d. Gastos de personal - Total aeronavegación
B123: (Expresado en Soles)
B124: Concepto | C124: % Asignación a Aeronavegación | D124: 2025
B125: Gastos de personal - Total aeronavegación | D125: =+D119 -> 175012559
B126: SNAR Nacional | C126: =+K18 -> 0.3385066709 | D126: =+$C126*D$125 -> 59242918.71
B127: SNAR Internacional | C127: =+K19 -> 0.1588921849 | D127: =+$C127*D$125 -> 27808127.89
B128: Aproximación | C128: =+K20 -> 0.3012768898 | D128: =+$C128*D$125 -> 52727239.45
B129: Sobrevuelo | C129: =+K21 -> 0.2003815705 | D129: =+$C129*D$125 -> 35069291.43
B130: Total Aeronavegación regulados | D130: =SUM(D126:D129) -> 174847577.5

Sheet 4.2. Opex Incremental
B1: 4.2 Costos de operación (OPEX) Incremental | AK1: Índice
B3: I. Costos incrementales no relacionados con la ampliación del AIJC
B5: a. Determinación del costo unitario de las actividades de mantenimiento
B7: i. Información histórica al año 2023
B8: (Expresado en soles. Fuente: Contabilidad regulatoria de CORPAC S.A.)
B9: Rubros | C9: 2017 | D9: 2018 | E9: 2019 | F9: 2020 | G9: 2021 | H9: 2022 | I9: 2023 | J9: Participación (%)
B10: Suministros y Materiales | C10: 1457892.958 | D10: 3308214.066 | E10: 2968335.035 | F10: 4671567.807 | G10: 8151346.008 | H10: 2610746.86 | I10: 2824370.087 | J10: =+AVERAGE(C10/C$13,D10/D$13,E10/E$13,F10/F$13,G10/G$13,H10/H13,I10/I13) -> 0.1959574223
B11: Mantenimiento | C11: 7700172.088 | D11: 4379845.88 | E11: 4412118.443 | F11: 6210557.208 | G11: 6368623.967 | H11: 6861163.199 | I11: 8328229.914 | J11: =+AVERAGE(C11/C$13,D11/D$13,E11/E$13,F11/F$13,G11/G$13,H11/H$13,I11/I$13) -> 0.3282350837
B12: Servicios prestados por terceros | C12: 9648092.437 | D12: 7405678.864 | E12: 5753210.416 | F12: 5393229.798 | G12: 9389519.401 | H12: 12769232.14 | I12: 16096448.99 | J12: =+AVERAGE(C12/C$13,D12/D$13,E12/E$13,F12/F$13,G12/G$13,H12/H$13,I12/I$13) -> 0.475807494
B13: Costo total del mantenimiento | C13: =SUM(C10:C12) -> 18806157.48 | D13: =SUM(D10:D12) -> 15093738.81 | E13: 13133663.89 | F13: 16275354.81 | G13: 23909489.38 | H13: 22241142.2 | I13: 27249048.99 | J13: =+AVERAGE(C13/C$13,D13/D$13,E13/E$13,F13/F$13,G13/G$13) -> 1
B15: ii. Cantidades de mantenimiento realizadas en el periodo 2017-2023
B16: (Fuente: CORPAC)
C17: 2017 | D17: 2018 | E17: 2019 | F17: 2020 | G17: 2021 | H17: 2022 | I17: 2023
B18: Áreas de sistemas de comunicaciones aeronáuticas | C18: 9978 | D18: 9190 | E18: 8365 | F18: 5747 | G18: 7724 | H18: 8779 | I18: 8042
B20: iii. Costo unitario de las actividades de mantenimiento
B21: (Expresado en soles)
B22: Detalle | C22: 2017 | D22: 2018 | E22: 2019 | F22: 2020 | G22: 2021 | H22: 2022 | I22: 2023 | J22: Promedio
B23: Costo total de las actividades de mantenimiento | C23: =+C13 -> 18806157.48 | D23: =+D13 -> 15093738.81 | E23: 13133663.89 | F23: 16275354.81 | G23: 23909489.38 | H23: 22241142.2 | I23: 27249048.99 | J23: =AVERAGE(C23:I23) -> 19529799.37
B24: Número de actividades de mantenimiento desarrolladas | C24: =+C18 -> 9978 | D24: =+D18 -> 9190 | E24: 8365 | F24: 5747 | G24: 7724 | H24: 8779 | I24: 8042 | J24: =AVERAGE(C24:I24) -> 8260.714286
B25: Costo unitario de las actividades de mantenimiento | C25: =+C23/C24 -> 1884.762225 | D25: =+D23/D24 -> 1642.409011 | E25: 1570.073388 | F25: 2831.974041 | G25: 3095.48024 | H25: 2533.448252 | I25: 3388.342327 | J25: 2364.178047
B27: iv. Costo unitario de las actividades de mantenimiento por tipo de gasto
B28: (Expresado en soles)
B29: Costos unitarios | C29: Base
B30: Suministros y Materiales | C30: =$J$25*J10 -> 463.2782359
B31: Mantenimiento | C31: =$J$25*J11 -> 776.0061792
B32: Servicios Prestados por Terceros | C32: =$J$25*J12 -> 1124.893632
B33: Total | C33: =SUM(C30:C32) -> 2364.178047
B35: b. Actividades de mantenimiento incrementales proyectadas por CORPAC. Sin incluir la ampliación del AIJC
B36: (Fuente: CORPAC)
E37: 2025 | F37: 2026 | G37: 2027 | H37: 2028 | I37: 2029
B38: Número de actividades de mantenimiento incrementales | E38: 1048 | F38: 1213 | G38: 1213 | H38: 2176 | I38: 2392
B40: c. Proyección de costos incrementales, sin incluir la ampliación del AIJC
B41: (Expresado en soles)
B42: Costos incrementales | E42: 2025 | F42: 2026 | G42: 2027 | H42: 2028 | I42: 2029
B43: Suministros y Materiales | E43: =+$C30*E$38 -> 485515.5912 | F43: 561956.5001 | G43: 561956.5001 | H43: 1008093.441 | I43: 1108161.54
B44: Mantenimiento | E44: =+$C31*E$38 -> 813254.4758 | F44: 941295.4953 | G44: 941295.4953 | H44: 1688589.446 | I44: 1856206.781
B45: Servicios Prestados por Terceros | E45: 1178888.526 | F45: 1364495.976 | G45: 1364495.976 | H45: 2447768.543 | I45: 2690745.568
B46: Total | E46: =+SUM(E43:E45) -> 2477658.593 | F46: =+SUM(F43:F45) -> 2867747.971 | G46: =+SUM(G43:G45) -> 2867747.971 | H46: =+SUM(H43:H45) -> 5144451.43 | I46: =+SUM(I43:I45) -> 5655113.889
B48: d. Participación de los servicios en los costos incrementales NO relacionados con la ampliación del AIJC
B49: (Expresado en soles. Fuente: Contabilidad regulatoria de CORPAC S.A.)
B50: Detalle | C50: 2017 | H50: 2018 | M50: 2019 | R50: 2020 | W50: 2021 | AB50: 2022 | AG50: 2023
C51: SNAR nacional | D51: SNAR Internacional | E51: Aproximación | F51: Sobrevuelo | G51: Total | H51: SNAR nacional | I51: SNAR Internacional | J51: Aproximación | K51: Sobrevuelo | L51: Total | M51: SNAR nacional | N51: SNAR Internacional | O51: Aproximación | P51: Sobrevuelo | Q51: Total | R51: SNAR nacional | S51: SNAR Internacional | T51: Aproximación | U51: Sobrevuelo | V51: Total | W51: SNAR nacional | X51: SNAR Internacional | Y51: Aproximación | Z51: Sobrevuelo | AA51: Total | AB51: SNAR nacional | AC51: SNAR Internacional | AD51: Aproximación | AE51: Sobrevuelo | AF51: Total | AG51: SNAR nacional | AH51: SNAR Internacional | AI51: Aproximación | AJ51: Sobrevuelo | AK51: Total
B52: Suministros y Materiales | C52: =+VLOOKUP($B52,'4. OPEX'!$B$8:$K$15,4,FALSE) -> 3289056.576 | D52: =+VLOOKUP($B52,'4. OPEX'!$B$19:$K$26,4,FALSE) -> 697692.9185 | E52: =+VLOOKUP($B52,'4. OPEX'!$B$30:$K$37,4,FALSE) -> 2104704.063 | F52: =+VLOOKUP($B52,'4. OPEX'!$B$41:$K$48,4,FALSE) -> 564375.0402 | G52: =+SUM(C52:F52) -> 6655828.597 | H52: =+VLOOKUP($B52,'4. OPEX'!$B$8:$K$15,5,FALSE) -> 1577965.411 | I52: =+VLOOKUP($B52,'4. OPEX'!$B$19:$K$26,5,FALSE) -> 726028.5137 | J52: =+VLOOKUP($B52,'4. OPEX'!$B$30:$K$37,5,FALSE) -> 1554098.939 | K52: =+VLOOKUP($B52,'4. OPEX'!$B$41:$K$48,5,FALSE) -> 752948.593 | L52: =+SUM(H52:K52) -> 4611041.457 | M52: =+VLOOKUP($B52,'4. OPEX'!$B$8:$K$15,6,FALSE) -> 1155468.467 | N52: =+VLOOKUP($B52,'4. OPEX'!$B$19:$K$26,6,FALSE) -> 398910.3457 | O52: =+VLOOKUP($B52,'4. OPEX'!$B$30:$K$37,6,FALSE) -> 2591206.703 | P52: =+VLOOKUP($B52,'4. OPEX'!$B$41:$K$48,6,FALSE) -> 410242.3799 | Q52: =+SUM(M52:P52) -> 4555827.896 | R52: =+VLOOKUP($B52,'4. OPEX'!$B$8:$K$15,7,FALSE) -> 2340184.393 | S52: =+VLOOKUP($B52,'4. OPEX'!$B$19:$K$26,7,FALSE) -> 1533497.356 | T52: =+VLOOKUP($B52,'4. OPEX'!$B$30:$K$37,7,FALSE) -> 1187833.793 | U52: =+VLOOKUP($B52,'4. OPEX'!$B$41:$K$48,7,FALSE) -> 2435395.427 | V52: =+SUM(R52:U52) -> 7496910.969 | W52: =+VLOOKUP($B52,'4. OPEX'!$B$8:$K$15,8,FALSE) -> 7185955.799 | X52: =+VLOOKUP($B52,'4. OPEX'!$B$19:$K$26,8,FALSE) -> 1925586.999 | Y52: =+VLOOKUP($B52,'4. OPEX'!$B$30:$K$37,8,FALSE) -> 4502673.639 | Z52: =+VLOOKUP($B52,'4. OPEX'!$B$41:$K$48,8,FALSE) -> 3207705.212 | AA52: =+SUM(W52:Z52) -> 16821921.65 | AB52: =+VLOOKUP($B52,'4. OPEX'!$B$8:$K$15,9,FALSE) -> 1685978.891 | AC52: =+VLOOKUP($B52,'4. OPEX'!$B$19:$K$26,9,FALSE) -> 472447.485 | AD52: =+VLOOKUP($B52,'4. OPEX'!$B$30:$K$37,9,FALSE) -> 1727406.677 | AE52: =+VLOOKUP($B52,'4. OPEX'!$B$41:$K$48,9,FALSE) -> 647161.904 | AF52: =+SUM(AB52:AE52) -> 4532994.958 | AG52: =+VLOOKUP($B52,'4. OPEX'!$B$8:$K$15,10,FALSE) -> 1649509.305 | AH52: =+VLOOKUP($B52,'4. OPEX'!$B$19:$K$26,10,FALSE) -> 511469.2058 | AI52: =+VLOOKUP($B52,'4. OPEX'!$B$30:$K$37,10,FALSE) -> 1875721.303 | AJ52: =+VLOOKUP($B52,'4. OPEX'!$B$41:$K$48,10,FALSE) -> 623077.5866 | AK52: =+SUM(AG52:AJ52) -> 4659777.4
B53: Servicios prestados por terceros | C53: =+VLOOKUP($B53,'4. OPEX'!$B$8:$K$15,4,FALSE) -> 15668345.12 | D53: =+VLOOKUP($B53,'4. OPEX'!$B$19:$K$26,4,FALSE) -> 4771371.041 | E53: =+VLOOKUP($B53,'4. OPEX'!$B$30:$K$37,4,FALSE) -> 12913170.55 | F53: =+VLOOKUP($B53,'4. OPEX'!$B$41:$K$48,4,FALSE) -> 4171236.129 | G53: =+SUM(C53:F53) -> 37524122.84 | H53: =+VLOOKUP($B53,'4. OPEX'!$B$8:$K$15,5,FALSE) -> 16381705.98 | I53: =+VLOOKUP($B53,'4. OPEX'!$B$19:$K$26,5,FALSE) -> 4218914.586 | J53: =+VLOOKUP($B53,'4. OPEX'!$B$30:$K$37,5,FALSE) -> 13440364.98 | K53: =+VLOOKUP($B53,'4. OPEX'!$B$41:$K$48,5,FALSE) -> 3934712.005 | L53: =+SUM(H53:K53) -> 37975697.55 | M53: =+VLOOKUP($B53,'4. OPEX'!$B$8:$K$15,6,FALSE) -> 17445248 | N53: =+VLOOKUP($B53,'4. OPEX'!$B$19:$K$26,6,FALSE) -> 4338777.859 | O53: =+VLOOKUP($B53,'4. OPEX'!$B$30:$K$37,6,FALSE) -> 13250307.05 | P53: =+VLOOKUP($B53,'4. OPEX'!$B$41:$K$48,6,FALSE) -> 4024961.75 | Q53: =+SUM(M53:P53) -> 39059294.66 | R53: =+VLOOKUP($B53,'4. OPEX'!$B$8:$K$15,7,FALSE) -> 15552886.46 | S53: =+VLOOKUP($B53,'4. OPEX'!$B$19:$K$26,7,FALSE) -> 2862225.183 | T53: =+VLOOKUP($B53,'4. OPEX'!$B$30:$K$37,7,FALSE) -> 11228710.84 | U53: =+VLOOKUP($B53,'4. OPEX'!$B$41:$K$48,7,FALSE) -> 3701216.39 | V53: =+SUM(R53:U53) -> 33345038.86 | W53: =+VLOOKUP($B53,'4. OPEX'!$B$8:$K$15,8,FALSE) -> 18281068.59 | X53: =+VLOOKUP($B53,'4. OPEX'!$B$19:$K$26,8,FALSE) -> 2909420.602 | Y53: =+VLOOKUP($B53,'4. OPEX'!$B$30:$K$37,8,FALSE) -> 13285946.32 | Z53: =+VLOOKUP($B53,'4. OPEX'!$B$41:$K$48,8,FALSE) -> 4186183.107 | AA53: =+SUM(W53:Z53) -> 38662618.62 | AB53: =+VLOOKUP($B53,'4. OPEX'!$B$8:$K$15,9,FALSE) -> 20098788.24 | AC53: =+VLOOKUP($B53,'4. OPEX'!$B$19:$K$26,9,FALSE) -> 4146523.058 | AD53: =+VLOOKUP($B53,'4. OPEX'!$B$30:$K$37,9,FALSE) -> 15478543.16 | AE53: =+VLOOKUP($B53,'4. OPEX'!$B$41:$K$48,9,FALSE) -> 5375520.805 | AF53: =+SUM(AB53:AE53) -> 45099375.26 | AG53: =+VLOOKUP($B53,'4. OPEX'!$B$8:$K$15,10,FALSE) -> 20484689.04 | AH53: =+VLOOKUP($B53,'4. OPEX'!$B$19:$K$26,10,FALSE) -> 5676615.187 | AI53: =+VLOOKUP($B53,'4. OPEX'!$B$30:$K$37,10,FALSE) -> 18280102.6 | AJ53: =+VLOOKUP($B53,'4. OPEX'!$B$41:$K$48,10,FALSE) -> 6941718.203 | AK53: =+SUM(AG53:AJ53) -> 51383125.03
B54: Mantenimiento | C54: =+VLOOKUP($B54,'4. OPEX'!$B$8:$K$15,4,FALSE) -> 3333235.414 | D54: =+VLOOKUP($B54,'4. OPEX'!$B$19:$K$26,4,FALSE) -> 932230.9842 | E54: =+VLOOKUP($B54,'4. OPEX'!$B$30:$K$37,4,FALSE) -> 2584395.357 | F54: =+VLOOKUP($B54,'4. OPEX'!$B$41:$K$48,4,FALSE) -> 850310.3331 | G54: =+SUM(C54:F54) -> 7700172.088 | H54: =+VLOOKUP($B54,'4. OPEX'!$B$8:$K$15,5,FALSE) -> 1675655.664 | I54: =+VLOOKUP($B54,'4. OPEX'!$B$19:$K$26,5,FALSE) -> 551253.9388 | J54: =+VLOOKUP($B54,'4. OPEX'!$B$30:$K$37,5,FALSE) -> 1601774.357 | K54: =+VLOOKUP($B54,'4. OPEX'!$B$41:$K$48,5,FALSE) -> 551161.9197 | L54: =+SUM(H54:K54) -> 4379845.88 | M54: =+VLOOKUP($B54,'4. OPEX'!$B$8:$K$15,6,FALSE) -> 1591671.761 | N54: =+VLOOKUP($B54,'4. OPEX'!$B$19:$K$26,6,FALSE) -> 679078.0808 | O54: =+VLOOKUP($B54,'4. OPEX'!$B$30:$K$37,6,FALSE) -> 1436201.778 | P54: =+VLOOKUP($B54,'4. OPEX'!$B$41:$K$48,6,FALSE) -> 705166.8236 | Q54: =+SUM(M54:P54) -> 4412118.443 | R54: =+VLOOKUP($B54,'4. OPEX'!$B$8:$K$15,7,FALSE) -> 1968143.27 | S54: =+VLOOKUP($B54,'4. OPEX'!$B$19:$K$26,7,FALSE) -> 730018.8934 | T54: =+VLOOKUP($B54,'4. OPEX'!$B$30:$K$37,7,FALSE) -> 2410679.39 | U54: =+VLOOKUP($B54,'4. OPEX'!$B$41:$K$48,7,FALSE) -> 1101715.655 | V54: =+SUM(R54:U54) -> 6210557.208 | W54: =+VLOOKUP($B54,'4. OPEX'!$B$8:$K$15,8,FALSE) -> 2475459.882 | X54: =+VLOOKUP($B54,'4. OPEX'!$B$19:$K$26,8,FALSE) -> 610815.5538 | Y54: =+VLOOKUP($B54,'4. OPEX'!$B$30:$K$37,8,FALSE) -> 2290692.605 | Z54: =+VLOOKUP($B54,'4. OPEX'!$B$41:$K$48,8,FALSE) -> 991655.9266 | AA54: =+SUM(W54:Z54) -> 6368623.967 | AB54: =+VLOOKUP($B54,'4. OPEX'!$B$8:$K$15,9,FALSE) -> 2212567.724 | AC54: =+VLOOKUP($B54,'4. OPEX'!$B$19:$K$26,9,FALSE) -> 1205779.158 | AD54: =+VLOOKUP($B54,'4. OPEX'!$B$30:$K$37,9,FALSE) -> 1542044.055 | AE54: =+VLOOKUP($B54,'4. OPEX'!$B$41:$K$48,9,FALSE) -> 1900772.262 | AF54: =+SUM(AB54:AE54) -> 6861163.199 | AG54: =+VLOOKUP($B54,'4. OPEX'!$B$8:$K$15,10,FALSE) -> 3094820.769 | AH54: =+VLOOKUP($B54,'4. OPEX'!$B$19:$K$26,10,FALSE) -> 1222554.444 | AI54: =+VLOOKUP($B54,'4. OPEX'!$B$30:$K$37,10,FALSE) -> 2395531.438 | AJ54: =+VLOOKUP($B54,'4. OPEX'!$B$41:$K$48,10,FALSE) -> 1615323.263 | AK54: =+SUM(AG54:AJ54) -> 8328229.914
B56: Detalle | C56: 2017 | H56: 2018 | M56: 2019 | R56: 2020 | W56: 2021 | AB56: 2022 | AG56: 2023
C57: SNAR nacional | D57: SNAR Internacional | E57: Aproximación | F57: Sobrevuelo | G57: Total | H57: SNAR nacional | I57: SNAR Internacional | J57: Aproximación | K57: Sobrevuelo | L57: Total | M57: SNAR nacional | N57: SNAR Internacional | O57: Aproximación | P57: Sobrevuelo | Q57: Total | R57: SNAR nacional | S57: SNAR Internacional | T57: Aproximación | U57: Sobrevuelo | V57: Total | W57: SNAR nacional | X57: SNAR Internacional | Y57: Aproximación | Z57: Sobrevuelo | AA57: Total | AB57: SNAR nacional | AC57: SNAR Internacional | AD57: Aproximación | AE57: Sobrevuelo | AF57: Total | AG57: SNAR nacional | AH57: SNAR Internacional | AI57: Aproximación | AJ57: Sobrevuelo | AK57: Total
B58: Suministros y Materiales | C58: =+C52/$G52 -> 0.4941618505 | D58: 0.1048243518 | E58: 0.316219691 | F58: 0.0847941067 | G58: 1 | H58: =+H52/$L52 -> 0.3422145356 | I58: 0.1574543453 | J58: 0.3370385961 | K58: 0.163292523 | L58: 1 | M58: =+M52/$Q52 -> 0.2536242575 | N58: 0.0875604511 | O58: 0.5687674693 | P58: 0.09004782211 | Q58: 1 | R58: =+R52/$V52 -> 0.3121531525 | S58: 0.2045505626 | T58: 0.1584430971 | U58: 0.3248531878 | V58: 1 | W58: =IFERROR(W52/$AA52,"") -> 0.4271780567 | X58: =IFERROR(X52/$AA52,"") -> 0.1144689079 | Y58: 0.26766702 | Z58: 0.1906860155 | AA58: 1 | AB58: =IFERROR(AB52/$AF52,"") -> 0.3719348702 | AC58: 0.1042241364 | AD58: 0.3810740346 | AE58: 0.1427669587 | AF58: 1 | AG58: =IFERROR(AG52/$AK52,"") -> 0.3539888633 | AH58: 0.1097625835 | AI58: 0.4025345294 | AJ58: 0.1337140239 | AK58: 1
B59: Servicios prestados por terceros | C59: 0.4175539342 | D59: 0.1271547655 | E59: 0.3441298443 | F59: 0.111161456 | G59: 1 | H59: 0.4313734056 | I59: 0.1110951176 | J59: 0.3539201606 | K59: 0.1036113162 | L59: 1 | M59: 0.4466349981 | N59: 0.1110818282 | O59: 0.3392356971 | P59: 0.1030474765 | Q59: 1 | R59: 0.4664228019 | S59: 0.08583661259 | T59: 0.3367430724 | U59: 0.1109975131 | V59: 1 | W59: =IFERROR(W53/$AA53,"") -> 0.4728357583 | X59: 0.07525151441 | Y59: 0.3436380357 | Z59: 0.1082746916 | AA59: 1 | AB59: 0.44565558 | AC59: 0.09194191791 | AD59: 0.3432097023 | AE59: 0.1191927997 | AF59: 1 | AG59: 0.3986656909 | AH59: 0.1104762543 | AI59: 0.3557608181 | AJ59: 0.1350972367 | AK59: 1
B60: Mantenimiento | C60: 0.4328780416 | D60: 0.1210662533 | E60: 0.3356282597 | F60: 0.1104274454 | G60: 1 | H60: 0.3825832483 | I60: 0.1258614924 | J60: 0.3657147766 | K60: 0.1258404827 | L60: 1 | M60: 0.3607500074 | N60: 0.1539120242 | O60: 0.3255129698 | P60: 0.1598249985 | Q60: 1 | R60: 0.3169028485 | S60: 0.1175448304 | T60: 0.3881583099 | U60: 0.1773940112 | V60: 1 | W60: 0.3886961917 | X60: 0.09591013018 | Y60: 0.3596840725 | Z60: 0.1557096057 | AA60: 1 | AB60: 0.3224770582 | AC60: 0.1757397576 | AD60: 0.224749654 | AE60: 0.2770335302 | AF60: 1 | AG60: 0.3716060677 | AH60: 0.1467964329 | AI60: 0.2876399262 | AJ60: 0.1939575732 | AK60: 1
B62: * Participación promedio 2017-2023 gastos:
B63: Detalle | C63: SNAR nacional | D63: SNAR Internacional | E63: Aproximación | F63: Sobrevuelo
B64: Suministros y Materiales | C64: =+AVERAGE(C58,H58,M58,R58,W58,AB58,AG58) -> 0.3650365123 | D64: =+AVERAGE(D58,I58,N58,S58,X58,AC58,AH58) -> 0.1261207627 | E64: =+AVERAGE(E58,J58,O58,T58,Y58,AD58,AI58) -> 0.3473920625 | F64: =+AVERAGE(F58,K58,P58,U58,Z58,AE58,AJ58) -> 0.1614506625
B65: Servicios prestados por terceros | C65: =+AVERAGE(C59,H59,M59,R59,W59,AB59,AG59) -> 0.4398774527 | D65: =+AVERAGE(D59,I59,N59,S59,X59,AC59,AH59) -> 0.1018340015 | E65: =+AVERAGE(E59,J59,O59,T59,Y59,AD59,AI59) -> 0.3452339044 | F65: =+AVERAGE(F59,K59,P59,U59,Z59,AE59,AJ59) -> 0.1130546414
B66: Mantenimiento | C66: 0.3679847805 | D66: 0.1338329887 | E66: 0.3267268527 | F66: 0.1714553781
B68: e. Asignación de los costos incrementales no relacionados con la ampliación del AIJC a los servicios de aeronavegación
B70: i. Para SNAR Nacional
B71: (Expresado en soles)
B72: Detalle | E72: 2025 | F72: 2026 | G72: 2027 | H72: 2028 | I72: 2029
B73: Suministros y Materiales | E73: =+E43*$C64 -> 177230.9181 | F73: =+F43*$C64 -> 205134.6409 | G73: =+G43*$C64 -> 205134.6409 | H73: =+H43*$C64 -> 367990.9139 | I73: =+I43*$C64 -> 404519.4237
B74: Servicios prestados por terceros | E74: =+E45*$C65 -> 518566.482 | F74: =+F45*$C65 -> 600211.014 | G74: =+G45*$C65 -> 600211.014 | H74: =+H45*$C65 -> 1076718.192 | I74: =+I45*$C65 -> 1183598.306
B75: Mantenimiento | E75: =+E44*$C66 -> 299265.2697 | F75: =+F44*$C66 -> 346382.4162 | G75: =+G44*$C66 -> 346382.4162 | H75: =+H44*$C66 -> 621375.2166 | I75: =+I44*$C66 -> 683055.8447
B76: Costos de operación y mantenimiento | E76: =+SUM(E73:E75) -> 995062.6699 | F76: 1151728.071 | G76: 1151728.071 | H76: 2066084.322 | I76: 2271173.575
B78: ii. Para SNAR Internacional
B79: (Expresado en soles)
B80: Detalle | E80: 2025 | F80: 2026 | G80: 2027 | H80: 2028 | I80: 2029
B81: Suministros y Materiales | E81: =+E43*$D64 -> 61233.59664 | F81: =+F43*$D64 -> 70874.38237 | G81: =+G43*$D64 -> 70874.38237 | H81: =+H43*$D64 -> 127141.5136 | I81: =+I43*$D64 -> 139762.1786
B82: Servicios prestados por terceros | E82: =+E45*$D65 -> 120050.936 | F82: =+F45*$D65 -> 138952.0852 | G82: =+G45*$D65 -> 138952.0852 | H82: =+H45*$D65 -> 249266.0655 | I82: =+I45*$D65 -> 274009.3882
B83: Mantenimiento | E83: =+E44*$D66 -> 108840.2771 | F83: =+F44*$D66 -> 125976.3894 | G83: =+G44*$D66 -> 125976.3894 | H83: =+H44*$D66 -> 225988.9722 | I83: =+I44*$D66 -> 248421.7011
B84: Costos de operación y mantenimiento | E84: =+SUM(E81:E83) -> 290124.8097 | F84: =+SUM(F81:F83) -> 335802.857 | G84: =+SUM(G81:G83) -> 335802.857 | H84: 602396.5514 | I84: 662193.2679
B86: iii. Para Aproximación
B87: (Expresado en soles)
B88: Detalle | E88: 2025 | F88: 2026 | G88: 2027 | H88: 2028 | I88: 2029
B89: Suministros y Materiales | E89: =+E43*$E64 -> 168664.2626 | F89: =+F43*$E64 -> 195219.2276 | G89: =+G43*$E64 -> 195219.2276 | H89: =+H43*$E64 -> 350203.6598 | I89: =+I43*$E64 -> 384966.5231
B90: Servicios prestados por terceros | E90: =+E45*$E65 -> 406992.2888 | F90: =+F45*$E65 -> 471070.2732 | G90: =+G45*$E65 -> 471070.2732 | H90: =+H45*$E65 -> 845052.6912 | I90: =+I45*$E65 -> 928936.5981
B91: Mantenimiento | E91: =+E44*$E66 -> 265712.0753 | F91: =+F44*$E66 -> 307546.5146 | G91: =+G44*$E66 -> 307546.5146 | H91: =+H44*$E66 -> 551707.5151 | I91: =+I44*$E66 -> 606472.5993
B92: Costos de operación y mantenimiento | E92: =+SUM(E89:E91) -> 841368.6267 | F92: =+SUM(F89:F91) -> 973836.0154 | G92: =+SUM(G89:G91) -> 973836.0154 | H92: 1746963.866 | I92: 1920375.72
B94: iv. Para Sobrevuelo
B95: (Expresado en soles)
B96: Detalle | E96: 2025 | F96: 2026 | G96: 2027 | H96: 2028 | I96: 2029
B97: Suministros y Materiales | E97: =+E43*$F64 -> 78386.81386 | F97: =+F43*$F64 -> 90728.24925 | G97: =+G43*$F64 -> 90728.24925 | H97: =+H43*$F64 -> 162757.354 | I97: =+I43*$F64 -> 178913.4149
B98: Servicios prestados por terceros | E98: =+E45*$F65 -> 133278.8196 | F98: =+F45*$F65 -> 154262.6032 | G98: =+G45*$F65 -> 154262.6032 | H98: =+H45*$F65 -> 276731.5949 | I98: =+I45*$F65 -> 304201.2753
B99: Mantenimiento | E99: =+E44*$F66 -> 139436.8537 | F99: =+F44*$F66 -> 161390.1751 | G99: =+G44*$F66 -> 161390.1751 | H99: =+H44*$F66 -> 289517.7419 | I99: =+I44*$F66 -> 318256.6354
B100: Costos de operación y mantenimiento | E100: =+SUM(E97:E99) -> 351102.4871 | F100: =+SUM(F97:F99) -> 406381.0276 | G100: =+SUM(G97:G99) -> 406381.0276 | H100: 729006.6908 | I100: 801371.3256
B102: f. Ajuste de los costos incrementales no relacionados con la ampliación del AIJC a los servicios de aeronavegación
B104: i. Para SNAR Nacional
B105: (Expresado en soles)
B106: Detalle | E106: 2025 | F106: 2026 | G106: 2027 | H106: 2028 | I106: 2029
B107: Suministros y Materiales | E107: =+E73*Porc_Ejecucion -> 55424.22461 | F107: 64150.36685 | G107: 64150.36685 | H107: 115079.3061 | I107: 126502.6195
B108: Servicios prestados por terceros | E108: 162167.7836 | F108: 187699.9251 | G108: 187699.9251 | H108: 336714.7874 | I108: 370138.6817
B109: Mantenimiento | E109: 93587.20086 | F109: 108321.8269 | G109: 108321.8269 | H109: 194318.4629 | I109: 213607.4279
B110: Costos de operación y mantenimiento | E110: =+SUM(E107:E109) -> 311179.2091 | F110: =+SUM(F107:F109) -> 360172.1189 | G110: =+SUM(G107:G109) -> 360172.1189 | H110: 646112.5563 | I110: 710248.7292
B112: ii. Para SNAR Internacional
B113: (Expresado en soles)
B114: Detalle | E114: 2025 | F114: 2026 | G114: 2027 | H114: 2028 | I114: 2029
B115: Suministros y Materiales | E115: =+E81*Porc_Ejecucion -> 19149.16794 | F115: 22164.06556 | G115: 22164.06556 | H115: 39760.10442 | I115: 43706.87949
B116: Servicios prestados por terceros | E116: 37542.71609 | F116: 43453.54448 | G116: 43453.54448 | H116: 77951.28837 | I116: 85689.10009
B117: Mantenimiento | E117: 34036.88266 | F117: 39395.74301 | G117: 39395.74301 | H117: 70672.00065 | I117: 77687.236
B118: Costos de operación y mantenimiento | E118: =+SUM(E115:E117) -> 90728.76669 | F118: =+SUM(F115:F117) -> 105013.3531 | G118: =+SUM(G115:G117) -> 105013.3531 | H118: =+SUM(H115:H117) -> 188383.3934 | I118: =+SUM(I115:I117) -> 207083.2156
B120: iii. Para Aproximación
B121: (Expresado en soles)
B122: Detalle | E122: 2025 | F122: 2026 | G122: 2027 | H122: 2028 | I122: 2029
B123: Suministros y Materiales | E123: =+E89*Porc_Ejecucion -> 52745.23247 | F123: 61049.58682 | G123: 61049.58682 | H123: 109516.8186 | I123: 120387.9733
B124: Servicios prestados por terceros | E124: 127275.9419 | F124: 147314.6159 | G124: 147314.6159 | H124: 264267.6045 | I124: 290500.0505
B125: Mantenimiento | E125: 83094.33762 | F125: 96176.93848 | G125: 96176.93848 | H125: 172531.7544 | I125: 189658.0683
B126: Costos de operación y mantenimiento | E126: =+SUM(E123:E125) -> 263115.512 | F126: =+SUM(F123:F125) -> 304541.1412 | G126: =+SUM(G123:G125) -> 304541.1412 | H126: 546316.1775 | I126: 600546.0922
B128: iv. Para Sobrevuelo
B129: (Expresado en soles)
B130: Detalle | E130: 2025 | F130: 2026 | G130: 2027 | H130: 2028 | I130: 2029
B131: Suministros y Materiales | E131: =+E97*Porc_Ejecucion -> 24513.37738 | F131: 28372.83088 | G131: 28372.83088 | H131: 50898.00494 | I131: 55950.38043
B132: Servicios prestados por terceros | E132: 41679.38255 | F132: 48241.49907 | G132: 48241.49907 | H132: 86540.39735 | I132: 95130.80444
B133: Mantenimiento | E133: 43605.14283 | F133: 50470.45634 | G133: 50470.45634 | H133: 90538.92251 | I133: 99526.24202
B134: Costos de operación y mantenimiento | E134: =+SUM(E131:E133) -> 109797.9028 | F134: =+SUM(F131:F133) -> 127084.7863 | G134: =+SUM(G131:G133) -> 127084.7863 | H134: 227977.3248 | I134: 250607.4269
B136: II. Costos incrementales relacionados con la ampliación del AIJC
B138: a. Proyecciones de los costos incrementales relacionados con la ampliación del AIJC
B140: (Expresado en soles. Fuente: Anexo 20 del PIP Ampliación del Servicio de Navegacion Aérea en el AIJC)
B141: Detalle | E141: 2025 | F141: 2026 | G141: 2027 | H141: 2028 | I141: 2029
B142: Suministros y Materiales | E142: 1011717.917 | F142: 1011825.247 | G142: 1011933.65 | H142: 1012043 | I142: 1012154
B143: Servicios prestados por terceros | E143: 774496.2654 | F143: 774578.4292 | G143: 774661.4147 | H143: 774745 | I143: 774830
B144: Seguros y tributos | E144: 334118.5235 | F144: 334153.969 | G144: 334189.769 | H144: 334226 | I144: 334262
B145: Otros Costos | E145: 418519.3393 | F145: 418563.7387 | G145: 418608.582 | H145: 418654 | I145: 418700
B146: Costos de operación y mantenimiento | E146: =+SUM(E142:E145) -> 2538852.046 | F146: 2539121.384 | G146: 2539393.416 | H146: 2539668 | I146: 2539946
B148: b. Participación de los servicios en los costos incrementales relacionados con la ampliación del AIJC
B149: (Expresado en soles)
D150: 2021 | E150: 2022 | F150: 2023 | G150: 2024
B151: Inversión ampliación AIJCh asignada a SNAR | D151: 1180018.935 | E151: 13560278.73 | F151: 12421448.17
B152: Inversión ampliación AIJCh asignada a Aproximación | D152: 2538936.741 | E152: 55098901.38 | F152: 31443446.16
B153: Inversión ampliación AIJCh | D153: =+D151+D152 -> 3718955.677 | E153: =+E151+E152 -> 68659180.11 | F153: =+F151+F152 -> 43864894.33
B154: Inversión acumulada ampliación AIJCh asignada a SNAR | D154: 1180018.935 | E154: =+D154+E151 -> 14740297.67 | F154: 27161745.84 | G154: =+F154+G151 -> 27161745.84
B155: Inversión acumulada ampliación AIJCh asignada a Aproximación | D155: 2538936.741 | E155: 57637838.12 | F155: 89081284.28 | G155: =+F155+G152 -> 89081284.28
B156: Inversión acumulada ampliación AIJCh | D156: =+D154+D155 -> 3718955.677 | E156: =+E154+E155 -> 72378135.79 | F156: =+F154+F155 -> 116243030.1 | G156: =+G154+G155 -> 116243030.1
B157: SNAR | D157: =+D154/D156 -> 0.3172984671 | E157: =+E154/E156 -> 0.2036567743 | F157: =+F154/F156 -> 0.2336634361 | G157: =+G154/G156 -> 0.2336634361
B158: Aproximación | D158: =+D155/D156 -> 0.6827015329 | E158: =+E155/E156 -> 0.7963432257 | F158: =+F155/F156 -> 0.7663365639 | G158: =+G155/G156 -> 0.7663365639
B160: c. Asignación de los costos incrementales relacionados con la ampliación del AIJC a los servicios de aeronavegación
B162: i. Para los servicios de SNAR nacional-internacional y sobrevuelo
B163: (Expresado en soles)
B164: Detalle | E164: 2025 | F164: 2026 | G164: 2027 | H164: 2028 | I164: 2029
B165: Suministros y Materiales | E165: =+E142*$G$157 -> 236401.4849 | F165: 236426.5639 | G165: 236451.8938 | H165: 236477.4448 | I165: 236503.3815
B166: Servicios prestados por terceros | E166: 180971.4586 | F166: 180990.6573 | G166: 181010.0479 | H166: 181029.5788 | I166: 181049.4402
B167: Seguros y tributos | E167: 78071.28224 | F167: 78079.56457 | G167: 78087.92972 | H167: 78096.39558 | I167: 78104.80746
B168: Otros Costos | E168: 97792.66688 | F168: 97803.04139 | G168: 97813.51964 | H168: 97824.13216 | I168: 97834.88068
B169: Costos de operación y mantenimiento | E169: =+SUM(E165:E168) -> 593236.8926 | F169: =+SUM(F165:F168) -> 593299.8272 | G169: =+SUM(G165:G168) -> 593363.3911 | H169: 593427.5513 | I169: 593492.5098
B171: ii. Para los servicios de SNAR internacional
B172: (Expresado en soles)
B173: Detalle | E173: 2025 | F173: 2026 | G173: 2027 | H173: 2028 | I173: 2029
B174: Suministros y Materiales
B175: Servicios prestados por terceros
B176: Seguros y tributos
B177: Otros Costos
B178: Costos de operación y mantenimiento | E178: =+SUM(E174:E177) -> 0 | F178: =+SUM(F174:F177) -> 0 | G178: =+SUM(G174:G177) -> 0 | H178: =+SUM(H174:H177) -> 0 | I178: =+SUM(I174:I177) -> 0
B180: iii. Para Aproximación
B181: (Expresado en soles)
B182: Detalle | E182: 2025 | F182: 2026 | G182: 2027 | H182: 2028 | I182: 2029
B183: Suministros y Materiales | E183: =+E142*$G$158 -> 775316.4324 | F183: 775398.6832 | G183: 775481.7565 | H183: 775565.5552 | I183: 775650.6185
B184: Servicios prestados por terceros | E184: 593524.8069 | F184: 593587.772 | G184: 593651.3667 | H184: 593715.4212 | I184: 593780.5598
B185: Seguros y tributos | E185: 256047.2412 | F185: 256074.4044 | G185: 256101.8393 | H185: 256129.6044 | I185: 256157.1925
B186: Otros Costos | E186: 320726.6724 | F186: 320760.6973 | G186: 320795.0624 | H186: 320829.8678 | I186: 320865.1193
B187: Costos de operación y mantenimiento | E187: =+SUM(E183:E186) -> 1945615.153 | F187: 1945821.557 | G187: 1946030.025 | H187: 1946240.449 | I187: 1946453.49
B189: iv. Para Sobrevuelo
B190: (Expresado en soles)
B191: Detalle | E191: 2025 | F191: 2026 | G191: 2027 | H191: 2028 | I191: 2029
B192: Suministros y Materiales
B193: Servicios prestados por terceros
B194: Seguros y tributos
B195: Otros Costos
B196: Costos de operación y mantenimiento | E196: =+SUM(E192:E195) -> 0 | F196: =+SUM(F192:F195) -> 0 | G196: =+SUM(G192:G195) -> 0 | H196: 0 | I196: 0
B198: III. Costos incrementales totales (incluye el mantenimiento de equipos y la ampliación del AIJC)
B200: a. Para SNAR nacional
B201: (Expresado en soles) | D201: 3 | E201: 4 | F201: 5 | G201: 6 | H201: 7 | I201: 8
B202: Detalle | E202: 2025 | F202: 2026 | G202: 2027 | H202: 2028 | I202: 2029
B203: Suministros y Materiales | E203: =IFERROR(VLOOKUP($B203,$B$106:$I$109,E$201,0),0)+IFERROR(VLOOKUP($B203,$B$164:$I$168,E$201,0),0) -> 291825.7095 | F203: 300576.9308 | G203: 300602.2606 | H203: 351556.7509 | I203: 363006.001
B204: Servicios prestados por terceros | E204: 343139.2422 | F204: 368690.5824 | G204: 368709.9731 | H204: 517744.3662 | I204: 551188.1219
B205: Mantenimiento | E205: 93587.20086 | F205: 108321.8269 | G205: 108321.8269 | H205: 194318.4629 | I205: 213607.4279
B206: Seguros y tributos | E206: 78071.28224 | F206: 78079.56457 | G206: 78087.92972 | H206: 78096.39558 | I206: 78104.80746
B207: Otros Costos | E207: 97792.66688 | F207: 97803.04139 | G207: 97813.51964 | H207: 97824.13216 | I207: 97834.88068
B208: Costo total | E208: =SUM(E203:E207) -> 904416.1017 | F208: 953471.9461 | G208: 953535.51 | H208: 1239540.108 | I208: 1303741.239
B210: b. Para SNAR internacional
B211: (Expresado en soles) | D211: 3 | E211: 4 | F211: 5 | G211: 6 | H211: 7 | I211: 8
B212: Detalle | E212: 2025 | F212: 2026 | G212: 2027 | H212: 2028 | I212: 2029
B213: Suministros y Materiales | E213: =IFERROR(VLOOKUP($B213,$B$114:$I$117,E$211,0),0)+IFERROR(VLOOKUP($B213,$B$173:$I$177,E$211,0),0) -> 19149.16794 | F213: 22164.06556 | G213: 22164.06556 | H213: 39760.10442 | I213: 43706.87949
B214: Servicios prestados por terceros | E214: 37542.71609 | F214: 43453.54448 | G214: 43453.54448 | H214: 77951.28837 | I214: 85689.10009
B215: Mantenimiento | E215: 34036.88266 | F215: 39395.74301 | G215: 39395.74301 | H215: 70672.00065 | I215: 77687.236
B216: Seguros y tributos | E216: 0 | F216: 0 | G216: 0 | H216: 0 | I216: 0
B217: Otros Costos | E217: 0 | F217: 0 | G217: 0 | H217: 0 | I217: 0
B218: Costo total | E218: =SUM(E213:E217) -> 90728.76669 | F218: 105013.3531 | G218: 105013.3531 | H218: 188383.3934 | I218: 207083.2156
B220: c. Para Aproximación
B221: (Expresado en soles) | D221: 3 | E221: 4 | F221: 5 | G221: 6 | H221: 7 | I221: 8 | J221: 9
B222: Detalle | E222: 2025 | F222: 2026 | G222: 2027 | H222: 2028 | I222: 2029
B223: Suministros y Materiales | E223: =IFERROR(VLOOKUP($B223,$B$122:$I$125,E$221,0),0)+IFERROR(VLOOKUP($B223,$B$182:$I$186,E$221,0),0) -> 828061.6649 | F223: 836448.27 | G223: 836531.3433 | H223: 885082.3737 | I223: 896038.5919
B224: Servicios prestados por terceros | E224: 720800.7487 | F224: 740902.3879 | G224: 740965.9827 | H224: 857983.0257 | I224: 884280.6104
B225: Mantenimiento | E225: 83094.33762 | F225: 96176.93848 | G225: 96176.93848 | H225: 172531.7544 | I225: 189658.0683
B226: Seguros y tributos | E226: 256047.2412 | F226: 256074.4044 | G226: 256101.8393 | H226: 256129.6044 | I226: 256157.1925
B227: Otros Costos | E227: 320726.6724 | F227: 320760.6973 | G227: 320795.0624 | H227: 320829.8678 | I227: 320865.1193
B228: Costo total | E228: =SUM(E223:E227) -> 2208730.665 | F228: 2250362.698 | G228: 2250571.166 | H228: 2492556.626 | I228: 2546999.582
B230: d. Para Sobrevuelo
B231: (Expresado en soles) | D231: 3 | E231: 4 | F231: 5 | G231: 6 | H231: 7 | I231: 8 | J231: 9
B232: Detalle | E232: 2025 | F232: 2026 | G232: 2027 | H232: 2028 | I232: 2029
B233: Suministros y Materiales | E233: =IFERROR(VLOOKUP($B233,$B$130:$I$133,E$231,0),0)+IFERROR(VLOOKUP($B233,$B$191:$I$195,E$231,0),0) -> 24513.37738 | F233: 28372.83088 | G233: 28372.83088 | H233: 50898.00494 | I233: 55950.38043
B234: Servicios prestados por terceros | E234: 41679.38255 | F234: 48241.49907 | G234: 48241.49907 | H234: 86540.39735 | I234: 95130.80444
B235: Mantenimiento | E235: 43605.14283 | F235: 50470.45634 | G235: 50470.45634 | H235: 90538.92251 | I235: 99526.24202
... 3 more rows

Sheet 5. CAPEX
B1: 5. Gastos de Capital - CAPEX Total | I1: Índice
B3: A. Activos existentes e inversiones proyectadas
B5: A.1 Activos base al 2024, por servicio:
B6: (Expresado en miles de soles. Fuente: CORPAC S.A.)
B7: Servicio | C7: Aeronavegación | D7: Mixto | E7: Total
B8: SNAR nacional | C8: =+'5.1.Activo Base'!D44 -> 75830.76174 | D8: =+'5.1.Activo Base'!E44 -> 41849.08819 | E8: =+'5.1.Activo Base'!F44 -> 117679.8499
B9: SNAR internacional | C9: =+'5.1.Activo Base'!D45 -> 18959.944 | D9: =+'5.1.Activo Base'!E45 -> 10463.51573 | E9: =+'5.1.Activo Base'!F45 -> 29423.45973
B10: Aproximación | C10: =+'5.1.Activo Base'!D46 -> 74073.90214 | D10: =+'5.1.Activo Base'!E46 -> 40879.5216 | E10: =+'5.1.Activo Base'!F46 -> 114953.4237
B11: Sobrevuelo | C11: =+'5.1.Activo Base'!D47 -> 26173.56135 | D11: =+'5.1.Activo Base'!E47 -> 14444.52953 | E11: =+'5.1.Activo Base'!F47 -> 40618.09088
B12: Total | C12: =+SUM(C8:C11) -> 195038.1692 | D12: =+SUM(D8:D11) -> 107636.6551 | E12: =+SUM(E8:E11) -> 302674.8243
B14: A.2 Activos 2024-2029 (Inversiones proyectadas), por servicio:
B15: (Expresado en miles de soles. Fuente: Proyecciones CORPAC S.A.)
B16: Servicio | E16: 2025 | F16: =E16+1 -> 2026 | G16: =F16+1 -> 2027 | H16: 2028 | I16: 2029
B17: SNAR nacional | E17: =+'5.5.InversionesProgramadas'!F228*'10. Var-Sup-Gen'!L$12 -> 6176.615289 | F17: =+'5.5.InversionesProgramadas'!G228*'10. Var-Sup-Gen'!M$12 -> 10343.23187 | G17: =+'5.5.InversionesProgramadas'!H228*'10. Var-Sup-Gen'!N$12 -> 13117.03847 | H17: =+'5.5.InversionesProgramadas'!I228*'10. Var-Sup-Gen'!O$12 -> 21211.63671 | I17: =+'5.5.InversionesProgramadas'!J228*'10. Var-Sup-Gen'!P$12 -> 15731.33959
B18: SNAR internacional | E18: =+'5.5.InversionesProgramadas'!F229*'10. Var-Sup-Gen'!L$12 -> 5269.649869 | F18: =+'5.5.InversionesProgramadas'!G229*'10. Var-Sup-Gen'!M$12 -> 8824.44639 | G18: =+'5.5.InversionesProgramadas'!H229*'10. Var-Sup-Gen'!N$12 -> 11190.95116 | H18: =+'5.5.InversionesProgramadas'!I229*'10. Var-Sup-Gen'!O$12 -> 18096.95009 | I18: =+'5.5.InversionesProgramadas'!J229*'10. Var-Sup-Gen'!P$12 -> 13421.37202
B19: Aproximación | E19: =+'5.5.InversionesProgramadas'!F230*'10. Var-Sup-Gen'!L$12 -> 49008.73602 | F19: =+'5.5.InversionesProgramadas'!G230*'10. Var-Sup-Gen'!M$12 -> 16921.23966 | G19: =+'5.5.InversionesProgramadas'!H230*'10. Var-Sup-Gen'!N$12 -> 23699.39847 | H19: =+'5.5.InversionesProgramadas'!I230*'10. Var-Sup-Gen'!O$12 -> 38739.65118 | I19: =+'5.5.InversionesProgramadas'!J230*'10. Var-Sup-Gen'!P$12 -> 27413.04858
B20: Sobrevuelo | E20: =+'5.5.InversionesProgramadas'!F231*'10. Var-Sup-Gen'!L$12 -> 3160.536901 | F20: =+'5.5.InversionesProgramadas'!G231*'10. Var-Sup-Gen'!M$12 -> 5292.569552 | G20: =+'5.5.InversionesProgramadas'!H231*'10. Var-Sup-Gen'!N$12 -> 6302.555657 | H20: =+'5.5.InversionesProgramadas'!I231*'10. Var-Sup-Gen'!O$12 -> 9600.965553 | I20: =+'5.5.InversionesProgramadas'!J231*'10. Var-Sup-Gen'!P$12 -> 6508.917342
B21: Total | E21: =SUM(E17:E20) -> 63615.53808 | F21: =SUM(F17:F20) -> 41381.48748 | G21: =SUM(G17:G20) -> 54309.94375 | H21: 87649.20353 | I21: 63074.67754
B23: B. Depreciación y amortización de activos existentes e inversiones proyectadas
B25: B.1 Depreciación de Activos base 2024, por servicio:
B26: (Expresado en miles de soles)
B27: Servicio | E27: 2025 | F27: 2026 | G27: 2027 | H27: 2028 | I27: 2029
B28: SNAR nacional | E28: =+'5.1.Activo Base'!D54 -> 13032.0158 | F28: =+'5.1.Activo Base'!E54 -> 12771.17801 | G28: =+'5.1.Activo Base'!F54 -> 10819.62205 | H28: =+'5.1.Activo Base'!G54 -> 8158.026542 | I28: =+'5.1.Activo Base'!H54 -> 5687.181897
B29: SNAR internacional | E29: =+'5.1.Activo Base'!D55 -> 3258.391239 | F29: =+'5.1.Activo Base'!E55 -> 3193.174041 | G29: =+'5.1.Activo Base'!F55 -> 2705.227053 | H29: =+'5.1.Activo Base'!G55 -> 2039.749079 | I29: =+'5.1.Activo Base'!H55 -> 1421.964488
B30: Aproximación | E30: =+'5.1.Activo Base'!D56 -> 12730.0879 | F30: =+'5.1.Activo Base'!E56 -> 12475.29325 | G30: =+'5.1.Activo Base'!F56 -> 10568.95126 | H30: =+'5.1.Activo Base'!G56 -> 7969.020037 | I30: =+'5.1.Activo Base'!H56 -> 5555.420328
B31: Sobrevuelo | E31: =+'5.1.Activo Base'!D57 -> 4498.098887 | F31: =+'5.1.Activo Base'!E57 -> 4408.068751 | G31: =+'5.1.Activo Base'!F57 -> 3734.47444 | H31: =+'5.1.Activo Base'!G57 -> 2815.804606 | I31: =+'5.1.Activo Base'!H57 -> 1962.973876
B32: Total | E32: =SUM(E28:E31) -> 33518.59383 | F32: 32847.71405 | G32: 27828.2748 | H32: 20982.60026 | I32: 14627.54059
B34: B.2 Depreciación de Activos 2024-2029 (Inversiones proyectadas), por servicio:
B35: (Expresado en miles de soles)
B36: Servicio | E36: 2025 | F36: 2026 | G36: 2027 | H36: 2028 | I36: 2029
B37: SNAR nacional | E37: ='5.5.InversionesProgramadas'!F277*'10. Var-Sup-Gen'!L$12 -> 0 | F37: ='5.5.InversionesProgramadas'!G277*'10. Var-Sup-Gen'!M$12 -> 617.3663586 | G37: ='5.5.InversionesProgramadas'!H277*'10. Var-Sup-Gen'!N$12 -> 1652.616544 | H37: ='5.5.InversionesProgramadas'!I277*'10. Var-Sup-Gen'!O$12 -> 2940.066567 | I37: ='5.5.InversionesProgramadas'!J277*'10. Var-Sup-Gen'!P$12 -> 5038.635687
B38: SNAR internacional | E38: ='5.5.InversionesProgramadas'!F278*'10. Var-Sup-Gen'!L$12 -> 0 | F38: ='5.5.InversionesProgramadas'!G278*'10. Var-Sup-Gen'!M$12 -> 526.713159 | G38: ='5.5.InversionesProgramadas'!H278*'10. Var-Sup-Gen'!N$12 -> 1409.948677 | H38: ='5.5.InversionesProgramadas'!I278*'10. Var-Sup-Gen'!O$12 -> 2508.351367 | I38: ='5.5.InversionesProgramadas'!J278*'10. Var-Sup-Gen'!P$12 -> 4298.769576
B39: Aproximación | E39: ='5.5.InversionesProgramadas'!F279*'10. Var-Sup-Gen'!L$12 -> 0 | F39: ='5.5.InversionesProgramadas'!G279*'10. Var-Sup-Gen'!M$12 -> 4900.416287 | G39: ='5.5.InversionesProgramadas'!H279*'10. Var-Sup-Gen'!N$12 -> 6598.18157 | H39: ='5.5.InversionesProgramadas'!I279*'10. Var-Sup-Gen'!O$12 -> 8938.643949 | I39: ='5.5.InversionesProgramadas'!J279*'10. Var-Sup-Gen'!P$12 -> 12787.56692
B40: Sobrevuelo | E40: ='5.5.InversionesProgramadas'!F280*'10. Var-Sup-Gen'!L$12 -> 0 | F40: ='5.5.InversionesProgramadas'!G280*'10. Var-Sup-Gen'!M$12 -> 315.9026533 | G40: ='5.5.InversionesProgramadas'!H280*'10. Var-Sup-Gen'!N$12 -> 845.633948 | H40: ='5.5.InversionesProgramadas'!I280*'10. Var-Sup-Gen'!O$12 -> 1463.429547 | I40: ='5.5.InversionesProgramadas'!J280*'10. Var-Sup-Gen'!P$12 -> 2411.731773
B41: Total | E41: =+SUM(E37:E40) -> 0 | F41: 6360.398458 | G41: 10506.38074 | H41: 15850.49143 | I41: 24536.70395
B43: C. Activo neto, por servicio:
B45: C.1 SNAR Nacional
B46: (Expresado en miles de soles)
D47: 2024 | E47: =D47+1 -> 2025 | F47: =E47+1 -> 2026 | G47: =F47+1 -> 2027 | H47: =G47+1 -> 2028 | I47: =H47+1 -> 2029
B48: Activo Existente | D48: =+E8 -> 117679.8499
B49: Activo nuevo | E49: =E17 -> 6176.615289 | F49: =F17 -> 10343.23187 | G49: =G17 -> 13117.03847 | H49: =H17 -> 21211.63671 | I49: =I17 -> 15731.33959
B50: Activo total | D50: =SUM(D48:D49) -> 117679.8499 | E50: =SUM(E48:E49) -> 6176.615289 | F50: 10343.23187 | G50: 13117.03847 | H50: 21211.63671 | I50: 15731.33959
B51: Depreciación Activo Existente | E51: =E28 -> 13032.0158 | F51: 12771.17801 | G51: 10819.62205 | H51: 8158.026542 | I51: 5687.181897
B52: Depreciación Activo nuevo | E52: =E37 -> 0 | F52: 617.3663586 | G52: 1652.616544 | H52: 2940.066567 | I52: 5038.635687
B53: Depreciación Activo Total | E53: =SUM(E51:E52) -> 13032.0158 | F53: 13388.54437 | G53: 12472.23859 | H53: 11098.09311 | I53: 10725.81758
B54: Activo (CAPEX) Acumulado | D54: =C54+D50 -> 117679.8499 | E54: =D54+E50 -> 123856.4652 | F54: =E54+F50 -> 134199.6971 | G54: =F54+G50 -> 147316.7356 | H54: 168528.3723 | I54: 184259.7119
B55: Depreciación Acumulada | E55: =D55+E53 -> 13032.0158 | F55: =E55+F53 -> 26420.56017 | G55: 38892.79876 | H55: 49990.89187 | I55: 60716.70945
B56: CAPEX Neto | D56: =D54-D55 -> 117679.8499 | E56: 110824.4494 | F56: 107779.1369 | G56: 108423.9368 | H56: 118537.4804 | I56: 123543.0024
B58: Inversiones realizadas | D58: =+D56 -> 117679.8499
B59: Plan de Inversiones | E59: =E49 -> 6176.615289 | F59: 10343.23187 | G59: 13117.03847 | H59: 21211.63671 | I59: 15731.33959
B60: Recuperación Inversión | I60: =+I56 -> 123543.0024
B62: C.2 SNAR Internacional
B63: (Expresado en miles de soles)
B64: Servicio | D64: 2024 | E64: =D64+1 -> 2025 | F64: =E64+1 -> 2026 | G64: =F64+1 -> 2027 | H64: =G64+1 -> 2028 | I64: =H64+1 -> 2029
B65: Activo Existente | D65: =+E9 -> 29423.45973
B66: Activo nuevo | E66: =E18 -> 5269.649869 | F66: =F18 -> 8824.44639 | G66: =G18 -> 11190.95116 | H66: =H18 -> 18096.95009 | I66: =I18 -> 13421.37202
B67: Activo total | D67: =SUM(D65:D66) -> 29423.45973 | E67: =SUM(E65:E66) -> 5269.649869 | F67: 8824.44639 | G67: 11190.95116 | H67: 18096.95009 | I67: 13421.37202
B68: Depreciación Activo Existente | E68: =E29 -> 3258.391239 | F68: =F29 -> 3193.174041 | G68: =G29 -> 2705.227053 | H68: 2039.749079 | I68: 1421.964488
B69: Depreciación Activo nuevo | E69: =E38 -> 0 | F69: =F38 -> 526.713159 | G69: =G38 -> 1409.948677 | H69: 2508.351367 | I69: 4298.769576
B70: Depreciación Activo Total | E70: =SUM(E68:E69) -> 3258.391239 | F70: 3719.8872 | G70: =SUM(G68:G69) -> 4115.17573 | H70: 4548.100445 | I70: 5720.734064
B71: Activo (CAPEX) Acumulado | D71: =C71+D67 -> 29423.45973 | E71: =D71+E67 -> 34693.1096 | F71: =E71+F67 -> 43517.55599 | G71: =F71+G67 -> 54708.50715 | H71: 72805.45724 | I71: 86226.82926
B72: Depreciación Acumulada | E72: =D72+E70 -> 3258.391239 | F72: =E72+F70 -> 6978.278439 | G72: =F72+G70 -> 11093.45417 | H72: 15641.55461 | I72: 21362.28868
B73: CAPEX Neto | D73: =D71-D72 -> 29423.45973 | E73: 31434.71836 | F73: 36539.27755 | G73: =G71-G72 -> 43615.05298 | H73: 57163.90263 | I73: 64864.54059
B75: Inversiones realizadas | D75: =+D73 -> 29423.45973
B76: Plan de Inversiones | E76: =E66 -> 5269.649869 | F76: =F66 -> 8824.44639 | G76: =G66 -> 11190.95116 | H76: 18096.95009 | I76: 13421.37202
B77: Recuperación Inversión | I77: =+I73 -> 64864.54059
B79: C.3 Aproximación
B80: (Expresado en miles de soles)
B81: Servicio | D81: 2024 | E81: =D81+1 -> 2025 | F81: =E81+1 -> 2026 | G81: =F81+1 -> 2027 | H81: =G81+1 -> 2028 | I81: =H81+1 -> 2029
B82: Activo Existente | D82: =+E10 -> 114953.4237
B83: Activo nuevo | E83: =E19 -> 49008.73602 | F83: =F19 -> 16921.23966 | G83: =G19 -> 23699.39847 | H83: =H19 -> 38739.65118 | I83: =I19 -> 27413.04858
B84: Activo total | D84: =SUM(D82:D83) -> 114953.4237 | E84: 49008.73602 | F84: 16921.23966 | G84: =SUM(G82:G83) -> 23699.39847 | H84: 38739.65118 | I84: 27413.04858
B85: Depreciación Activo Existente | E85: =E30 -> 12730.0879 | F85: =F30 -> 12475.29325 | G85: =G30 -> 10568.95126 | H85: 7969.020037 | I85: 5555.420328
B86: Depreciación Activo nuevo | E86: =E39 -> 0 | F86: =F39 -> 4900.416287 | G86: =G39 -> 6598.18157 | H86: 8938.643949 | I86: 12787.56692
B87: Depreciación Activo Total | E87: =SUM(E85:E86) -> 12730.0879 | F87: 17375.70954 | G87: =SUM(G85:G86) -> 17167.13283 | H87: 16907.66399 | I87: 18342.98725
B88: Activo (CAPEX) Acumulado | D88: =C88+D84 -> 114953.4237 | E88: =D88+E84 -> 163962.1598 | F88: =E88+F84 -> 180883.3994 | G88: =F88+G84 -> 204582.7979 | H88: 243322.4491 | I88: 270735.4977
B89: Depreciación Acumulada | E89: =D89+E87 -> 12730.0879 | F89: =E89+F87 -> 30105.79744 | G89: =F89+G87 -> 47272.93027 | H89: 64180.59425 | I89: 82523.5815
B90: CAPEX Neto | D90: =D88-D89 -> 114953.4237 | E90: 151232.0719 | F90: 150777.602 | G90: =G88-G89 -> 157309.8676 | H90: 179141.8548 | I90: 188211.9162
B92: Inversiones realizadas | D92: =+D90 -> 114953.4237
B93: Plan de Inversiones | E93: =E83 -> 49008.73602 | F93: =F83 -> 16921.23966 | G93: =G83 -> 23699.39847 | H93: 38739.65118 | I93: 27413.04858
B94: Recuperación Inversión | I94: =I90 -> 188211.9162
B96: C.4 Sobrevuelo
B97: (Expresado en miles de soles)
B98: Servicio | D98: 2024 | E98: =D98+1 -> 2025 | F98: =E98+1 -> 2026 | G98: =F98+1 -> 2027 | H98: 2028 | I98: 2029
B99: Activo Existente | D99: =+E11 -> 40618.09088
B100: Activo nuevo | E100: =E20 -> 3160.536901 | F100: =F20 -> 5292.569552 | G100: =G20 -> 6302.555657 | H100: =H20 -> 9600.965553 | I100: =I20 -> 6508.917342
B101: Activo total | D101: =SUM(D99:D100) -> 40618.09088 | E101: =SUM(E99:E100) -> 3160.536901 | F101: =SUM(F99:F100) -> 5292.569552 | G101: 6302.555657 | H101: 9600.965553 | I101: 6508.917342
B102: Depreciación Activo Existente | E102: =E31 -> 4498.098887 | F102: =F31 -> 4408.068751 | G102: =G31 -> 3734.47444 | H102: 2815.804606 | I102: 1962.973876
B103: Depreciación Activo nuevo | E103: =E40 -> 0 | F103: =F40 -> 315.9026533 | G103: =G40 -> 845.633948 | H103: 1463.429547 | I103: 2411.731773
B104: Depreciación Activo Total | E104: =SUM(E102:E103) -> 4498.098887 | F104: 4723.971405 | G104: =SUM(G102:G103) -> 4580.108388 | H104: 4279.234154 | I104: 4374.705649
B105: Activo (CAPEX) Acumulado | D105: =C105+D101 -> 40618.09088 | E105: =D105+E101 -> 43778.62779 | F105: =E105+F101 -> 49071.19734 | G105: =F105+G101 -> 55373.75299 | H105: 64974.71855 | I105: 71483.63589
B106: Depreciación Acumulada | E106: =D106+E104 -> 4498.098887 | F106: =E106+F104 -> 9222.070292 | G106: =F106+G104 -> 13802.17868 | H106: 18081.41283 | I106: 22456.11848
B107: CAPEX Neto | D107: =D105-D106 -> 40618.09088 | E107: =E105-E106 -> 39280.5289 | F107: =F105-F106 -> 39849.12705 | G107: 41571.57432 | H107: 46893.30571 | I107: 49027.51741
B109: Inversiones realizadas | D109: =+D107 -> 40618.09088
B110: Plan de Inversiones | E110: =E100 -> 3160.536901 | F110: =F100 -> 5292.569552 | G110: =G100 -> 6302.555657 | H110: 9600.965553 | I110: 6508.917342
B111: Recuperación Inversión | I111: =I107 -> 49027.51741

Sheet 5.1.Activo Base
B1: 5.1 Activos Fijos Base (Existentes) al 2024 | O1: Índice
B3: A. Factor de distribución de activos: Distribución según participación en la depreciación de activos de aeronavegación
B4: (Expresado en miles de soles. Fuente: Contabilidad regulatoria de CORPAC S.A.)
B5: Servicio | C5: Depreciación y amortización | J5: Promedio 2017-2023 | K5: % del total
C6: 2017 | D6: =+C6+1 -> 2018 | E6: =+D6+1 -> 2019 | F6: 2020 | G6: 2021 | H6: 2022 | I6: 2023
B7: SNAR nacional | C7: =+'4. OPEX'!E12+'4. OPEX'!E13 -> 7129772.016 | D7: =+'4. OPEX'!F12+'4. OPEX'!F13 -> 12945251.26 | E7: =+'4. OPEX'!G12+'4. OPEX'!G13 -> 11484207.77 | F7: =+'4. OPEX'!H12+'4. OPEX'!H13 -> 12808539.74 | G7: =+'4. OPEX'!I12+'4. OPEX'!I13 -> 12277684.01 | H7: =+'4. OPEX'!J12+'4. OPEX'!J13 -> 11690380.3 | I7: =+'4. OPEX'!K12+'4. OPEX'!K13 -> 15132580.81 | J7: =AVERAGE(C7:I7) -> 11924059.41 | K7: =+J7/$J$15 -> 0.3885811355
B8: SNAR internacional | C8: =+'4. OPEX'!E23+'4. OPEX'!E24 -> 2452018.503 | D8: =+'4. OPEX'!F23+'4. OPEX'!F24 -> 3787636.656 | E8: =+'4. OPEX'!G23+'4. OPEX'!G24 -> 4118355.972 | F8: =+'4. OPEX'!H23+'4. OPEX'!H24 -> 3625748.436 | G8: =+'4. OPEX'!I23+'4. OPEX'!I24 -> 2153448.137 | H8: =+'4. OPEX'!J23+'4. OPEX'!J24 -> 2036410.125 | I8: =+'4. OPEX'!K23+'4. OPEX'!K24 -> 2695966.69 | J8: =AVERAGE(C8:I8) -> 2981369.217 | K8: 0.09715683187
B9: Aproximación | C9: =+'4. OPEX'!E34+'4. OPEX'!E35 -> 7351690.518 | D9: =+'4. OPEX'!F34+'4. OPEX'!F35 -> 12149849.95 | E9: =+'4. OPEX'!G34+'4. OPEX'!G35 -> 10946483.71 | F9: =+'4. OPEX'!H34+'4. OPEX'!H35 -> 13493845.77 | G9: =+'4. OPEX'!I34+'4. OPEX'!I35 -> 11258584.98 | H9: =+'4. OPEX'!J34+'4. OPEX'!J35 -> 11040983.82 | I9: =+'4. OPEX'!K34+'4. OPEX'!K35 -> 15293167.12 | J9: 11647800.84 | K9: 0.3795784236
B10: Sobrevuelo | C10: =+'4. OPEX'!E45+'4. OPEX'!E46 -> 2714963.615 | D10: =+'4. OPEX'!F45+'4. OPEX'!F46 -> 4773755.545 | E10: =+'4. OPEX'!G45+'4. OPEX'!G46 -> 4946087.518 | F10: =+'4. OPEX'!H45+'4. OPEX'!H46 -> 6088586.156 | G10: =+'4. OPEX'!I45+'4. OPEX'!I46 -> 3822726.481 | H10: =+'4. OPEX'!J45+'4. OPEX'!J46 -> 2966229.694 | I10: =+'4. OPEX'!K45+'4. OPEX'!K46 -> 3497406.485 | J10: 4115679.356 | K10: 0.13412172
B11: Total servicios con tarifa regulada | C11: =SUM(C7:C10) -> 19648444.65 | D11: =SUM(D7:D10) -> 33656493.41 | E11: 31495134.97 | F11: 36016720.1 | G11: 29512443.61 | H11: 27734003.93 | I11: 36619121.1 | J11: =SUM(J7:J10) -> 30668908.83 | K11: 0.999438111
B12: Servicios No Regulados de Navegación Aérea | C12: 17444.32555 | D12: 15956.54101 | E12: 28036.116 | F12: 16415.92046 | G12: 13987.52907 | H12: 14437.50913 | I12: 14417.53367 | J12: =AVERAGE(C12:I12) -> 17242.2107 | K12: 0.0005618889993
B13: Total de servicios no regulados | C13: =+SUM(C12) -> 17444.32555 | D13: =+SUM(D12) -> 15956.54101 | E13: =+SUM(E12) -> 28036.116 | F13: 16415.92046 | G13: 13987.52907 | H13: 14437.50913 | I13: 14417.53367 | J13: =+SUM(J12) -> 17242.2107 | K13: 0.0005618889993
B15: Total Aeronavegación | C15: =+C11+C13 -> 19665888.98 | D15: =+D11+D13 -> 33672449.95 | E15: 31523171.08 | F15: 36033136.02 | G15: 29526431.14 | H15: 27748441.44 | I15: 36633538.64 | J15: =+J11+J13 -> 30686151.04 | K15: =+K11+K13 -> 1
B17: B. Valor de Activos de aeronavegación
B19: B.1 Resumen de activos existentes asignados a Aeronavegación:
B20: (Expresado en miles de soles) | D20: 2022-12-31 | F20: 2023-12-31 | H20: 2024-11-30
B21: Tipo de activo | C21: Valor Histórico Neto al 2021 | D21: Año 2022 | F21: Año 2023 | H21: Año 2024 | J21: Valor Histórico Neto al 2024 | K21: Depreciación del Ejercicio
D22: Adiciones | E22: Depreciación | F22: Adiciones | G22: Depreciación | H22: Adiciones | I22: Depreciación | K22: 2025 | L22: =+K22+1 -> 2026 | M22: =+L22+1 -> 2027 | N22: 2028 | O22: 2029
A23: AERONAVEGACIÓN | B23: A. Aeronavegación | C23: =SUM(C24:C30) -> 257101.8412 | D23: =SUM(D24:D30) -> 24913.39177 | E23: 32677.07011 | F23: 7315.346 | G23: 33221.96257 | H23: =SUM(H24:H30) -> 4276.517 | I23: 32560.24264 | J23: =SUM(J24:J30) -> 195147.8206 | K23: =SUM(K24:K30) -> 32428.77768 | L23: =SUM(L24:L30) -> 31792.51643 | M23: =SUM(M24:M30) -> 26854.2678 | N23: =SUM(N24:N30) -> 20312.97987 | O23: 14175.58705
B24: Concesiones, licencias y otros derechos | C24: =(+SUMIFS('5.2.BD_BK2021'!$O$5:$O$30124,'5.2.BD_BK2021'!$B$5:$B$30124,'5.1.Activo Base'!$A$23,'5.2.BD_BK2021'!$D$5:$D$30124,'5.1.Activo Base'!$B24)/1000) -> 0 | D24: =SUMIFS('5.3 BK2022_2024'!$G$7:$G$38,'5.3 BK2022_2024'!$D$7:$D$38,$B24,'5.3 BK2022_2024'!$F$7:$F$38,D$20)/1000 -> 0 | E24: =SUMIFS('5.2.BD_BK2021'!$R$5:$R$30124,'5.2.BD_BK2021'!$B$5:$B$30124,'5.1.Activo Base'!$A$23,'5.2.BD_BK2021'!$D$5:$D$30124,'5.1.Activo Base'!$B24)/1000 -> 0 | F24: =SUMIFS('5.3 BK2022_2024'!$G$7:$G$38,'5.3 BK2022_2024'!$D$7:$D$38,$B24,'5.3 BK2022_2024'!$F$7:$F$38,F$20)/1000 -> 0 | G24: =(+SUMIFS('5.2.BD_BK2021'!$S$5:$S$30124,'5.2.BD_BK2021'!$B$5:$B$30124,'5.1.Activo Base'!$A$23,'5.2.BD_BK2021'!$D$5:$D$30124,'5.1.Activo Base'!$B24)/1000)+SUMIFS('5.3 BK2022_2024'!$I$7:$I$38,'5.3 BK2022_2024'!$D$7:$D$38,$B24)/1000 -> 0 | H24: =SUMIFS('5.3 BK2022_2024'!$G$7:$G$38,'5.3 BK2022_2024'!$D$7:$D$38,$B24,'5.3 BK2022_2024'!$F$7:$F$38,H$20)/1000 -> 0 | I24: =(+SUMIFS('5.2.BD_BK2021'!$T$5:$T$30124,'5.2.BD_BK2021'!$B$5:$B$30124,'5.1.Activo Base'!$A$23,'5.2.BD_BK2021'!$D$5:$D$30124,'5.1.Activo Base'!$B24)/1000)+SUMIFS('5.3 BK2022_2024'!$J$7:$J$38,'5.3 BK2022_2024'!$D$7:$D$38,$B24)/1000 -> 0 | J24: =+C24+D24-E24+F24-G24+H24-I24 -> 0 | K24: =(SUMIFS('5.2.BD_BK2021'!U$5:U$30124,'5.2.BD_BK2021'!$B$5:$B$30124,'5.1.Activo Base'!$A$23,'5.2.BD_BK2021'!$D$5:$D$30124,'5.1.Activo Base'!$B24)/1000)+_xlfn.XLOOKUP($B24,'5.3 BK2022_2024'!$B$46:$B$52,'5.3 BK2022_2024'!E$46:E$52)/1000 -> 0 | L24: =(SUMIFS('5.2.BD_BK2021'!V$5:V$30124,'5.2.BD_BK2021'!$B$5:$B$30124,'5.1.Activo Base'!$A$23,'5.2.BD_BK2021'!$D$5:$D$30124,'5.1.Activo Base'!$B24)/1000)+_xlfn.XLOOKUP($B24,'5.3 BK2022_2024'!$B$46:$B$52,'5.3 BK2022_2024'!F$46:F$52)/1000 -> 0 | M24: =(SUMIFS('5.2.BD_BK2021'!W$5:W$30124,'5.2.BD_BK2021'!$B$5:$B$30124,'5.1.Activo Base'!$A$23,'5.2.BD_BK2021'!$D$5:$D$30124,'5.1.Activo Base'!$B24)/1000)+_xlfn.XLOOKUP($B24,'5.3 BK2022_2024'!$B$46:$B$52,'5.3 BK2022_2024'!G$46:G$52)/1000 -> 0 | N24: =(SUMIFS('5.2.BD_BK2021'!X$5:X$30124,'5.2.BD_BK2021'!$B$5:$B$30124,'5.1.Activo Base'!$A$23,'5.2.BD_BK2021'!$D$5:$D$30124,'5.1.Activo Base'!$B24)/1000)+_xlfn.XLOOKUP($B24,'5.3 BK2022_2024'!$B$46:$B$52,'5.3 BK2022_2024'!H$46:H$52)/1000 -> 0 | O24: =(SUMIFS('5.2.BD_BK2021'!Y$5:Y$30124,'5.2.BD_BK2021'!$B$5:$B$30124,'5.1.Activo Base'!$A$23,'5.2.BD_BK2021'!$D$5:$D$30124,'5.1.Activo Base'!$B24)/1000)+_xlfn.XLOOKUP($B24,'5.3 BK2022_2024'!$B$46:$B$52,'5.3 BK2022_2024'!I$46:I$52)/1000 -> 0
B25: Edificaciones y construcciones | C25: =(+SUMIFS('5.2.BD_BK2021'!$O$5:$O$30124,'5.2.BD_BK2021'!$B$5:$B$30124,'5.1.Activo Base'!$A$23,'5.2.BD_BK2021'!$D$5:$D$30124,'5.1.Activo Base'!$B25)/1000) -> 38847.65638 | D25: =SUMIFS('5.3 BK2022_2024'!$G$7:$G$38,'5.3 BK2022_2024'!$D$7:$D$38,$B25,'5.3 BK2022_2024'!$F$7:$F$38,D$20)/1000 -> 9.939 | E25: =SUMIFS('5.2.BD_BK2021'!$R$5:$R$30124,'5.2.BD_BK2021'!$B$5:$B$30124,'5.1.Activo Base'!$A$23,'5.2.BD_BK2021'!$D$5:$D$30124,'5.1.Activo Base'!$B25)/1000 -> 2788.0498 | F25: =SUMIFS('5.3 BK2022_2024'!$G$7:$G$38,'5.3 BK2022_2024'!$D$7:$D$38,$B25,'5.3 BK2022_2024'!$F$7:$F$38,F$20)/1000 -> 1367.175 | G25: =(+SUMIFS('5.2.BD_BK2021'!$S$5:$S$30124,'5.2.BD_BK2021'!$B$5:$B$30124,'5.1.Activo Base'!$A$23,'5.2.BD_BK2021'!$D$5:$D$30124,'5.1.Activo Base'!$B25)/1000)+SUMIFS('5.3 BK2022_2024'!$I$7:$I$38,'5.3 BK2022_2024'!$D$7:$D$38,$B25)/1000 -> 2783.073788 | H25: =SUMIFS('5.3 BK2022_2024'!$G$7:$G$38,'5.3 BK2022_2024'!$D$7:$D$38,$B25,'5.3 BK2022_2024'!$F$7:$F$38,H$20)/1000 -> 219.93 | I25: =(+SUMIFS('5.2.BD_BK2021'!$T$5:$T$30124,'5.2.BD_BK2021'!$B$5:$B$30124,'5.1.Activo Base'!$A$23,'5.2.BD_BK2021'!$D$5:$D$30124,'5.1.Activo Base'!$B25)/1000)+SUMIFS('5.3 BK2022_2024'!$J$7:$J$38,'5.3 BK2022_2024'!$D$7:$D$38,$B25)/1000 -> 2451.271305 | J25: =+C25+D25-E25+F25-G25+H25-I25 -> 32422.30549 | K25: =(SUMIFS('5.2.BD_BK2021'!U$5:U$30124,'5.2.BD_BK2021'!$B$5:$B$30124,'5.1.Activo Base'!$A$23,'5.2.BD_BK2021'!$D$5:$D$30124,'5.1.Activo Base'!$B25)/1000)+_xlfn.XLOOKUP($B25,'5.3 BK2022_2024'!$B$46:$B$52,'5.3 BK2022_2024'!E$46:E$52)/1000 -> 2452.557829 | L25: =(SUMIFS('5.2.BD_BK2021'!V$5:V$30124,'5.2.BD_BK2021'!$B$5:$B$30124,'5.1.Activo Base'!$A$23,'5.2.BD_BK2021'!$D$5:$D$30124,'5.1.Activo Base'!$B25)/1000)+_xlfn.XLOOKUP($B25,'5.3 BK2022_2024'!$B$46:$B$52,'5.3 BK2022_2024'!F$46:F$52)/1000 -> 2431.581579 | M25: =(SUMIFS('5.2.BD_BK2021'!W$5:W$30124,'5.2.BD_BK2021'!$B$5:$B$30124,'5.1.Activo Base'!$A$23,'5.2.BD_BK2021'!$D$5:$D$30124,'5.1.Activo Base'!$B25)/1000)+_xlfn.XLOOKUP($B25,'5.3 BK2022_2024'!$B$46:$B$52,'5.3 BK2022_2024'!G$46:G$52)/1000 -> 2413.634069 | N25: =(SUMIFS('5.2.BD_BK2021'!X$5:X$30124,'5.2.BD_BK2021'!$B$5:$B$30124,'5.1.Activo Base'!$A$23,'5.2.BD_BK2021'!$D$5:$D$30124,'5.1.Activo Base'!$B25)/1000)+_xlfn.XLOOKUP($B25,'5.3 BK2022_2024'!$B$46:$B$52,'5.3 BK2022_2024'!H$46:H$52)/1000 -> 2401.062859 | O25: =(SUMIFS('5.2.BD_BK2021'!Y$5:Y$30124,'5.2.BD_BK2021'!$B$5:$B$30124,'5.1.Activo Base'!$A$23,'5.2.BD_BK2021'!$D$5:$D$30124,'5.1.Activo Base'!$B25)/1000)+_xlfn.XLOOKUP($B25,'5.3 BK2022_2024'!$B$46:$B$52,'5.3 BK2022_2024'!I$46:I$52)/1000 -> 2363.264399
B26: Maquinaria y Equipo | C26: =(+SUMIFS('5.2.BD_BK2021'!$O$5:$O$30124,'5.2.BD_BK2021'!$B$5:$B$30124,'5.1.Activo Base'!$A$23,'5.2.BD_BK2021'!$D$5:$D$30124,'5.1.Activo Base'!$B26)/1000) -> 67391.49642 | D26: =SUMIFS('5.3 BK2022_2024'!$G$7:$G$38,'5.3 BK2022_2024'!$D$7:$D$38,$B26,'5.3 BK2022_2024'!$F$7:$F$38,D$20)/1000 -> 24837.86777 | E26: =SUMIFS('5.2.BD_BK2021'!$R$5:$R$30124,'5.2.BD_BK2021'!$B$5:$B$30124,'5.1.Activo Base'!$A$23,'5.2.BD_BK2021'!$D$5:$D$30124,'5.1.Activo Base'!$B26)/1000 -> 11331.60705 | F26: =SUMIFS('5.3 BK2022_2024'!$G$7:$G$38,'5.3 BK2022_2024'!$D$7:$D$38,$B26,'5.3 BK2022_2024'!$F$7:$F$38,F$20)/1000 -> 5894.717 | G26: =(+SUMIFS('5.2.BD_BK2021'!$S$5:$S$30124,'5.2.BD_BK2021'!$B$5:$B$30124,'5.1.Activo Base'!$A$23,'5.2.BD_BK2021'!$D$5:$D$30124,'5.1.Activo Base'!$B26)/1000)+SUMIFS('5.3 BK2022_2024'!$I$7:$I$38,'5.3 BK2022_2024'!$D$7:$D$38,$B26)/1000 -> 13033.60287 | H26: =SUMIFS('5.3 BK2022_2024'!$G$7:$G$38,'5.3 BK2022_2024'!$D$7:$D$38,$B26,'5.3 BK2022_2024'!$F$7:$F$38,H$20)/1000 -> 413.898 | I26: =(+SUMIFS('5.2.BD_BK2021'!$T$5:$T$30124,'5.2.BD_BK2021'!$B$5:$B$30124,'5.1.Activo Base'!$A$23,'5.2.BD_BK2021'!$D$5:$D$30124,'5.1.Activo Base'!$B26)/1000)+SUMIFS('5.3 BK2022_2024'!$J$7:$J$38,'5.3 BK2022_2024'!$D$7:$D$38,$B26)/1000 -> 13240.19717 | J26: 60932.57211 | K26: =(SUMIFS('5.2.BD_BK2021'!U$5:U$30124,'5.2.BD_BK2021'!$B$5:$B$30124,'5.1.Activo Base'!$A$23,'5.2.BD_BK2021'!$D$5:$D$30124,'5.1.Activo Base'!$B26)/1000)+_xlfn.XLOOKUP($B26,'5.3 BK2022_2024'!$B$46:$B$52,'5.3 BK2022_2024'!E$46:E$52)/1000 -> 13104.4675 | L26: =(SUMIFS('5.2.BD_BK2021'!V$5:V$30124,'5.2.BD_BK2021'!$B$5:$B$30124,'5.1.Activo Base'!$A$23,'5.2.BD_BK2021'!$D$5:$D$30124,'5.1.Activo Base'!$B26)/1000)+_xlfn.XLOOKUP($B26,'5.3 BK2022_2024'!$B$46:$B$52,'5.3 BK2022_2024'!F$46:F$52)/1000 -> 12898.82127 | M26: =(SUMIFS('5.2.BD_BK2021'!W$5:W$30124,'5.2.BD_BK2021'!$B$5:$B$30124,'5.1.Activo Base'!$A$23,'5.2.BD_BK2021'!$D$5:$D$30124,'5.1.Activo Base'!$B26)/1000)+_xlfn.XLOOKUP($B26,'5.3 BK2022_2024'!$B$46:$B$52,'5.3 BK2022_2024'!G$46:G$52)/1000 -> 10187.41364 | N26: =(SUMIFS('5.2.BD_BK2021'!X$5:X$30124,'5.2.BD_BK2021'!$B$5:$B$30124,'5.1.Activo Base'!$A$23,'5.2.BD_BK2021'!$D$5:$D$30124,'5.1.Activo Base'!$B26)/1000)+_xlfn.XLOOKUP($B26,'5.3 BK2022_2024'!$B$46:$B$52,'5.3 BK2022_2024'!H$46:H$52)/1000 -> 8700.033357 | O26: =(SUMIFS('5.2.BD_BK2021'!Y$5:Y$30124,'5.2.BD_BK2021'!$B$5:$B$30124,'5.1.Activo Base'!$A$23,'5.2.BD_BK2021'!$D$5:$D$30124,'5.1.Activo Base'!$B26)/1000)+_xlfn.XLOOKUP($B26,'5.3 BK2022_2024'!$B$46:$B$52,'5.3 BK2022_2024'!I$46:I$52)/1000 -> 3943.851087
B27: Otros | C27: =(+SUMIFS('5.2.BD_BK2021'!$O$5:$O$30124,'5.2.BD_BK2021'!$B$5:$B$30124,'5.1.Activo Base'!$A$23,'5.2.BD_BK2021'!$D$5:$D$30124,'5.1.Activo Base'!$B27)/1000) -> 130186.519 | D27: =SUMIFS('5.3 BK2022_2024'!$G$7:$G$38,'5.3 BK2022_2024'!$D$7:$D$38,$B27,'5.3 BK2022_2024'!$F$7:$F$38,D$20)/1000 -> 65.585 | E27: =SUMIFS('5.2.BD_BK2021'!$R$5:$R$30124,'5.2.BD_BK2021'!$B$5:$B$30124,'5.1.Activo Base'!$A$23,'5.2.BD_BK2021'!$D$5:$D$30124,'5.1.Activo Base'!$B27)/1000 -> 17296.34785 | F27: =SUMIFS('5.3 BK2022_2024'!$G$7:$G$38,'5.3 BK2022_2024'!$D$7:$D$38,$B27,'5.3 BK2022_2024'!$F$7:$F$38,F$20)/1000 -> 53.454 | G27: =(+SUMIFS('5.2.BD_BK2021'!$S$5:$S$30124,'5.2.BD_BK2021'!$B$5:$B$30124,'5.1.Activo Base'!$A$23,'5.2.BD_BK2021'!$D$5:$D$30124,'5.1.Activo Base'!$B27)/1000)+SUMIFS('5.3 BK2022_2024'!$I$7:$I$38,'5.3 BK2022_2024'!$D$7:$D$38,$B27)/1000 -> 16619.85429 | H27: =SUMIFS('5.3 BK2022_2024'!$G$7:$G$38,'5.3 BK2022_2024'!$D$7:$D$38,$B27,'5.3 BK2022_2024'!$F$7:$F$38,H$20)/1000 -> 160.537 | I27: =(+SUMIFS('5.2.BD_BK2021'!$T$5:$T$30124,'5.2.BD_BK2021'!$B$5:$B$30124,'5.1.Activo Base'!$A$23,'5.2.BD_BK2021'!$D$5:$D$30124,'5.1.Activo Base'!$B27)/1000)+SUMIFS('5.3 BK2022_2024'!$J$7:$J$38,'5.3 BK2022_2024'!$D$7:$D$38,$B27)/1000 -> 16125.21716 | J27: 80424.67571 | K27: =(SUMIFS('5.2.BD_BK2021'!U$5:U$30124,'5.2.BD_BK2021'!$B$5:$B$30124,'5.1.Activo Base'!$A$23,'5.2.BD_BK2021'!$D$5:$D$30124,'5.1.Activo Base'!$B27)/1000)+_xlfn.XLOOKUP($B27,'5.3 BK2022_2024'!$B$46:$B$52,'5.3 BK2022_2024'!E$46:E$52)/1000 -> 15910.79571 | L27: =(SUMIFS('5.2.BD_BK2021'!V$5:V$30124,'5.2.BD_BK2021'!$B$5:$B$30124,'5.1.Activo Base'!$A$23,'5.2.BD_BK2021'!$D$5:$D$30124,'5.1.Activo Base'!$B27)/1000)+_xlfn.XLOOKUP($B27,'5.3 BK2022_2024'!$B$46:$B$52,'5.3 BK2022_2024'!F$46:F$52)/1000 -> 15501.62891 | M27: =(SUMIFS('5.2.BD_BK2021'!W$5:W$30124,'5.2.BD_BK2021'!$B$5:$B$30124,'5.1.Activo Base'!$A$23,'5.2.BD_BK2021'!$D$5:$D$30124,'5.1.Activo Base'!$B27)/1000)+_xlfn.XLOOKUP($B27,'5.3 BK2022_2024'!$B$46:$B$52,'5.3 BK2022_2024'!G$46:G$52)/1000 -> 13359.65624 | N27: =(SUMIFS('5.2.BD_BK2021'!X$5:X$30124,'5.2.BD_BK2021'!$B$5:$B$30124,'5.1.Activo Base'!$A$23,'5.2.BD_BK2021'!$D$5:$D$30124,'5.1.Activo Base'!$B27)/1000)+_xlfn.XLOOKUP($B27,'5.3 BK2022_2024'!$B$46:$B$52,'5.3 BK2022_2024'!H$46:H$52)/1000 -> 8862.206738 | O27: =(SUMIFS('5.2.BD_BK2021'!Y$5:Y$30124,'5.2.BD_BK2021'!$B$5:$B$30124,'5.1.Activo Base'!$A$23,'5.2.BD_BK2021'!$D$5:$D$30124,'5.1.Activo Base'!$B27)/1000)+_xlfn.XLOOKUP($B27,'5.3 BK2022_2024'!$B$46:$B$52,'5.3 BK2022_2024'!I$46:I$52)/1000 -> 7518.794648
B28: Programas de computadora (software) | C28: =(+SUMIFS('5.2.BD_BK2021'!$O$5:$O$30124,'5.2.BD_BK2021'!$B$5:$B$30124,'5.1.Activo Base'!$A$23,'5.2.BD_BK2021'!$D$5:$D$30124,'5.1.Activo Base'!$B28)/1000) -> 9884.95668 | D28: =SUMIFS('5.3 BK2022_2024'!$G$7:$G$38,'5.3 BK2022_2024'!$D$7:$D$38,$B28,'5.3 BK2022_2024'!$F$7:$F$38,D$20)/1000 -> 0 | E28: =SUMIFS('5.2.BD_BK2021'!$R$5:$R$30124,'5.2.BD_BK2021'!$B$5:$B$30124,'5.1.Activo Base'!$A$23,'5.2.BD_BK2021'!$D$5:$D$30124,'5.1.Activo Base'!$B28)/1000 -> 1261.06541 | F28: =SUMIFS('5.3 BK2022_2024'!$G$7:$G$38,'5.3 BK2022_2024'!$D$7:$D$38,$B28,'5.3 BK2022_2024'!$F$7:$F$38,F$20)/1000 -> 0 | G28: =(+SUMIFS('5.2.BD_BK2021'!$S$5:$S$30124,'5.2.BD_BK2021'!$B$5:$B$30124,'5.1.Activo Base'!$A$23,'5.2.BD_BK2021'!$D$5:$D$30124,'5.1.Activo Base'!$B28)/1000)+SUMIFS('5.3 BK2022_2024'!$I$7:$I$38,'5.3 BK2022_2024'!$D$7:$D$38,$B28)/1000 -> 785.43163 | H28: =SUMIFS('5.3 BK2022_2024'!$G$7:$G$38,'5.3 BK2022_2024'!$D$7:$D$38,$B28,'5.3 BK2022_2024'!$F$7:$F$38,H$20)/1000 -> 0 | I28: =(+SUMIFS('5.2.BD_BK2021'!$T$5:$T$30124,'5.2.BD_BK2021'!$B$5:$B$30124,'5.1.Activo Base'!$A$23,'5.2.BD_BK2021'!$D$5:$D$30124,'5.1.Activo Base'!$B28)/1000)+SUMIFS('5.3 BK2022_2024'!$J$7:$J$38,'5.3 BK2022_2024'!$D$7:$D$38,$B28)/1000 -> 743.55701 | J28: 7094.90263 | K28: =(SUMIFS('5.2.BD_BK2021'!U$5:U$30124,'5.2.BD_BK2021'!$B$5:$B$30124,'5.1.Activo Base'!$A$23,'5.2.BD_BK2021'!$D$5:$D$30124,'5.1.Activo Base'!$B28)/1000)+_xlfn.XLOOKUP($B28,'5.3 BK2022_2024'!$B$46:$B$52,'5.3 BK2022_2024'!E$46:E$52)/1000 -> 612.74145 | L28: =(SUMIFS('5.2.BD_BK2021'!V$5:V$30124,'5.2.BD_BK2021'!$B$5:$B$30124,'5.1.Activo Base'!$A$23,'5.2.BD_BK2021'!$D$5:$D$30124,'5.1.Activo Base'!$B28)/1000)+_xlfn.XLOOKUP($B28,'5.3 BK2022_2024'!$B$46:$B$52,'5.3 BK2022_2024'!F$46:F$52)/1000 -> 612.26948 | M28: =(SUMIFS('5.2.BD_BK2021'!W$5:W$30124,'5.2.BD_BK2021'!$B$5:$B$30124,'5.1.Activo Base'!$A$23,'5.2.BD_BK2021'!$D$5:$D$30124,'5.1.Activo Base'!$B28)/1000)+_xlfn.XLOOKUP($B28,'5.3 BK2022_2024'!$B$46:$B$52,'5.3 BK2022_2024'!G$46:G$52)/1000 -> 545.34866 | N28: =(SUMIFS('5.2.BD_BK2021'!X$5:X$30124,'5.2.BD_BK2021'!$B$5:$B$30124,'5.1.Activo Base'!$A$23,'5.2.BD_BK2021'!$D$5:$D$30124,'5.1.Activo Base'!$B28)/1000)+_xlfn.XLOOKUP($B28,'5.3 BK2022_2024'!$B$46:$B$52,'5.3 BK2022_2024'!H$46:H$52)/1000 -> 1.46172 | O28: =(SUMIFS('5.2.BD_BK2021'!Y$5:Y$30124,'5.2.BD_BK2021'!$B$5:$B$30124,'5.1.Activo Base'!$A$23,'5.2.BD_BK2021'!$D$5:$D$30124,'5.1.Activo Base'!$B28)/1000)+_xlfn.XLOOKUP($B28,'5.3 BK2022_2024'!$B$46:$B$52,'5.3 BK2022_2024'!I$46:I$52)/1000 -> 1.46172
B29: Equipos | C29: =(+SUMIFS('5.2.BD_BK2021'!$O$5:$O$30124,'5.2.BD_BK2021'!$B$5:$B$30124,'5.1.Activo Base'!$A$23,'5.2.BD_BK2021'!$D$5:$D$30124,'5.1.Activo Base'!$B29)/1000) -> 0 | D29: =SUMIFS('5.3 BK2022_2024'!$G$7:$G$38,'5.3 BK2022_2024'!$D$7:$D$38,$B29,'5.3 BK2022_2024'!$F$7:$F$38,D$20)/1000 -> 0 | E29: =SUMIFS('5.2.BD_BK2021'!$R$5:$R$30124,'5.2.BD_BK2021'!$B$5:$B$30124,'5.1.Activo Base'!$A$23,'5.2.BD_BK2021'!$D$5:$D$30124,'5.1.Activo Base'!$B29)/1000 -> 0 | F29: =SUMIFS('5.3 BK2022_2024'!$G$7:$G$38,'5.3 BK2022_2024'!$D$7:$D$38,$B29,'5.3 BK2022_2024'!$F$7:$F$38,F$20)/1000 -> 0 | G29: =(+SUMIFS('5.2.BD_BK2021'!$S$5:$S$30124,'5.2.BD_BK2021'!$B$5:$B$30124,'5.1.Activo Base'!$A$23,'5.2.BD_BK2021'!$D$5:$D$30124,'5.1.Activo Base'!$B29)/1000)+SUMIFS('5.3 BK2022_2024'!$I$7:$I$38,'5.3 BK2022_2024'!$D$7:$D$38,$B29)/1000 -> 0 | H29: =SUMIFS('5.3 BK2022_2024'!$G$7:$G$38,'5.3 BK2022_2024'!$D$7:$D$38,$B29,'5.3 BK2022_2024'!$F$7:$F$38,H$20)/1000 -> 3482.152 | I29: =(+SUMIFS('5.2.BD_BK2021'!$T$5:$T$30124,'5.2.BD_BK2021'!$B$5:$B$30124,'5.1.Activo Base'!$A$23,'5.2.BD_BK2021'!$D$5:$D$30124,'5.1.Activo Base'!$B29)/1000)+SUMIFS('5.3 BK2022_2024'!$J$7:$J$38,'5.3 BK2022_2024'!$D$7:$D$38,$B29)/1000 -> 0 | J29: 3482.152 | K29: =(SUMIFS('5.2.BD_BK2021'!U$5:U$30124,'5.2.BD_BK2021'!$B$5:$B$30124,'5.1.Activo Base'!$A$23,'5.2.BD_BK2021'!$D$5:$D$30124,'5.1.Activo Base'!$B29)/1000)+_xlfn.XLOOKUP($B29,'5.3 BK2022_2024'!$B$46:$B$52,'5.3 BK2022_2024'!E$46:E$52)/1000 -> 348.2152 | L29: =(SUMIFS('5.2.BD_BK2021'!V$5:V$30124,'5.2.BD_BK2021'!$B$5:$B$30124,'5.1.Activo Base'!$A$23,'5.2.BD_BK2021'!$D$5:$D$30124,'5.1.Activo Base'!$B29)/1000)+_xlfn.XLOOKUP($B29,'5.3 BK2022_2024'!$B$46:$B$52,'5.3 BK2022_2024'!F$46:F$52)/1000 -> 348.2152 | M29: =(SUMIFS('5.2.BD_BK2021'!W$5:W$30124,'5.2.BD_BK2021'!$B$5:$B$30124,'5.1.Activo Base'!$A$23,'5.2.BD_BK2021'!$D$5:$D$30124,'5.1.Activo Base'!$B29)/1000)+_xlfn.XLOOKUP($B29,'5.3 BK2022_2024'!$B$46:$B$52,'5.3 BK2022_2024'!G$46:G$52)/1000 -> 348.2152 | N29: =(SUMIFS('5.2.BD_BK2021'!X$5:X$30124,'5.2.BD_BK2021'!$B$5:$B$30124,'5.1.Activo Base'!$A$23,'5.2.BD_BK2021'!$D$5:$D$30124,'5.1.Activo Base'!$B29)/1000)+_xlfn.XLOOKUP($B29,'5.3 BK2022_2024'!$B$46:$B$52,'5.3 BK2022_2024'!H$46:H$52)/1000 -> 348.2152 | O29: =(SUMIFS('5.2.BD_BK2021'!Y$5:Y$30124,'5.2.BD_BK2021'!$B$5:$B$30124,'5.1.Activo Base'!$A$23,'5.2.BD_BK2021'!$D$5:$D$30124,'5.1.Activo Base'!$B29)/1000)+_xlfn.XLOOKUP($B29,'5.3 BK2022_2024'!$B$46:$B$52,'5.3 BK2022_2024'!I$46:I$52)/1000 -> 348.2152
B30: Terrenos | C30: =(+SUMIFS('5.2.BD_BK2021'!$O$5:$O$30124,'5.2.BD_BK2021'!$B$5:$B$30124,'5.1.Activo Base'!$A$23,'5.2.BD_BK2021'!$D$5:$D$30124,'5.1.Activo Base'!$B30)/1000) -> 10791.21272 | D30: =SUMIFS('5.3 BK2022_2024'!$G$7:$G$38,'5.3 BK2022_2024'!$D$7:$D$38,$B30,'5.3 BK2022_2024'!$F$7:$F$38,D$20)/1000 -> 0 | E30: =SUMIFS('5.2.BD_BK2021'!$R$5:$R$30124,'5.2.BD_BK2021'!$B$5:$B$30124,'5.1.Activo Base'!$A$23,'5.2.BD_BK2021'!$D$5:$D$30124,'5.1.Activo Base'!$B30)/1000 -> 0 | F30: =SUMIFS('5.3 BK2022_2024'!$G$7:$G$38,'5.3 BK2022_2024'!$D$7:$D$38,$B30,'5.3 BK2022_2024'!$F$7:$F$38,F$20)/1000 -> 0 | G30: =(+SUMIFS('5.2.BD_BK2021'!$S$5:$S$30124,'5.2.BD_BK2021'!$B$5:$B$30124,'5.1.Activo Base'!$A$23,'5.2.BD_BK2021'!$D$5:$D$30124,'5.1.Activo Base'!$B30)/1000)+SUMIFS('5.3 BK2022_2024'!$I$7:$I$38,'5.3 BK2022_2024'!$D$7:$D$38,$B30)/1000 -> 0 | H30: =SUMIFS('5.3 BK2022_2024'!$G$7:$G$38,'5.3 BK2022_2024'!$D$7:$D$38,$B30,'5.3 BK2022_2024'!$F$7:$F$38,H$20)/1000 -> 0 | I30: =(+SUMIFS('5.2.BD_BK2021'!$T$5:$T$30124,'5.2.BD_BK2021'!$B$5:$B$30124,'5.1.Activo Base'!$A$23,'5.2.BD_BK2021'!$D$5:$D$30124,'5.1.Activo Base'!$B30)/1000)+SUMIFS('5.3 BK2022_2024'!$J$7:$J$38,'5.3 BK2022_2024'!$D$7:$D$38,$B30)/1000 -> 0 | J30: 10791.21272 | K30: =(SUMIFS('5.2.BD_BK2021'!U$5:U$30124,'5.2.BD_BK2021'!$B$5:$B$30124,'5.1.Activo Base'!$A$23,'5.2.BD_BK2021'!$D$5:$D$30124,'5.1.Activo Base'!$B30)/1000)+_xlfn.XLOOKUP($B30,'5.3 BK2022_2024'!$B$46:$B$52,'5.3 BK2022_2024'!E$46:E$52)/1000 -> 0 | L30: =(SUMIFS('5.2.BD_BK2021'!V$5:V$30124,'5.2.BD_BK2021'!$B$5:$B$30124,'5.1.Activo Base'!$A$23,'5.2.BD_BK2021'!$D$5:$D$30124,'5.1.Activo Base'!$B30)/1000)+_xlfn.XLOOKUP($B30,'5.3 BK2022_2024'!$B$46:$B$52,'5.3 BK2022_2024'!F$46:F$52)/1000 -> 0 | M30: =(SUMIFS('5.2.BD_BK2021'!W$5:W$30124,'5.2.BD_BK2021'!$B$5:$B$30124,'5.1.Activo Base'!$A$23,'5.2.BD_BK2021'!$D$5:$D$30124,'5.1.Activo Base'!$B30)/1000)+_xlfn.XLOOKUP($B30,'5.3 BK2022_2024'!$B$46:$B$52,'5.3 BK2022_2024'!G$46:G$52)/1000 -> 0 | N30: =(SUMIFS('5.2.BD_BK2021'!X$5:X$30124,'5.2.BD_BK2021'!$B$5:$B$30124,'5.1.Activo Base'!$A$23,'5.2.BD_BK2021'!$D$5:$D$30124,'5.1.Activo Base'!$B30)/1000)+_xlfn.XLOOKUP($B30,'5.3 BK2022_2024'!$B$46:$B$52,'5.3 BK2022_2024'!H$46:H$52)/1000 -> 0 | O30: =(SUMIFS('5.2.BD_BK2021'!Y$5:Y$30124,'5.2.BD_BK2021'!$B$5:$B$30124,'5.1.Activo Base'!$A$23,'5.2.BD_BK2021'!$D$5:$D$30124,'5.1.Activo Base'!$B30)/1000)+_xlfn.XLOOKUP($B30,'5.3 BK2022_2024'!$B$46:$B$52,'5.3 BK2022_2024'!I$46:I$52)/1000 -> 0
A31: AERONAVEGACIÓN/AEROPORTUARIO | B31: B. Aeronavegación/Aeroportuarios (Mixto) | C31: =SUM(C32:C37) -> 111297.388 | D31: =SUM(D32:D37) -> 0 | E31: 1303.356135 | F31: 0 | G31: 1188.202535 | H31: =SUM(H32:H37) -> 0 | I31: 1108.66046 | J31: =SUM(J32:J37) -> 107697.1689 | K31: =SUM(K32:K37) -> 1108.66046 | L31: =SUM(L32:L37) -> 1073.664765 | M31: 989.652185 | N31: 681.41691 | O31: 460.17721
B32: Concesiones, licencias y otros derechos | C32: =+SUMIFS('5.2.BD_BK2021'!$O$5:$O$30124,'5.2.BD_BK2021'!$B$5:$B$30124,'5.1.Activo Base'!$A$31,'5.2.BD_BK2021'!$D$5:$D$30124,'5.1.Activo Base'!$B32)/1000 -> 0 | D32: 0 | E32: =+SUMIFS('5.2.BD_BK2021'!$R$5:$R$30124,'5.2.BD_BK2021'!$B$5:$B$30124,'5.1.Activo Base'!$A$31,'5.2.BD_BK2021'!$D$5:$D$30124,'5.1.Activo Base'!$B32)/1000 -> 0 | F32: 0 | G32: =+SUMIFS('5.2.BD_BK2021'!$S$5:$S$30124,'5.2.BD_BK2021'!$B$5:$B$30124,'5.1.Activo Base'!$A$31,'5.2.BD_BK2021'!$D$5:$D$30124,'5.1.Activo Base'!$B32)/1000 -> 0 | H32: 0 | I32: =+SUMIFS('5.2.BD_BK2021'!$T$5:$T$30124,'5.2.BD_BK2021'!$B$5:$B$30124,'5.1.Activo Base'!$A$31,'5.2.BD_BK2021'!$D$5:$D$30124,'5.1.Activo Base'!$B32)/1000 -> 0 | J32: 0 | K32: =+SUMIFS('5.2.BD_BK2021'!T$5:T$30124,'5.2.BD_BK2021'!$B$5:$B$30124,'5.1.Activo Base'!$A$31,'5.2.BD_BK2021'!$D$5:$D$30124,'5.1.Activo Base'!$B32)/1000 -> 0 | L32: =+SUMIFS('5.2.BD_BK2021'!U$5:U$30124,'5.2.BD_BK2021'!$B$5:$B$30124,'5.1.Activo Base'!$A$31,'5.2.BD_BK2021'!$D$5:$D$30124,'5.1.Activo Base'!$B32)/1000 -> 0 | M32: =+SUMIFS('5.2.BD_BK2021'!V$5:V$30124,'5.2.BD_BK2021'!$B$5:$B$30124,'5.1.Activo Base'!$A$31,'5.2.BD_BK2021'!$D$5:$D$30124,'5.1.Activo Base'!$B32)/1000 -> 0 | N32: =+SUMIFS('5.2.BD_BK2021'!W$5:W$30124,'5.2.BD_BK2021'!$B$5:$B$30124,'5.1.Activo Base'!$A$31,'5.2.BD_BK2021'!$D$5:$D$30124,'5.1.Activo Base'!$B32)/1000 -> 0 | O32: =+SUMIFS('5.2.BD_BK2021'!X$5:X$30124,'5.2.BD_BK2021'!$B$5:$B$30124,'5.1.Activo Base'!$A$31,'5.2.BD_BK2021'!$D$5:$D$30124,'5.1.Activo Base'!$B32)/1000 -> 0
B33: Edificaciones y construcciones | C33: =+SUMIFS('5.2.BD_BK2021'!$O$5:$O$30124,'5.2.BD_BK2021'!$B$5:$B$30124,'5.1.Activo Base'!$A$31,'5.2.BD_BK2021'!$D$5:$D$30124,'5.1.Activo Base'!$B33)/1000 -> 4678.817695 | D33: 0 | E33: =+SUMIFS('5.2.BD_BK2021'!$R$5:$R$30124,'5.2.BD_BK2021'!$B$5:$B$30124,'5.1.Activo Base'!$A$31,'5.2.BD_BK2021'!$D$5:$D$30124,'5.1.Activo Base'!$B33)/1000 -> 245.992835 | F33: 0 | G33: =+SUMIFS('5.2.BD_BK2021'!$S$5:$S$30124,'5.2.BD_BK2021'!$B$5:$B$30124,'5.1.Activo Base'!$A$31,'5.2.BD_BK2021'!$D$5:$D$30124,'5.1.Activo Base'!$B33)/1000 -> 245.992835 | H33: 0 | I33: =+SUMIFS('5.2.BD_BK2021'!$T$5:$T$30124,'5.2.BD_BK2021'!$B$5:$B$30124,'5.1.Activo Base'!$A$31,'5.2.BD_BK2021'!$D$5:$D$30124,'5.1.Activo Base'!$B33)/1000 -> 245.992835 | J33: 3940.83919 | K33: =+SUMIFS('5.2.BD_BK2021'!T$5:T$30124,'5.2.BD_BK2021'!$B$5:$B$30124,'5.1.Activo Base'!$A$31,'5.2.BD_BK2021'!$D$5:$D$30124,'5.1.Activo Base'!$B33)/1000 -> 245.992835 | L33: =+SUMIFS('5.2.BD_BK2021'!U$5:U$30124,'5.2.BD_BK2021'!$B$5:$B$30124,'5.1.Activo Base'!$A$31,'5.2.BD_BK2021'!$D$5:$D$30124,'5.1.Activo Base'!$B33)/1000 -> 245.992835 | M33: =+SUMIFS('5.2.BD_BK2021'!V$5:V$30124,'5.2.BD_BK2021'!$B$5:$B$30124,'5.1.Activo Base'!$A$31,'5.2.BD_BK2021'!$D$5:$D$30124,'5.1.Activo Base'!$B33)/1000 -> 245.992835 | N33: =+SUMIFS('5.2.BD_BK2021'!W$5:W$30124,'5.2.BD_BK2021'!$B$5:$B$30124,'5.1.Activo Base'!$A$31,'5.2.BD_BK2021'!$D$5:$D$30124,'5.1.Activo Base'!$B33)/1000 -> 245.992835 | O33: =+SUMIFS('5.2.BD_BK2021'!X$5:X$30124,'5.2.BD_BK2021'!$B$5:$B$30124,'5.1.Activo Base'!$A$31,'5.2.BD_BK2021'!$D$5:$D$30124,'5.1.Activo Base'!$B33)/1000 -> 245.992835
B34: Maquinaria y Equipo | C34: =+SUMIFS('5.2.BD_BK2021'!$O$5:$O$30124,'5.2.BD_BK2021'!$B$5:$B$30124,'5.1.Activo Base'!$A$31,'5.2.BD_BK2021'!$D$5:$D$30124,'5.1.Activo Base'!$B34)/1000 -> 1491.03995 | D34: 0 | E34: =+SUMIFS('5.2.BD_BK2021'!$R$5:$R$30124,'5.2.BD_BK2021'!$B$5:$B$30124,'5.1.Activo Base'!$A$31,'5.2.BD_BK2021'!$D$5:$D$30124,'5.1.Activo Base'!$B34)/1000 -> 246.308155 | F34: 0 | G34: =+SUMIFS('5.2.BD_BK2021'!$S$5:$S$30124,'5.2.BD_BK2021'!$B$5:$B$30124,'5.1.Activo Base'!$A$31,'5.2.BD_BK2021'!$D$5:$D$30124,'5.1.Activo Base'!$B34)/1000 -> 245.220955 | H34: 0 | I34: =+SUMIFS('5.2.BD_BK2021'!$T$5:$T$30124,'5.2.BD_BK2021'!$B$5:$B$30124,'5.1.Activo Base'!$A$31,'5.2.BD_BK2021'!$D$5:$D$30124,'5.1.Activo Base'!$B34)/1000 -> 237.031735 | J34: 762.479105 | K34: =+SUMIFS('5.2.BD_BK2021'!T$5:T$30124,'5.2.BD_BK2021'!$B$5:$B$30124,'5.1.Activo Base'!$A$31,'5.2.BD_BK2021'!$D$5:$D$30124,'5.1.Activo Base'!$B34)/1000 -> 237.031735 | L34: =+SUMIFS('5.2.BD_BK2021'!U$5:U$30124,'5.2.BD_BK2021'!$B$5:$B$30124,'5.1.Activo Base'!$A$31,'5.2.BD_BK2021'!$D$5:$D$30124,'5.1.Activo Base'!$B34)/1000 -> 220.917205 | M34: =+SUMIFS('5.2.BD_BK2021'!V$5:V$30124,'5.2.BD_BK2021'!$B$5:$B$30124,'5.1.Activo Base'!$A$31,'5.2.BD_BK2021'!$D$5:$D$30124,'5.1.Activo Base'!$B34)/1000 -> 213.279605 | N34: =+SUMIFS('5.2.BD_BK2021'!W$5:W$30124,'5.2.BD_BK2021'!$B$5:$B$30124,'5.1.Activo Base'!$A$31,'5.2.BD_BK2021'!$D$5:$D$30124,'5.1.Activo Base'!$B34)/1000 -> 157.49029 | O34: =+SUMIFS('5.2.BD_BK2021'!X$5:X$30124,'5.2.BD_BK2021'!$B$5:$B$30124,'5.1.Activo Base'!$A$31,'5.2.BD_BK2021'!$D$5:$D$30124,'5.1.Activo Base'!$B34)/1000 -> 122.4853
B35: Otros | C35: =+SUMIFS('5.2.BD_BK2021'!$O$5:$O$30124,'5.2.BD_BK2021'!$B$5:$B$30124,'5.1.Activo Base'!$A$31,'5.2.BD_BK2021'!$D$5:$D$30124,'5.1.Activo Base'!$B35)/1000 -> 3659.887545 | D35: 0 | E35: =+SUMIFS('5.2.BD_BK2021'!$R$5:$R$30124,'5.2.BD_BK2021'!$B$5:$B$30124,'5.1.Activo Base'!$A$31,'5.2.BD_BK2021'!$D$5:$D$30124,'5.1.Activo Base'!$B35)/1000 -> 811.055145 | F35: 0 | G35: =+SUMIFS('5.2.BD_BK2021'!$S$5:$S$30124,'5.2.BD_BK2021'!$B$5:$B$30124,'5.1.Activo Base'!$A$31,'5.2.BD_BK2021'!$D$5:$D$30124,'5.1.Activo Base'!$B35)/1000 -> 696.988745 | H35: 0 | I35: =+SUMIFS('5.2.BD_BK2021'!$T$5:$T$30124,'5.2.BD_BK2021'!$B$5:$B$30124,'5.1.Activo Base'!$A$31,'5.2.BD_BK2021'!$D$5:$D$30124,'5.1.Activo Base'!$B35)/1000 -> 625.63589 | J35: 1526.207765 | K35: =+SUMIFS('5.2.BD_BK2021'!T$5:T$30124,'5.2.BD_BK2021'!$B$5:$B$30124,'5.1.Activo Base'!$A$31,'5.2.BD_BK2021'!$D$5:$D$30124,'5.1.Activo Base'!$B35)/1000 -> 625.63589 | L35: =+SUMIFS('5.2.BD_BK2021'!U$5:U$30124,'5.2.BD_BK2021'!$B$5:$B$30124,'5.1.Activo Base'!$A$31,'5.2.BD_BK2021'!$D$5:$D$30124,'5.1.Activo Base'!$B35)/1000 -> 606.754725 | M35: =+SUMIFS('5.2.BD_BK2021'!V$5:V$30124,'5.2.BD_BK2021'!$B$5:$B$30124,'5.1.Activo Base'!$A$31,'5.2.BD_BK2021'!$D$5:$D$30124,'5.1.Activo Base'!$B35)/1000 -> 530.379745 | N35: =+SUMIFS('5.2.BD_BK2021'!W$5:W$30124,'5.2.BD_BK2021'!$B$5:$B$30124,'5.1.Activo Base'!$A$31,'5.2.BD_BK2021'!$D$5:$D$30124,'5.1.Activo Base'!$B35)/1000 -> 277.933785 | O35: =+SUMIFS('5.2.BD_BK2021'!X$5:X$30124,'5.2.BD_BK2021'!$B$5:$B$30124,'5.1.Activo Base'!$A$31,'5.2.BD_BK2021'!$D$5:$D$30124,'5.1.Activo Base'!$B35)/1000 -> 91.699075
B36: Programas de computadora (software) | C36: =+SUMIFS('5.2.BD_BK2021'!$O$5:$O$30124,'5.2.BD_BK2021'!$B$5:$B$30124,'5.1.Activo Base'!$A$31,'5.2.BD_BK2021'!$D$5:$D$30124,'5.1.Activo Base'!$B36)/1000 -> 96.148885 | D36: 0 | E36: =+SUMIFS('5.2.BD_BK2021'!$R$5:$R$30124,'5.2.BD_BK2021'!$B$5:$B$30124,'5.1.Activo Base'!$A$31,'5.2.BD_BK2021'!$D$5:$D$30124,'5.1.Activo Base'!$B36)/1000 -> 0 | F36: 0 | G36: =+SUMIFS('5.2.BD_BK2021'!$S$5:$S$30124,'5.2.BD_BK2021'!$B$5:$B$30124,'5.1.Activo Base'!$A$31,'5.2.BD_BK2021'!$D$5:$D$30124,'5.1.Activo Base'!$B36)/1000 -> 0 | H36: 0 | I36: =+SUMIFS('5.2.BD_BK2021'!$T$5:$T$30124,'5.2.BD_BK2021'!$B$5:$B$30124,'5.1.Activo Base'!$A$31,'5.2.BD_BK2021'!$D$5:$D$30124,'5.1.Activo Base'!$B36)/1000 -> 0 | J36: 96.148885 | K36: =+SUMIFS('5.2.BD_BK2021'!T$5:T$30124,'5.2.BD_BK2021'!$B$5:$B$30124,'5.1.Activo Base'!$A$31,'5.2.BD_BK2021'!$D$5:$D$30124,'5.1.Activo Base'!$B36)/1000 -> 0 | L36: =+SUMIFS('5.2.BD_BK2021'!U$5:U$30124,'5.2.BD_BK2021'!$B$5:$B$30124,'5.1.Activo Base'!$A$31,'5.2.BD_BK2021'!$D$5:$D$30124,'5.1.Activo Base'!$B36)/1000 -> 0 | M36: =+SUMIFS('5.2.BD_BK2021'!V$5:V$30124,'5.2.BD_BK2021'!$B$5:$B$30124,'5.1.Activo Base'!$A$31,'5.2.BD_BK2021'!$D$5:$D$30124,'5.1.Activo Base'!$B36)/1000 -> 0 | N36: =+SUMIFS('5.2.BD_BK2021'!W$5:W$30124,'5.2.BD_BK2021'!$B$5:$B$30124,'5.1.Activo Base'!$A$31,'5.2.BD_BK2021'!$D$5:$D$30124,'5.1.Activo Base'!$B36)/1000 -> 0 | O36: =+SUMIFS('5.2.BD_BK2021'!X$5:X$30124,'5.2.BD_BK2021'!$B$5:$B$30124,'5.1.Activo Base'!$A$31,'5.2.BD_BK2021'!$D$5:$D$30124,'5.1.Activo Base'!$B36)/1000 -> 0
B37: Terrenos | C37: =+SUMIFS('5.2.BD_BK2021'!$O$5:$O$30124,'5.2.BD_BK2021'!$B$5:$B$30124,'5.1.Activo Base'!$A$31,'5.2.BD_BK2021'!$D$5:$D$30124,'5.1.Activo Base'!$B37)/1000 -> 101371.494 | D37: 0 | E37: =+SUMIFS('5.2.BD_BK2021'!$R$5:$R$30124,'5.2.BD_BK2021'!$B$5:$B$30124,'5.1.Activo Base'!$A$31,'5.2.BD_BK2021'!$D$5:$D$30124,'5.1.Activo Base'!$B37)/1000 -> 0 | F37: 0 | G37: =+SUMIFS('5.2.BD_BK2021'!$S$5:$S$30124,'5.2.BD_BK2021'!$B$5:$B$30124,'5.1.Activo Base'!$A$31,'5.2.BD_BK2021'!$D$5:$D$30124,'5.1.Activo Base'!$B37)/1000 -> 0 | H37: 0 | I37: =+SUMIFS('5.2.BD_BK2021'!$T$5:$T$30124,'5.2.BD_BK2021'!$B$5:$B$30124,'5.1.Activo Base'!$A$31,'5.2.BD_BK2021'!$D$5:$D$30124,'5.1.Activo Base'!$B37)/1000 -> 0 | J37: =+C37+D37-E37+F37-G37+H37-I37 -> 101371.494 | K37: =+SUMIFS('5.2.BD_BK2021'!T$5:T$30124,'5.2.BD_BK2021'!$B$5:$B$30124,'5.1.Activo Base'!$A$31,'5.2.BD_BK2021'!$D$5:$D$30124,'5.1.Activo Base'!$B37)/1000 -> 0 | L37: =+SUMIFS('5.2.BD_BK2021'!U$5:U$30124,'5.2.BD_BK2021'!$B$5:$B$30124,'5.1.Activo Base'!$A$31,'5.2.BD_BK2021'!$D$5:$D$30124,'5.1.Activo Base'!$B37)/1000 -> 0 | M37: =+SUMIFS('5.2.BD_BK2021'!V$5:V$30124,'5.2.BD_BK2021'!$B$5:$B$30124,'5.1.Activo Base'!$A$31,'5.2.BD_BK2021'!$D$5:$D$30124,'5.1.Activo Base'!$B37)/1000 -> 0 | N37: =+SUMIFS('5.2.BD_BK2021'!W$5:W$30124,'5.2.BD_BK2021'!$B$5:$B$30124,'5.1.Activo Base'!$A$31,'5.2.BD_BK2021'!$D$5:$D$30124,'5.1.Activo Base'!$B37)/1000 -> 0 | O37: =+SUMIFS('5.2.BD_BK2021'!X$5:X$30124,'5.2.BD_BK2021'!$B$5:$B$30124,'5.1.Activo Base'!$A$31,'5.2.BD_BK2021'!$D$5:$D$30124,'5.1.Activo Base'!$B37)/1000 -> 0
B38: Total general | C38: =C23+C31 -> 368399.2292 | D38: =D23+D31 -> 24913.39177 | E38: 33980.42624 | F38: 7315.346 | G38: 34410.16511 | H38: =H23+H31 -> 4276.517 | I38: 33668.9031 | J38: =J23+J31 -> 302844.9896 | K38: =K23+K31 -> 33537.43814 | L38: =L23+L31 -> 32866.1812 | M38: 27843.91999 | N38: 20994.39678 | O38: 14635.76426
B40: B.2 Distribución de valor histórico neto, año 2024, por servicio regulado:
B41: (Expresado en miles de soles)
B42: Servicio | C42: % de asignación | D42: Año 2024
D43: Aeronavegación | E43: Mixto | F43: Total
B44: SNAR nacional | C44: =K7 -> 0.3885811355 | D44: =$J$23*$C44 -> 75830.76174 | E44: =$J$31*$C44 -> 41849.08819 | F44: =D44+E44 -> 117679.8499
B45: SNAR internacional | C45: =K8 -> 0.09715683187 | D45: =$J$23*$C45 -> 18959.944 | E45: =$J$31*$C45 -> 10463.51573 | F45: =D45+E45 -> 29423.45973
B46: Aproximación | C46: =K9 -> 0.3795784236 | D46: =$J$23*$C46 -> 74073.90214 | E46: =$J$31*$C46 -> 40879.5216 | F46: 114953.4237
B47: Sobrevuelo | C47: =K10 -> 0.13412172 | D47: =$J$23*$C47 -> 26173.56135 | E47: =$J$31*$C47 -> 14444.52953 | F47: 40618.09088
B48: Total | C48: =SUM(C44:C47) -> 0.999438111 | D48: =SUM(D44:D47) -> 195038.1692 | E48: =SUM(E44:E47) -> 107636.6551 | F48: =SUM(F44:F47) -> 302674.8243
B50: B.3 Distribución de Depreciación y Amortización, por servicio:
B51: (Expresado en miles de soles)
B52: Servicio | C52: % de asignación | D52: Depreciación del Ejercicio
D53: 2025 | E53: =+D53+1 -> 2026 | F53: =+E53+1 -> 2027 | G53: 2028 | H53: 2029
B54: SNAR nacional | C54: =C44 -> 0.3885811355 | D54: =$C54*K$38 -> 13032.0158 | E54: 12771.17801 | F54: 10819.62205 | G54: 8158.026542 | H54: 5687.181897
B55: SNAR internacional | C55: =C45 -> 0.09715683187 | D55: 3258.391239 | E55: 3193.174041 | F55: 2705.227053 | G55: 2039.749079 | H55: 1421.964488
B56: Aproximación | C56: =C46 -> 0.3795784236 | D56: 12730.0879 | E56: 12475.29325 | F56: 10568.95126 | G56: 7969.020037 | H56: 5555.420328
B57: Sobrevuelo | C57: =C47 -> 0.13412172 | D57: 4498.098887 | E57: 4408.068751 | F57: 3734.47444 | G57: 2815.804606 | H57: 1962.973876
B58: Total | C58: =SUM(C54:C57) -> 0.999438111 | D58: 33518.59383 | E58: 32847.71405 | F58: 27828.2748 | G58: 20982.60026 | H58: 14627.54059

Sheet 5.2.BD_BK2021
B1: 5.2. BASE DE ACTIVOS DE AERONAVEGACIÓN AL CIERRE DEL EJERCICIO 2021: AERONAVEGACIÓN Y MIXTOS | Z1: Índice
B2: Fuente: CORPAC S.A.
B3: (Expresado en soles)
B4: Servicio | C4: DESCRIPCIÓN DEL ACTIVO | D4: TIPO DE ACTIVO | E4: Fecha de adquisición | F4: Fecha de puesta en uso | G4: Valor histórico del activo fijo al 31.12.2021 | H4: Depreciación del Ejercicio 2021 | I4: Bajas | J4: Ajustes | K4: 0 | L4: DETERIORO al 31.12.2021 | M4: VALOR NETO al 31.12.2021 | N4: Driver de asignación a aeronavegación | O4: VALOR NETO al 31.12.2021 (asignado a aeronavegación) | P4: Depreciación + deterioro del ejercicio asignada a aeronavegación | Q4: Depreciación: | R4: 2022 | S4: 2023 | T4: 2024 | U4: 2025 | V4: 2026 | W4: 2027 | X4: 2028 | Y4: 2029 | Z4: VALOR NETO al 31.12.2024 (asignado a aeronavegación)
B5: AERONAVEGACIÓN/AEROPORTUARIO | C5: TERRENOS INSCRITOS | D5: TERRENOS | E5: 1950-12-01 | F5: 1950-12-01 | G5: 20572005.46 | H5: 0 | I5: 0 | J5: 0 | K5: 0 | L5: 0 | M5: =+G5-H5-I5-J5-L5 -> 20572005.46 | N5: 0.33 | O5: =+M5*N5 -> 6788761.802 | P5: =+(H5+L5)*N5 -> 0 | R5: =IF($O5<=0,0,IF(($O5-SUM($Q5:Q5))<$P5,$O5-SUM($Q5:Q5),IF(SUM($Q5:Q5)<$O5,$P5,0))) -> 0 | S5: =IF($O5<=0,0,IF(($O5-SUM($Q5:R5))<$P5,$O5-SUM($Q5:R5),IF(SUM($Q5:R5)<$O5,$P5,0))) -> 0 | T5: =IF($O5<=0,0,IF(($O5-SUM($Q5:S5))<$P5,$O5-SUM($Q5:S5),IF(SUM($Q5:S5)<$O5,$P5,0))) -> 0 | U5: =IF($O5<=0,0,IF(($O5-SUM($Q5:T5))<$P5,$O5-SUM($Q5:T5),IF(SUM($Q5:T5)<$O5,$P5,0))) -> 0 | V5: =IF($O5<=0,0,IF(($O5-SUM($Q5:U5))<$P5,$O5-SUM($Q5:U5),IF(SUM($Q5:U5)<$O5,$P5,0))) -> 0 | W5: =IF($O5<=0,0,IF(($O5-SUM($Q5:V5))<$P5,$O5-SUM($Q5:V5),IF(SUM($Q5:V5)<$O5,$P5,0))) -> 0 | X5: =IF($O5<=0,0,IF(($O5-SUM($Q5:W5))<$P5,$O5-SUM($Q5:W5),IF(SUM($Q5:W5)<$O5,$P5,0))) -> 0 | Y5: =IF($O5<=0,0,IF(($O5-SUM($Q5:X5))<$P5,$O5-SUM($Q5:X5),IF(SUM($Q5:X5)<$O5,$P5,0))) -> 0 | Z5: =+O5-SUM(R5:T5) -> 6788761.802
B6: AERONAVEGACIÓN/AEROPORTUARIO | C6: TERRENOS INSCRITOS | D6: TERRENOS | E6: 1950-12-01 | F6: 1950-12-01 | G6: 21227574.21 | H6: 0 | I6: 0 | J6: 0 | K6: 0 | L6: 0 | M6: =+G6-H6-I6-J6-L6 -> 21227574.21 | N6: 0.33 | O6: =+M6*N6 -> 7005099.489 | P6: =+(H6+L6)*N6 -> 0 | R6: =IF($O6<=0,0,IF(($O6-SUM($Q6:Q6))<$P6,$O6-SUM($Q6:Q6),IF(SUM($Q6:Q6)<$O6,$P6,0))) -> 0 | S6: =IF($O6<=0,0,IF(($O6-SUM($Q6:R6))<$P6,$O6-SUM($Q6:R6),IF(SUM($Q6:R6)<$O6,$P6,0))) -> 0 | T6: =IF($O6<=0,0,IF(($O6-SUM($Q6:S6))<$P6,$O6-SUM($Q6:S6),IF(SUM($Q6:S6)<$O6,$P6,0))) -> 0 | U6: =IF($O6<=0,0,IF(($O6-SUM($Q6:T6))<$P6,$O6-SUM($Q6:T6),IF(SUM($Q6:T6)<$O6,$P6,0))) -> 0 | V6: =IF($O6<=0,0,IF(($O6-SUM($Q6:U6))<$P6,$O6-SUM($Q6:U6),IF(SUM($Q6:U6)<$O6,$P6,0))) -> 0 | W6: =IF($O6<=0,0,IF(($O6-SUM($Q6:V6))<$P6,$O6-SUM($Q6:V6),IF(SUM($Q6:V6)<$O6,$P6,0))) -> 0 | X6: =IF($O6<=0,0,IF(($O6-SUM($Q6:W6))<$P6,$O6-SUM($Q6:W6),IF(SUM($Q6:W6)<$O6,$P6,0))) -> 0 | Y6: =IF($O6<=0,0,IF(($O6-SUM($Q6:X6))<$P6,$O6-SUM($Q6:X6),IF(SUM($Q6:X6)<$O6,$P6,0))) -> 0 | Z6: =+O6-SUM(R6:T6) -> 7005099.489
B7: AERONAVEGACIÓN | C7: TERRENOS INSCRITOS | D7: TERRENOS | E7: 1950-12-01 | F7: 1950-12-01 | G7: 70326.13 | H7: 0 | I7: 0 | J7: 0 | K7: 0 | L7: 0 | M7: 70326.13 | N7: =+IF(B7=$B$7,100%,50%) -> 1 | O7: 70326.13 | P7: 0 | R7: =IF($O7<=0,0,IF(($O7-SUM($Q7:Q7))<$P7,$O7-SUM($Q7:Q7),IF(SUM($Q7:Q7)<$O7,$P7,0))) -> 0 | S7: =IF($O7<=0,0,IF(($O7-SUM($Q7:R7))<$P7,$O7-SUM($Q7:R7),IF(SUM($Q7:R7)<$O7,$P7,0))) -> 0 | T7: =IF($O7<=0,0,IF(($O7-SUM($Q7:S7))<$P7,$O7-SUM($Q7:S7),IF(SUM($Q7:S7)<$O7,$P7,0))) -> 0 | U7: =IF($O7<=0,0,IF(($O7-SUM($Q7:T7))<$P7,$O7-SUM($Q7:T7),IF(SUM($Q7:T7)<$O7,$P7,0))) -> 0 | V7: =IF($O7<=0,0,IF(($O7-SUM($Q7:U7))<$P7,$O7-SUM($Q7:U7),IF(SUM($Q7:U7)<$O7,$P7,0))) -> 0 | W7: =IF($O7<=0,0,IF(($O7-SUM($Q7:V7))<$P7,$O7-SUM($Q7:V7),IF(SUM($Q7:V7)<$O7,$P7,0))) -> 0 | X7: =IF($O7<=0,0,IF(($O7-SUM($Q7:W7))<$P7,$O7-SUM($Q7:W7),IF(SUM($Q7:W7)<$O7,$P7,0))) -> 0 | Y7: =IF($O7<=0,0,IF(($O7-SUM($Q7:X7))<$P7,$O7-SUM($Q7:X7),IF(SUM($Q7:X7)<$O7,$P7,0))) -> 0 | Z7: 70326.13
B8: AERONAVEGACIÓN | C8: TERRENOS INSCRITOS | D8: TERRENOS | E8: 1950-12-01 | F8: 1950-12-01 | G8: 514235.74 | H8: 0 | I8: 0 | J8: 0 | K8: 0 | L8: 0 | M8: 514235.74 | N8: 1 | O8: 514235.74 | P8: 0 | R8: =IF($O8<=0,0,IF(($O8-SUM($Q8:Q8))<$P8,$O8-SUM($Q8:Q8),IF(SUM($Q8:Q8)<$O8,$P8,0))) -> 0 | S8: =IF($O8<=0,0,IF(($O8-SUM($Q8:R8))<$P8,$O8-SUM($Q8:R8),IF(SUM($Q8:R8)<$O8,$P8,0))) -> 0 | T8: =IF($O8<=0,0,IF(($O8-SUM($Q8:S8))<$P8,$O8-SUM($Q8:S8),IF(SUM($Q8:S8)<$O8,$P8,0))) -> 0 | U8: =IF($O8<=0,0,IF(($O8-SUM($Q8:T8))<$P8,$O8-SUM($Q8:T8),IF(SUM($Q8:T8)<$O8,$P8,0))) -> 0 | V8: =IF($O8<=0,0,IF(($O8-SUM($Q8:U8))<$P8,$O8-SUM($Q8:U8),IF(SUM($Q8:U8)<$O8,$P8,0))) -> 0 | W8: =IF($O8<=0,0,IF(($O8-SUM($Q8:V8))<$P8,$O8-SUM($Q8:V8),IF(SUM($Q8:V8)<$O8,$P8,0))) -> 0 | X8: =IF($O8<=0,0,IF(($O8-SUM($Q8:W8))<$P8,$O8-SUM($Q8:W8),IF(SUM($Q8:W8)<$O8,$P8,0))) -> 0 | Y8: =IF($O8<=0,0,IF(($O8-SUM($Q8:X8))<$P8,$O8-SUM($Q8:X8),IF(SUM($Q8:X8)<$O8,$P8,0))) -> 0 | Z8: 514235.74
B9: AERONAVEGACIÓN | C9: TERRENOS INSCRITOS | D9: TERRENOS | E9: 1950-12-01 | F9: 1950-12-01 | G9: 518837.1 | H9: 0 | I9: 0 | J9: 0 | K9: 0 | L9: 0 | M9: 518837.1 | N9: 1 | O9: 518837.1 | P9: 0 | R9: =IF($O9<=0,0,IF(($O9-SUM($Q9:Q9))<$P9,$O9-SUM($Q9:Q9),IF(SUM($Q9:Q9)<$O9,$P9,0))) -> 0 | S9: =IF($O9<=0,0,IF(($O9-SUM($Q9:R9))<$P9,$O9-SUM($Q9:R9),IF(SUM($Q9:R9)<$O9,$P9,0))) -> 0 | T9: =IF($O9<=0,0,IF(($O9-SUM($Q9:S9))<$P9,$O9-SUM($Q9:S9),IF(SUM($Q9:S9)<$O9,$P9,0))) -> 0 | U9: =IF($O9<=0,0,IF(($O9-SUM($Q9:T9))<$P9,$O9-SUM($Q9:T9),IF(SUM($Q9:T9)<$O9,$P9,0))) -> 0 | V9: =IF($O9<=0,0,IF(($O9-SUM($Q9:U9))<$P9,$O9-SUM($Q9:U9),IF(SUM($Q9:U9)<$O9,$P9,0))) -> 0 | W9: =IF($O9<=0,0,IF(($O9-SUM($Q9:V9))<$P9,$O9-SUM($Q9:V9),IF(SUM($Q9:V9)<$O9,$P9,0))) -> 0 | X9: =IF($O9<=0,0,IF(($O9-SUM($Q9:W9))<$P9,$O9-SUM($Q9:W9),IF(SUM($Q9:W9)<$O9,$P9,0))) -> 0 | Y9: =IF($O9<=0,0,IF(($O9-SUM($Q9:X9))<$P9,$O9-SUM($Q9:X9),IF(SUM($Q9:X9)<$O9,$P9,0))) -> 0 | Z9: 518837.1
B10: AERONAVEGACIÓN/AEROPORTUARIO | C10: TERRENOS INSCRITOS | D10: TERRENOS | E10: 1950-12-01 | F10: 1950-12-01 | G10: 371378.25 | H10: 0 | I10: 0 | J10: 0 | K10: 0 | L10: 0 | M10: 371378.25 | N10: 0.5 | O10: 185689.125 | P10: 0 | R10: =IF($O10<=0,0,IF(($O10-SUM($Q10:Q10))<$P10,$O10-SUM($Q10:Q10),IF(SUM($Q10:Q10)<$O10,$P10,0))) -> 0 | S10: =IF($O10<=0,0,IF(($O10-SUM($Q10:R10))<$P10,$O10-SUM($Q10:R10),IF(SUM($Q10:R10)<$O10,$P10,0))) -> 0 | T10: =IF($O10<=0,0,IF(($O10-SUM($Q10:S10))<$P10,$O10-SUM($Q10:S10),IF(SUM($Q10:S10)<$O10,$P10,0))) -> 0 | U10: =IF($O10<=0,0,IF(($O10-SUM($Q10:T10))<$P10,$O10-SUM($Q10:T10),IF(SUM($Q10:T10)<$O10,$P10,0))) -> 0 | V10: =IF($O10<=0,0,IF(($O10-SUM($Q10:U10))<$P10,$O10-SUM($Q10:U10),IF(SUM($Q10:U10)<$O10,$P10,0))) -> 0 | W10: =IF($O10<=0,0,IF(($O10-SUM($Q10:V10))<$P10,$O10-SUM($Q10:V10),IF(SUM($Q10:V10)<$O10,$P10,0))) -> 0 | X10: =IF($O10<=0,0,IF(($O10-SUM($Q10:W10))<$P10,$O10-SUM($Q10:W10),IF(SUM($Q10:W10)<$O10,$P10,0))) -> 0 | Y10: =IF($O10<=0,0,IF(($O10-SUM($Q10:X10))<$P10,$O10-SUM($Q10:X10),IF(SUM($Q10:X10)<$O10,$P10,0))) -> 0 | Z10: 185689.125
B11: AERONAVEGACIÓN | C11: TERRENOS INSCRITOS | D11: TERRENOS | E11: 1950-12-01 | F11: 1950-12-01 | G11: 41687.71 | H11: 0 | I11: 0 | J11: 0 | K11: 0 | L11: 0 | M11: 41687.71 | N11: 1 | O11: 41687.71 | P11: 0 | R11: =IF($O11<=0,0,IF(($O11-SUM($Q11:Q11))<$P11,$O11-SUM($Q11:Q11),IF(SUM($Q11:Q11)<$O11,$P11,0))) -> 0 | S11: =IF($O11<=0,0,IF(($O11-SUM($Q11:R11))<$P11,$O11-SUM($Q11:R11),IF(SUM($Q11:R11)<$O11,$P11,0))) -> 0 | T11: =IF($O11<=0,0,IF(($O11-SUM($Q11:S11))<$P11,$O11-SUM($Q11:S11),IF(SUM($Q11:S11)<$O11,$P11,0))) -> 0 | U11: =IF($O11<=0,0,IF(($O11-SUM($Q11:T11))<$P11,$O11-SUM($Q11:T11),IF(SUM($Q11:T11)<$O11,$P11,0))) -> 0 | V11: =IF($O11<=0,0,IF(($O11-SUM($Q11:U11))<$P11,$O11-SUM($Q11:U11),IF(SUM($Q11:U11)<$O11,$P11,0))) -> 0 | W11: =IF($O11<=0,0,IF(($O11-SUM($Q11:V11))<$P11,$O11-SUM($Q11:V11),IF(SUM($Q11:V11)<$O11,$P11,0))) -> 0 | X11: =IF($O11<=0,0,IF(($O11-SUM($Q11:W11))<$P11,$O11-SUM($Q11:W11),IF(SUM($Q11:W11)<$O11,$P11,0))) -> 0 | Y11: =IF($O11<=0,0,IF(($O11-SUM($Q11:X11))<$P11,$O11-SUM($Q11:X11),IF(SUM($Q11:X11)<$O11,$P11,0))) -> 0 | Z11: 41687.71
B12: AERONAVEGACIÓN | C12: TERRENOS INSCRITOS | D12: TERRENOS | E12: 1950-12-01 | F12: 1950-12-01 | G12: 4736906.04 | H12: 0 | I12: 0 | J12: 0 | K12: 0 | L12: 0 | M12: 4736906.04 | N12: 1 | O12: 4736906.04 | P12: 0 | R12: =IF($O12<=0,0,IF(($O12-SUM($Q12:Q12))<$P12,$O12-SUM($Q12:Q12),IF(SUM($Q12:Q12)<$O12,$P12,0))) -> 0 | S12: =IF($O12<=0,0,IF(($O12-SUM($Q12:R12))<$P12,$O12-SUM($Q12:R12),IF(SUM($Q12:R12)<$O12,$P12,0))) -> 0 | T12: =IF($O12<=0,0,IF(($O12-SUM($Q12:S12))<$P12,$O12-SUM($Q12:S12),IF(SUM($Q12:S12)<$O12,$P12,0))) -> 0 | U12: =IF($O12<=0,0,IF(($O12-SUM($Q12:T12))<$P12,$O12-SUM($Q12:T12),IF(SUM($Q12:T12)<$O12,$P12,0))) -> 0 | V12: =IF($O12<=0,0,IF(($O12-SUM($Q12:U12))<$P12,$O12-SUM($Q12:U12),IF(SUM($Q12:U12)<$O12,$P12,0))) -> 0 | W12: =IF($O12<=0,0,IF(($O12-SUM($Q12:V12))<$P12,$O12-SUM($Q12:V12),IF(SUM($Q12:V12)<$O12,$P12,0))) -> 0 | X12: =IF($O12<=0,0,IF(($O12-SUM($Q12:W12))<$P12,$O12-SUM($Q12:W12),IF(SUM($Q12:W12)<$O12,$P12,0))) -> 0 | Y12: =IF($O12<=0,0,IF(($O12-SUM($Q12:X12))<$P12,$O12-SUM($Q12:X12),IF(SUM($Q12:X12)<$O12,$P12,0))) -> 0 | Z12: 4736906.04
B13: AERONAVEGACIÓN/AEROPORTUARIO | C13: TERRENOS INSCRITOS | D13: TERRENOS | E13: 1950-12-01 | F13: 1950-12-01 | G13: 1102643 | H13: 0 | I13: 0 | J13: 0 | K13: 0 | L13: 0 | M13: 1102643 | N13: 0.5 | O13: 551321.5 | P13: 0 | R13: =IF($O13<=0,0,IF(($O13-SUM($Q13:Q13))<$P13,$O13-SUM($Q13:Q13),IF(SUM($Q13:Q13)<$O13,$P13,0))) -> 0 | S13: =IF($O13<=0,0,IF(($O13-SUM($Q13:R13))<$P13,$O13-SUM($Q13:R13),IF(SUM($Q13:R13)<$O13,$P13,0))) -> 0 | T13: =IF($O13<=0,0,IF(($O13-SUM($Q13:S13))<$P13,$O13-SUM($Q13:S13),IF(SUM($Q13:S13)<$O13,$P13,0))) -> 0 | U13: =IF($O13<=0,0,IF(($O13-SUM($Q13:T13))<$P13,$O13-SUM($Q13:T13),IF(SUM($Q13:T13)<$O13,$P13,0))) -> 0 | V13: =IF($O13<=0,0,IF(($O13-SUM($Q13:U13))<$P13,$O13-SUM($Q13:U13),IF(SUM($Q13:U13)<$O13,$P13,0))) -> 0 | W13: =IF($O13<=0,0,IF(($O13-SUM($Q13:V13))<$P13,$O13-SUM($Q13:V13),IF(SUM($Q13:V13)<$O13,$P13,0))) -> 0 | X13: =IF($O13<=0,0,IF(($O13-SUM($Q13:W13))<$P13,$O13-SUM($Q13:W13),IF(SUM($Q13:W13)<$O13,$P13,0))) -> 0 | Y13: =IF($O13<=0,0,IF(($O13-SUM($Q13:X13))<$P13,$O13-SUM($Q13:X13),IF(SUM($Q13:X13)<$O13,$P13,0))) -> 0 | Z13: 551321.5
B14: AERONAVEGACIÓN/AEROPORTUARIO | C14: TERRENOS INSCRITOS | D14: TERRENOS | E14: 1950-12-01 | F14: 1950-12-01 | G14: 478694.35 | H14: 0 | I14: 0 | J14: 0 | K14: 0 | L14: 0 | M14: 478694.35 | N14: 0.11 | O14: 52656.3785 | P14: 0 | R14: =IF($O14<=0,0,IF(($O14-SUM($Q14:Q14))<$P14,$O14-SUM($Q14:Q14),IF(SUM($Q14:Q14)<$O14,$P14,0))) -> 0 | S14: =IF($O14<=0,0,IF(($O14-SUM($Q14:R14))<$P14,$O14-SUM($Q14:R14),IF(SUM($Q14:R14)<$O14,$P14,0))) -> 0 | T14: =IF($O14<=0,0,IF(($O14-SUM($Q14:S14))<$P14,$O14-SUM($Q14:S14),IF(SUM($Q14:S14)<$O14,$P14,0))) -> 0 | U14: =IF($O14<=0,0,IF(($O14-SUM($Q14:T14))<$P14,$O14-SUM($Q14:T14),IF(SUM($Q14:T14)<$O14,$P14,0))) -> 0 | V14: =IF($O14<=0,0,IF(($O14-SUM($Q14:U14))<$P14,$O14-SUM($Q14:U14),IF(SUM($Q14:U14)<$O14,$P14,0))) -> 0 | W14: =IF($O14<=0,0,IF(($O14-SUM($Q14:V14))<$P14,$O14-SUM($Q14:V14),IF(SUM($Q14:V14)<$O14,$P14,0))) -> 0 | X14: =IF($O14<=0,0,IF(($O14-SUM($Q14:W14))<$P14,$O14-SUM($Q14:W14),IF(SUM($Q14:W14)<$O14,$P14,0))) -> 0 | Y14: =IF($O14<=0,0,IF(($O14-SUM($Q14:X14))<$P14,$O14-SUM($Q14:X14),IF(SUM($Q14:X14)<$O14,$P14,0))) -> 0 | Z14: 52656.3785
B15: AERONAVEGACIÓN/AEROPORTUARIO | C15: TERRENOS INSCRITOS | D15: TERRENOS | E15: 1950-12-01 | F15: 1950-12-01 | G15: 879.46 | H15: 0 | I15: 0 | J15: 0 | K15: 0 | L15: 0 | M15: 879.46 | N15: 0.11 | O15: 96.7406 | P15: 0 | R15: =IF($O15<=0,0,IF(($O15-SUM($Q15:Q15))<$P15,$O15-SUM($Q15:Q15),IF(SUM($Q15:Q15)<$O15,$P15,0))) -> 0 | S15: =IF($O15<=0,0,IF(($O15-SUM($Q15:R15))<$P15,$O15-SUM($Q15:R15),IF(SUM($Q15:R15)<$O15,$P15,0))) -> 0 | T15: =IF($O15<=0,0,IF(($O15-SUM($Q15:S15))<$P15,$O15-SUM($Q15:S15),IF(SUM($Q15:S15)<$O15,$P15,0))) -> 0 | U15: =IF($O15<=0,0,IF(($O15-SUM($Q15:T15))<$P15,$O15-SUM($Q15:T15),IF(SUM($Q15:T15)<$O15,$P15,0))) -> 0 | V15: =IF($O15<=0,0,IF(($O15-SUM($Q15:U15))<$P15,$O15-SUM($Q15:U15),IF(SUM($Q15:U15)<$O15,$P15,0))) -> 0 | W15: =IF($O15<=0,0,IF(($O15-SUM($Q15:V15))<$P15,$O15-SUM($Q15:V15),IF(SUM($Q15:V15)<$O15,$P15,0))) -> 0 | X15: =IF($O15<=0,0,IF(($O15-SUM($Q15:W15))<$P15,$O15-SUM($Q15:W15),IF(SUM($Q15:W15)<$O15,$P15,0))) -> 0 | Y15: =IF($O15<=0,0,IF(($O15-SUM($Q15:X15))<$P15,$O15-SUM($Q15:X15),IF(SUM($Q15:X15)<$O15,$P15,0))) -> 0 | Z15: 96.7406
B16: AERONAVEGACIÓN | C16: TERRENOS INSCRITOS | D16: TERRENOS | E16: 1950-12-01 | F16: 1950-12-01 | G16: 1219781.77 | H16: 0 | I16: 0 | J16: 0 | K16: 0 | L16: 0 | M16: 1219781.77 | N16: =+IF(B16=$B$7,100%,50%) -> 1 | O16: 1219781.77 | P16: 0 | R16: =IF($O16<=0,0,IF(($O16-SUM($Q16:Q16))<$P16,$O16-SUM($Q16:Q16),IF(SUM($Q16:Q16)<$O16,$P16,0))) -> 0 | S16: =IF($O16<=0,0,IF(($O16-SUM($Q16:R16))<$P16,$O16-SUM($Q16:R16),IF(SUM($Q16:R16)<$O16,$P16,0))) -> 0 | T16: =IF($O16<=0,0,IF(($O16-SUM($Q16:S16))<$P16,$O16-SUM($Q16:S16),IF(SUM($Q16:S16)<$O16,$P16,0))) -> 0 | U16: =IF($O16<=0,0,IF(($O16-SUM($Q16:T16))<$P16,$O16-SUM($Q16:T16),IF(SUM($Q16:T16)<$O16,$P16,0))) -> 0 | V16: =IF($O16<=0,0,IF(($O16-SUM($Q16:U16))<$P16,$O16-SUM($Q16:U16),IF(SUM($Q16:U16)<$O16,$P16,0))) -> 0 | W16: =IF($O16<=0,0,IF(($O16-SUM($Q16:V16))<$P16,$O16-SUM($Q16:V16),IF(SUM($Q16:V16)<$O16,$P16,0))) -> 0 | X16: =IF($O16<=0,0,IF(($O16-SUM($Q16:W16))<$P16,$O16-SUM($Q16:W16),IF(SUM($Q16:W16)<$O16,$P16,0))) -> 0 | Y16: =IF($O16<=0,0,IF(($O16-SUM($Q16:X16))<$P16,$O16-SUM($Q16:X16),IF(SUM($Q16:X16)<$O16,$P16,0))) -> 0 | Z16: 1219781.77
B17: AERONAVEGACIÓN | C17: TERRENOS INSCRITOS | D17: TERRENOS | E17: 1950-12-01 | F17: 1950-12-01 | G17: 592125.47 | H17: 0 | I17: 0 | J17: 0 | K17: 0 | L17: 0 | M17: 592125.47 | N17: =+IF(B17=$B$7,100%,50%) -> 1 | O17: 592125.47 | P17: 0 | R17: =IF($O17<=0,0,IF(($O17-SUM($Q17:Q17))<$P17,$O17-SUM($Q17:Q17),IF(SUM($Q17:Q17)<$O17,$P17,0))) -> 0 | S17: =IF($O17<=0,0,IF(($O17-SUM($Q17:R17))<$P17,$O17-SUM($Q17:R17),IF(SUM($Q17:R17)<$O17,$P17,0))) -> 0 | T17: =IF($O17<=0,0,IF(($O17-SUM($Q17:S17))<$P17,$O17-SUM($Q17:S17),IF(SUM($Q17:S17)<$O17,$P17,0))) -> 0 | U17: =IF($O17<=0,0,IF(($O17-SUM($Q17:T17))<$P17,$O17-SUM($Q17:T17),IF(SUM($Q17:T17)<$O17,$P17,0))) -> 0 | V17: =IF($O17<=0,0,IF(($O17-SUM($Q17:U17))<$P17,$O17-SUM($Q17:U17),IF(SUM($Q17:U17)<$O17,$P17,0))) -> 0 | W17: =IF($O17<=0,0,IF(($O17-SUM($Q17:V17))<$P17,$O17-SUM($Q17:V17),IF(SUM($Q17:V17)<$O17,$P17,0))) -> 0 | X17: =IF($O17<=0,0,IF(($O17-SUM($Q17:W17))<$P17,$O17-SUM($Q17:W17),IF(SUM($Q17:W17)<$O17,$P17,0))) -> 0 | Y17: =IF($O17<=0,0,IF(($O17-SUM($Q17:X17))<$P17,$O17-SUM($Q17:X17),IF(SUM($Q17:X17)<$O17,$P17,0))) -> 0 | Z17: 592125.47
B18: AERONAVEGACIÓN/AEROPORTUARIO | C18: TERRENOS INSCRITOS | D18: TERRENOS | E18: 1950-12-01 | F18: 1950-12-01 | G18: 390734.32 | H18: 0 | I18: 0 | J18: 0 | K18: 0 | L18: 0 | M18: 390734.32 | N18: =+IF(B18=$B$7,100%,50%) -> 0.5 | O18: 195367.16 | P18: 0 | R18: =IF($O18<=0,0,IF(($O18-SUM($Q18:Q18))<$P18,$O18-SUM($Q18:Q18),IF(SUM($Q18:Q18)<$O18,$P18,0))) -> 0 | S18: =IF($O18<=0,0,IF(($O18-SUM($Q18:R18))<$P18,$O18-SUM($Q18:R18),IF(SUM($Q18:R18)<$O18,$P18,0))) -> 0 | T18: =IF($O18<=0,0,IF(($O18-SUM($Q18:S18))<$P18,$O18-SUM($Q18:S18),IF(SUM($Q18:S18)<$O18,$P18,0))) -> 0 | U18: =IF($O18<=0,0,IF(($O18-SUM($Q18:T18))<$P18,$O18-SUM($Q18:T18),IF(SUM($Q18:T18)<$O18,$P18,0))) -> 0 | V18: =IF($O18<=0,0,IF(($O18-SUM($Q18:U18))<$P18,$O18-SUM($Q18:U18),IF(SUM($Q18:U18)<$O18,$P18,0))) -> 0 | W18: =IF($O18<=0,0,IF(($O18-SUM($Q18:V18))<$P18,$O18-SUM($Q18:V18),IF(SUM($Q18:V18)<$O18,$P18,0))) -> 0 | X18: =IF($O18<=0,0,IF(($O18-SUM($Q18:W18))<$P18,$O18-SUM($Q18:W18),IF(SUM($Q18:W18)<$O18,$P18,0))) -> 0 | Y18: =IF($O18<=0,0,IF(($O18-SUM($Q18:X18))<$P18,$O18-SUM($Q18:X18),IF(SUM($Q18:X18)<$O18,$P18,0))) -> 0 | Z18: 195367.16
B19: AERONAVEGACIÓN/AEROPORTUARIO | C19: TERRENOS INSCRITOS | D19: TERRENOS | E19: 1950-12-01 | F19: 1950-12-01 | G19: 3946.81 | H19: 0 | I19: 0 | J19: 0 | K19: 0 | L19: 0 | M19: 3946.81 | N19: =+IF(B19=$B$7,100%,50%) -> 0.5 | O19: 1973.405 | P19: 0 | R19: =IF($O19<=0,0,IF(($O19-SUM($Q19:Q19))<$P19,$O19-SUM($Q19:Q19),IF(SUM($Q19:Q19)<$O19,$P19,0))) -> 0 | S19: =IF($O19<=0,0,IF(($O19-SUM($Q19:R19))<$P19,$O19-SUM($Q19:R19),IF(SUM($Q19:R19)<$O19,$P19,0))) -> 0 | T19: =IF($O19<=0,0,IF(($O19-SUM($Q19:S19))<$P19,$O19-SUM($Q19:S19),IF(SUM($Q19:S19)<$O19,$P19,0))) -> 0 | U19: =IF($O19<=0,0,IF(($O19-SUM($Q19:T19))<$P19,$O19-SUM($Q19:T19),IF(SUM($Q19:T19)<$O19,$P19,0))) -> 0 | V19: =IF($O19<=0,0,IF(($O19-SUM($Q19:U19))<$P19,$O19-SUM($Q19:U19),IF(SUM($Q19:U19)<$O19,$P19,0))) -> 0 | W19: =IF($O19<=0,0,IF(($O19-SUM($Q19:V19))<$P19,$O19-SUM($Q19:V19),IF(SUM($Q19:V19)<$O19,$P19,0))) -> 0 | X19: =IF($O19<=0,0,IF(($O19-SUM($Q19:W19))<$P19,$O19-SUM($Q19:W19),IF(SUM($Q19:W19)<$O19,$P19,0))) -> 0 | Y19: =IF($O19<=0,0,IF(($O19-SUM($Q19:X19))<$P19,$O19-SUM($Q19:X19),IF(SUM($Q19:X19)<$O19,$P19,0))) -> 0 | Z19: 1973.405
B20: AERONAVEGACIÓN | C20: TERRENOS INSCRITOS | D20: TERRENOS | E20: 1950-12-01 | F20: 1950-12-01 | G20: 570025.3 | H20: 0 | I20: 0 | J20: 0 | K20: 0 | L20: 0 | M20: 570025.3 | N20: =+IF(B20=$B$7,100%,50%) -> 1 | O20: 570025.3 | P20: 0 | R20: =IF($O20<=0,0,IF(($O20-SUM($Q20:Q20))<$P20,$O20-SUM($Q20:Q20),IF(SUM($Q20:Q20)<$O20,$P20,0))) -> 0 | S20: =IF($O20<=0,0,IF(($O20-SUM($Q20:R20))<$P20,$O20-SUM($Q20:R20),IF(SUM($Q20:R20)<$O20,$P20,0))) -> 0 | T20: =IF($O20<=0,0,IF(($O20-SUM($Q20:S20))<$P20,$O20-SUM($Q20:S20),IF(SUM($Q20:S20)<$O20,$P20,0))) -> 0 | U20: =IF($O20<=0,0,IF(($O20-SUM($Q20:T20))<$P20,$O20-SUM($Q20:T20),IF(SUM($Q20:T20)<$O20,$P20,0))) -> 0 | V20: =IF($O20<=0,0,IF(($O20-SUM($Q20:U20))<$P20,$O20-SUM($Q20:U20),IF(SUM($Q20:U20)<$O20,$P20,0))) -> 0 | W20: =IF($O20<=0,0,IF(($O20-SUM($Q20:V20))<$P20,$O20-SUM($Q20:V20),IF(SUM($Q20:V20)<$O20,$P20,0))) -> 0 | X20: =IF($O20<=0,0,IF(($O20-SUM($Q20:W20))<$P20,$O20-SUM($Q20:W20),IF(SUM($Q20:W20)<$O20,$P20,0))) -> 0 | Y20: =IF($O20<=0,0,IF(($O20-SUM($Q20:X20))<$P20,$O20-SUM($Q20:X20),IF(SUM($Q20:X20)<$O20,$P20,0))) -> 0 | Z20: 570025.3
B21: AERONAVEGACIÓN/AEROPORTUARIO | C21: TERRENOS INSCRITOS | D21: TERRENOS | E21: 1950-12-01 | F21: 1950-12-01 | G21: 101290471.8 | H21: 0 | I21: 0 | J21: 0 | K21: 0 | L21: 0 | M21: 101290471.8 | N21: 0.51 | O21: 51658140.64 | P21: 0 | R21: =IF($O21<=0,0,IF(($O21-SUM($Q21:Q21))<$P21,$O21-SUM($Q21:Q21),IF(SUM($Q21:Q21)<$O21,$P21,0))) -> 0 | S21: =IF($O21<=0,0,IF(($O21-SUM($Q21:R21))<$P21,$O21-SUM($Q21:R21),IF(SUM($Q21:R21)<$O21,$P21,0))) -> 0 | T21: =IF($O21<=0,0,IF(($O21-SUM($Q21:S21))<$P21,$O21-SUM($Q21:S21),IF(SUM($Q21:S21)<$O21,$P21,0))) -> 0 | U21: =IF($O21<=0,0,IF(($O21-SUM($Q21:T21))<$P21,$O21-SUM($Q21:T21),IF(SUM($Q21:T21)<$O21,$P21,0))) -> 0 | V21: =IF($O21<=0,0,IF(($O21-SUM($Q21:U21))<$P21,$O21-SUM($Q21:U21),IF(SUM($Q21:U21)<$O21,$P21,0))) -> 0 | W21: =IF($O21<=0,0,IF(($O21-SUM($Q21:V21))<$P21,$O21-SUM($Q21:V21),IF(SUM($Q21:V21)<$O21,$P21,0))) -> 0 | X21: =IF($O21<=0,0,IF(($O21-SUM($Q21:W21))<$P21,$O21-SUM($Q21:W21),IF(SUM($Q21:W21)<$O21,$P21,0))) -> 0 | Y21: =IF($O21<=0,0,IF(($O21-SUM($Q21:X21))<$P21,$O21-SUM($Q21:X21),IF(SUM($Q21:X21)<$O21,$P21,0))) -> 0 | Z21: 51658140.64
B22: AERONAVEGACIÓN/AEROPORTUARIO | C22: TERRENOS INSCRITOS | D22: TERRENOS | E22: 1950-12-01 | F22: 1950-12-01 | G22: 19758.09 | H22: 0 | I22: 0 | J22: 0 | K22: 0 | L22: 0 | M22: 19758.09 | N22: 0.51 | O22: 10076.6259 | P22: 0 | R22: =IF($O22<=0,0,IF(($O22-SUM($Q22:Q22))<$P22,$O22-SUM($Q22:Q22),IF(SUM($Q22:Q22)<$O22,$P22,0))) -> 0 | S22: =IF($O22<=0,0,IF(($O22-SUM($Q22:R22))<$P22,$O22-SUM($Q22:R22),IF(SUM($Q22:R22)<$O22,$P22,0))) -> 0 | T22: =IF($O22<=0,0,IF(($O22-SUM($Q22:S22))<$P22,$O22-SUM($Q22:S22),IF(SUM($Q22:S22)<$O22,$P22,0))) -> 0 | U22: =IF($O22<=0,0,IF(($O22-SUM($Q22:T22))<$P22,$O22-SUM($Q22:T22),IF(SUM($Q22:T22)<$O22,$P22,0))) -> 0 | V22: =IF($O22<=0,0,IF(($O22-SUM($Q22:U22))<$P22,$O22-SUM($Q22:U22),IF(SUM($Q22:U22)<$O22,$P22,0))) -> 0 | W22: =IF($O22<=0,0,IF(($O22-SUM($Q22:V22))<$P22,$O22-SUM($Q22:V22),IF(SUM($Q22:V22)<$O22,$P22,0))) -> 0 | X22: =IF($O22<=0,0,IF(($O22-SUM($Q22:W22))<$P22,$O22-SUM($Q22:W22),IF(SUM($Q22:W22)<$O22,$P22,0))) -> 0 | Y22: =IF($O22<=0,0,IF(($O22-SUM($Q22:X22))<$P22,$O22-SUM($Q22:X22),IF(SUM($Q22:X22)<$O22,$P22,0))) -> 0 | Z22: 10076.6259
B23: AERONAVEGACIÓN/AEROPORTUARIO | C23: TERRENOS INSCRITOS | D23: TERRENOS | E23: 1950-12-01 | F23: 1950-12-01 | G23: 17479.95 | H23: 0 | I23: 0 | J23: 0 | K23: 0 | L23: 0 | M23: 17479.95 | N23: =+IF(B23=$B$7,100%,50%) -> 0.5 | O23: 8739.975 | P23: 0 | R23: =IF($O23<=0,0,IF(($O23-SUM($Q23:Q23))<$P23,$O23-SUM($Q23:Q23),IF(SUM($Q23:Q23)<$O23,$P23,0))) -> 0 | S23: =IF($O23<=0,0,IF(($O23-SUM($Q23:R23))<$P23,$O23-SUM($Q23:R23),IF(SUM($Q23:R23)<$O23,$P23,0))) -> 0 | T23: =IF($O23<=0,0,IF(($O23-SUM($Q23:S23))<$P23,$O23-SUM($Q23:S23),IF(SUM($Q23:S23)<$O23,$P23,0))) -> 0 | U23: =IF($O23<=0,0,IF(($O23-SUM($Q23:T23))<$P23,$O23-SUM($Q23:T23),IF(SUM($Q23:T23)<$O23,$P23,0))) -> 0 | V23: =IF($O23<=0,0,IF(($O23-SUM($Q23:U23))<$P23,$O23-SUM($Q23:U23),IF(SUM($Q23:U23)<$O23,$P23,0))) -> 0 | W23: =IF($O23<=0,0,IF(($O23-SUM($Q23:V23))<$P23,$O23-SUM($Q23:V23),IF(SUM($Q23:V23)<$O23,$P23,0))) -> 0 | X23: =IF($O23<=0,0,IF(($O23-SUM($Q23:W23))<$P23,$O23-SUM($Q23:W23),IF(SUM($Q23:W23)<$O23,$P23,0))) -> 0 | Y23: =IF($O23<=0,0,IF(($O23-SUM($Q23:X23))<$P23,$O23-SUM($Q23:X23),IF(SUM($Q23:X23)<$O23,$P23,0))) -> 0 | Z23: 8739.975
B24: AERONAVEGACIÓN | C24: TERRENOS INSCRITOS | D24: TERRENOS | E24: 1950-12-01 | F24: 1950-12-01 | G24: 327648.44 | H24: 0 | I24: 0 | J24: 0 | K24: 0 | L24: 0 | M24: 327648.44 | N24: =+IF(B24=$B$7,100%,50%) -> 1 | O24: 327648.44 | P24: 0 | R24: =IF($O24<=0,0,IF(($O24-SUM($Q24:Q24))<$P24,$O24-SUM($Q24:Q24),IF(SUM($Q24:Q24)<$O24,$P24,0))) -> 0 | S24: =IF($O24<=0,0,IF(($O24-SUM($Q24:R24))<$P24,$O24-SUM($Q24:R24),IF(SUM($Q24:R24)<$O24,$P24,0))) -> 0 | T24: =IF($O24<=0,0,IF(($O24-SUM($Q24:S24))<$P24,$O24-SUM($Q24:S24),IF(SUM($Q24:S24)<$O24,$P24,0))) -> 0 | U24: =IF($O24<=0,0,IF(($O24-SUM($Q24:T24))<$P24,$O24-SUM($Q24:T24),IF(SUM($Q24:T24)<$O24,$P24,0))) -> 0 | V24: =IF($O24<=0,0,IF(($O24-SUM($Q24:U24))<$P24,$O24-SUM($Q24:U24),IF(SUM($Q24:U24)<$O24,$P24,0))) -> 0 | W24: =IF($O24<=0,0,IF(($O24-SUM($Q24:V24))<$P24,$O24-SUM($Q24:V24),IF(SUM($Q24:V24)<$O24,$P24,0))) -> 0 | X24: =IF($O24<=0,0,IF(($O24-SUM($Q24:W24))<$P24,$O24-SUM($Q24:W24),IF(SUM($Q24:W24)<$O24,$P24,0))) -> 0 | Y24: =IF($O24<=0,0,IF(($O24-SUM($Q24:X24))<$P24,$O24-SUM($Q24:X24),IF(SUM($Q24:X24)<$O24,$P24,0))) -> 0 | Z24: 327648.44
B25: AERONAVEGACIÓN/AEROPORTUARIO | C25: TERRENOS INSCRITOS | D25: TERRENOS | E25: 1950-12-01 | F25: 1950-12-01 | G25: 859588.24 | H25: 0 | I25: 0 | J25: 0 | K25: 0 | L25: 0 | M25: 859588.24 | N25: 0.76 | O25: 653287.0624 | P25: 0 | R25: =IF($O25<=0,0,IF(($O25-SUM($Q25:Q25))<$P25,$O25-SUM($Q25:Q25),IF(SUM($Q25:Q25)<$O25,$P25,0))) -> 0 | S25: =IF($O25<=0,0,IF(($O25-SUM($Q25:R25))<$P25,$O25-SUM($Q25:R25),IF(SUM($Q25:R25)<$O25,$P25,0))) -> 0 | T25: =IF($O25<=0,0,IF(($O25-SUM($Q25:S25))<$P25,$O25-SUM($Q25:S25),IF(SUM($Q25:S25)<$O25,$P25,0))) -> 0 | U25: =IF($O25<=0,0,IF(($O25-SUM($Q25:T25))<$P25,$O25-SUM($Q25:T25),IF(SUM($Q25:T25)<$O25,$P25,0))) -> 0 | V25: =IF($O25<=0,0,IF(($O25-SUM($Q25:U25))<$P25,$O25-SUM($Q25:U25),IF(SUM($Q25:U25)<$O25,$P25,0))) -> 0 | W25: =IF($O25<=0,0,IF(($O25-SUM($Q25:V25))<$P25,$O25-SUM($Q25:V25),IF(SUM($Q25:V25)<$O25,$P25,0))) -> 0 | X25: =IF($O25<=0,0,IF(($O25-SUM($Q25:W25))<$P25,$O25-SUM($Q25:W25),IF(SUM($Q25:W25)<$O25,$P25,0))) -> 0 | Y25: =IF($O25<=0,0,IF(($O25-SUM($Q25:X25))<$P25,$O25-SUM($Q25:X25),IF(SUM($Q25:X25)<$O25,$P25,0))) -> 0 | Z25: 653287.0624
B26: AERONAVEGACIÓN/AEROPORTUARIO | C26: TERRENOS INSCRITOS | D26: TERRENOS | E26: 1950-12-01 | F26: 1950-12-01 | G26: 167.85 | H26: 0 | I26: 0 | J26: 0 | K26: 0 | L26: 0 | M26: 167.85 | N26: 0.76 | O26: 127.566 | P26: 0 | R26: =IF($O26<=0,0,IF(($O26-SUM($Q26:Q26))<$P26,$O26-SUM($Q26:Q26),IF(SUM($Q26:Q26)<$O26,$P26,0))) -> 0 | S26: =IF($O26<=0,0,IF(($O26-SUM($Q26:R26))<$P26,$O26-SUM($Q26:R26),IF(SUM($Q26:R26)<$O26,$P26,0))) -> 0 | T26: =IF($O26<=0,0,IF(($O26-SUM($Q26:S26))<$P26,$O26-SUM($Q26:S26),IF(SUM($Q26:S26)<$O26,$P26,0))) -> 0 | U26: =IF($O26<=0,0,IF(($O26-SUM($Q26:T26))<$P26,$O26-SUM($Q26:T26),IF(SUM($Q26:T26)<$O26,$P26,0))) -> 0 | V26: =IF($O26<=0,0,IF(($O26-SUM($Q26:U26))<$P26,$O26-SUM($Q26:U26),IF(SUM($Q26:U26)<$O26,$P26,0))) -> 0 | W26: =IF($O26<=0,0,IF(($O26-SUM($Q26:V26))<$P26,$O26-SUM($Q26:V26),IF(SUM($Q26:V26)<$O26,$P26,0))) -> 0 | X26: =IF($O26<=0,0,IF(($O26-SUM($Q26:W26))<$P26,$O26-SUM($Q26:W26),IF(SUM($Q26:W26)<$O26,$P26,0))) -> 0 | Y26: =IF($O26<=0,0,IF(($O26-SUM($Q26:X26))<$P26,$O26-SUM($Q26:X26),IF(SUM($Q26:X26)<$O26,$P26,0))) -> 0 | Z26: 127.566
B27: AERONAVEGACIÓN | C27: TERRENOS INSCRITOS | D27: TERRENOS | E27: 1950-12-01 | F27: 1950-12-01 | G27: 28184.7 | H27: 0 | I27: 0 | J27: 0 | K27: 0 | L27: 0 | M27: 28184.7 | N27: =+IF(B27=$B$7,100%,50%) -> 1 | O27: 28184.7 | P27: 0 | R27: =IF($O27<=0,0,IF(($O27-SUM($Q27:Q27))<$P27,$O27-SUM($Q27:Q27),IF(SUM($Q27:Q27)<$O27,$P27,0))) -> 0 | S27: =IF($O27<=0,0,IF(($O27-SUM($Q27:R27))<$P27,$O27-SUM($Q27:R27),IF(SUM($Q27:R27)<$O27,$P27,0))) -> 0 | T27: =IF($O27<=0,0,IF(($O27-SUM($Q27:S27))<$P27,$O27-SUM($Q27:S27),IF(SUM($Q27:S27)<$O27,$P27,0))) -> 0 | U27: =IF($O27<=0,0,IF(($O27-SUM($Q27:T27))<$P27,$O27-SUM($Q27:T27),IF(SUM($Q27:T27)<$O27,$P27,0))) -> 0 | V27: =IF($O27<=0,0,IF(($O27-SUM($Q27:U27))<$P27,$O27-SUM($Q27:U27),IF(SUM($Q27:U27)<$O27,$P27,0))) -> 0 | W27: =IF($O27<=0,0,IF(($O27-SUM($Q27:V27))<$P27,$O27-SUM($Q27:V27),IF(SUM($Q27:V27)<$O27,$P27,0))) -> 0 | X27: =IF($O27<=0,0,IF(($O27-SUM($Q27:W27))<$P27,$O27-SUM($Q27:W27),IF(SUM($Q27:W27)<$O27,$P27,0))) -> 0 | Y27: =IF($O27<=0,0,IF(($O27-SUM($Q27:X27))<$P27,$O27-SUM($Q27:X27),IF(SUM($Q27:X27)<$O27,$P27,0))) -> 0 | Z27: 28184.7
B28: AERONAVEGACIÓN | C28: TERRENOS INSCRITOS | D28: TERRENOS | E28: 1950-12-01 | F28: 1950-12-01 | G28: 19700.44 | H28: 0 | I28: 0 | J28: 0 | K28: 0 | L28: 0 | M28: 19700.44 | N28: 1 | O28: 19700.44 | P28: 0 | R28: =IF($O28<=0,0,IF(($O28-SUM($Q28:Q28))<$P28,$O28-SUM($Q28:Q28),IF(SUM($Q28:Q28)<$O28,$P28,0))) -> 0 | S28: =IF($O28<=0,0,IF(($O28-SUM($Q28:R28))<$P28,$O28-SUM($Q28:R28),IF(SUM($Q28:R28)<$O28,$P28,0))) -> 0 | T28: =IF($O28<=0,0,IF(($O28-SUM($Q28:S28))<$P28,$O28-SUM($Q28:S28),IF(SUM($Q28:S28)<$O28,$P28,0))) -> 0 | U28: =IF($O28<=0,0,IF(($O28-SUM($Q28:T28))<$P28,$O28-SUM($Q28:T28),IF(SUM($Q28:T28)<$O28,$P28,0))) -> 0 | V28: =IF($O28<=0,0,IF(($O28-SUM($Q28:U28))<$P28,$O28-SUM($Q28:U28),IF(SUM($Q28:U28)<$O28,$P28,0))) -> 0 | W28: =IF($O28<=0,0,IF(($O28-SUM($Q28:V28))<$P28,$O28-SUM($Q28:V28),IF(SUM($Q28:V28)<$O28,$P28,0))) -> 0 | X28: =IF($O28<=0,0,IF(($O28-SUM($Q28:W28))<$P28,$O28-SUM($Q28:W28),IF(SUM($Q28:W28)<$O28,$P28,0))) -> 0 | Y28: =IF($O28<=0,0,IF(($O28-SUM($Q28:X28))<$P28,$O28-SUM($Q28:X28),IF(SUM($Q28:X28)<$O28,$P28,0))) -> 0 | Z28: 19700.44
B29: AERONAVEGACIÓN | C29: TERRENOS INSCRITOS | D29: TERRENOS | E29: 1950-12-01 | F29: 1950-12-01 | G29: 144927.02 | H29: 0 | I29: 0 | J29: 0 | K29: 0 | L29: 0 | M29: 144927.02 | N29: 1 | O29: 144927.02 | P29: 0 | R29: =IF($O29<=0,0,IF(($O29-SUM($Q29:Q29))<$P29,$O29-SUM($Q29:Q29),IF(SUM($Q29:Q29)<$O29,$P29,0))) -> 0 | S29: =IF($O29<=0,0,IF(($O29-SUM($Q29:R29))<$P29,$O29-SUM($Q29:R29),IF(SUM($Q29:R29)<$O29,$P29,0))) -> 0 | T29: =IF($O29<=0,0,IF(($O29-SUM($Q29:S29))<$P29,$O29-SUM($Q29:S29),IF(SUM($Q29:S29)<$O29,$P29,0))) -> 0 | U29: =IF($O29<=0,0,IF(($O29-SUM($Q29:T29))<$P29,$O29-SUM($Q29:T29),IF(SUM($Q29:T29)<$O29,$P29,0))) -> 0 | V29: =IF($O29<=0,0,IF(($O29-SUM($Q29:U29))<$P29,$O29-SUM($Q29:U29),IF(SUM($Q29:U29)<$O29,$P29,0))) -> 0 | W29: =IF($O29<=0,0,IF(($O29-SUM($Q29:V29))<$P29,$O29-SUM($Q29:V29),IF(SUM($Q29:V29)<$O29,$P29,0))) -> 0 | X29: =IF($O29<=0,0,IF(($O29-SUM($Q29:W29))<$P29,$O29-SUM($Q29:W29),IF(SUM($Q29:W29)<$O29,$P29,0))) -> 0 | Y29: =IF($O29<=0,0,IF(($O29-SUM($Q29:X29))<$P29,$O29-SUM($Q29:X29),IF(SUM($Q29:X29)<$O29,$P29,0))) -> 0 | Z29: 144927.02
B30: AERONAVEGACIÓN/AEROPORTUARIO | C30: TERRENOS INSCRITOS | D30: TERRENOS | E30: 1950-12-01 | F30: 1950-12-01 | G30: 728892.89 | H30: 0 | I30: 0 | J30: 0 | K30: 0 | L30: 0 | M30: 728892.89 | N30: 0.5 | O30: 364446.445 | P30: 0 | R30: =IF($O30<=0,0,IF(($O30-SUM($Q30:Q30))<$P30,$O30-SUM($Q30:Q30),IF(SUM($Q30:Q30)<$O30,$P30,0))) -> 0 | S30: =IF($O30<=0,0,IF(($O30-SUM($Q30:R30))<$P30,$O30-SUM($Q30:R30),IF(SUM($Q30:R30)<$O30,$P30,0))) -> 0 | T30: =IF($O30<=0,0,IF(($O30-SUM($Q30:S30))<$P30,$O30-SUM($Q30:S30),IF(SUM($Q30:S30)<$O30,$P30,0))) -> 0 | U30: =IF($O30<=0,0,IF(($O30-SUM($Q30:T30))<$P30,$O30-SUM($Q30:T30),IF(SUM($Q30:T30)<$O30,$P30,0))) -> 0 | V30: =IF($O30<=0,0,IF(($O30-SUM($Q30:U30))<$P30,$O30-SUM($Q30:U30),IF(SUM($Q30:U30)<$O30,$P30,0))) -> 0 | W30: =IF($O30<=0,0,IF(($O30-SUM($Q30:V30))<$P30,$O30-SUM($Q30:V30),IF(SUM($Q30:V30)<$O30,$P30,0))) -> 0 | X30: =IF($O30<=0,0,IF(($O30-SUM($Q30:W30))<$P30,$O30-SUM($Q30:W30),IF(SUM($Q30:W30)<$O30,$P30,0))) -> 0 | Y30: =IF($O30<=0,0,IF(($O30-SUM($Q30:X30))<$P30,$O30-SUM($Q30:X30),IF(SUM($Q30:X30)<$O30,$P30,0))) -> 0 | Z30: 364446.445
B31: AERONAVEGACIÓN/AEROPORTUARIO | C31: TERRENOS INSCRITOS | D31: TERRENOS | E31: 1950-12-01 | F31: 1950-12-01 | G31: 40990.62 | H31: 0 | I31: 0 | J31: 0 | K31: 0 | L31: 0 | M31: 40990.62 | N31: 0.5 | O31: 20495.31 | P31: 0 | R31: =IF($O31<=0,0,IF(($O31-SUM($Q31:Q31))<$P31,$O31-SUM($Q31:Q31),IF(SUM($Q31:Q31)<$O31,$P31,0))) -> 0 | S31: =IF($O31<=0,0,IF(($O31-SUM($Q31:R31))<$P31,$O31-SUM($Q31:R31),IF(SUM($Q31:R31)<$O31,$P31,0))) -> 0 | T31: =IF($O31<=0,0,IF(($O31-SUM($Q31:S31))<$P31,$O31-SUM($Q31:S31),IF(SUM($Q31:S31)<$O31,$P31,0))) -> 0 | U31: =IF($O31<=0,0,IF(($O31-SUM($Q31:T31))<$P31,$O31-SUM($Q31:T31),IF(SUM($Q31:T31)<$O31,$P31,0))) -> 0 | V31: =IF($O31<=0,0,IF(($O31-SUM($Q31:U31))<$P31,$O31-SUM($Q31:U31),IF(SUM($Q31:U31)<$O31,$P31,0))) -> 0 | W31: =IF($O31<=0,0,IF(($O31-SUM($Q31:V31))<$P31,$O31-SUM($Q31:V31),IF(SUM($Q31:V31)<$O31,$P31,0))) -> 0 | X31: =IF($O31<=0,0,IF(($O31-SUM($Q31:W31))<$P31,$O31-SUM($Q31:W31),IF(SUM($Q31:W31)<$O31,$P31,0))) -> 0 | Y31: =IF($O31<=0,0,IF(($O31-SUM($Q31:X31))<$P31,$O31-SUM($Q31:X31),IF(SUM($Q31:X31)<$O31,$P31,0))) -> 0 | Z31: 20495.31
B32: AERONAVEGACIÓN | C32: TERRENOS INSCRITOS | D32: TERRENOS | E32: 1950-12-01 | F32: 1950-12-01 | G32: 2521.76 | H32: 0 | I32: 0 | J32: 0 | K32: 0 | L32: 0 | M32: 2521.76 | N32: 1 | O32: 2521.76 | P32: 0 | R32: =IF($O32<=0,0,IF(($O32-SUM($Q32:Q32))<$P32,$O32-SUM($Q32:Q32),IF(SUM($Q32:Q32)<$O32,$P32,0))) -> 0 | S32: =IF($O32<=0,0,IF(($O32-SUM($Q32:R32))<$P32,$O32-SUM($Q32:R32),IF(SUM($Q32:R32)<$O32,$P32,0))) -> 0 | T32: =IF($O32<=0,0,IF(($O32-SUM($Q32:S32))<$P32,$O32-SUM($Q32:S32),IF(SUM($Q32:S32)<$O32,$P32,0))) -> 0 | U32: =IF($O32<=0,0,IF(($O32-SUM($Q32:T32))<$P32,$O32-SUM($Q32:T32),IF(SUM($Q32:T32)<$O32,$P32,0))) -> 0 | V32: =IF($O32<=0,0,IF(($O32-SUM($Q32:U32))<$P32,$O32-SUM($Q32:U32),IF(SUM($Q32:U32)<$O32,$P32,0))) -> 0 | W32: =IF($O32<=0,0,IF(($O32-SUM($Q32:V32))<$P32,$O32-SUM($Q32:V32),IF(SUM($Q32:V32)<$O32,$P32,0))) -> 0 | X32: =IF($O32<=0,0,IF(($O32-SUM($Q32:W32))<$P32,$O32-SUM($Q32:W32),IF(SUM($Q32:W32)<$O32,$P32,0))) -> 0 | Y32: =IF($O32<=0,0,IF(($O32-SUM($Q32:X32))<$P32,$O32-SUM($Q32:X32),IF(SUM($Q32:X32)<$O32,$P32,0))) -> 0 | Z32: 2521.76
B33: AERONAVEGACIÓN/AEROPORTUARIO | C33: TERRENOS INSCRITOS | D33: TERRENOS | E33: 1950-12-01 | F33: 1950-12-01 | G33: 8749544.36 | H33: 0 | I33: 0 | J33: 0 | K33: 0 | L33: 0 | M33: 8749544.36 | N33: 0.42 | O33: 3674808.631 | P33: 0 | R33: =IF($O33<=0,0,IF(($O33-SUM($Q33:Q33))<$P33,$O33-SUM($Q33:Q33),IF(SUM($Q33:Q33)<$O33,$P33,0))) -> 0 | S33: =IF($O33<=0,0,IF(($O33-SUM($Q33:R33))<$P33,$O33-SUM($Q33:R33),IF(SUM($Q33:R33)<$O33,$P33,0))) -> 0 | T33: =IF($O33<=0,0,IF(($O33-SUM($Q33:S33))<$P33,$O33-SUM($Q33:S33),IF(SUM($Q33:S33)<$O33,$P33,0))) -> 0 | U33: =IF($O33<=0,0,IF(($O33-SUM($Q33:T33))<$P33,$O33-SUM($Q33:T33),IF(SUM($Q33:T33)<$O33,$P33,0))) -> 0 | V33: =IF($O33<=0,0,IF(($O33-SUM($Q33:U33))<$P33,$O33-SUM($Q33:U33),IF(SUM($Q33:U33)<$O33,$P33,0))) -> 0 | W33: =IF($O33<=0,0,IF(($O33-SUM($Q33:V33))<$P33,$O33-SUM($Q33:V33),IF(SUM($Q33:V33)<$O33,$P33,0))) -> 0 | X33: =IF($O33<=0,0,IF(($O33-SUM($Q33:W33))<$P33,$O33-SUM($Q33:W33),IF(SUM($Q33:W33)<$O33,$P33,0))) -> 0 | Y33: =IF($O33<=0,0,IF(($O33-SUM($Q33:X33))<$P33,$O33-SUM($Q33:X33),IF(SUM($Q33:X33)<$O33,$P33,0))) -> 0 | Z33: 3674808.631
B34: AERONAVEGACIÓN/AEROPORTUARIO | C34: TERRENOS INSCRITOS | D34: TERRENOS | E34: 1950-12-01 | F34: 1950-12-01 | G34: 1893.23 | H34: 0 | I34: 0 | J34: 0 | K34: 0 | L34: 0 | M34: 1893.23 | N34: 0.42 | O34: 795.1566 | P34: 0 | R34: =IF($O34<=0,0,IF(($O34-SUM($Q34:Q34))<$P34,$O34-SUM($Q34:Q34),IF(SUM($Q34:Q34)<$O34,$P34,0))) -> 0 | S34: =IF($O34<=0,0,IF(($O34-SUM($Q34:R34))<$P34,$O34-SUM($Q34:R34),IF(SUM($Q34:R34)<$O34,$P34,0))) -> 0 | T34: =IF($O34<=0,0,IF(($O34-SUM($Q34:S34))<$P34,$O34-SUM($Q34:S34),IF(SUM($Q34:S34)<$O34,$P34,0))) -> 0 | U34: =IF($O34<=0,0,IF(($O34-SUM($Q34:T34))<$P34,$O34-SUM($Q34:T34),IF(SUM($Q34:T34)<$O34,$P34,0))) -> 0 | V34: =IF($O34<=0,0,IF(($O34-SUM($Q34:U34))<$P34,$O34-SUM($Q34:U34),IF(SUM($Q34:U34)<$O34,$P34,0))) -> 0 | W34: =IF($O34<=0,0,IF(($O34-SUM($Q34:V34))<$P34,$O34-SUM($Q34:V34),IF(SUM($Q34:V34)<$O34,$P34,0))) -> 0 | X34: =IF($O34<=0,0,IF(($O34-SUM($Q34:W34))<$P34,$O34-SUM($Q34:W34),IF(SUM($Q34:W34)<$O34,$P34,0))) -> 0 | Y34: =IF($O34<=0,0,IF(($O34-SUM($Q34:X34))<$P34,$O34-SUM($Q34:X34),IF(SUM($Q34:X34)<$O34,$P34,0))) -> 0 | Z34: 795.1566
B35: AERONAVEGACIÓN | C35: TERRENOS INSCRITOS | D35: TERRENOS | E35: 1950-12-01 | F35: 1950-12-01 | G35: 411322.9 | H35: 0 | I35: 0 | J35: 0 | K35: 0 | L35: 0 | M35: 411322.9 | N35: =+IF(B35=$B$7,100%,50%) -> 1 | O35: 411322.9 | P35: 0 | R35: =IF($O35<=0,0,IF(($O35-SUM($Q35:Q35))<$P35,$O35-SUM($Q35:Q35),IF(SUM($Q35:Q35)<$O35,$P35,0))) -> 0 | S35: =IF($O35<=0,0,IF(($O35-SUM($Q35:R35))<$P35,$O35-SUM($Q35:R35),IF(SUM($Q35:R35)<$O35,$P35,0))) -> 0 | T35: =IF($O35<=0,0,IF(($O35-SUM($Q35:S35))<$P35,$O35-SUM($Q35:S35),IF(SUM($Q35:S35)<$O35,$P35,0))) -> 0 | U35: =IF($O35<=0,0,IF(($O35-SUM($Q35:T35))<$P35,$O35-SUM($Q35:T35),IF(SUM($Q35:T35)<$O35,$P35,0))) -> 0 | V35: =IF($O35<=0,0,IF(($O35-SUM($Q35:U35))<$P35,$O35-SUM($Q35:U35),IF(SUM($Q35:U35)<$O35,$P35,0))) -> 0 | W35: =IF($O35<=0,0,IF(($O35-SUM($Q35:V35))<$P35,$O35-SUM($Q35:V35),IF(SUM($Q35:V35)<$O35,$P35,0))) -> 0 | X35: =IF($O35<=0,0,IF(($O35-SUM($Q35:W35))<$P35,$O35-SUM($Q35:W35),IF(SUM($Q35:W35)<$O35,$P35,0))) -> 0 | Y35: =IF($O35<=0,0,IF(($O35-SUM($Q35:X35))<$P35,$O35-SUM($Q35:X35),IF(SUM($Q35:X35)<$O35,$P35,0))) -> 0 | Z35: 411322.9
B36: AERONAVEGACIÓN/AEROPORTUARIO | C36: TERRENOS INSCRITOS | D36: TERRENOS | E36: 1950-12-01 | F36: 1950-12-01 | G36: 29888887.53 | H36: 0 | I36: 0 | J36: 0 | K36: 0 | L36: 0 | M36: 29888887.53 | N36: 0.27 | O36: 8069999.633 | P36: 0 | R36: =IF($O36<=0,0,IF(($O36-SUM($Q36:Q36))<$P36,$O36-SUM($Q36:Q36),IF(SUM($Q36:Q36)<$O36,$P36,0))) -> 0 | S36: =IF($O36<=0,0,IF(($O36-SUM($Q36:R36))<$P36,$O36-SUM($Q36:R36),IF(SUM($Q36:R36)<$O36,$P36,0))) -> 0 | T36: =IF($O36<=0,0,IF(($O36-SUM($Q36:S36))<$P36,$O36-SUM($Q36:S36),IF(SUM($Q36:S36)<$O36,$P36,0))) -> 0 | U36: =IF($O36<=0,0,IF(($O36-SUM($Q36:T36))<$P36,$O36-SUM($Q36:T36),IF(SUM($Q36:T36)<$O36,$P36,0))) -> 0 | V36: =IF($O36<=0,0,IF(($O36-SUM($Q36:U36))<$P36,$O36-SUM($Q36:U36),IF(SUM($Q36:U36)<$O36,$P36,0))) -> 0 | W36: =IF($O36<=0,0,IF(($O36-SUM($Q36:V36))<$P36,$O36-SUM($Q36:V36),IF(SUM($Q36:V36)<$O36,$P36,0))) -> 0 | X36: =IF($O36<=0,0,IF(($O36-SUM($Q36:W36))<$P36,$O36-SUM($Q36:W36),IF(SUM($Q36:W36)<$O36,$P36,0))) -> 0 | Y36: =IF($O36<=0,0,IF(($O36-SUM($Q36:X36))<$P36,$O36-SUM($Q36:X36),IF(SUM($Q36:X36)<$O36,$P36,0))) -> 0 | Z36: 8069999.633
B37: AERONAVEGACIÓN/AEROPORTUARIO | C37: TERRENOS INSCRITOS | D37: TERRENOS | E37: 1950-12-01 | F37: 1950-12-01 | G37: 5245.33 | H37: 0 | I37: 0 | J37: 0 | K37: 0 | L37: 0 | M37: 5245.33 | N37: 0.27 | O37: 1416.2391 | P37: 0 | R37: =IF($O37<=0,0,IF(($O37-SUM($Q37:Q37))<$P37,$O37-SUM($Q37:Q37),IF(SUM($Q37:Q37)<$O37,$P37,0))) -> 0 | S37: =IF($O37<=0,0,IF(($O37-SUM($Q37:R37))<$P37,$O37-SUM($Q37:R37),IF(SUM($Q37:R37)<$O37,$P37,0))) -> 0 | T37: =IF($O37<=0,0,IF(($O37-SUM($Q37:S37))<$P37,$O37-SUM($Q37:S37),IF(SUM($Q37:S37)<$O37,$P37,0))) -> 0 | U37: =IF($O37<=0,0,IF(($O37-SUM($Q37:T37))<$P37,$O37-SUM($Q37:T37),IF(SUM($Q37:T37)<$O37,$P37,0))) -> 0 | V37: =IF($O37<=0,0,IF(($O37-SUM($Q37:U37))<$P37,$O37-SUM($Q37:U37),IF(SUM($Q37:U37)<$O37,$P37,0))) -> 0 | W37: =IF($O37<=0,0,IF(($O37-SUM($Q37:V37))<$P37,$O37-SUM($Q37:V37),IF(SUM($Q37:V37)<$O37,$P37,0))) -> 0 | X37: =IF($O37<=0,0,IF(($O37-SUM($Q37:W37))<$P37,$O37-SUM($Q37:W37),IF(SUM($Q37:W37)<$O37,$P37,0))) -> 0 | Y37: =IF($O37<=0,0,IF(($O37-SUM($Q37:X37))<$P37,$O37-SUM($Q37:X37),IF(SUM($Q37:X37)<$O37,$P37,0))) -> 0 | Z37: 1416.2391
B38: AERONAVEGACIÓN/AEROPORTUARIO | C38: TERRENOS INSCRITOS | D38: TERRENOS | E38: 1950-12-01 | F38: 1950-12-01 | G38: 2864563.56 | H38: 0 | I38: 0 | J38: 0 | K38: 0 | L38: 0 | M38: 2864563.56 | N38: 0.23 | O38: 658849.6188 | P38: 0 | R38: =IF($O38<=0,0,IF(($O38-SUM($Q38:Q38))<$P38,$O38-SUM($Q38:Q38),IF(SUM($Q38:Q38)<$O38,$P38,0))) -> 0 | S38: =IF($O38<=0,0,IF(($O38-SUM($Q38:R38))<$P38,$O38-SUM($Q38:R38),IF(SUM($Q38:R38)<$O38,$P38,0))) -> 0 | T38: =IF($O38<=0,0,IF(($O38-SUM($Q38:S38))<$P38,$O38-SUM($Q38:S38),IF(SUM($Q38:S38)<$O38,$P38,0))) -> 0 | U38: =IF($O38<=0,0,IF(($O38-SUM($Q38:T38))<$P38,$O38-SUM($Q38:T38),IF(SUM($Q38:T38)<$O38,$P38,0))) -> 0 | V38: =IF($O38<=0,0,IF(($O38-SUM($Q38:U38))<$P38,$O38-SUM($Q38:U38),IF(SUM($Q38:U38)<$O38,$P38,0))) -> 0 | W38: =IF($O38<=0,0,IF(($O38-SUM($Q38:V38))<$P38,$O38-SUM($Q38:V38),IF(SUM($Q38:V38)<$O38,$P38,0))) -> 0 | X38: =IF($O38<=0,0,IF(($O38-SUM($Q38:W38))<$P38,$O38-SUM($Q38:W38),IF(SUM($Q38:W38)<$O38,$P38,0))) -> 0 | Y38: =IF($O38<=0,0,IF(($O38-SUM($Q38:X38))<$P38,$O38-SUM($Q38:X38),IF(SUM($Q38:X38)<$O38,$P38,0))) -> 0 | Z38: 658849.6188
B39: AERONAVEGACIÓN/AEROPORTUARIO | C39: TERRENOS INSCRITOS | D39: TERRENOS | E39: 1950-12-01 | F39: 1950-12-01 | G39: 2280.88 | H39: 0 | I39: 0 | J39: 0 | K39: 0 | L39: 0 | M39: 2280.88 | N39: 0.23 | O39: 524.6024 | P39: 0 | R39: =IF($O39<=0,0,IF(($O39-SUM($Q39:Q39))<$P39,$O39-SUM($Q39:Q39),IF(SUM($Q39:Q39)<$O39,$P39,0))) -> 0 | S39: =IF($O39<=0,0,IF(($O39-SUM($Q39:R39))<$P39,$O39-SUM($Q39:R39),IF(SUM($Q39:R39)<$O39,$P39,0))) -> 0 | T39: =IF($O39<=0,0,IF(($O39-SUM($Q39:S39))<$P39,$O39-SUM($Q39:S39),IF(SUM($Q39:S39)<$O39,$P39,0))) -> 0 | U39: =IF($O39<=0,0,IF(($O39-SUM($Q39:T39))<$P39,$O39-SUM($Q39:T39),IF(SUM($Q39:T39)<$O39,$P39,0))) -> 0 | V39: =IF($O39<=0,0,IF(($O39-SUM($Q39:U39))<$P39,$O39-SUM($Q39:U39),IF(SUM($Q39:U39)<$O39,$P39,0))) -> 0 | W39: =IF($O39<=0,0,IF(($O39-SUM($Q39:V39))<$P39,$O39-SUM($Q39:V39),IF(SUM($Q39:V39)<$O39,$P39,0))) -> 0 | X39: =IF($O39<=0,0,IF(($O39-SUM($Q39:W39))<$P39,$O39-SUM($Q39:W39),IF(SUM($Q39:W39)<$O39,$P39,0))) -> 0 | Y39: =IF($O39<=0,0,IF(($O39-SUM($Q39:X39))<$P39,$O39-SUM($Q39:X39),IF(SUM($Q39:X39)<$O39,$P39,0))) -> 0 | Z39: 524.6024
B40: AERONAVEGACIÓN/AEROPORTUARIO | C40: TERRENOS INSCRITOS | D40: TERRENOS | E40: 1950-12-01 | F40: 1950-12-01 | G40: 3989529.7 | H40: 0 | I40: 0 | J40: 0 | K40: 0 | L40: 0 | M40: 3989529.7 | N40: 0.5 | O40: 1994764.85 | P40: 0 | R40: =IF($O40<=0,0,IF(($O40-SUM($Q40:Q40))<$P40,$O40-SUM($Q40:Q40),IF(SUM($Q40:Q40)<$O40,$P40,0))) -> 0 | S40: =IF($O40<=0,0,IF(($O40-SUM($Q40:R40))<$P40,$O40-SUM($Q40:R40),IF(SUM($Q40:R40)<$O40,$P40,0))) -> 0 | T40: =IF($O40<=0,0,IF(($O40-SUM($Q40:S40))<$P40,$O40-SUM($Q40:S40),IF(SUM($Q40:S40)<$O40,$P40,0))) -> 0 | U40: =IF($O40<=0,0,IF(($O40-SUM($Q40:T40))<$P40,$O40-SUM($Q40:T40),IF(SUM($Q40:T40)<$O40,$P40,0))) -> 0 | V40: =IF($O40<=0,0,IF(($O40-SUM($Q40:U40))<$P40,$O40-SUM($Q40:U40),IF(SUM($Q40:U40)<$O40,$P40,0))) -> 0 | W40: =IF($O40<=0,0,IF(($O40-SUM($Q40:V40))<$P40,$O40-SUM($Q40:V40),IF(SUM($Q40:V40)<$O40,$P40,0))) -> 0 | X40: =IF($O40<=0,0,IF(($O40-SUM($Q40:W40))<$P40,$O40-SUM($Q40:W40),IF(SUM($Q40:W40)<$O40,$P40,0))) -> 0 | Y40: =IF($O40<=0,0,IF(($O40-SUM($Q40:X40))<$P40,$O40-SUM($Q40:X40),IF(SUM($Q40:X40)<$O40,$P40,0))) -> 0 | Z40: 1994764.85
B41: AERONAVEGACIÓN/AEROPORTUARIO | C41: TERRENOS INSCRITOS | D41: TERRENOS | E41: 1950-12-01 | F41: 1950-12-01 | G41: 52419.49 | H41: 0 | I41: 0 | J41: 0 | K41: 0 | L41: 0 | M41: 52419.49 | N41: 0.5 | O41: 26209.745 | P41: 0 | R41: =IF($O41<=0,0,IF(($O41-SUM($Q41:Q41))<$P41,$O41-SUM($Q41:Q41),IF(SUM($Q41:Q41)<$O41,$P41,0))) -> 0 | S41: =IF($O41<=0,0,IF(($O41-SUM($Q41:R41))<$P41,$O41-SUM($Q41:R41),IF(SUM($Q41:R41)<$O41,$P41,0))) -> 0 | T41: =IF($O41<=0,0,IF(($O41-SUM($Q41:S41))<$P41,$O41-SUM($Q41:S41),IF(SUM($Q41:S41)<$O41,$P41,0))) -> 0 | U41: =IF($O41<=0,0,IF(($O41-SUM($Q41:T41))<$P41,$O41-SUM($Q41:T41),IF(SUM($Q41:T41)<$O41,$P41,0))) -> 0 | V41: =IF($O41<=0,0,IF(($O41-SUM($Q41:U41))<$P41,$O41-SUM($Q41:U41),IF(SUM($Q41:U41)<$O41,$P41,0))) -> 0 | W41: =IF($O41<=0,0,IF(($O41-SUM($Q41:V41))<$P41,$O41-SUM($Q41:V41),IF(SUM($Q41:V41)<$O41,$P41,0))) -> 0 | X41: =IF($O41<=0,0,IF(($O41-SUM($Q41:W41))<$P41,$O41-SUM($Q41:W41),IF(SUM($Q41:W41)<$O41,$P41,0))) -> 0 | Y41: =IF($O41<=0,0,IF(($O41-SUM($Q41:X41))<$P41,$O41-SUM($Q41:X41),IF(SUM($Q41:X41)<$O41,$P41,0))) -> 0 | Z41: 26209.745
B42: AERONAVEGACIÓN/AEROPORTUARIO | C42: TERRENOS INSCRITOS | D42: TERRENOS | E42: 1950-12-01 | F42: 1950-12-01 | G42: 6592926.05 | H42: 0 | I42: 0 | J42: 0 | K42: 0 | L42: 0 | M42: 6592926.05 | N42: 0.52 | O42: 3428321.546 | P42: 0 | R42: =IF($O42<=0,0,IF(($O42-SUM($Q42:Q42))<$P42,$O42-SUM($Q42:Q42),IF(SUM($Q42:Q42)<$O42,$P42,0))) -> 0 | S42: =IF($O42<=0,0,IF(($O42-SUM($Q42:R42))<$P42,$O42-SUM($Q42:R42),IF(SUM($Q42:R42)<$O42,$P42,0))) -> 0 | T42: =IF($O42<=0,0,IF(($O42-SUM($Q42:S42))<$P42,$O42-SUM($Q42:S42),IF(SUM($Q42:S42)<$O42,$P42,0))) -> 0 | U42: =IF($O42<=0,0,IF(($O42-SUM($Q42:T42))<$P42,$O42-SUM($Q42:T42),IF(SUM($Q42:T42)<$O42,$P42,0))) -> 0 | V42: =IF($O42<=0,0,IF(($O42-SUM($Q42:U42))<$P42,$O42-SUM($Q42:U42),IF(SUM($Q42:U42)<$O42,$P42,0))) -> 0 | W42: =IF($O42<=0,0,IF(($O42-SUM($Q42:V42))<$P42,$O42-SUM($Q42:V42),IF(SUM($Q42:V42)<$O42,$P42,0))) -> 0 | X42: =IF($O42<=0,0,IF(($O42-SUM($Q42:W42))<$P42,$O42-SUM($Q42:W42),IF(SUM($Q42:W42)<$O42,$P42,0))) -> 0 | Y42: =IF($O42<=0,0,IF(($O42-SUM($Q42:X42))<$P42,$O42-SUM($Q42:X42),IF(SUM($Q42:X42)<$O42,$P42,0))) -> 0 | Z42: 3428321.546
B43: AERONAVEGACIÓN/AEROPORTUARIO | C43: TERRENOS INSCRITOS | D43: TERRENOS | E43: 1950-12-01 | F43: 1950-12-01 | G43: 306655.17 | H43: 0 | I43: 0 | J43: 0 | K43: 0 | L43: 0 | M43: 306655.17 | N43: 0.52 | O43: 159460.6884 | P43: 0 | R43: =IF($O43<=0,0,IF(($O43-SUM($Q43:Q43))<$P43,$O43-SUM($Q43:Q43),IF(SUM($Q43:Q43)<$O43,$P43,0))) -> 0 | S43: =IF($O43<=0,0,IF(($O43-SUM($Q43:R43))<$P43,$O43-SUM($Q43:R43),IF(SUM($Q43:R43)<$O43,$P43,0))) -> 0 | T43: =IF($O43<=0,0,IF(($O43-SUM($Q43:S43))<$P43,$O43-SUM($Q43:S43),IF(SUM($Q43:S43)<$O43,$P43,0))) -> 0 | U43: =IF($O43<=0,0,IF(($O43-SUM($Q43:T43))<$P43,$O43-SUM($Q43:T43),IF(SUM($Q43:T43)<$O43,$P43,0))) -> 0 | V43: =IF($O43<=0,0,IF(($O43-SUM($Q43:U43))<$P43,$O43-SUM($Q43:U43),IF(SUM($Q43:U43)<$O43,$P43,0))) -> 0 | W43: =IF($O43<=0,0,IF(($O43-SUM($Q43:V43))<$P43,$O43-SUM($Q43:V43),IF(SUM($Q43:V43)<$O43,$P43,0))) -> 0 | X43: =IF($O43<=0,0,IF(($O43-SUM($Q43:W43))<$P43,$O43-SUM($Q43:W43),IF(SUM($Q43:W43)<$O43,$P43,0))) -> 0 | Y43: =IF($O43<=0,0,IF(($O43-SUM($Q43:X43))<$P43,$O43-SUM($Q43:X43),IF(SUM($Q43:X43)<$O43,$P43,0))) -> 0 | Z43: 159460.6884
B44: AERONAVEGACIÓN | C44: TERRENOS INSCRITOS | D44: TERRENOS | E44: 1950-12-01 | F44: 1950-12-01 | G44: 228391.98 | H44: 0 | I44: 0 | J44: 0 | K44: 0 | L44: 0 | M44: 228391.98 | N44: =+IF(B44=$B$7,100%,50%) -> 1 | O44: 228391.98 | P44: 0 | R44: =IF($O44<=0,0,IF(($O44-SUM($Q44:Q44))<$P44,$O44-SUM($Q44:Q44),IF(SUM($Q44:Q44)<$O44,$P44,0))) -> 0 | S44: =IF($O44<=0,0,IF(($O44-SUM($Q44:R44))<$P44,$O44-SUM($Q44:R44),IF(SUM($Q44:R44)<$O44,$P44,0))) -> 0 | T44: =IF($O44<=0,0,IF(($O44-SUM($Q44:S44))<$P44,$O44-SUM($Q44:S44),IF(SUM($Q44:S44)<$O44,$P44,0))) -> 0 | U44: =IF($O44<=0,0,IF(($O44-SUM($Q44:T44))<$P44,$O44-SUM($Q44:T44),IF(SUM($Q44:T44)<$O44,$P44,0))) -> 0 | V44: =IF($O44<=0,0,IF(($O44-SUM($Q44:U44))<$P44,$O44-SUM($Q44:U44),IF(SUM($Q44:U44)<$O44,$P44,0))) -> 0 | W44: =IF($O44<=0,0,IF(($O44-SUM($Q44:V44))<$P44,$O44-SUM($Q44:V44),IF(SUM($Q44:V44)<$O44,$P44,0))) -> 0 | X44: =IF($O44<=0,0,IF(($O44-SUM($Q44:W44))<$P44,$O44-SUM($Q44:W44),IF(SUM($Q44:W44)<$O44,$P44,0))) -> 0 | Y44: =IF($O44<=0,0,IF(($O44-SUM($Q44:X44))<$P44,$O44-SUM($Q44:X44),IF(SUM($Q44:X44)<$O44,$P44,0))) -> 0 | Z44: 228391.98
B45: AERONAVEGACIÓN | C45: TERRENOS INSCRITOS | D45: TERRENOS | E45: 1950-12-01 | F45: 1950-12-01 | G45: 338204.35 | H45: 0 | I45: 0 | J45: 0 | K45: 0 | L45: 0 | M45: 338204.35 | N45: =+IF(B45=$B$7,100%,50%) -> 1 | O45: 338204.35 | P45: 0 | R45: =IF($O45<=0,0,IF(($O45-SUM($Q45:Q45))<$P45,$O45-SUM($Q45:Q45),IF(SUM($Q45:Q45)<$O45,$P45,0))) -> 0 | S45: =IF($O45<=0,0,IF(($O45-SUM($Q45:R45))<$P45,$O45-SUM($Q45:R45),IF(SUM($Q45:R45)<$O45,$P45,0))) -> 0 | T45: =IF($O45<=0,0,IF(($O45-SUM($Q45:S45))<$P45,$O45-SUM($Q45:S45),IF(SUM($Q45:S45)<$O45,$P45,0))) -> 0 | U45: =IF($O45<=0,0,IF(($O45-SUM($Q45:T45))<$P45,$O45-SUM($Q45:T45),IF(SUM($Q45:T45)<$O45,$P45,0))) -> 0 | V45: =IF($O45<=0,0,IF(($O45-SUM($Q45:U45))<$P45,$O45-SUM($Q45:U45),IF(SUM($Q45:U45)<$O45,$P45,0))) -> 0 | W45: =IF($O45<=0,0,IF(($O45-SUM($Q45:V45))<$P45,$O45-SUM($Q45:V45),IF(SUM($Q45:V45)<$O45,$P45,0))) -> 0 | X45: =IF($O45<=0,0,IF(($O45-SUM($Q45:W45))<$P45,$O45-SUM($Q45:W45),IF(SUM($Q45:W45)<$O45,$P45,0))) -> 0 | Y45: =IF($O45<=0,0,IF(($O45-SUM($Q45:X45))<$P45,$O45-SUM($Q45:X45),IF(SUM($Q45:X45)<$O45,$P45,0))) -> 0 | Z45: 338204.35
B46: AERONAVEGACIÓN/AEROPORTUARIO | C46: TERRENOS INSCRITOS | D46: TERRENOS | E46: 1950-12-01 | F46: 1950-12-01 | G46: 628773.19 | H46: 0 | I46: 0 | J46: 0 | K46: 0 | L46: 0 | M46: 628773.19 | N46: 0.51 | O46: 320674.3269 | P46: 0 | R46: =IF($O46<=0,0,IF(($O46-SUM($Q46:Q46))<$P46,$O46-SUM($Q46:Q46),IF(SUM($Q46:Q46)<$O46,$P46,0))) -> 0 | S46: =IF($O46<=0,0,IF(($O46-SUM($Q46:R46))<$P46,$O46-SUM($Q46:R46),IF(SUM($Q46:R46)<$O46,$P46,0))) -> 0 | T46: =IF($O46<=0,0,IF(($O46-SUM($Q46:S46))<$P46,$O46-SUM($Q46:S46),IF(SUM($Q46:S46)<$O46,$P46,0))) -> 0 | U46: =IF($O46<=0,0,IF(($O46-SUM($Q46:T46))<$P46,$O46-SUM($Q46:T46),IF(SUM($Q46:T46)<$O46,$P46,0))) -> 0 | V46: =IF($O46<=0,0,IF(($O46-SUM($Q46:U46))<$P46,$O46-SUM($Q46:U46),IF(SUM($Q46:U46)<$O46,$P46,0))) -> 0 | W46: =IF($O46<=0,0,IF(($O46-SUM($Q46:V46))<$P46,$O46-SUM($Q46:V46),IF(SUM($Q46:V46)<$O46,$P46,0))) -> 0 | X46: =IF($O46<=0,0,IF(($O46-SUM($Q46:W46))<$P46,$O46-SUM($Q46:W46),IF(SUM($Q46:W46)<$O46,$P46,0))) -> 0 | Y46: =IF($O46<=0,0,IF(($O46-SUM($Q46:X46))<$P46,$O46-SUM($Q46:X46),IF(SUM($Q46:X46)<$O46,$P46,0))) -> 0 | Z46: 320674.3269
B47: AERONAVEGACIÓN/AEROPORTUARIO | C47: TERRENOS INSCRITOS | D47: TERRENOS | E47: 1950-12-01 | F47: 1950-12-01 | G47: 582109.81 | H47: 0 | I47: 0 | J47: 0 | K47: 0 | L47: 0 | M47: 582109.81 | N47: 0.53 | O47: 308518.1993 | P47: 0 | R47: =IF($O47<=0,0,IF(($O47-SUM($Q47:Q47))<$P47,$O47-SUM($Q47:Q47),IF(SUM($Q47:Q47)<$O47,$P47,0))) -> 0 | S47: =IF($O47<=0,0,IF(($O47-SUM($Q47:R47))<$P47,$O47-SUM($Q47:R47),IF(SUM($Q47:R47)<$O47,$P47,0))) -> 0 | T47: =IF($O47<=0,0,IF(($O47-SUM($Q47:S47))<$P47,$O47-SUM($Q47:S47),IF(SUM($Q47:S47)<$O47,$P47,0))) -> 0 | U47: =IF($O47<=0,0,IF(($O47-SUM($Q47:T47))<$P47,$O47-SUM($Q47:T47),IF(SUM($Q47:T47)<$O47,$P47,0))) -> 0 | V47: =IF($O47<=0,0,IF(($O47-SUM($Q47:U47))<$P47,$O47-SUM($Q47:U47),IF(SUM($Q47:U47)<$O47,$P47,0))) -> 0 | W47: =IF($O47<=0,0,IF(($O47-SUM($Q47:V47))<$P47,$O47-SUM($Q47:V47),IF(SUM($Q47:V47)<$O47,$P47,0))) -> 0 | X47: =IF($O47<=0,0,IF(($O47-SUM($Q47:W47))<$P47,$O47-SUM($Q47:W47),IF(SUM($Q47:W47)<$O47,$P47,0))) -> 0 | Y47: =IF($O47<=0,0,IF(($O47-SUM($Q47:X47))<$P47,$O47-SUM($Q47:X47),IF(SUM($Q47:X47)<$O47,$P47,0))) -> 0 | Z47: 308518.1993
B48: AERONAVEGACIÓN/AEROPORTUARIO | C48: TERRENOS INSCRITOS | D48: TERRENOS | E48: 1950-12-01 | F48: 1950-12-01 | G48: 44197.09 | H48: 0 | I48: 0 | J48: 0 | K48: 0 | L48: 0 | M48: 44197.09 | N48: 0.53 | O48: 23424.4577 | P48: 0 | R48: =IF($O48<=0,0,IF(($O48-SUM($Q48:Q48))<$P48,$O48-SUM($Q48:Q48),IF(SUM($Q48:Q48)<$O48,$P48,0))) -> 0 | S48: =IF($O48<=0,0,IF(($O48-SUM($Q48:R48))<$P48,$O48-SUM($Q48:R48),IF(SUM($Q48:R48)<$O48,$P48,0))) -> 0 | T48: =IF($O48<=0,0,IF(($O48-SUM($Q48:S48))<$P48,$O48-SUM($Q48:S48),IF(SUM($Q48:S48)<$O48,$P48,0))) -> 0 | U48: =IF($O48<=0,0,IF(($O48-SUM($Q48:T48))<$P48,$O48-SUM($Q48:T48),IF(SUM($Q48:T48)<$O48,$P48,0))) -> 0 | V48: =IF($O48<=0,0,IF(($O48-SUM($Q48:U48))<$P48,$O48-SUM($Q48:U48),IF(SUM($Q48:U48)<$O48,$P48,0))) -> 0 | W48: =IF($O48<=0,0,IF(($O48-SUM($Q48:V48))<$P48,$O48-SUM($Q48:V48),IF(SUM($Q48:V48)<$O48,$P48,0))) -> 0 | X48: =IF($O48<=0,0,IF(($O48-SUM($Q48:W48))<$P48,$O48-SUM($Q48:W48),IF(SUM($Q48:W48)<$O48,$P48,0))) -> 0 | Y48: =IF($O48<=0,0,IF(($O48-SUM($Q48:X48))<$P48,$O48-SUM($Q48:X48),IF(SUM($Q48:X48)<$O48,$P48,0))) -> 0 | Z48: 23424.4577
B49: AERONAVEGACIÓN | C49: TERRENOS INSCRITOS | D49: TERRENOS | E49: 1950-12-01 | F49: 1950-12-01 | G49: 307631.24 | H49: 0 | I49: 0 | J49: 0 | K49: 0 | L49: 0 | M49: 307631.24 | N49: =+IF(B49=$B$7,100%,50%) -> 1 | O49: 307631.24 | P49: 0 | R49: =IF($O49<=0,0,IF(($O49-SUM($Q49:Q49))<$P49,$O49-SUM($Q49:Q49),IF(SUM($Q49:Q49)<$O49,$P49,0))) -> 0 | S49: =IF($O49<=0,0,IF(($O49-SUM($Q49:R49))<$P49,$O49-SUM($Q49:R49),IF(SUM($Q49:R49)<$O49,$P49,0))) -> 0 | T49: =IF($O49<=0,0,IF(($O49-SUM($Q49:S49))<$P49,$O49-SUM($Q49:S49),IF(SUM($Q49:S49)<$O49,$P49,0))) -> 0 | U49: =IF($O49<=0,0,IF(($O49-SUM($Q49:T49))<$P49,$O49-SUM($Q49:T49),IF(SUM($Q49:T49)<$O49,$P49,0))) -> 0 | V49: =IF($O49<=0,0,IF(($O49-SUM($Q49:U49))<$P49,$O49-SUM($Q49:U49),IF(SUM($Q49:U49)<$O49,$P49,0))) -> 0 | W49: =IF($O49<=0,0,IF(($O49-SUM($Q49:V49))<$P49,$O49-SUM($Q49:V49),IF(SUM($Q49:V49)<$O49,$P49,0))) -> 0 | X49: =IF($O49<=0,0,IF(($O49-SUM($Q49:W49))<$P49,$O49-SUM($Q49:W49),IF(SUM($Q49:W49)<$O49,$P49,0))) -> 0 | Y49: =IF($O49<=0,0,IF(($O49-SUM($Q49:X49))<$P49,$O49-SUM($Q49:X49),IF(SUM($Q49:X49)<$O49,$P49,0))) -> 0 | Z49: 307631.24
B50: AERONAVEGACIÓN/AEROPORTUARIO | C50: TERRENOS INSCRITOS | D50: TERRENOS | E50: 1950-12-01 | F50: 1950-12-01 | G50: 6976642.46 | H50: 0 | I50: 0 | J50: 0 | K50: 0 | L50: 0 | M50: 6976642.46 | N50: 0.46 | O50: 3209255.532 | P50: 0 | R50: =IF($O50<=0,0,IF(($O50-SUM($Q50:Q50))<$P50,$O50-SUM($Q50:Q50),IF(SUM($Q50:Q50)<$O50,$P50,0))) -> 0 | S50: =IF($O50<=0,0,IF(($O50-SUM($Q50:R50))<$P50,$O50-SUM($Q50:R50),IF(SUM($Q50:R50)<$O50,$P50,0))) -> 0 | T50: =IF($O50<=0,0,IF(($O50-SUM($Q50:S50))<$P50,$O50-SUM($Q50:S50),IF(SUM($Q50:S50)<$O50,$P50,0))) -> 0 | U50: =IF($O50<=0,0,IF(($O50-SUM($Q50:T50))<$P50,$O50-SUM($Q50:T50),IF(SUM($Q50:T50)<$O50,$P50,0))) -> 0 | V50: =IF($O50<=0,0,IF(($O50-SUM($Q50:U50))<$P50,$O50-SUM($Q50:U50),IF(SUM($Q50:U50)<$O50,$P50,0))) -> 0 | W50: =IF($O50<=0,0,IF(($O50-SUM($Q50:V50))<$P50,$O50-SUM($Q50:V50),IF(SUM($Q50:V50)<$O50,$P50,0))) -> 0 | X50: =IF($O50<=0,0,IF(($O50-SUM($Q50:W50))<$P50,$O50-SUM($Q50:W50),IF(SUM($Q50:W50)<$O50,$P50,0))) -> 0 | Y50: =IF($O50<=0,0,IF(($O50-SUM($Q50:X50))<$P50,$O50-SUM($Q50:X50),IF(SUM($Q50:X50)<$O50,$P50,0))) -> 0 | Z50: 3209255.532
B51: AERONAVEGACIÓN/AEROPORTUARIO | C51: TERRENOS INSCRITOS | D51: TERRENOS | E51: 1950-12-01 | F51: 1950-12-01 | G51: 571.37 | H51: 0 | I51: 0 | J51: 0 | K51: 0 | L51: 0 | M51: 571.37 | N51: 0.46 | O51: 262.8302 | P51: 0 | R51: =IF($O51<=0,0,IF(($O51-SUM($Q51:Q51))<$P51,$O51-SUM($Q51:Q51),IF(SUM($Q51:Q51)<$O51,$P51,0))) -> 0 | S51: =IF($O51<=0,0,IF(($O51-SUM($Q51:R51))<$P51,$O51-SUM($Q51:R51),IF(SUM($Q51:R51)<$O51,$P51,0))) -> 0 | T51: =IF($O51<=0,0,IF(($O51-SUM($Q51:S51))<$P51,$O51-SUM($Q51:S51),IF(SUM($Q51:S51)<$O51,$P51,0))) -> 0 | U51: =IF($O51<=0,0,IF(($O51-SUM($Q51:T51))<$P51,$O51-SUM($Q51:T51),IF(SUM($Q51:T51)<$O51,$P51,0))) -> 0 | V51: =IF($O51<=0,0,IF(($O51-SUM($Q51:U51))<$P51,$O51-SUM($Q51:U51),IF(SUM($Q51:U51)<$O51,$P51,0))) -> 0 | W51: =IF($O51<=0,0,IF(($O51-SUM($Q51:V51))<$P51,$O51-SUM($Q51:V51),IF(SUM($Q51:V51)<$O51,$P51,0))) -> 0 | X51: =IF($O51<=0,0,IF(($O51-SUM($Q51:W51))<$P51,$O51-SUM($Q51:W51),IF(SUM($Q51:W51)<$O51,$P51,0))) -> 0 | Y51: =IF($O51<=0,0,IF(($O51-SUM($Q51:X51))<$P51,$O51-SUM($Q51:X51),IF(SUM($Q51:X51)<$O51,$P51,0))) -> 0 | Z51: 262.8302
B52: AERONAVEGACIÓN/AEROPORTUARIO | C52: TERRENOS INSCRITOS | D52: TERRENOS | E52: 1950-12-01 | F52: 1950-12-01 | G52: 10811591.84 | H52: 0 | I52: 0 | J52: 0 | K52: 0 | L52: 0 | M52: 10811591.84 | N52: 0.51 | O52: 5513911.838 | P52: 0 | R52: =IF($O52<=0,0,IF(($O52-SUM($Q52:Q52))<$P52,$O52-SUM($Q52:Q52),IF(SUM($Q52:Q52)<$O52,$P52,0))) -> 0 | S52: =IF($O52<=0,0,IF(($O52-SUM($Q52:R52))<$P52,$O52-SUM($Q52:R52),IF(SUM($Q52:R52)<$O52,$P52,0))) -> 0 | T52: =IF($O52<=0,0,IF(($O52-SUM($Q52:S52))<$P52,$O52-SUM($Q52:S52),IF(SUM($Q52:S52)<$O52,$P52,0))) -> 0 | U52: =IF($O52<=0,0,IF(($O52-SUM($Q52:T52))<$P52,$O52-SUM($Q52:T52),IF(SUM($Q52:T52)<$O52,$P52,0))) -> 0 | V52: =IF($O52<=0,0,IF(($O52-SUM($Q52:U52))<$P52,$O52-SUM($Q52:U52),IF(SUM($Q52:U52)<$O52,$P52,0))) -> 0 | W52: =IF($O52<=0,0,IF(($O52-SUM($Q52:V52))<$P52,$O52-SUM($Q52:V52),IF(SUM($Q52:V52)<$O52,$P52,0))) -> 0 | X52: =IF($O52<=0,0,IF(($O52-SUM($Q52:W52))<$P52,$O52-SUM($Q52:W52),IF(SUM($Q52:W52)<$O52,$P52,0))) -> 0 | Y52: =IF($O52<=0,0,IF(($O52-SUM($Q52:X52))<$P52,$O52-SUM($Q52:X52),IF(SUM($Q52:X52)<$O52,$P52,0))) -> 0 | Z52: 5513911.838
B53: AERONAVEGACIÓN/AEROPORTUARIO | C53: TERRENOS INSCRITOS | D53: TERRENOS | E53: 1950-12-01 | F53: 1950-12-01 | G53: 12473.9 | H53: 0 | I53: 0 | J53: 0 | K53: 0 | L53: 0 | M53: 12473.9 | N53: 0.51 | O53: 6361.689 | P53: 0 | R53: =IF($O53<=0,0,IF(($O53-SUM($Q53:Q53))<$P53,$O53-SUM($Q53:Q53),IF(SUM($Q53:Q53)<$O53,$P53,0))) -> 0 | S53: =IF($O53<=0,0,IF(($O53-SUM($Q53:R53))<$P53,$O53-SUM($Q53:R53),IF(SUM($Q53:R53)<$O53,$P53,0))) -> 0 | T53: =IF($O53<=0,0,IF(($O53-SUM($Q53:S53))<$P53,$O53-SUM($Q53:S53),IF(SUM($Q53:S53)<$O53,$P53,0))) -> 0 | U53: =IF($O53<=0,0,IF(($O53-SUM($Q53:T53))<$P53,$O53-SUM($Q53:T53),IF(SUM($Q53:T53)<$O53,$P53,0))) -> 0 | V53: =IF($O53<=0,0,IF(($O53-SUM($Q53:U53))<$P53,$O53-SUM($Q53:U53),IF(SUM($Q53:U53)<$O53,$P53,0))) -> 0 | W53: =IF($O53<=0,0,IF(($O53-SUM($Q53:V53))<$P53,$O53-SUM($Q53:V53),IF(SUM($Q53:V53)<$O53,$P53,0))) -> 0 | X53: =IF($O53<=0,0,IF(($O53-SUM($Q53:W53))<$P53,$O53-SUM($Q53:W53),IF(SUM($Q53:W53)<$O53,$P53,0))) -> 0 | Y53: =IF($O53<=0,0,IF(($O53-SUM($Q53:X53))<$P53,$O53-SUM($Q53:X53),IF(SUM($Q53:X53)<$O53,$P53,0))) -> 0 | Z53: 6361.689
B54: AERONAVEGACIÓN | C54: TERRENOS INSCRITOS | D54: TERRENOS | E54: 1950-12-01 | F54: 1950-12-01 | G54: 45228.39 | H54: 0 | I54: 0 | J54: 0 | K54: 0 | L54: 0 | M54: 45228.39 | N54: =+IF(B54=$B$7,100%,50%) -> 1 | O54: 45228.39 | P54: 0 | R54: =IF($O54<=0,0,IF(($O54-SUM($Q54:Q54))<$P54,$O54-SUM($Q54:Q54),IF(SUM($Q54:Q54)<$O54,$P54,0))) -> 0 | S54: =IF($O54<=0,0,IF(($O54-SUM($Q54:R54))<$P54,$O54-SUM($Q54:R54),IF(SUM($Q54:R54)<$O54,$P54,0))) -> 0 | T54: =IF($O54<=0,0,IF(($O54-SUM($Q54:S54))<$P54,$O54-SUM($Q54:S54),IF(SUM($Q54:S54)<$O54,$P54,0))) -> 0 | U54: =IF($O54<=0,0,IF(($O54-SUM($Q54:T54))<$P54,$O54-SUM($Q54:T54),IF(SUM($Q54:T54)<$O54,$P54,0))) -> 0 | V54: =IF($O54<=0,0,IF(($O54-SUM($Q54:U54))<$P54,$O54-SUM($Q54:U54),IF(SUM($Q54:U54)<$O54,$P54,0))) -> 0 | W54: =IF($O54<=0,0,IF(($O54-SUM($Q54:V54))<$P54,$O54-SUM($Q54:V54),IF(SUM($Q54:V54)<$O54,$P54,0))) -> 0 | X54: =IF($O54<=0,0,IF(($O54-SUM($Q54:W54))<$P54,$O54-SUM($Q54:W54),IF(SUM($Q54:W54)<$O54,$P54,0))) -> 0 | Y54: =IF($O54<=0,0,IF(($O54-SUM($Q54:X54))<$P54,$O54-SUM($Q54:X54),IF(SUM($Q54:X54)<$O54,$P54,0))) -> 0 | Z54: 45228.39
B55: AERONAVEGACIÓN | C55: TERRENOS INSCRITOS | D55: TERRENOS | E55: 1950-12-01 | F55: 1950-12-01 | G55: 2543.5 | H55: 0 | I55: 0 | J55: 0 | K55: 0 | L55: 0 | M55: 2543.5 | N55: 1 | O55: 2543.5 | P55: 0 | R55: =IF($O55<=0,0,IF(($O55-SUM($Q55:Q55))<$P55,$O55-SUM($Q55:Q55),IF(SUM($Q55:Q55)<$O55,$P55,0))) -> 0 | S55: =IF($O55<=0,0,IF(($O55-SUM($Q55:R55))<$P55,$O55-SUM($Q55:R55),IF(SUM($Q55:R55)<$O55,$P55,0))) -> 0 | T55: =IF($O55<=0,0,IF(($O55-SUM($Q55:S55))<$P55,$O55-SUM($Q55:S55),IF(SUM($Q55:S55)<$O55,$P55,0))) -> 0 | U55: =IF($O55<=0,0,IF(($O55-SUM($Q55:T55))<$P55,$O55-SUM($Q55:T55),IF(SUM($Q55:T55)<$O55,$P55,0))) -> 0 | V55: =IF($O55<=0,0,IF(($O55-SUM($Q55:U55))<$P55,$O55-SUM($Q55:U55),IF(SUM($Q55:U55)<$O55,$P55,0))) -> 0 | W55: =IF($O55<=0,0,IF(($O55-SUM($Q55:V55))<$P55,$O55-SUM($Q55:V55),IF(SUM($Q55:V55)<$O55,$P55,0))) -> 0 | X55: =IF($O55<=0,0,IF(($O55-SUM($Q55:W55))<$P55,$O55-SUM($Q55:W55),IF(SUM($Q55:W55)<$O55,$P55,0))) -> 0 | Y55: =IF($O55<=0,0,IF(($O55-SUM($Q55:X55))<$P55,$O55-SUM($Q55:X55),IF(SUM($Q55:X55)<$O55,$P55,0))) -> 0 | Z55: 2543.5
B56: AERONAVEGACIÓN | C56: TERRENOS INSCRITOS | D56: TERRENOS | E56: 1950-12-01 | F56: 1950-12-01 | G56: 32412.03 | H56: 0 | I56: 0 | J56: 0 | K56: 0 | L56: 0 | M56: 32412.03 | N56: 1 | O56: 32412.03 | P56: 0 | R56: =IF($O56<=0,0,IF(($O56-SUM($Q56:Q56))<$P56,$O56-SUM($Q56:Q56),IF(SUM($Q56:Q56)<$O56,$P56,0))) -> 0 | S56: =IF($O56<=0,0,IF(($O56-SUM($Q56:R56))<$P56,$O56-SUM($Q56:R56),IF(SUM($Q56:R56)<$O56,$P56,0))) -> 0 | T56: =IF($O56<=0,0,IF(($O56-SUM($Q56:S56))<$P56,$O56-SUM($Q56:S56),IF(SUM($Q56:S56)<$O56,$P56,0))) -> 0 | U56: =IF($O56<=0,0,IF(($O56-SUM($Q56:T56))<$P56,$O56-SUM($Q56:T56),IF(SUM($Q56:T56)<$O56,$P56,0))) -> 0 | V56: =IF($O56<=0,0,IF(($O56-SUM($Q56:U56))<$P56,$O56-SUM($Q56:U56),IF(SUM($Q56:U56)<$O56,$P56,0))) -> 0 | W56: =IF($O56<=0,0,IF(($O56-SUM($Q56:V56))<$P56,$O56-SUM($Q56:V56),IF(SUM($Q56:V56)<$O56,$P56,0))) -> 0 | X56: =IF($O56<=0,0,IF(($O56-SUM($Q56:W56))<$P56,$O56-SUM($Q56:W56),IF(SUM($Q56:W56)<$O56,$P56,0))) -> 0 | Y56: =IF($O56<=0,0,IF(($O56-SUM($Q56:X56))<$P56,$O56-SUM($Q56:X56),IF(SUM($Q56:X56)<$O56,$P56,0))) -> 0 | Z56: 32412.03
B57: AERONAVEGACIÓN | C57: TERRENOS INSCRITOS | D57: TERRENOS | E57: 1950-12-01 | F57: 1950-12-01 | G57: 1822.75 | H57: 0 | I57: 0 | J57: 0 | K57: 0 | L57: 0 | M57: 1822.75 | N57: 1 | O57: 1822.75 | P57: 0 | R57: =IF($O57<=0,0,IF(($O57-SUM($Q57:Q57))<$P57,$O57-SUM($Q57:Q57),IF(SUM($Q57:Q57)<$O57,$P57,0))) -> 0 | S57: =IF($O57<=0,0,IF(($O57-SUM($Q57:R57))<$P57,$O57-SUM($Q57:R57),IF(SUM($Q57:R57)<$O57,$P57,0))) -> 0 | T57: =IF($O57<=0,0,IF(($O57-SUM($Q57:S57))<$P57,$O57-SUM($Q57:S57),IF(SUM($Q57:S57)<$O57,$P57,0))) -> 0 | U57: =IF($O57<=0,0,IF(($O57-SUM($Q57:T57))<$P57,$O57-SUM($Q57:T57),IF(SUM($Q57:T57)<$O57,$P57,0))) -> 0 | V57: =IF($O57<=0,0,IF(($O57-SUM($Q57:U57))<$P57,$O57-SUM($Q57:U57),IF(SUM($Q57:U57)<$O57,$P57,0))) -> 0 | W57: =IF($O57<=0,0,IF(($O57-SUM($Q57:V57))<$P57,$O57-SUM($Q57:V57),IF(SUM($Q57:V57)<$O57,$P57,0))) -> 0 | X57: =IF($O57<=0,0,IF(($O57-SUM($Q57:W57))<$P57,$O57-SUM($Q57:W57),IF(SUM($Q57:W57)<$O57,$P57,0))) -> 0 | Y57: =IF($O57<=0,0,IF(($O57-SUM($Q57:X57))<$P57,$O57-SUM($Q57:X57),IF(SUM($Q57:X57)<$O57,$P57,0))) -> 0 | Z57: 1822.75
B58: AERONAVEGACIÓN/AEROPORTUARIO | C58: TERRENOS INSCRITOS | D58: TERRENOS | E58: 1950-12-01 | F58: 1950-12-01 | G58: 213244.69 | H58: 0 | I58: 0 | J58: 0 | K58: 0 | L58: 0 | M58: 213244.69 | N58: 0.5 | O58: 106622.345 | P58: 0 | R58: =IF($O58<=0,0,IF(($O58-SUM($Q58:Q58))<$P58,$O58-SUM($Q58:Q58),IF(SUM($Q58:Q58)<$O58,$P58,0))) -> 0 | S58: =IF($O58<=0,0,IF(($O58-SUM($Q58:R58))<$P58,$O58-SUM($Q58:R58),IF(SUM($Q58:R58)<$O58,$P58,0))) -> 0 | T58: =IF($O58<=0,0,IF(($O58-SUM($Q58:S58))<$P58,$O58-SUM($Q58:S58),IF(SUM($Q58:S58)<$O58,$P58,0))) -> 0 | U58: =IF($O58<=0,0,IF(($O58-SUM($Q58:T58))<$P58,$O58-SUM($Q58:T58),IF(SUM($Q58:T58)<$O58,$P58,0))) -> 0 | V58: =IF($O58<=0,0,IF(($O58-SUM($Q58:U58))<$P58,$O58-SUM($Q58:U58),IF(SUM($Q58:U58)<$O58,$P58,0))) -> 0 | W58: =IF($O58<=0,0,IF(($O58-SUM($Q58:V58))<$P58,$O58-SUM($Q58:V58),IF(SUM($Q58:V58)<$O58,$P58,0))) -> 0 | X58: =IF($O58<=0,0,IF(($O58-SUM($Q58:W58))<$P58,$O58-SUM($Q58:W58),IF(SUM($Q58:W58)<$O58,$P58,0))) -> 0 | Y58: =IF($O58<=0,0,IF(($O58-SUM($Q58:X58))<$P58,$O58-SUM($Q58:X58),IF(SUM($Q58:X58)<$O58,$P58,0))) -> 0 | Z58: 106622.345
B59: AERONAVEGACIÓN/AEROPORTUARIO | C59: TERRENOS INSCRITOS | D59: TERRENOS | E59: 1950-12-01 | F59: 1950-12-01 | G59: 5228369.1 | H59: 0 | I59: 0 | J59: 0 | K59: 0 | L59: 0 | M59: 5228369.1 | N59: 0.5 | O59: 2614184.55 | P59: 0 | R59: =IF($O59<=0,0,IF(($O59-SUM($Q59:Q59))<$P59,$O59-SUM($Q59:Q59),IF(SUM($Q59:Q59)<$O59,$P59,0))) -> 0 | S59: =IF($O59<=0,0,IF(($O59-SUM($Q59:R59))<$P59,$O59-SUM($Q59:R59),IF(SUM($Q59:R59)<$O59,$P59,0))) -> 0 | T59: =IF($O59<=0,0,IF(($O59-SUM($Q59:S59))<$P59,$O59-SUM($Q59:S59),IF(SUM($Q59:S59)<$O59,$P59,0))) -> 0 | U59: =IF($O59<=0,0,IF(($O59-SUM($Q59:T59))<$P59,$O59-SUM($Q59:T59),IF(SUM($Q59:T59)<$O59,$P59,0))) -> 0 | V59: =IF($O59<=0,0,IF(($O59-SUM($Q59:U59))<$P59,$O59-SUM($Q59:U59),IF(SUM($Q59:U59)<$O59,$P59,0))) -> 0 | W59: =IF($O59<=0,0,IF(($O59-SUM($Q59:V59))<$P59,$O59-SUM($Q59:V59),IF(SUM($Q59:V59)<$O59,$P59,0))) -> 0 | X59: =IF($O59<=0,0,IF(($O59-SUM($Q59:W59))<$P59,$O59-SUM($Q59:W59),IF(SUM($Q59:W59)<$O59,$P59,0))) -> 0 | Y59: =IF($O59<=0,0,IF(($O59-SUM($Q59:X59))<$P59,$O59-SUM($Q59:X59),IF(SUM($Q59:X59)<$O59,$P59,0))) -> 0 | Z59: 2614184.55
B60: AERONAVEGACIÓN/AEROPORTUARIO | C60: TERRENOS INSCRITOS | D60: TERRENOS | E60: 1950-12-01 | F60: 1950-12-01 | G60: 17603.94 | H60: 0 | I60: 0 | J60: 0 | K60: 0 | L60: 0 | M60: 17603.94 | N60: 0.5 | O60: 8801.97 | P60: 0 | R60: =IF($O60<=0,0,IF(($O60-SUM($Q60:Q60))<$P60,$O60-SUM($Q60:Q60),IF(SUM($Q60:Q60)<$O60,$P60,0))) -> 0 | S60: =IF($O60<=0,0,IF(($O60-SUM($Q60:R60))<$P60,$O60-SUM($Q60:R60),IF(SUM($Q60:R60)<$O60,$P60,0))) -> 0 | T60: =IF($O60<=0,0,IF(($O60-SUM($Q60:S60))<$P60,$O60-SUM($Q60:S60),IF(SUM($Q60:S60)<$O60,$P60,0))) -> 0 | U60: =IF($O60<=0,0,IF(($O60-SUM($Q60:T60))<$P60,$O60-SUM($Q60:T60),IF(SUM($Q60:T60)<$O60,$P60,0))) -> 0 | V60: =IF($O60<=0,0,IF(($O60-SUM($Q60:U60))<$P60,$O60-SUM($Q60:U60),IF(SUM($Q60:U60)<$O60,$P60,0))) -> 0 | W60: =IF($O60<=0,0,IF(($O60-SUM($Q60:V60))<$P60,$O60-SUM($Q60:V60),IF(SUM($Q60:V60)<$O60,$P60,0))) -> 0 | X60: =IF($O60<=0,0,IF(($O60-SUM($Q60:W60))<$P60,$O60-SUM($Q60:W60),IF(SUM($Q60:W60)<$O60,$P60,0))) -> 0 | Y60: =IF($O60<=0,0,IF(($O60-SUM($Q60:X60))<$P60,$O60-SUM($Q60:X60),IF(SUM($Q60:X60)<$O60,$P60,0))) -> 0 | Z60: 8801.97
B61: AERONAVEGACIÓN | C61: TERRENOS INSCRITOS | D61: TERRENOS | E61: 1950-12-01 | F61: 1950-12-01 | G61: 512640.71 | H61: 0 | I61: 0 | J61: 0 | K61: 0 | L61: 0 | M61: 512640.71 | N61: 1 | O61: 512640.71 | P61: 0 | R61: =IF($O61<=0,0,IF(($O61-SUM($Q61:Q61))<$P61,$O61-SUM($Q61:Q61),IF(SUM($Q61:Q61)<$O61,$P61,0))) -> 0 | S61: =IF($O61<=0,0,IF(($O61-SUM($Q61:R61))<$P61,$O61-SUM($Q61:R61),IF(SUM($Q61:R61)<$O61,$P61,0))) -> 0 | T61: =IF($O61<=0,0,IF(($O61-SUM($Q61:S61))<$P61,$O61-SUM($Q61:S61),IF(SUM($Q61:S61)<$O61,$P61,0))) -> 0 | U61: =IF($O61<=0,0,IF(($O61-SUM($Q61:T61))<$P61,$O61-SUM($Q61:T61),IF(SUM($Q61:T61)<$O61,$P61,0))) -> 0 | V61: =IF($O61<=0,0,IF(($O61-SUM($Q61:U61))<$P61,$O61-SUM($Q61:U61),IF(SUM($Q61:U61)<$O61,$P61,0))) -> 0 | W61: =IF($O61<=0,0,IF(($O61-SUM($Q61:V61))<$P61,$O61-SUM($Q61:V61),IF(SUM($Q61:V61)<$O61,$P61,0))) -> 0 | X61: =IF($O61<=0,0,IF(($O61-SUM($Q61:W61))<$P61,$O61-SUM($Q61:W61),IF(SUM($Q61:W61)<$O61,$P61,0))) -> 0 | Y61: =IF($O61<=0,0,IF(($O61-SUM($Q61:X61))<$P61,$O61-SUM($Q61:X61),IF(SUM($Q61:X61)<$O61,$P61,0))) -> 0 | Z61: 512640.71
B62: AERONAVEGACIÓN | C62: TERRENOS INSCRITOS | D62: TERRENOS | E62: 1950-12-01 | F62: 1950-12-01 | G62: 823.85 | H62: 0 | I62: 0 | J62: 0 | K62: 0 | L62: 0 | M62: 823.85 | N62: 1 | O62: 823.85 | P62: 0 | R62: =IF($O62<=0,0,IF(($O62-SUM($Q62:Q62))<$P62,$O62-SUM($Q62:Q62),IF(SUM($Q62:Q62)<$O62,$P62,0))) -> 0 | S62: =IF($O62<=0,0,IF(($O62-SUM($Q62:R62))<$P62,$O62-SUM($Q62:R62),IF(SUM($Q62:R62)<$O62,$P62,0))) -> 0 | T62: =IF($O62<=0,0,IF(($O62-SUM($Q62:S62))<$P62,$O62-SUM($Q62:S62),IF(SUM($Q62:S62)<$O62,$P62,0))) -> 0 | U62: =IF($O62<=0,0,IF(($O62-SUM($Q62:T62))<$P62,$O62-SUM($Q62:T62),IF(SUM($Q62:T62)<$O62,$P62,0))) -> 0 | V62: =IF($O62<=0,0,IF(($O62-SUM($Q62:U62))<$P62,$O62-SUM($Q62:U62),IF(SUM($Q62:U62)<$O62,$P62,0))) -> 0 | W62: =IF($O62<=0,0,IF(($O62-SUM($Q62:V62))<$P62,$O62-SUM($Q62:V62),IF(SUM($Q62:V62)<$O62,$P62,0))) -> 0 | X62: =IF($O62<=0,0,IF(($O62-SUM($Q62:W62))<$P62,$O62-SUM($Q62:W62),IF(SUM($Q62:W62)<$O62,$P62,0))) -> 0 | Y62: =IF($O62<=0,0,IF(($O62-SUM($Q62:X62))<$P62,$O62-SUM($Q62:X62),IF(SUM($Q62:X62)<$O62,$P62,0))) -> 0 | Z62: 823.85
B63: AERONAVEGACIÓN/AEROPORTUARIO | C63: TERRENOS INSCRITOS | D63: TERRENOS | E63: 1950-12-01 | F63: 1950-12-01 | G63: 7566459.57 | H63: 0 | I63: 0 | J63: 0 | K63: 0 | L63: 0 | M63: 7566459.57 | N63: 0.33 | O63: 2496931.658 | P63: 0 | R63: =IF($O63<=0,0,IF(($O63-SUM($Q63:Q63))<$P63,$O63-SUM($Q63:Q63),IF(SUM($Q63:Q63)<$O63,$P63,0))) -> 0 | S63: =IF($O63<=0,0,IF(($O63-SUM($Q63:R63))<$P63,$O63-SUM($Q63:R63),IF(SUM($Q63:R63)<$O63,$P63,0))) -> 0 | T63: =IF($O63<=0,0,IF(($O63-SUM($Q63:S63))<$P63,$O63-SUM($Q63:S63),IF(SUM($Q63:S63)<$O63,$P63,0))) -> 0 | U63: =IF($O63<=0,0,IF(($O63-SUM($Q63:T63))<$P63,$O63-SUM($Q63:T63),IF(SUM($Q63:T63)<$O63,$P63,0))) -> 0 | V63: =IF($O63<=0,0,IF(($O63-SUM($Q63:U63))<$P63,$O63-SUM($Q63:U63),IF(SUM($Q63:U63)<$O63,$P63,0))) -> 0 | W63: =IF($O63<=0,0,IF(($O63-SUM($Q63:V63))<$P63,$O63-SUM($Q63:V63),IF(SUM($Q63:V63)<$O63,$P63,0))) -> 0 | X63: =IF($O63<=0,0,IF(($O63-SUM($Q63:W63))<$P63,$O63-SUM($Q63:W63),IF(SUM($Q63:W63)<$O63,$P63,0))) -> 0 | Y63: =IF($O63<=0,0,IF(($O63-SUM($Q63:X63))<$P63,$O63-SUM($Q63:X63),IF(SUM($Q63:X63)<$O63,$P63,0))) -> 0 | Z63: 2496931.658
B64: AERONAVEGACIÓN/AEROPORTUARIO | C64: TERRENOS INSCRITOS | D64: TERRENOS | E64: 1950-12-01 | F64: 1950-12-01 | G64: 777.71 | H64: 0 | I64: 0 | J64: 0 | K64: 0 | L64: 0 | M64: 777.71 | N64: 0.33 | O64: 256.6443 | P64: 0 | R64: =IF($O64<=0,0,IF(($O64-SUM($Q64:Q64))<$P64,$O64-SUM($Q64:Q64),IF(SUM($Q64:Q64)<$O64,$P64,0))) -> 0 | S64: =IF($O64<=0,0,IF(($O64-SUM($Q64:R64))<$P64,$O64-SUM($Q64:R64),IF(SUM($Q64:R64)<$O64,$P64,0))) -> 0 | T64: =IF($O64<=0,0,IF(($O64-SUM($Q64:S64))<$P64,$O64-SUM($Q64:S64),IF(SUM($Q64:S64)<$O64,$P64,0))) -> 0 | U64: =IF($O64<=0,0,IF(($O64-SUM($Q64:T64))<$P64,$O64-SUM($Q64:T64),IF(SUM($Q64:T64)<$O64,$P64,0))) -> 0 | V64: =IF($O64<=0,0,IF(($O64-SUM($Q64:U64))<$P64,$O64-SUM($Q64:U64),IF(SUM($Q64:U64)<$O64,$P64,0))) -> 0 | W64: =IF($O64<=0,0,IF(($O64-SUM($Q64:V64))<$P64,$O64-SUM($Q64:V64),IF(SUM($Q64:V64)<$O64,$P64,0))) -> 0 | X64: =IF($O64<=0,0,IF(($O64-SUM($Q64:W64))<$P64,$O64-SUM($Q64:W64),IF(SUM($Q64:W64)<$O64,$P64,0))) -> 0 | Y64: =IF($O64<=0,0,IF(($O64-SUM($Q64:X64))<$P64,$O64-SUM($Q64:X64),IF(SUM($Q64:X64)<$O64,$P64,0))) -> 0 | Z64: 256.6443
B65: AERONAVEGACIÓN/AEROPORTUARIO | C65: TERRENOS INSCRITOS | D65: TERRENOS | E65: 1950-12-01 | F65: 1950-12-01 | G65: 1147758.12 | H65: 0 | I65: 0 | J65: 0 | K65: 0 | L65: 0 | M65: 1147758.12 | N65: 0.5 | O65: 573879.06 | P65: 0 | R65: =IF($O65<=0,0,IF(($O65-SUM($Q65:Q65))<$P65,$O65-SUM($Q65:Q65),IF(SUM($Q65:Q65)<$O65,$P65,0))) -> 0 | S65: =IF($O65<=0,0,IF(($O65-SUM($Q65:R65))<$P65,$O65-SUM($Q65:R65),IF(SUM($Q65:R65)<$O65,$P65,0))) -> 0 | T65: =IF($O65<=0,0,IF(($O65-SUM($Q65:S65))<$P65,$O65-SUM($Q65:S65),IF(SUM($Q65:S65)<$O65,$P65,0))) -> 0 | U65: =IF($O65<=0,0,IF(($O65-SUM($Q65:T65))<$P65,$O65-SUM($Q65:T65),IF(SUM($Q65:T65)<$O65,$P65,0))) -> 0 | V65: =IF($O65<=0,0,IF(($O65-SUM($Q65:U65))<$P65,$O65-SUM($Q65:U65),IF(SUM($Q65:U65)<$O65,$P65,0))) -> 0 | W65: =IF($O65<=0,0,IF(($O65-SUM($Q65:V65))<$P65,$O65-SUM($Q65:V65),IF(SUM($Q65:V65)<$O65,$P65,0))) -> 0 | X65: =IF($O65<=0,0,IF(($O65-SUM($Q65:W65))<$P65,$O65-SUM($Q65:W65),IF(SUM($Q65:W65)<$O65,$P65,0))) -> 0 | Y65: =IF($O65<=0,0,IF(($O65-SUM($Q65:X65))<$P65,$O65-SUM($Q65:X65),IF(SUM($Q65:X65)<$O65,$P65,0))) -> 0 | Z65: 573879.06
B66: AERONAVEGACIÓN/AEROPORTUARIO | C66: TERRENOS INSCRITOS | D66: TERRENOS | E66: 1950-12-01 | F66: 1950-12-01 | G66: 60408.32 | H66: 0 | I66: 0 | J66: 0 | K66: 0 | L66: 0 | M66: 60408.32 | N66: 0.5 | O66: 30204.16 | P66: 0 | R66: =IF($O66<=0,0,IF(($O66-SUM($Q66:Q66))<$P66,$O66-SUM($Q66:Q66),IF(SUM($Q66:Q66)<$O66,$P66,0))) -> 0 | S66: =IF($O66<=0,0,IF(($O66-SUM($Q66:R66))<$P66,$O66-SUM($Q66:R66),IF(SUM($Q66:R66)<$O66,$P66,0))) -> 0 | T66: =IF($O66<=0,0,IF(($O66-SUM($Q66:S66))<$P66,$O66-SUM($Q66:S66),IF(SUM($Q66:S66)<$O66,$P66,0))) -> 0 | U66: =IF($O66<=0,0,IF(($O66-SUM($Q66:T66))<$P66,$O66-SUM($Q66:T66),IF(SUM($Q66:T66)<$O66,$P66,0))) -> 0 | V66: =IF($O66<=0,0,IF(($O66-SUM($Q66:U66))<$P66,$O66-SUM($Q66:U66),IF(SUM($Q66:U66)<$O66,$P66,0))) -> 0 | W66: =IF($O66<=0,0,IF(($O66-SUM($Q66:V66))<$P66,$O66-SUM($Q66:V66),IF(SUM($Q66:V66)<$O66,$P66,0))) -> 0 | X66: =IF($O66<=0,0,IF(($O66-SUM($Q66:W66))<$P66,$O66-SUM($Q66:W66),IF(SUM($Q66:W66)<$O66,$P66,0))) -> 0 | Y66: =IF($O66<=0,0,IF(($O66-SUM($Q66:X66))<$P66,$O66-SUM($Q66:X66),IF(SUM($Q66:X66)<$O66,$P66,0))) -> 0 | Z66: 30204.16
B67: AERONAVEGACIÓN/AEROPORTUARIO | C67: TERRENOS INSCRITOS | D67: TERRENOS | E67: 1950-12-01 | F67: 1950-12-01 | G67: 260420.14 | H67: 0 | I67: 0 | J67: 0 | K67: 0 | L67: 0 | M67: 260420.14 | N67: 0.5 | O67: 130210.07 | P67: 0 | R67: =IF($O67<=0,0,IF(($O67-SUM($Q67:Q67))<$P67,$O67-SUM($Q67:Q67),IF(SUM($Q67:Q67)<$O67,$P67,0))) -> 0 | S67: =IF($O67<=0,0,IF(($O67-SUM($Q67:R67))<$P67,$O67-SUM($Q67:R67),IF(SUM($Q67:R67)<$O67,$P67,0))) -> 0 | T67: =IF($O67<=0,0,IF(($O67-SUM($Q67:S67))<$P67,$O67-SUM($Q67:S67),IF(SUM($Q67:S67)<$O67,$P67,0))) -> 0 | U67: =IF($O67<=0,0,IF(($O67-SUM($Q67:T67))<$P67,$O67-SUM($Q67:T67),IF(SUM($Q67:T67)<$O67,$P67,0))) -> 0 | V67: =IF($O67<=0,0,IF(($O67-SUM($Q67:U67))<$P67,$O67-SUM($Q67:U67),IF(SUM($Q67:U67)<$O67,$P67,0))) -> 0 | W67: =IF($O67<=0,0,IF(($O67-SUM($Q67:V67))<$P67,$O67-SUM($Q67:V67),IF(SUM($Q67:V67)<$O67,$P67,0))) -> 0 | X67: =IF($O67<=0,0,IF(($O67-SUM($Q67:W67))<$P67,$O67-SUM($Q67:W67),IF(SUM($Q67:W67)<$O67,$P67,0))) -> 0 | Y67: =IF($O67<=0,0,IF(($O67-SUM($Q67:X67))<$P67,$O67-SUM($Q67:X67),IF(SUM($Q67:X67)<$O67,$P67,0))) -> 0 | Z67: 130210.07
B68: AERONAVEGACIÓN/AEROPORTUARIO | C68: TERRENOS INSCRITOS | D68: TERRENOS | E68: 1950-12-01 | F68: 1950-12-01 | G68: 2630.51 | H68: 0 | I68: 0 | J68: 0 | K68: 0 | L68: 0 | M68: 2630.51 | N68: 0.5 | O68: 1315.255 | P68: 0 | R68: =IF($O68<=0,0,IF(($O68-SUM($Q68:Q68))<$P68,$O68-SUM($Q68:Q68),IF(SUM($Q68:Q68)<$O68,$P68,0))) -> 0 | S68: =IF($O68<=0,0,IF(($O68-SUM($Q68:R68))<$P68,$O68-SUM($Q68:R68),IF(SUM($Q68:R68)<$O68,$P68,0))) -> 0 | T68: =IF($O68<=0,0,IF(($O68-SUM($Q68:S68))<$P68,$O68-SUM($Q68:S68),IF(SUM($Q68:S68)<$O68,$P68,0))) -> 0 | U68: =IF($O68<=0,0,IF(($O68-SUM($Q68:T68))<$P68,$O68-SUM($Q68:T68),IF(SUM($Q68:T68)<$O68,$P68,0))) -> 0 | V68: =IF($O68<=0,0,IF(($O68-SUM($Q68:U68))<$P68,$O68-SUM($Q68:U68),IF(SUM($Q68:U68)<$O68,$P68,0))) -> 0 | W68: =IF($O68<=0,0,IF(($O68-SUM($Q68:V68))<$P68,$O68-SUM($Q68:V68),IF(SUM($Q68:V68)<$O68,$P68,0))) -> 0 | X68: =IF($O68<=0,0,IF(($O68-SUM($Q68:W68))<$P68,$O68-SUM($Q68:W68),IF(SUM($Q68:W68)<$O68,$P68,0))) -> 0 | Y68: =IF($O68<=0,0,IF(($O68-SUM($Q68:X68))<$P68,$O68-SUM($Q68:X68),IF(SUM($Q68:X68)<$O68,$P68,0))) -> 0 | Z68: 1315.255
B69: AERONAVEGACIÓN | C69: TERRENOS INSCRITOS | D69: TERRENOS | E69: 1950-12-01 | F69: 1950-12-01 | G69: 1661.87 | H69: 0 | I69: 0 | J69: 0 | K69: 0 | L69: 0 | M69: 1661.87 | N69: =+IF(B69=$B$7,100%,50%) -> 1 | O69: 1661.87 | P69: 0 | R69: =IF($O69<=0,0,IF(($O69-SUM($Q69:Q69))<$P69,$O69-SUM($Q69:Q69),IF(SUM($Q69:Q69)<$O69,$P69,0))) -> 0 | S69: =IF($O69<=0,0,IF(($O69-SUM($Q69:R69))<$P69,$O69-SUM($Q69:R69),IF(SUM($Q69:R69)<$O69,$P69,0))) -> 0 | T69: =IF($O69<=0,0,IF(($O69-SUM($Q69:S69))<$P69,$O69-SUM($Q69:S69),IF(SUM($Q69:S69)<$O69,$P69,0))) -> 0 | U69: =IF($O69<=0,0,IF(($O69-SUM($Q69:T69))<$P69,$O69-SUM($Q69:T69),IF(SUM($Q69:T69)<$O69,$P69,0))) -> 0 | V69: =IF($O69<=0,0,IF(($O69-SUM($Q69:U69))<$P69,$O69-SUM($Q69:U69),IF(SUM($Q69:U69)<$O69,$P69,0))) -> 0 | W69: =IF($O69<=0,0,IF(($O69-SUM($Q69:V69))<$P69,$O69-SUM($Q69:V69),IF(SUM($Q69:V69)<$O69,$P69,0))) -> 0 | X69: =IF($O69<=0,0,IF(($O69-SUM($Q69:W69))<$P69,$O69-SUM($Q69:W69),IF(SUM($Q69:W69)<$O69,$P69,0))) -> 0 | Y69: =IF($O69<=0,0,IF(($O69-SUM($Q69:X69))<$P69,$O69-SUM($Q69:X69),IF(SUM($Q69:X69)<$O69,$P69,0))) -> 0 | Z69: 1661.87
B70: AERONAVEGACIÓN | C70: TERRENOS INSCRITOS | D70: TERRENOS | E70: 1950-12-01 | F70: 1950-12-01 | G70: 93.46 | H70: 0 | I70: 0 | J70: 0 | K70: 0 | L70: 0 | M70: =+G70-H70-I70-J70-L70 -> 93.46 | N70: 1 | O70: =+M70*N70 -> 93.46 | P70: =+(H70+L70)*N70 -> 0 | R70: =IF($O70<=0,0,IF(($O70-SUM($Q70:Q70))<$P70,$O70-SUM($Q70:Q70),IF(SUM($Q70:Q70)<$O70,$P70,0))) -> 0 | S70: =IF($O70<=0,0,IF(($O70-SUM($Q70:R70))<$P70,$O70-SUM($Q70:R70),IF(SUM($Q70:R70)<$O70,$P70,0))) -> 0 | T70: =IF($O70<=0,0,IF(($O70-SUM($Q70:S70))<$P70,$O70-SUM($Q70:S70),IF(SUM($Q70:S70)<$O70,$P70,0))) -> 0 | U70: =IF($O70<=0,0,IF(($O70-SUM($Q70:T70))<$P70,$O70-SUM($Q70:T70),IF(SUM($Q70:T70)<$O70,$P70,0))) -> 0 | V70: =IF($O70<=0,0,IF(($O70-SUM($Q70:U70))<$P70,$O70-SUM($Q70:U70),IF(SUM($Q70:U70)<$O70,$P70,0))) -> 0 | W70: =IF($O70<=0,0,IF(($O70-SUM($Q70:V70))<$P70,$O70-SUM($Q70:V70),IF(SUM($Q70:V70)<$O70,$P70,0))) -> 0 | X70: =IF($O70<=0,0,IF(($O70-SUM($Q70:W70))<$P70,$O70-SUM($Q70:W70),IF(SUM($Q70:W70)<$O70,$P70,0))) -> 0 | Y70: =IF($O70<=0,0,IF(($O70-SUM($Q70:X70))<$P70,$O70-SUM($Q70:X70),IF(SUM($Q70:X70)<$O70,$P70,0))) -> 0 | Z70: =+O70-SUM(R70:T70) -> 93.46
B71: AERONAVEGACIÓN | C71: TERRENOS INSCRITOS | D71: TERRENOS | E71: 1950-12-01 | F71: 1950-12-01 | G71: 42329.63 | H71: 0 | I71: 0 | J71: 0 | K71: 0 | L71: 0 | M71: 42329.63 | N71: 1 | O71: 42329.63 | P71: 0 | R71: =IF($O71<=0,0,IF(($O71-SUM($Q71:Q71))<$P71,$O71-SUM($Q71:Q71),IF(SUM($Q71:Q71)<$O71,$P71,0))) -> 0 | S71: =IF($O71<=0,0,IF(($O71-SUM($Q71:R71))<$P71,$O71-SUM($Q71:R71),IF(SUM($Q71:R71)<$O71,$P71,0))) -> 0 | T71: =IF($O71<=0,0,IF(($O71-SUM($Q71:S71))<$P71,$O71-SUM($Q71:S71),IF(SUM($Q71:S71)<$O71,$P71,0))) -> 0 | U71: =IF($O71<=0,0,IF(($O71-SUM($Q71:T71))<$P71,$O71-SUM($Q71:T71),IF(SUM($Q71:T71)<$O71,$P71,0))) -> 0 | V71: =IF($O71<=0,0,IF(($O71-SUM($Q71:U71))<$P71,$O71-SUM($Q71:U71),IF(SUM($Q71:U71)<$O71,$P71,0))) -> 0 | W71: =IF($O71<=0,0,IF(($O71-SUM($Q71:V71))<$P71,$O71-SUM($Q71:V71),IF(SUM($Q71:V71)<$O71,$P71,0))) -> 0 | X71: =IF($O71<=0,0,IF(($O71-SUM($Q71:W71))<$P71,$O71-SUM($Q71:W71),IF(SUM($Q71:W71)<$O71,$P71,0))) -> 0 | Y71: =IF($O71<=0,0,IF(($O71-SUM($Q71:X71))<$P71,$O71-SUM($Q71:X71),IF(SUM($Q71:X71)<$O71,$P71,0))) -> 0 | Z71: 42329.63
B72: AERONAVEGACIÓN | C72: TERRENOS INSCRITOS | D72: TERRENOS | E72: 1950-12-01 | F72: 1950-12-01 | G72: 576.73 | H72: 0 | I72: 0 | J72: 0 | K72: 0 | L72: 0 | M72: 576.73 | N72: 1 | O72: 576.73 | P72: 0 | R72: =IF($O72<=0,0,IF(($O72-SUM($Q72:Q72))<$P72,$O72-SUM($Q72:Q72),IF(SUM($Q72:Q72)<$O72,$P72,0))) -> 0 | S72: =IF($O72<=0,0,IF(($O72-SUM($Q72:R72))<$P72,$O72-SUM($Q72:R72),IF(SUM($Q72:R72)<$O72,$P72,0))) -> 0 | T72: =IF($O72<=0,0,IF(($O72-SUM($Q72:S72))<$P72,$O72-SUM($Q72:S72),IF(SUM($Q72:S72)<$O72,$P72,0))) -> 0 | U72: =IF($O72<=0,0,IF(($O72-SUM($Q72:T72))<$P72,$O72-SUM($Q72:T72),IF(SUM($Q72:T72)<$O72,$P72,0))) -> 0 | V72: =IF($O72<=0,0,IF(($O72-SUM($Q72:U72))<$P72,$O72-SUM($Q72:U72),IF(SUM($Q72:U72)<$O72,$P72,0))) -> 0 | W72: =IF($O72<=0,0,IF(($O72-SUM($Q72:V72))<$P72,$O72-SUM($Q72:V72),IF(SUM($Q72:V72)<$O72,$P72,0))) -> 0 | X72: =IF($O72<=0,0,IF(($O72-SUM($Q72:W72))<$P72,$O72-SUM($Q72:W72),IF(SUM($Q72:W72)<$O72,$P72,0))) -> 0 | Y72: =IF($O72<=0,0,IF(($O72-SUM($Q72:X72))<$P72,$O72-SUM($Q72:X72),IF(SUM($Q72:X72)<$O72,$P72,0))) -> 0 | Z72: 576.73
B73: AERONAVEGACIÓN | C73: TERRENOS INSCRITOS | D73: TERRENOS | E73: 1950-12-01 | F73: 1950-12-01 | G73: 48427.44 | H73: 0 | I73: 0 | J73: 0 | K73: 0 | L73: 0 | M73: 48427.44 | N73: 1 | O73: 48427.44 | P73: 0 | R73: =IF($O73<=0,0,IF(($O73-SUM($Q73:Q73))<$P73,$O73-SUM($Q73:Q73),IF(SUM($Q73:Q73)<$O73,$P73,0))) -> 0 | S73: =IF($O73<=0,0,IF(($O73-SUM($Q73:R73))<$P73,$O73-SUM($Q73:R73),IF(SUM($Q73:R73)<$O73,$P73,0))) -> 0 | T73: =IF($O73<=0,0,IF(($O73-SUM($Q73:S73))<$P73,$O73-SUM($Q73:S73),IF(SUM($Q73:S73)<$O73,$P73,0))) -> 0 | U73: =IF($O73<=0,0,IF(($O73-SUM($Q73:T73))<$P73,$O73-SUM($Q73:T73),IF(SUM($Q73:T73)<$O73,$P73,0))) -> 0 | V73: =IF($O73<=0,0,IF(($O73-SUM($Q73:U73))<$P73,$O73-SUM($Q73:U73),IF(SUM($Q73:U73)<$O73,$P73,0))) -> 0 | W73: =IF($O73<=0,0,IF(($O73-SUM($Q73:V73))<$P73,$O73-SUM($Q73:V73),IF(SUM($Q73:V73)<$O73,$P73,0))) -> 0 | X73: =IF($O73<=0,0,IF(($O73-SUM($Q73:W73))<$P73,$O73-SUM($Q73:W73),IF(SUM($Q73:W73)<$O73,$P73,0))) -> 0 | Y73: =IF($O73<=0,0,IF(($O73-SUM($Q73:X73))<$P73,$O73-SUM($Q73:X73),IF(SUM($Q73:X73)<$O73,$P73,0))) -> 0 | Z73: 48427.44
B74: AERONAVEGACIÓN | C74: TERRENOS INSCRITOS | D74: TERRENOS | E74: 1950-12-01 | F74: 1950-12-01 | G74: 489.17 | H74: 0 | I74: 0 | J74: 0 | K74: 0 | L74: 0 | M74: 489.17 | N74: 1 | O74: 489.17 | P74: 0 | R74: =IF($O74<=0,0,IF(($O74-SUM($Q74:Q74))<$P74,$O74-SUM($Q74:Q74),IF(SUM($Q74:Q74)<$O74,$P74,0))) -> 0 | S74: =IF($O74<=0,0,IF(($O74-SUM($Q74:R74))<$P74,$O74-SUM($Q74:R74),IF(SUM($Q74:R74)<$O74,$P74,0))) -> 0 | T74: =IF($O74<=0,0,IF(($O74-SUM($Q74:S74))<$P74,$O74-SUM($Q74:S74),IF(SUM($Q74:S74)<$O74,$P74,0))) -> 0 | U74: =IF($O74<=0,0,IF(($O74-SUM($Q74:T74))<$P74,$O74-SUM($Q74:T74),IF(SUM($Q74:T74)<$O74,$P74,0))) -> 0 | V74: =IF($O74<=0,0,IF(($O74-SUM($Q74:U74))<$P74,$O74-SUM($Q74:U74),IF(SUM($Q74:U74)<$O74,$P74,0))) -> 0 | W74: =IF($O74<=0,0,IF(($O74-SUM($Q74:V74))<$P74,$O74-SUM($Q74:V74),IF(SUM($Q74:V74)<$O74,$P74,0))) -> 0 | X74: =IF($O74<=0,0,IF(($O74-SUM($Q74:W74))<$P74,$O74-SUM($Q74:W74),IF(SUM($Q74:W74)<$O74,$P74,0))) -> 0 | Y74: =IF($O74<=0,0,IF(($O74-SUM($Q74:X74))<$P74,$O74-SUM($Q74:X74),IF(SUM($Q74:X74)<$O74,$P74,0))) -> 0 | Z74: 489.17
B75: AERONAVEGACIÓN | C75: TERRENOS INSCRITOS | D75: TERRENOS | E75: 1950-12-01 | F75: 1950-12-01 | G75: 7596.65 | H75: 0 | I75: 0 | J75: 0 | K75: 0 | L75: 0 | M75: 7596.65 | N75: 1 | O75: 7596.65 | P75: 0 | R75: =IF($O75<=0,0,IF(($O75-SUM($Q75:Q75))<$P75,$O75-SUM($Q75:Q75),IF(SUM($Q75:Q75)<$O75,$P75,0))) -> 0 | S75: =IF($O75<=0,0,IF(($O75-SUM($Q75:R75))<$P75,$O75-SUM($Q75:R75),IF(SUM($Q75:R75)<$O75,$P75,0))) -> 0 | T75: =IF($O75<=0,0,IF(($O75-SUM($Q75:S75))<$P75,$O75-SUM($Q75:S75),IF(SUM($Q75:S75)<$O75,$P75,0))) -> 0 | U75: =IF($O75<=0,0,IF(($O75-SUM($Q75:T75))<$P75,$O75-SUM($Q75:T75),IF(SUM($Q75:T75)<$O75,$P75,0))) -> 0 | V75: =IF($O75<=0,0,IF(($O75-SUM($Q75:U75))<$P75,$O75-SUM($Q75:U75),IF(SUM($Q75:U75)<$O75,$P75,0))) -> 0 | W75: =IF($O75<=0,0,IF(($O75-SUM($Q75:V75))<$P75,$O75-SUM($Q75:V75),IF(SUM($Q75:V75)<$O75,$P75,0))) -> 0 | X75: =IF($O75<=0,0,IF(($O75-SUM($Q75:W75))<$P75,$O75-SUM($Q75:W75),IF(SUM($Q75:W75)<$O75,$P75,0))) -> 0 | Y75: =IF($O75<=0,0,IF(($O75-SUM($Q75:X75))<$P75,$O75-SUM($Q75:X75),IF(SUM($Q75:X75)<$O75,$P75,0))) -> 0 | Z75: 7596.65
B76: AERONAVEGACIÓN | C76: TERRENOS INSCRITOS | D76: TERRENOS | E76: 1950-12-01 | F76: 1950-12-01 | G76: 427.21 | H76: 0 | I76: 0 | J76: 0 | K76: 0 | L76: 0 | M76: 427.21 | N76: 1 | O76: 427.21 | P76: 0 | R76: =IF($O76<=0,0,IF(($O76-SUM($Q76:Q76))<$P76,$O76-SUM($Q76:Q76),IF(SUM($Q76:Q76)<$O76,$P76,0))) -> 0 | S76: =IF($O76<=0,0,IF(($O76-SUM($Q76:R76))<$P76,$O76-SUM($Q76:R76),IF(SUM($Q76:R76)<$O76,$P76,0))) -> 0 | T76: =IF($O76<=0,0,IF(($O76-SUM($Q76:S76))<$P76,$O76-SUM($Q76:S76),IF(SUM($Q76:S76)<$O76,$P76,0))) -> 0 | U76: =IF($O76<=0,0,IF(($O76-SUM($Q76:T76))<$P76,$O76-SUM($Q76:T76),IF(SUM($Q76:T76)<$O76,$P76,0))) -> 0 | V76: =IF($O76<=0,0,IF(($O76-SUM($Q76:U76))<$P76,$O76-SUM($Q76:U76),IF(SUM($Q76:U76)<$O76,$P76,0))) -> 0 | W76: =IF($O76<=0,0,IF(($O76-SUM($Q76:V76))<$P76,$O76-SUM($Q76:V76),IF(SUM($Q76:V76)<$O76,$P76,0))) -> 0 | X76: =IF($O76<=0,0,IF(($O76-SUM($Q76:W76))<$P76,$O76-SUM($Q76:W76),IF(SUM($Q76:W76)<$O76,$P76,0))) -> 0 | Y76: =IF($O76<=0,0,IF(($O76-SUM($Q76:X76))<$P76,$O76-SUM($Q76:X76),IF(SUM($Q76:X76)<$O76,$P76,0))) -> 0 | Z76: 427.21
B77: AERONAVEGACIÓN/AEROPORTUARIO | C77: TERRENOS INSCRITOS | D77: TERRENOS | E77: 1950-12-01 | F77: 1950-12-01 | G77: 986886.48 | H77: 0 | I77: 0 | J77: 0 | K77: 0 | L77: 0 | M77: 986886.48 | N77: 0.5 | O77: 493443.24 | P77: 0 | R77: =IF($O77<=0,0,IF(($O77-SUM($Q77:Q77))<$P77,$O77-SUM($Q77:Q77),IF(SUM($Q77:Q77)<$O77,$P77,0))) -> 0 | S77: =IF($O77<=0,0,IF(($O77-SUM($Q77:R77))<$P77,$O77-SUM($Q77:R77),IF(SUM($Q77:R77)<$O77,$P77,0))) -> 0 | T77: =IF($O77<=0,0,IF(($O77-SUM($Q77:S77))<$P77,$O77-SUM($Q77:S77),IF(SUM($Q77:S77)<$O77,$P77,0))) -> 0 | U77: =IF($O77<=0,0,IF(($O77-SUM($Q77:T77))<$P77,$O77-SUM($Q77:T77),IF(SUM($Q77:T77)<$O77,$P77,0))) -> 0 | V77: =IF($O77<=0,0,IF(($O77-SUM($Q77:U77))<$P77,$O77-SUM($Q77:U77),IF(SUM($Q77:U77)<$O77,$P77,0))) -> 0 | W77: =IF($O77<=0,0,IF(($O77-SUM($Q77:V77))<$P77,$O77-SUM($Q77:V77),IF(SUM($Q77:V77)<$O77,$P77,0))) -> 0 | X77: =IF($O77<=0,0,IF(($O77-SUM($Q77:W77))<$P77,$O77-SUM($Q77:W77),IF(SUM($Q77:W77)<$O77,$P77,0))) -> 0 | Y77: =IF($O77<=0,0,IF(($O77-SUM($Q77:X77))<$P77,$O77-SUM($Q77:X77),IF(SUM($Q77:X77)<$O77,$P77,0))) -> 0 | Z77: 493443.24
B78: AERONAVEGACIÓN/AEROPORTUARIO | C78: TERRENOS INSCRITOS | D78: TERRENOS | E78: 1950-12-01 | F78: 1950-12-01 | G78: 43612.41 | H78: 0 | I78: 0 | J78: 0 | K78: 0 | L78: 0 | M78: 43612.41 | N78: 0.5 | O78: 21806.205 | P78: 0 | R78: =IF($O78<=0,0,IF(($O78-SUM($Q78:Q78))<$P78,$O78-SUM($Q78:Q78),IF(SUM($Q78:Q78)<$O78,$P78,0))) -> 0 | S78: =IF($O78<=0,0,IF(($O78-SUM($Q78:R78))<$P78,$O78-SUM($Q78:R78),IF(SUM($Q78:R78)<$O78,$P78,0))) -> 0 | T78: =IF($O78<=0,0,IF(($O78-SUM($Q78:S78))<$P78,$O78-SUM($Q78:S78),IF(SUM($Q78:S78)<$O78,$P78,0))) -> 0 | U78: =IF($O78<=0,0,IF(($O78-SUM($Q78:T78))<$P78,$O78-SUM($Q78:T78),IF(SUM($Q78:T78)<$O78,$P78,0))) -> 0 | V78: =IF($O78<=0,0,IF(($O78-SUM($Q78:U78))<$P78,$O78-SUM($Q78:U78),IF(SUM($Q78:U78)<$O78,$P78,0))) -> 0 | W78: =IF($O78<=0,0,IF(($O78-SUM($Q78:V78))<$P78,$O78-SUM($Q78:V78),IF(SUM($Q78:V78)<$O78,$P78,0))) -> 0 | X78: =IF($O78<=0,0,IF(($O78-SUM($Q78:W78))<$P78,$O78-SUM($Q78:W78),IF(SUM($Q78:W78)<$O78,$P78,0))) -> 0 | Y78: =IF($O78<=0,0,IF(($O78-SUM($Q78:X78))<$P78,$O78-SUM($Q78:X78),IF(SUM($Q78:X78)<$O78,$P78,0))) -> 0 | Z78: 21806.205
B79: AERONAVEGACIÓN/AEROPORTUARIO | C79: EDIFICIOS EN AEROPUERTOS-Administrativas | D79: EDIFICACIONES Y CONSTRUCCIONES | E79: 1977-01-31 | F79: 1977-01-31 | G79: 104131.31 | H79: 4752.02 | I79: 0 | J79: 0 | K79: 0 | L79: 0 | M79: 99379.29 | N79: 0.5 | O79: 49689.645 | P79: 2376.01 | R79: =IF($O79<=0,0,IF(($O79-SUM($Q79:Q79))<$P79,$O79-SUM($Q79:Q79),IF(SUM($Q79:Q79)<$O79,$P79,0))) -> 2376.01 | S79: =IF($O79<=0,0,IF(($O79-SUM($Q79:R79))<$P79,$O79-SUM($Q79:R79),IF(SUM($Q79:R79)<$O79,$P79,0))) -> 2376.01 | T79: =IF($O79<=0,0,IF(($O79-SUM($Q79:S79))<$P79,$O79-SUM($Q79:S79),IF(SUM($Q79:S79)<$O79,$P79,0))) -> 2376.01 | U79: =IF($O79<=0,0,IF(($O79-SUM($Q79:T79))<$P79,$O79-SUM($Q79:T79),IF(SUM($Q79:T79)<$O79,$P79,0))) -> 2376.01 | V79: =IF($O79<=0,0,IF(($O79-SUM($Q79:U79))<$P79,$O79-SUM($Q79:U79),IF(SUM($Q79:U79)<$O79,$P79,0))) -> 2376.01 | W79: =IF($O79<=0,0,IF(($O79-SUM($Q79:V79))<$P79,$O79-SUM($Q79:V79),IF(SUM($Q79:V79)<$O79,$P79,0))) -> 2376.01 | X79: =IF($O79<=0,0,IF(($O79-SUM($Q79:W79))<$P79,$O79-SUM($Q79:W79),IF(SUM($Q79:W79)<$O79,$P79,0))) -> 2376.01 | Y79: =IF($O79<=0,0,IF(($O79-SUM($Q79:X79))<$P79,$O79-SUM($Q79:X79),IF(SUM($Q79:X79)<$O79,$P79,0))) -> 2376.01 | Z79: 42561.615
B80: AERONAVEGACIÓN | C80: EDIFICIOS EN AEROPUERTOS-Administrativas | D80: EDIFICACIONES Y CONSTRUCCIONES | E80: 1977-12-31 | F80: 1977-12-31 | G80: 104131.31 | H80: 4752.02 | I80: 0 | J80: 0 | K80: 0 | L80: 0 | M80: 99379.29 | N80: 1 | O80: 99379.29 | P80: 4752.02 | R80: =IF($O80<=0,0,IF(($O80-SUM($Q80:Q80))<$P80,$O80-SUM($Q80:Q80),IF(SUM($Q80:Q80)<$O80,$P80,0))) -> 4752.02 | S80: =IF($O80<=0,0,IF(($O80-SUM($Q80:R80))<$P80,$O80-SUM($Q80:R80),IF(SUM($Q80:R80)<$O80,$P80,0))) -> 4752.02 | T80: =IF($O80<=0,0,IF(($O80-SUM($Q80:S80))<$P80,$O80-SUM($Q80:S80),IF(SUM($Q80:S80)<$O80,$P80,0))) -> 4752.02 | U80: =IF($O80<=0,0,IF(($O80-SUM($Q80:T80))<$P80,$O80-SUM($Q80:T80),IF(SUM($Q80:T80)<$O80,$P80,0))) -> 4752.02 | V80: =IF($O80<=0,0,IF(($O80-SUM($Q80:U80))<$P80,$O80-SUM($Q80:U80),IF(SUM($Q80:U80)<$O80,$P80,0))) -> 4752.02 | W80: =IF($O80<=0,0,IF(($O80-SUM($Q80:V80))<$P80,$O80-SUM($Q80:V80),IF(SUM($Q80:V80)<$O80,$P80,0))) -> 4752.02 | X80: =IF($O80<=0,0,IF(($O80-SUM($Q80:W80))<$P80,$O80-SUM($Q80:W80),IF(SUM($Q80:W80)<$O80,$P80,0))) -> 4752.02 | Y80: =IF($O80<=0,0,IF(($O80-SUM($Q80:X80))<$P80,$O80-SUM($Q80:X80),IF(SUM($Q80:X80)<$O80,$P80,0))) -> 4752.02 | Z80: 85123.23
B81: AERONAVEGACIÓN/AEROPORTUARIO | C81: EDIFICIOS EN AEROPUERTOS-Administrativas | D81: EDIFICACIONES Y CONSTRUCCIONES | E81: 1977-01-31 | F81: 1977-01-31 | G81: 328589.89 | H81: 14995.17 | I81: 0 | J81: 0 | K81: 0 | L81: 0 | M81: 313594.72 | N81: 0.5 | O81: 156797.36 | P81: 7497.585 | R81: =IF($O81<=0,0,IF(($O81-SUM($Q81:Q81))<$P81,$O81-SUM($Q81:Q81),IF(SUM($Q81:Q81)<$O81,$P81,0))) -> 7497.585 | S81: =IF($O81<=0,0,IF(($O81-SUM($Q81:R81))<$P81,$O81-SUM($Q81:R81),IF(SUM($Q81:R81)<$O81,$P81,0))) -> 7497.585 | T81: =IF($O81<=0,0,IF(($O81-SUM($Q81:S81))<$P81,$O81-SUM($Q81:S81),IF(SUM($Q81:S81)<$O81,$P81,0))) -> 7497.585 | U81: =IF($O81<=0,0,IF(($O81-SUM($Q81:T81))<$P81,$O81-SUM($Q81:T81),IF(SUM($Q81:T81)<$O81,$P81,0))) -> 7497.585 | V81: =IF($O81<=0,0,IF(($O81-SUM($Q81:U81))<$P81,$O81-SUM($Q81:U81),IF(SUM($Q81:U81)<$O81,$P81,0))) -> 7497.585 | W81: =IF($O81<=0,0,IF(($O81-SUM($Q81:V81))<$P81,$O81-SUM($Q81:V81),IF(SUM($Q81:V81)<$O81,$P81,0))) -> 7497.585 | X81: =IF($O81<=0,0,IF(($O81-SUM($Q81:W81))<$P81,$O81-SUM($Q81:W81),IF(SUM($Q81:W81)<$O81,$P81,0))) -> 7497.585 | Y81: =IF($O81<=0,0,IF(($O81-SUM($Q81:X81))<$P81,$O81-SUM($Q81:X81),IF(SUM($Q81:X81)<$O81,$P81,0))) -> 7497.585 | Z81: 134304.605
B82: AERONAVEGACIÓN | C82: EDIFICIOS EN AEROPUERTOS-Administrativas | D82: EDIFICACIONES Y CONSTRUCCIONES | E82: 1979-12-31 | F82: 1979-12-31 | G82: 19962.72 | H82: 1180.39 | I82: 0 | J82: 0 | K82: 0 | L82: 0 | M82: 18782.33 | N82: 1 | O82: 18782.33 | P82: 1180.39 | R82: =IF($O82<=0,0,IF(($O82-SUM($Q82:Q82))<$P82,$O82-SUM($Q82:Q82),IF(SUM($Q82:Q82)<$O82,$P82,0))) -> 1180.39 | S82: =IF($O82<=0,0,IF(($O82-SUM($Q82:R82))<$P82,$O82-SUM($Q82:R82),IF(SUM($Q82:R82)<$O82,$P82,0))) -> 1180.39 | T82: =IF($O82<=0,0,IF(($O82-SUM($Q82:S82))<$P82,$O82-SUM($Q82:S82),IF(SUM($Q82:S82)<$O82,$P82,0))) -> 1180.39 | U82: =IF($O82<=0,0,IF(($O82-SUM($Q82:T82))<$P82,$O82-SUM($Q82:T82),IF(SUM($Q82:T82)<$O82,$P82,0))) -> 1180.39 | V82: =IF($O82<=0,0,IF(($O82-SUM($Q82:U82))<$P82,$O82-SUM($Q82:U82),IF(SUM($Q82:U82)<$O82,$P82,0))) -> 1180.39 | W82: =IF($O82<=0,0,IF(($O82-SUM($Q82:V82))<$P82,$O82-SUM($Q82:V82),IF(SUM($Q82:V82)<$O82,$P82,0))) -> 1180.39 | X82: =IF($O82<=0,0,IF(($O82-SUM($Q82:W82))<$P82,$O82-SUM($Q82:W82),IF(SUM($Q82:W82)<$O82,$P82,0))) -> 1180.39 | Y82: =IF($O82<=0,0,IF(($O82-SUM($Q82:X82))<$P82,$O82-SUM($Q82:X82),IF(SUM($Q82:X82)<$O82,$P82,0))) -> 1180.39 | Z82: 15241.16
B83: AERONAVEGACIÓN/AEROPORTUARIO | C83: EDIFICIOS EN AEROPUERTOS-Administrativas | D83: EDIFICACIONES Y CONSTRUCCIONES | E83: 1977-01-31 | F83: 1977-01-31 | G83: 104131.31 | H83: 4752.02 | I83: 0 | J83: 0 | K83: 0 | L83: 0 | M83: 99379.29 | N83: 0.5 | O83: 49689.645 | P83: 2376.01 | R83: =IF($O83<=0,0,IF(($O83-SUM($Q83:Q83))<$P83,$O83-SUM($Q83:Q83),IF(SUM($Q83:Q83)<$O83,$P83,0))) -> 2376.01 | S83: =IF($O83<=0,0,IF(($O83-SUM($Q83:R83))<$P83,$O83-SUM($Q83:R83),IF(SUM($Q83:R83)<$O83,$P83,0))) -> 2376.01 | T83: =IF($O83<=0,0,IF(($O83-SUM($Q83:S83))<$P83,$O83-SUM($Q83:S83),IF(SUM($Q83:S83)<$O83,$P83,0))) -> 2376.01 | U83: =IF($O83<=0,0,IF(($O83-SUM($Q83:T83))<$P83,$O83-SUM($Q83:T83),IF(SUM($Q83:T83)<$O83,$P83,0))) -> 2376.01 | V83: =IF($O83<=0,0,IF(($O83-SUM($Q83:U83))<$P83,$O83-SUM($Q83:U83),IF(SUM($Q83:U83)<$O83,$P83,0))) -> 2376.01 | W83: =IF($O83<=0,0,IF(($O83-SUM($Q83:V83))<$P83,$O83-SUM($Q83:V83),IF(SUM($Q83:V83)<$O83,$P83,0))) -> 2376.01 | X83: =IF($O83<=0,0,IF(($O83-SUM($Q83:W83))<$P83,$O83-SUM($Q83:W83),IF(SUM($Q83:W83)<$O83,$P83,0))) -> 2376.01 | Y83: =IF($O83<=0,0,IF(($O83-SUM($Q83:X83))<$P83,$O83-SUM($Q83:X83),IF(SUM($Q83:X83)<$O83,$P83,0))) -> 2376.01 | Z83: 42561.615
B84: AERONAVEGACIÓN/AEROPORTUARIO | C84: EDIFICIOS EN AEROPUERTOS-Administrativas | D84: EDIFICACIONES Y CONSTRUCCIONES | E84: 1977-01-31 | F84: 1977-01-31 | G84: 104131.31 | H84: 4752.02 | I84: 0 | J84: 0 | K84: 0 | L84: 0 | M84: 99379.29 | N84: 0.5 | O84: 49689.645 | P84: 2376.01 | R84: =IF($O84<=0,0,IF(($O84-SUM($Q84:Q84))<$P84,$O84-SUM($Q84:Q84),IF(SUM($Q84:Q84)<$O84,$P84,0))) -> 2376.01 | S84: =IF($O84<=0,0,IF(($O84-SUM($Q84:R84))<$P84,$O84-SUM($Q84:R84),IF(SUM($Q84:R84)<$O84,$P84,0))) -> 2376.01 | T84: =IF($O84<=0,0,IF(($O84-SUM($Q84:S84))<$P84,$O84-SUM($Q84:S84),IF(SUM($Q84:S84)<$O84,$P84,0))) -> 2376.01 | U84: =IF($O84<=0,0,IF(($O84-SUM($Q84:T84))<$P84,$O84-SUM($Q84:T84),IF(SUM($Q84:T84)<$O84,$P84,0))) -> 2376.01 | V84: =IF($O84<=0,0,IF(($O84-SUM($Q84:U84))<$P84,$O84-SUM($Q84:U84),IF(SUM($Q84:U84)<$O84,$P84,0))) -> 2376.01 | W84: =IF($O84<=0,0,IF(($O84-SUM($Q84:V84))<$P84,$O84-SUM($Q84:V84),IF(SUM($Q84:V84)<$O84,$P84,0))) -> 2376.01 | X84: =IF($O84<=0,0,IF(($O84-SUM($Q84:W84))<$P84,$O84-SUM($Q84:W84),IF(SUM($Q84:W84)<$O84,$P84,0))) -> 2376.01 | Y84: =IF($O84<=0,0,IF(($O84-SUM($Q84:X84))<$P84,$O84-SUM($Q84:X84),IF(SUM($Q84:X84)<$O84,$P84,0))) -> 2376.01 | Z84: 42561.615
B85: AERONAVEGACIÓN | C85: EDIFICIOS EN AEROPUERTOS-Administrativas | D85: EDIFICACIONES Y CONSTRUCCIONES | E85: 1977-01-31 | F85: 1977-01-31 | G85: 0 | H85: 0 | I85: 0 | J85: 0 | K85: 0 | L85: 0 | M85: 0 | N85: 1 | O85: 0 | P85: 0 | R85: =IF($O85<=0,0,IF(($O85-SUM($Q85:Q85))<$P85,$O85-SUM($Q85:Q85),IF(SUM($Q85:Q85)<$O85,$P85,0))) -> 0 | S85: =IF($O85<=0,0,IF(($O85-SUM($Q85:R85))<$P85,$O85-SUM($Q85:R85),IF(SUM($Q85:R85)<$O85,$P85,0))) -> 0 | T85: =IF($O85<=0,0,IF(($O85-SUM($Q85:S85))<$P85,$O85-SUM($Q85:S85),IF(SUM($Q85:S85)<$O85,$P85,0))) -> 0 | U85: =IF($O85<=0,0,IF(($O85-SUM($Q85:T85))<$P85,$O85-SUM($Q85:T85),IF(SUM($Q85:T85)<$O85,$P85,0))) -> 0 | V85: =IF($O85<=0,0,IF(($O85-SUM($Q85:U85))<$P85,$O85-SUM($Q85:U85),IF(SUM($Q85:U85)<$O85,$P85,0))) -> 0 | W85: =IF($O85<=0,0,IF(($O85-SUM($Q85:V85))<$P85,$O85-SUM($Q85:V85),IF(SUM($Q85:V85)<$O85,$P85,0))) -> 0 | X85: =IF($O85<=0,0,IF(($O85-SUM($Q85:W85))<$P85,$O85-SUM($Q85:W85),IF(SUM($Q85:W85)<$O85,$P85,0))) -> 0 | Y85: =IF($O85<=0,0,IF(($O85-SUM($Q85:X85))<$P85,$O85-SUM($Q85:X85),IF(SUM($Q85:X85)<$O85,$P85,0))) -> 0 | Z85: 0
B86: AERONAVEGACIÓN | C86: PISTAS DE ATERRIZAJE Y CALLES DE RODAJE | D86: EDIFICACIONES Y CONSTRUCCIONES | E86: 1975-12-31 | F86: 1975-12-31 | G86: 189.95 | H86: 21.33 | I86: 0 | J86: 0 | K86: 0 | L86: 0 | M86: 168.62 | N86: 1 | O86: 168.62 | P86: 21.33 | R86: =IF($O86<=0,0,IF(($O86-SUM($Q86:Q86))<$P86,$O86-SUM($Q86:Q86),IF(SUM($Q86:Q86)<$O86,$P86,0))) -> 21.33 | S86: =IF($O86<=0,0,IF(($O86-SUM($Q86:R86))<$P86,$O86-SUM($Q86:R86),IF(SUM($Q86:R86)<$O86,$P86,0))) -> 21.33 | T86: =IF($O86<=0,0,IF(($O86-SUM($Q86:S86))<$P86,$O86-SUM($Q86:S86),IF(SUM($Q86:S86)<$O86,$P86,0))) -> 21.33 | U86: =IF($O86<=0,0,IF(($O86-SUM($Q86:T86))<$P86,$O86-SUM($Q86:T86),IF(SUM($Q86:T86)<$O86,$P86,0))) -> 21.33 | V86: =IF($O86<=0,0,IF(($O86-SUM($Q86:U86))<$P86,$O86-SUM($Q86:U86),IF(SUM($Q86:U86)<$O86,$P86,0))) -> 21.33 | W86: =IF($O86<=0,0,IF(($O86-SUM($Q86:V86))<$P86,$O86-SUM($Q86:V86),IF(SUM($Q86:V86)<$O86,$P86,0))) -> 21.33 | X86: =IF($O86<=0,0,IF(($O86-SUM($Q86:W86))<$P86,$O86-SUM($Q86:W86),IF(SUM($Q86:W86)<$O86,$P86,0))) -> 21.33 | Y86: =IF($O86<=0,0,IF(($O86-SUM($Q86:X86))<$P86,$O86-SUM($Q86:X86),IF(SUM($Q86:X86)<$O86,$P86,0))) -> 19.31 | Z86: 104.63
B87: AERONAVEGACIÓN/AEROPORTUARIO | C87: EDIFICIOS EN AEROPUERTOS-Administrativas | D87: EDIFICACIONES Y CONSTRUCCIONES | E87: 1981-12-31 | F87: 1981-12-31 | G87: 41104.46 | H87: 1875.8 | I87: 0 | J87: 0 | K87: 0 | L87: 0 | M87: 39228.66 | N87: 0.5 | O87: 19614.33 | P87: 937.9 | R87: =IF($O87<=0,0,IF(($O87-SUM($Q87:Q87))<$P87,$O87-SUM($Q87:Q87),IF(SUM($Q87:Q87)<$O87,$P87,0))) -> 937.9 | S87: =IF($O87<=0,0,IF(($O87-SUM($Q87:R87))<$P87,$O87-SUM($Q87:R87),IF(SUM($Q87:R87)<$O87,$P87,0))) -> 937.9 | T87: =IF($O87<=0,0,IF(($O87-SUM($Q87:S87))<$P87,$O87-SUM($Q87:S87),IF(SUM($Q87:S87)<$O87,$P87,0))) -> 937.9 | U87: =IF($O87<=0,0,IF(($O87-SUM($Q87:T87))<$P87,$O87-SUM($Q87:T87),IF(SUM($Q87:T87)<$O87,$P87,0))) -> 937.9 | V87: =IF($O87<=0,0,IF(($O87-SUM($Q87:U87))<$P87,$O87-SUM($Q87:U87),IF(SUM($Q87:U87)<$O87,$P87,0))) -> 937.9 | W87: =IF($O87<=0,0,IF(($O87-SUM($Q87:V87))<$P87,$O87-SUM($Q87:V87),IF(SUM($Q87:V87)<$O87,$P87,0))) -> 937.9 | X87: =IF($O87<=0,0,IF(($O87-SUM($Q87:W87))<$P87,$O87-SUM($Q87:W87),IF(SUM($Q87:W87)<$O87,$P87,0))) -> 937.9 | Y87: =IF($O87<=0,0,IF(($O87-SUM($Q87:X87))<$P87,$O87-SUM($Q87:X87),IF(SUM($Q87:X87)<$O87,$P87,0))) -> 937.9 | Z87: 16800.63
B88: AERONAVEGACIÓN/AEROPORTUARIO | C88: EDIFICIOS EN AEROPUERTOS-Administrativas | D88: EDIFICACIONES Y CONSTRUCCIONES | E88: 1979-12-31 | F88: 1979-12-31 | G88: 104131.31 | H88: 4752.02 | I88: 0 | J88: 0 | K88: 0 | L88: 0 | M88: 99379.29 | N88: 0.5 | O88: 49689.645 | P88: 2376.01 | R88: =IF($O88<=0,0,IF(($O88-SUM($Q88:Q88))<$P88,$O88-SUM($Q88:Q88),IF(SUM($Q88:Q88)<$O88,$P88,0))) -> 2376.01 | S88: =IF($O88<=0,0,IF(($O88-SUM($Q88:R88))<$P88,$O88-SUM($Q88:R88),IF(SUM($Q88:R88)<$O88,$P88,0))) -> 2376.01 | T88: =IF($O88<=0,0,IF(($O88-SUM($Q88:S88))<$P88,$O88-SUM($Q88:S88),IF(SUM($Q88:S88)<$O88,$P88,0))) -> 2376.01 | U88: =IF($O88<=0,0,IF(($O88-SUM($Q88:T88))<$P88,$O88-SUM($Q88:T88),IF(SUM($Q88:T88)<$O88,$P88,0))) -> 2376.01 | V88: =IF($O88<=0,0,IF(($O88-SUM($Q88:U88))<$P88,$O88-SUM($Q88:U88),IF(SUM($Q88:U88)<$O88,$P88,0))) -> 2376.01 | W88: =IF($O88<=0,0,IF(($O88-SUM($Q88:V88))<$P88,$O88-SUM($Q88:V88),IF(SUM($Q88:V88)<$O88,$P88,0))) -> 2376.01 | X88: =IF($O88<=0,0,IF(($O88-SUM($Q88:W88))<$P88,$O88-SUM($Q88:W88),IF(SUM($Q88:W88)<$O88,$P88,0))) -> 2376.01 | Y88: =IF($O88<=0,0,IF(($O88-SUM($Q88:X88))<$P88,$O88-SUM($Q88:X88),IF(SUM($Q88:X88)<$O88,$P88,0))) -> 2376.01 | Z88: 42561.615
B89: AERONAVEGACIÓN | C89: EQUIPOS DE BALIZAJE E ILUMINACION DE PISTA(333610, 333910 Y | D89: MAQUINARIA Y EQUIPO | E89: 1991-12-31 | F89: 1991-12-31 | G89: 0 | H89: 0 | I89: 0 | J89: 0 | K89: 0 | L89: 0 | M89: 0 | N89: 1 | O89: 0 | P89: 0 | R89: =IF($O89<=0,0,IF(($O89-SUM($Q89:Q89))<$P89,$O89-SUM($Q89:Q89),IF(SUM($Q89:Q89)<$O89,$P89,0))) -> 0 | S89: =IF($O89<=0,0,IF(($O89-SUM($Q89:R89))<$P89,$O89-SUM($Q89:R89),IF(SUM($Q89:R89)<$O89,$P89,0))) -> 0 | T89: =IF($O89<=0,0,IF(($O89-SUM($Q89:S89))<$P89,$O89-SUM($Q89:S89),IF(SUM($Q89:S89)<$O89,$P89,0))) -> 0 | U89: =IF($O89<=0,0,IF(($O89-SUM($Q89:T89))<$P89,$O89-SUM($Q89:T89),IF(SUM($Q89:T89)<$O89,$P89,0))) -> 0 | V89: =IF($O89<=0,0,IF(($O89-SUM($Q89:U89))<$P89,$O89-SUM($Q89:U89),IF(SUM($Q89:U89)<$O89,$P89,0))) -> 0 | W89: =IF($O89<=0,0,IF(($O89-SUM($Q89:V89))<$P89,$O89-SUM($Q89:V89),IF(SUM($Q89:V89)<$O89,$P89,0))) -> 0 | X89: =IF($O89<=0,0,IF(($O89-SUM($Q89:W89))<$P89,$O89-SUM($Q89:W89),IF(SUM($Q89:W89)<$O89,$P89,0))) -> 0 | Y89: =IF($O89<=0,0,IF(($O89-SUM($Q89:X89))<$P89,$O89-SUM($Q89:X89),IF(SUM($Q89:X89)<$O89,$P89,0))) -> 0 | Z89: 0
B90: AERONAVEGACIÓN/AEROPORTUARIO | C90: EDIFICIOS EN AEROPUERTOS-Administrativas | D90: EDIFICACIONES Y CONSTRUCCIONES | E90: 1979-12-31 | F90: 1979-12-31 | G90: 104131.31 | H90: 4752.02 | I90: 0 | J90: 0 | K90: 0 | L90: 0 | M90: 99379.29 | N90: 0.5 | O90: 49689.645 | P90: 2376.01 | R90: =IF($O90<=0,0,IF(($O90-SUM($Q90:Q90))<$P90,$O90-SUM($Q90:Q90),IF(SUM($Q90:Q90)<$O90,$P90,0))) -> 2376.01 | S90: =IF($O90<=0,0,IF(($O90-SUM($Q90:R90))<$P90,$O90-SUM($Q90:R90),IF(SUM($Q90:R90)<$O90,$P90,0))) -> 2376.01 | T90: =IF($O90<=0,0,IF(($O90-SUM($Q90:S90))<$P90,$O90-SUM($Q90:S90),IF(SUM($Q90:S90)<$O90,$P90,0))) -> 2376.01 | U90: =IF($O90<=0,0,IF(($O90-SUM($Q90:T90))<$P90,$O90-SUM($Q90:T90),IF(SUM($Q90:T90)<$O90,$P90,0))) -> 2376.01 | V90: =IF($O90<=0,0,IF(($O90-SUM($Q90:U90))<$P90,$O90-SUM($Q90:U90),IF(SUM($Q90:U90)<$O90,$P90,0))) -> 2376.01 | W90: =IF($O90<=0,0,IF(($O90-SUM($Q90:V90))<$P90,$O90-SUM($Q90:V90),IF(SUM($Q90:V90)<$O90,$P90,0))) -> 2376.01 | X90: =IF($O90<=0,0,IF(($O90-SUM($Q90:W90))<$P90,$O90-SUM($Q90:W90),IF(SUM($Q90:W90)<$O90,$P90,0))) -> 2376.01 | Y90: =IF($O90<=0,0,IF(($O90-SUM($Q90:X90))<$P90,$O90-SUM($Q90:X90),IF(SUM($Q90:X90)<$O90,$P90,0))) -> 2376.01 | Z90: 42561.615
B91: AERONAVEGACIÓN/AEROPORTUARIO | C91: Instalaciones | D91: EDIFICACIONES Y CONSTRUCCIONES | E91: 2000-03-02 | F91: 2000-03-02 | G91: 6194.71 | H91: 695.47 | I91: 0 | J91: 0 | K91: 0 | L91: 0 | M91: 5499.24 | N91: 0.5 | O91: 2749.62 | P91: 347.735 | R91: =IF($O91<=0,0,IF(($O91-SUM($Q91:Q91))<$P91,$O91-SUM($Q91:Q91),IF(SUM($Q91:Q91)<$O91,$P91,0))) -> 347.735 | S91: =IF($O91<=0,0,IF(($O91-SUM($Q91:R91))<$P91,$O91-SUM($Q91:R91),IF(SUM($Q91:R91)<$O91,$P91,0))) -> 347.735 | T91: =IF($O91<=0,0,IF(($O91-SUM($Q91:S91))<$P91,$O91-SUM($Q91:S91),IF(SUM($Q91:S91)<$O91,$P91,0))) -> 347.735 | U91: =IF($O91<=0,0,IF(($O91-SUM($Q91:T91))<$P91,$O91-SUM($Q91:T91),IF(SUM($Q91:T91)<$O91,$P91,0))) -> 347.735 | V91: =IF($O91<=0,0,IF(($O91-SUM($Q91:U91))<$P91,$O91-SUM($Q91:U91),IF(SUM($Q91:U91)<$O91,$P91,0))) -> 347.735 | W91: =IF($O91<=0,0,IF(($O91-SUM($Q91:V91))<$P91,$O91-SUM($Q91:V91),IF(SUM($Q91:V91)<$O91,$P91,0))) -> 347.735 | X91: =IF($O91<=0,0,IF(($O91-SUM($Q91:W91))<$P91,$O91-SUM($Q91:W91),IF(SUM($Q91:W91)<$O91,$P91,0))) -> 347.735 | Y91: =IF($O91<=0,0,IF(($O91-SUM($Q91:X91))<$P91,$O91-SUM($Q91:X91),IF(SUM($Q91:X91)<$O91,$P91,0))) -> 315.475 | Z91: 1706.415
B92: AERONAVEGACIÓN/AEROPORTUARIO | C92: EDIFICIOS EN AEROPUERTOS-Administrativas | D92: EDIFICACIONES Y CONSTRUCCIONES | E92: 1995-08-15 | F92: 1995-08-15 | G92: 4886.65 | H92: 223 | I92: 0 | J92: 0 | K92: 0 | L92: 0 | M92: 4663.65 | N92: 0.5 | O92: 2331.825 | P92: 111.5 | R92: =IF($O92<=0,0,IF(($O92-SUM($Q92:Q92))<$P92,$O92-SUM($Q92:Q92),IF(SUM($Q92:Q92)<$O92,$P92,0))) -> 111.5 | S92: =IF($O92<=0,0,IF(($O92-SUM($Q92:R92))<$P92,$O92-SUM($Q92:R92),IF(SUM($Q92:R92)<$O92,$P92,0))) -> 111.5 | T92: =IF($O92<=0,0,IF(($O92-SUM($Q92:S92))<$P92,$O92-SUM($Q92:S92),IF(SUM($Q92:S92)<$O92,$P92,0))) -> 111.5 | U92: =IF($O92<=0,0,IF(($O92-SUM($Q92:T92))<$P92,$O92-SUM($Q92:T92),IF(SUM($Q92:T92)<$O92,$P92,0))) -> 111.5 | V92: =IF($O92<=0,0,IF(($O92-SUM($Q92:U92))<$P92,$O92-SUM($Q92:U92),IF(SUM($Q92:U92)<$O92,$P92,0))) -> 111.5 | W92: =IF($O92<=0,0,IF(($O92-SUM($Q92:V92))<$P92,$O92-SUM($Q92:V92),IF(SUM($Q92:V92)<$O92,$P92,0))) -> 111.5 | X92: =IF($O92<=0,0,IF(($O92-SUM($Q92:W92))<$P92,$O92-SUM($Q92:W92),IF(SUM($Q92:W92)<$O92,$P92,0))) -> 111.5 | Y92: =IF($O92<=0,0,IF(($O92-SUM($Q92:X92))<$P92,$O92-SUM($Q92:X92),IF(SUM($Q92:X92)<$O92,$P92,0))) -> 111.5 | Z92: 1997.325
B93: AERONAVEGACIÓN/AEROPORTUARIO | C93: Instalaciones | D93: EDIFICACIONES Y CONSTRUCCIONES | E93: 1995-08-28 | F93: 1995-08-28 | G93: 32047.74 | H93: 1462.5 | I93: 0 | J93: 0 | K93: 0 | L93: 0 | M93: 30585.24 | N93: 0.5 | O93: 15292.62 | P93: 731.25 | R93: =IF($O93<=0,0,IF(($O93-SUM($Q93:Q93))<$P93,$O93-SUM($Q93:Q93),IF(SUM($Q93:Q93)<$O93,$P93,0))) -> 731.25 | S93: =IF($O93<=0,0,IF(($O93-SUM($Q93:R93))<$P93,$O93-SUM($Q93:R93),IF(SUM($Q93:R93)<$O93,$P93,0))) -> 731.25 | T93: =IF($O93<=0,0,IF(($O93-SUM($Q93:S93))<$P93,$O93-SUM($Q93:S93),IF(SUM($Q93:S93)<$O93,$P93,0))) -> 731.25 | U93: =IF($O93<=0,0,IF(($O93-SUM($Q93:T93))<$P93,$O93-SUM($Q93:T93),IF(SUM($Q93:T93)<$O93,$P93,0))) -> 731.25 | V93: =IF($O93<=0,0,IF(($O93-SUM($Q93:U93))<$P93,$O93-SUM($Q93:U93),IF(SUM($Q93:U93)<$O93,$P93,0))) -> 731.25 | W93: =IF($O93<=0,0,IF(($O93-SUM($Q93:V93))<$P93,$O93-SUM($Q93:V93),IF(SUM($Q93:V93)<$O93,$P93,0))) -> 731.25 | X93: =IF($O93<=0,0,IF(($O93-SUM($Q93:W93))<$P93,$O93-SUM($Q93:W93),IF(SUM($Q93:W93)<$O93,$P93,0))) -> 731.25 | Y93: =IF($O93<=0,0,IF(($O93-SUM($Q93:X93))<$P93,$O93-SUM($Q93:X93),IF(SUM($Q93:X93)<$O93,$P93,0))) -> 731.25 | Z93: 13098.87
B94: AERONAVEGACIÓN/AEROPORTUARIO | C94: EDIFICIOS EN AEROPUERTOS-Administrativas | D94: EDIFICACIONES Y CONSTRUCCIONES | E94: 1995-09-05 | F94: 1995-09-05 | G94: 28163.46 | H94: 1285.24 | I94: 0 | J94: 0 | K94: 0 | L94: 0 | M94: 26878.22 | N94: 0.5 | O94: 13439.11 | P94: 642.62 | R94: =IF($O94<=0,0,IF(($O94-SUM($Q94:Q94))<$P94,$O94-SUM($Q94:Q94),IF(SUM($Q94:Q94)<$O94,$P94,0))) -> 642.62 | S94: =IF($O94<=0,0,IF(($O94-SUM($Q94:R94))<$P94,$O94-SUM($Q94:R94),IF(SUM($Q94:R94)<$O94,$P94,0))) -> 642.62 | T94: =IF($O94<=0,0,IF(($O94-SUM($Q94:S94))<$P94,$O94-SUM($Q94:S94),IF(SUM($Q94:S94)<$O94,$P94,0))) -> 642.62 | U94: =IF($O94<=0,0,IF(($O94-SUM($Q94:T94))<$P94,$O94-SUM($Q94:T94),IF(SUM($Q94:T94)<$O94,$P94,0))) -> 642.62 | V94: =IF($O94<=0,0,IF(($O94-SUM($Q94:U94))<$P94,$O94-SUM($Q94:U94),IF(SUM($Q94:U94)<$O94,$P94,0))) -> 642.62 | W94: =IF($O94<=0,0,IF(($O94-SUM($Q94:V94))<$P94,$O94-SUM($Q94:V94),IF(SUM($Q94:V94)<$O94,$P94,0))) -> 642.62 | X94: =IF($O94<=0,0,IF(($O94-SUM($Q94:W94))<$P94,$O94-SUM($Q94:W94),IF(SUM($Q94:W94)<$O94,$P94,0))) -> 642.62 | Y94: =IF($O94<=0,0,IF(($O94-SUM($Q94:X94))<$P94,$O94-SUM($Q94:X94),IF(SUM($Q94:X94)<$O94,$P94,0))) -> 642.62 | Z94: 11511.25
B95: AERONAVEGACIÓN | C95: OTRAS EDIFICACIONES (NUEVO) | D95: EDIFICACIONES Y CONSTRUCCIONES | E95: 2001-01-29 | F95: 2001-01-29 | G95: 17076.35 | H95: 953.34 | I95: 0 | J95: 0 | K95: 0 | L95: 0 | M95: 16123.01 | N95: 1 | O95: 16123.01 | P95: 953.34 | R95: =IF($O95<=0,0,IF(($O95-SUM($Q95:Q95))<$P95,$O95-SUM($Q95:Q95),IF(SUM($Q95:Q95)<$O95,$P95,0))) -> 953.34 | S95: =IF($O95<=0,0,IF(($O95-SUM($Q95:R95))<$P95,$O95-SUM($Q95:R95),IF(SUM($Q95:R95)<$O95,$P95,0))) -> 953.34 | T95: =IF($O95<=0,0,IF(($O95-SUM($Q95:S95))<$P95,$O95-SUM($Q95:S95),IF(SUM($Q95:S95)<$O95,$P95,0))) -> 953.34 | U95: =IF($O95<=0,0,IF(($O95-SUM($Q95:T95))<$P95,$O95-SUM($Q95:T95),IF(SUM($Q95:T95)<$O95,$P95,0))) -> 953.34 | V95: =IF($O95<=0,0,IF(($O95-SUM($Q95:U95))<$P95,$O95-SUM($Q95:U95),IF(SUM($Q95:U95)<$O95,$P95,0))) -> 953.34 | W95: =IF($O95<=0,0,IF(($O95-SUM($Q95:V95))<$P95,$O95-SUM($Q95:V95),IF(SUM($Q95:V95)<$O95,$P95,0))) -> 953.34 | X95: =IF($O95<=0,0,IF(($O95-SUM($Q95:W95))<$P95,$O95-SUM($Q95:W95),IF(SUM($Q95:W95)<$O95,$P95,0))) -> 953.34 | Y95: =IF($O95<=0,0,IF(($O95-SUM($Q95:X95))<$P95,$O95-SUM($Q95:X95),IF(SUM($Q95:X95)<$O95,$P95,0))) -> 953.34 | Z95: 13262.99
B96: AERONAVEGACIÓN | C96: EDIFICIOS EN AEROPUERTOS-Administrativas | D96: EDIFICACIONES Y CONSTRUCCIONES | E96: 2000-08-19 | F96: 2000-08-19 | G96: 14184.21 | H96: 891.44 | I96: 0 | J96: 0 | K96: 0 | L96: 0 | M96: 13292.77 | N96: 1 | O96: 13292.77 | P96: 891.44 | R96: =IF($O96<=0,0,IF(($O96-SUM($Q96:Q96))<$P96,$O96-SUM($Q96:Q96),IF(SUM($Q96:Q96)<$O96,$P96,0))) -> 891.44 | S96: =IF($O96<=0,0,IF(($O96-SUM($Q96:R96))<$P96,$O96-SUM($Q96:R96),IF(SUM($Q96:R96)<$O96,$P96,0))) -> 891.44 | T96: =IF($O96<=0,0,IF(($O96-SUM($Q96:S96))<$P96,$O96-SUM($Q96:S96),IF(SUM($Q96:S96)<$O96,$P96,0))) -> 891.44 | U96: =IF($O96<=0,0,IF(($O96-SUM($Q96:T96))<$P96,$O96-SUM($Q96:T96),IF(SUM($Q96:T96)<$O96,$P96,0))) -> 891.44 | V96: =IF($O96<=0,0,IF(($O96-SUM($Q96:U96))<$P96,$O96-SUM($Q96:U96),IF(SUM($Q96:U96)<$O96,$P96,0))) -> 891.44 | W96: =IF($O96<=0,0,IF(($O96-SUM($Q96:V96))<$P96,$O96-SUM($Q96:V96),IF(SUM($Q96:V96)<$O96,$P96,0))) -> 891.44 | X96: =IF($O96<=0,0,IF(($O96-SUM($Q96:W96))<$P96,$O96-SUM($Q96:W96),IF(SUM($Q96:W96)<$O96,$P96,0))) -> 891.44 | Y96: =IF($O96<=0,0,IF(($O96-SUM($Q96:X96))<$P96,$O96-SUM($Q96:X96),IF(SUM($Q96:X96)<$O96,$P96,0))) -> 891.44 | Z96: 10618.45
